Workbook

Sheet Sample Report (hidden)
A2: Date
A3: Hen
A4: Program
A5: Start at 999999
A6: Sequence component 1 | B6: Time 1 | C6: Seqeunce Component 2 | D6: Time 2 | E6: Seqeunce Component 3 | F6: Time 3 | G6: Correct 0 = No 1=Yes | J6: Seqeunce | K6: Time
A7: 12 | B7: 7 | C7: 12 | D7: 42 | E7: 13 | F7: 18 | G7: if 77 new line, if 31 or 41 = yes new line on 77, | J7: =string of Seqeunce compponent 1, 2 & 3 | K7: =time 3
A8: This continues until ther is a 1 on its own to indicate start of summary data
J9: 10-19 =1
A10: Summary Data | J10: 20-29 =2
A11: Correct | B11: Incorrect | C11: Rft | D11: total | E11: Av Correct | F11: Av Incorrect | G11: Percent correct | H11: Time | J11: in this example the seqeunce would be 111
A12: 40 | B12: 33 | C12: 40 | D12: 73 | E12: 23.95 | F12: 15 | G12: 54 | H12: 806

Sheet Summary
A2: Day | B2: Date | C2: Average Response Rate | D2: Target % | E2: RF for non correct sequence | F2: U Value | K2: Block 1 | L2: Block 2 | M2: Block 3 | N2: Block 4 | O2: Block 5 | P2: Block 6
A3: 1 | B3: ='!L807C10.055'!B2:C2 -> <date> | C3: =('!L807C10.055'!D7/60)/'!L807C10.055'!Q3 -> 0.001642036125 | D3: ='!L807C10.055'!N20/'!L807C10.055'!Q3 -> 0.1083743842 | E3: =SUM('!L807C10.055'!L20:Q20)/'!L807C10.055'!Q3 -> 0.5024630542 | F3: ='!L807C10.055'!Q16 -> 0.1803177786 | J3: Average Response Rate | K3: =AVERAGE(C3:C7) -> 0.004592800532 | L3: =AVERAGE(C8:C12) -> 0.006163716335 | M3: =AVERAGE(C13:C17) -> 0.009423486767 | N3: =AVERAGE(C18:C22) -> 0.008631421184 | O3: =AVERAGE(C23:C27) -> 0.01151448511 | P3: =AVERAGE(C28:C32) -> 0.008758807588
A4: 2 | B4: ='!L809B40.055'!B2:C2 -> <date> | C4: =('!L809B40.055'!D7/60)/'!L809B40.055'!Q3 -> 0.003388278388 | D4: ='!L809B40.055'!N20/'!L809B40.055'!Q3 -> 0.2197802198 | E4: =SUM('!L809B40.055'!L20:Q20)/'!L809B40.055'!Q3 -> 0.6703296703 | F4: ='!L809B40.055'!Q16 -> 0.1922387073 | J4: Target % | K4: =AVERAGE(D3:D7) -> 0.3881088648 | L4: =AVERAGE(D8:D12) -> 0.545907992 | M4: =AVERAGE(D13:D17) -> 0.6879053539 | N4: =AVERAGE(D18:D22) -> 0.8005522136 | O4: =AVERAGE(D23:D27) -> 0.897673419 | P4: =AVERAGE(D28:D32) -> 0.888166215
A5: 3 | B5: ='!L810C40.055'!B2:C2 -> <date> | C5: =('!L810C40.055'!D7/60)/'!L810C40.055'!Q3 -> 0.005907172996 | D5: ='!L810C40.055'!N20/'!L810C40.055'!Q3 -> 0.5063291139 | E5: =SUM('!L810C40.055'!L20:Q20)/'!L810C40.055'!Q3 -> 1.101265823 | F5: ='!L810C40.055'!Q16 -> 0.2201045603 | J5: CCRF | K5: =AVERAGE(E3:E7) -> 0.8990541337 | L5: =AVERAGE(E8:E12) -> 1.070195825 | M5: =AVERAGE(E13:E17) -> 1.258017109 | N5: =AVERAGE(E18:E22) -> 1.37654492 | O5: =AVERAGE(E23:E27) -> 1.541505006 | P5: =AVERAGE(E28:E32) -> 1.492881662
A6: 4 | B6: ='!L811B40.055'!B2:C2 -> <date> | C6: =('!L811B40.055'!D7/60)/'!L811B40.055'!Q3 -> 0.005208333333 | D6: ='!L811B40.055'!N20/'!L811B40.055'!Q3 -> 0.5 | E6: =SUM('!L811B40.055'!L20:Q20)/'!L811B40.055'!Q3 -> 1.1 | F6: ='!L811B40.055'!Q16 -> 0.2688349807 | J6: U Value | K6: =AVERAGE(F3:F7) -> 0.2205790311 | L6: =AVERAGE(F8:F12) -> 0.2378543856 | M6: =AVERAGE(F13:F17) -> 0.2290834258 | N6: =AVERAGE(F18:F22) -> 0.1695982978 | O6: =AVERAGE(F23:F27) -> 0.1040825432 | P6: =AVERAGE(F28:F32) -> 0.109042398
A7: 5 | B7: ='!L812B10.055'!B2:C2 -> <date> | C7: =('!L812B10.055'!D7/60)/'!L812B10.055'!Q3 -> 0.006818181818 | D7: ='!L812B10.055'!N20/'!L812B10.055'!Q3 -> 0.6060606061 | E7: =SUM('!L812B10.055'!L20:Q20)/'!L812B10.055'!Q3 -> 1.121212121 | F7: ='!L812B10.055'!Q16 -> 0.2413991287
A8: 6 | B8: ='!L813A10.055'!B2:C2 -> <date> | C8: =('!L813A10.055'!D7/60)/'!L813A10.055'!Q3 -> 0.006989247312 | D8: ='!L813A10.055'!N20/'!L813A10.055'!Q3 -> 0.6451612903 | E8: =SUM('!L813A10.055'!L20:Q20)/'!L813A10.055'!Q3 -> 1.177419355 | F8: ='!L813A10.055'!Q16 -> 0.2242204845
A9: 7 | B9: ='!L814B20.055'!B2:C2 -> <date> | C9: =('!L814B20.055'!D7/60)/'!L814B20.055'!Q3 -> 0.007291666667 | D9: ='!L814B20.055'!N20/'!L814B20.055'!Q3 -> 0.625 | E9: =SUM('!L814B20.055'!L20:Q20)/'!L814B20.055'!Q3 -> 1.140625 | F9: ='!L814B20.055'!Q16 -> 0.2402470176 | G9: =K3 -> 0.004592800532 | H9: 0.006163716335 | I9: 0.009423486767 | J9: 0.008631421184 | K9: 0.01151448511 | L9: 0.008758807588 | M9: =K4 -> 0.3881088648 | N9: 0.545907992 | O9: 0.6879053539 | P9: 0.8005522136 | Q9: 0.897673419 | R9: 0.888166215 | S9: =K6 -> 0.2205790311 | T9: 0.2378543856 | U9: 0.2290834258 | V9: 0.1695982978 | W9: 0.1040825432 | X9: 0.109042398
A10: 8 | B10: ='!L819A20.055'!B2:C2 -> <date> | C10: =('!L819A20.055'!D7/60)/'!L819A20.055'!Q3 -> 0.005263157895 | D10: ='!L819A20.055'!N20/'!L819A20.055'!Q3 -> 0.5263157895 | E10: =SUM('!L819A20.055'!L20:Q20)/'!L819A20.055'!Q3 -> 1.013157895 | F10: ='!L819A20.055'!Q16 -> 0.2372358912
A11: 9 | B11: ='!L820A30.055'!B2:C2 -> <date> | C11: =('!L820A30.055'!D7/60)/'!L820A30.055'!Q3 -> 0.004166666667 | D11: ='!L820A30.055'!N20/'!L820A30.055'!Q3 -> 0.3448275862 | E11: =SUM('!L820A30.055'!L20:Q20)/'!L820A30.055'!Q3 -> 0.7844827586 | F11: ='!L820A30.055'!Q16 -> 0.2368455721
A12: 10 | B12: ='!L821C20.055'!B2:C2 -> <date> | C12: =('!L821C20.055'!D7/60)/'!L821C20.055'!Q3 -> 0.007107843137 | D12: ='!L821C20.055'!N20/'!L821C20.055'!Q3 -> 0.5882352941 | E12: =SUM('!L821C20.055'!L20:Q20)/'!L821C20.055'!Q3 -> 1.235294118 | F12: ='!L821C20.055'!Q16 -> 0.2507229627
A13: 11 | B13: ='!L822C10.055'!B2:C2 -> <date> | C13: =('!L822C10.055'!D7/60)/'!L822C10.055'!Q3 -> 0.00988700565 | D13: ='!L822C10.055'!N20/'!L822C10.055'!Q3 -> 0.6779661017 | E13: =SUM('!L822C10.055'!L20:Q20)/'!L822C10.055'!Q3 -> 1.220338983 | F13: ='!L822C10.055'!Q16 -> 0.2285610772
A14: 12 | B14: ='!L823B50.055'!B2:C2 -> <date> | C14: =('!L823B50.055'!D7/60)/'!L823B50.055'!Q3 -> 0.009322033898 | D14: ='!L823B50.055'!N20/'!L823B50.055'!Q3 -> 0.6779661017 | E14: =SUM('!L823B50.055'!L20:Q20)/'!L823B50.055'!Q3 -> 1.372881356 | F14: ='!L823B50.055'!Q16 -> 0.2367197107
A15: 13 | B15: ='!L824B50.055'!B2:C2 -> <date> | C15: =('!L824B50.055'!D7/60)/'!L824B50.055'!Q3 -> 0.009444444444 | D15: ='!L824B50.055'!N20/'!L824B50.055'!Q3 -> 0.6666666667 | E15: =SUM('!L824B50.055'!L20:Q20)/'!L824B50.055'!Q3 -> 1.2 | F15: ='!L824B50.055'!Q16 -> 0.2242650987
A16: 14 | B16: ='!L825C20.055'!B2:C2 -> <date> | C16: =('!L825C20.055'!D7/60)/'!L825C20.055'!Q3 -> 0.01149425287 | D16: ='!L825C20.055'!N20/'!L825C20.055'!Q3 -> 0.6896551724 | E16: =SUM('!L825C20.055'!L20:Q20)/'!L825C20.055'!Q3 -> 1.224137931 | F16: ='!L825C20.055'!Q16 -> 0.2357964172
A17: 15 | B17: ='!L826940.055'!B2:C2 -> <date> | C17: =('!L826940.055'!D7/60)/'!L826940.055'!Q3 -> 0.00696969697 | D17: ='!L826940.055'!N20/'!L826940.055'!Q3 -> 0.7272727273 | E17: =SUM('!L826940.055'!L20:Q20)/'!L826940.055'!Q3 -> 1.272727273 | F17: ='!L826940.055'!Q16 -> 0.2200748249
A18: 16 | B18: ='!L829C20.055'!B2:C2 -> <date> | C18: =('!L829C20.055'!D7/60)/'!L829C20.055'!Q3 -> 0.0109929078 | D18: ='!L829C20.055'!N20/'!L829C20.055'!Q3 -> 0.8510638298 | E18: =SUM('!L829C20.055'!L20:Q20)/'!L829C20.055'!Q3 -> 1.446808511 | F18: ='!L829C20.055'!Q16 -> 0.1462794834
A19: 17 | B19: ='!L830B50.055'!B2:C2 -> <date> | C19: =('!L830B50.055'!D7/60)/'!L830B50.055'!Q3 -> 0.005376344086 | D19: ='!L830B50.055'!N20/'!L830B50.055'!Q3 -> 0.6451612903 | E19: =SUM('!L830B50.055'!L20:Q20)/'!L830B50.055'!Q3 -> 1.177419355 | F19: ='!L830B50.055'!Q16 -> 0.2493340931
A20: 18 | B20: ='!L831C40.055'!B2:C2 -> <date> | C20: =('!L831C40.055'!D7/60)/'!L831C40.055'!Q3 -> 0.01259259259 | D20: ='!L831C40.055'!N20/'!L831C40.055'!Q3 -> 0.8888888889 | E20: =SUM('!L831C40.055'!L20:Q20)/'!L831C40.055'!Q3 -> 1.488888889 | F20: ='!L831C40.055'!Q16 -> 0.1193743108
A21: 19 | B21: ='!L901B30.055'!B2:C2 -> <date> | C21: =('!L901B30.055'!D7/60)/'!L901B30.055'!Q3 -> 0.007986111111 | D21: ='!L901B30.055'!N20/'!L901B30.055'!Q3 -> 0.8333333333 | E21: =SUM('!L901B30.055'!L20:Q20)/'!L901B30.055'!Q3 -> 1.416666667 | F21: ='!L901B30.055'!Q16 -> 0.1405981584
A22: 20 | B22: ='!L902D00.055'!B2:C2 -> <date> | C22: =('!L902D00.055'!D7/60)/'!L902D00.055'!Q3 -> 0.006209150327 | D22: ='!L902D00.055'!N20/'!L902D00.055'!Q3 -> 0.7843137255 | E22: =SUM('!L902D00.055'!L20:Q20)/'!L902D00.055'!Q3 -> 1.352941176 | F22: ='!L902D00.055'!Q16 -> 0.1924054433
A23: 21 | B23: ='!L903A30.055'!B2:C2 -> <date> | C23: =('!L903A30.055'!D7/60)/'!L903A30.055'!Q3 -> 0.01022727273 | D23: ='!L903A30.055'!N20/'!L903A30.055'!Q3 -> 0.9090909091 | E23: =SUM('!L903A30.055'!L20:Q20)/'!L903A30.055'!Q3 -> 1.522727273 | F23: ='!L903A30.055'!Q16 -> 0.105479959
A24: 22 | B24: ='!L904B20.055'!B2:C2 -> <date> | C24: =('!L904B20.055'!D7/60)/'!L904B20.055'!Q3 -> 0.01737588652 | D24: ='!L904B20.055'!N20/'!L904B20.055'!Q3 -> 0.8510638298 | E24: =SUM('!L904B20.055'!L20:Q20)/'!L904B20.055'!Q3 -> 1.638297872 | F24: ='!L904B20.055'!Q16 -> 0.1324529225
A25: 23 | B25: ='!L905A30.055'!B2:C2 -> <date> | C25: =('!L905A30.055'!D7/60)/'!L905A30.055'!Q3 -> 0.01124031008 | D25: ='!L905A30.055'!N20/'!L905A30.055'!Q3 -> 0.9302325581 | E25: =SUM('!L905A30.055'!L20:Q20)/'!L905A30.055'!Q3 -> 1.534883721 | F25: ='!L905A30.055'!Q16 -> 0.07908245547
A26: 24 | B26: ='!L906B00.055'!B2:C2 -> <date> | C26: =('!L906B00.055'!D7/60)/'!L906B00.055'!Q3 -> 0.009259259259 | D26: ='!L906B00.055'!N20/'!L906B00.055'!Q3 -> 0.8888888889 | E26: =SUM('!L906B00.055'!L20:Q20)/'!L906B00.055'!Q3 -> 1.488888889 | F26: ='!L906B00.055'!Q16 -> 0.1062432948
A27: 25 | B27: ='!L907B00.055'!B2:C2 -> <date> | C27: =('!L907B00.055'!D7/60)/'!L907B00.055'!Q3 -> 0.00946969697 | D27: ='!L907B00.055'!N20/'!L907B00.055'!Q3 -> 0.9090909091 | E27: =SUM('!L907B00.055'!L20:Q20)/'!L907B00.055'!Q3 -> 1.522727273 | F27: ='!L907B00.055'!Q16 -> 0.09715408396
A28: 26 | B28: ='!L908910.055'!B2:C2 -> <date> | C28: =('!L908910.055'!D7/60)/'!L908910.055'!Q3 -> 0.01 | D28: ='!L908910.055'!N20/'!L908910.055'!Q3 -> 0.8888888889 | E28: =SUM('!L908910.055'!L20:Q20)/'!L908910.055'!Q3 -> 1.488888889 | F28: ='!L908910.055'!Q16 -> 0.122428886
A29: 27 | B29: ='!L909B50.055'!B2:C2 -> <date> | C29: =('!L909B50.055'!D7/60)/'!L909B50.055'!Q3 -> 0.007333333333 | D29: ='!L909B50.055'!N20/'!L909B50.055'!Q3 -> 0.8 | E29: =SUM('!L909B50.055'!L20:Q20)/'!L909B50.055'!Q3 -> 1.38 | F29: ='!L909B50.055'!Q16 -> 0.1738209534
A30: 28 | B30: ='!L910B10.055'!B2:C2 -> <date> | C30: =('!L910B10.055'!D7/60)/'!L910B10.055'!Q3 -> 0.008943089431 | D30: ='!L910B10.055'!N20/'!L910B10.055'!Q3 -> 0.9756097561 | E30: =SUM('!L910B10.055'!L20:Q20)/'!L910B10.055'!Q3 -> 1.609756098 | F30: ='!L910B10.055'!Q16 -> 0.03087735478
A31: 29
A32: 30

Sheet Start
F1: Use Folder 51 | H1: Auto Clean Up | J1: Correct sequence
F2: FALSE | H2: TRUE | J2: 12
A4: Working with Folder | G4: Process All/Or Pick A number: ALL or an integer
A5: E:\Hen Data\Raw Data\55\phase 4 con\ | G5: ALL
A6: Filenames:
A7: !L807C10.055 | G7: Paint Cells
A8: !L809B40.055 | G8: FALSE
A9: !L811B40.055
A10: !L812B10.055
A11: !L813A10.055
A12: !L814B20.055
A13: !L819A20.055
A14: !L820A30.055
A15: !L821C20.055
A16: !L822C10.055
A17: !L823B50.055
A18: !L824B50.055
A19: !L825C20.055
A20: !L826940.055
A21: !L829C20.055
A22: !L830B50.055
A23: !L810C40.055
A24: !L831C40.055
A25: !L901B30.055
A26: !L902D00.055
A27: !L903A30.055
A28: !L904B20.055
A29: !L905A30.055
A30: !L906B00.055
A31: !L907B00.055
A32: !L908910.055
A33: !L909B50.055
A34: !L910B10.055

Sheet !L807C10.055
A1: Report for:!L807C10.055
A2: Date: | B2: <date>
A3: Hen: | B3: <hen> | F3: Correct Sequence | G3: =Start!J2 -> 12 | P3: Total Sequences in Data | Q3: =4994-COUNTBLANK(L7:L5000) -> 203 | V3: Total Sequences in Block Data | W3: =COUNTA(L7:L40) -> 34 | AA3: Total Sequences in Block Data | AB3: =COUNTA(L41:L74) -> 34 | AF3: Total Sequences in Block Data | AG3: =COUNTA(L75:L107) -> 33 | AK3: Total Sequences in Block Data | AL3: =COUNTA(L108:L141) -> 34 | AP3: Total Sequences in Block Data | AQ3: =COUNTA(L142:L175) -> 34 | AU3: Total Sequences in Block Data | AV3: =COUNTA(L176:L209) -> 34
P4: Total Sequences in Summary | Q4: =SUM(O7:O14) -> 203 | V4: Total Sequences in Block Summary | W4: =SUM(U7:U14) -> 34 | AA4: Total Sequences in Block Summary | AB4: =SUM(Z7:Z14) -> 34 | AF4: Total Sequences in Block Summary | AG4: =SUM(AE7:AE14) -> 33 | AK4: Total Sequences in Block Summary | AL4: =SUM(AJ7:AJ14) -> 34 | AP4: Total Sequences in Block Summary | AQ4: =SUM(AO7:AO14) -> 34 | AU4: Total Sequences in Block Summary | AV4: =SUM(AT7:AT14) -> 34
T5: Block 1 | Y5: Block 2 | AD5: Block 3 | AI5: Block 4 | AN5: Block 5 | AS5: Block 6
A6: Sequence Component 1 | B6: Time 1 | C6: Sequence Component 2 | D6: Time 2 | E6: Sequence Component 3 | F6: Time 3 | G6: Sequence Component 4 | H6: Time 4 | I6: Sequence Component 5 | J6: Time 5 | K6: Correct? 0=No 1=Yes | L6: Sequence | N6: Frequency | P6: Relative Frequency | Q6: Variability | T6: Frequency | V6: Relative Frequency | W6: Variability | Y6: Frequency | AA6: Relative Frequency | AB6: Variability | AD6: Frequency | AF6: Relative Frequency | AG6: Variability | AI6: Frequency | AK6: Relative Frequency | AL6: Variability | AN6: Frequency | AP6: Relative Frequency | AQ6: Variability | AS6: Frequency | AU6: Relative Frequency | AV6: Variability
A7: 22 | B7: 9 | C7: 14 | D7: 20 | K7: 0 | L7: 21 | N7: 11 | O7: =COUNTIF($L$7:$L$500,N7) -> 0 | P7: =O7/$Q$4 -> 0 | Q7: =IF(P7=0,0,(P7*((LOG(P7))/LOG(2)))) -> 0 | T7: =N7 -> 11 | U7: =COUNTIF(L7:L40,T7) -> 0 | V7: =U7/(W4-U8) -> 0 | W7: =IF(V7=0,0,(V7*((LOG(V7))/LOG(2)))) -> 0 | Y7: =N7 -> 11 | Z7: =COUNTIF(L41:L74,Y7) -> 0 | AA7: =Z7/(AB4-Z8) -> 0 | AB7: =IF(AA7=0,0,(AA7*((LOG(AA7))/LOG(2)))) -> 0 | AD7: =N7 -> 11 | AE7: =COUNTIF(L75:L107,AD7) -> 0 | AF7: =AE7/(AG4-AE8) -> 0 | AG7: =IF(AF7=0,0,(AF7*((LOG(AF7))/LOG(2)))) -> 0 | AI7: =N7 -> 11 | AJ7: =COUNTIF(L108:L141,AI7) -> 0 | AK7: =AJ7/(AL4-AJ8) -> 0 | AL7: =IF(AK7=0,0,(AK7*((LOG(AK7))/LOG(2)))) -> 0 | AN7: =N7 -> 11 | AO7: =COUNTIF(L142:L175,AN7) -> 0 | AP7: =AO7/(AQ4-AO8) -> 0 | AQ7: =IF(AP7=0,0,(AP7*((LOG(AP7))/LOG(2)))) -> 0 | AS7: =N7 -> 11 | AT7: =COUNTIF(L176:L209,AS7) -> 0 | AU7: =AT7/(AV4-AT8) -> 0 | AV7: =IF(AU7=0,0,(AU7*((LOG(AU7))/LOG(2)))) -> 0
A8: 22 | B8: 119 | C8: 14 | D8: 142 | K8: 0 | L8: 21 | N8: 12 | O8: =COUNTIF($L$7:$L$500,N8) -> 22 | P8: =O8/$Q$4 -> 0.1083743842 | Q8: =IF(P8=0,0,(P8*((LOG(P8))/LOG(2)))) -> -0.3474379043 | T8: =N8 -> 12 | U8: =COUNTIF(L7:L40,T8) -> 3 | Y8: =N8 -> 12 | Z8: =COUNTIF(L41:L74,Y8) -> 9 | AD8: =N8 -> 12 | AE8: =COUNTIF(L75:L107,AD8) -> 1 | AI8: =N8 -> 12 | AJ8: =COUNTIF(L108:L141,AI8) -> 2 | AN8: =N8 -> 12 | AO8: =COUNTIF(L142:L175,AN8) -> 2 | AS8: =N8 -> 12 | AT8: =COUNTIF(L176:L209,AS8) -> 5
A9: 22 | B9: 242 | C9: 23 | D9: 247 | K9: 0 | L9: 22 | N9: 21 | O9: =COUNTIF($L$7:$L$500,N9) -> 98 | P9: =O9/$Q$4 -> 0.4827586207 | Q9: =IF(P9=0,0,(P9*((LOG(P9))/LOG(2)))) -> -0.5071987939 | T9: =N9 -> 21 | U9: =COUNTIF(L7:L40,T9) -> 14 | V9: =U9/(W4-U8) -> 0.4516129032 | W9: =IF(V9=0,0,(V9*((LOG(V9))/LOG(2)))) -> -0.5179283689 | Y9: =N9 -> 21 | Z9: =COUNTIF(L41:L74,Y9) -> 17 | AA9: =Z9/(AB4-Z8) -> 0.68 | AB9: =IF(AA9=0,0,(AA9*((LOG(AA9))/LOG(2)))) -> -0.378347477 | AD9: =N9 -> 21 | AE9: =COUNTIF(L75:L107,AD9) -> 25 | AF9: =AE9/(AG4-AE8) -> 0.78125 | AG9: =IF(AF9=0,0,(AF9*((LOG(AF9))/LOG(2)))) -> -0.2782373517 | AI9: =N9 -> 21 | AJ9: =COUNTIF(L108:L141,AI9) -> 12 | AK9: =AJ9/(AL4-AJ8) -> 0.375 | AL9: =IF(AK9=0,0,(AK9*((LOG(AK9))/LOG(2)))) -> -0.5306390622 | AN9: =N9 -> 21 | AO9: =COUNTIF(L142:L175,AN9) -> 17 | AP9: =AO9/(AQ4-AO8) -> 0.53125 | AQ9: =IF(AP9=0,0,(AP9*((LOG(AP9))/LOG(2)))) -> -0.4847853656 | AS9: =N9 -> 21 | AT9: =COUNTIF(L176:L209,AS9) -> 13 | AU9: =AT9/(AV4-AT8) -> 0.4482758621 | AV9: =IF(AU9=0,0,(AU9*((LOG(AU9))/LOG(2)))) -> -0.5188978138
A10: 22 | B10: 354 | C10: 14 | D10: 368 | K10: 0 | L10: 21 | N10: 22 | O10: =COUNTIF($L$7:$L$500,N10) -> 83 | P10: =O10/$Q$4 -> 0.4088669951 | Q10: =IF(P10=0,0,(P10*((LOG(P10))/LOG(2)))) -> -0.5275596469 | T10: =N10 -> 22 | U10: =COUNTIF(L7:L40,T10) -> 17 | V10: =U10/(W4-U8) -> 0.5483870968 | W10: =IF(V10=0,0,(V10*((LOG(V10))/LOG(2)))) -> -0.4753054508 | Y10: =N10 -> 22 | Z10: =COUNTIF(L41:L74,Y10) -> 8 | AA10: =Z10/(AB4-Z8) -> 0.32 | AB10: =IF(AA10=0,0,(AA10*((LOG(AA10))/LOG(2)))) -> -0.5260339807 | AD10: =N10 -> 22 | AE10: =COUNTIF(L75:L107,AD10) -> 7 | AF10: =AE10/(AG4-AE8) -> 0.21875 | AG10: =IF(AF10=0,0,(AF10*((LOG(AF10))/LOG(2)))) -> -0.4796411108 | AI10: =N10 -> 22 | AJ10: =COUNTIF(L108:L141,AI10) -> 20 | AK10: =AJ10/(AL4-AJ8) -> 0.625 | AL10: =IF(AK10=0,0,(AK10*((LOG(AK10))/LOG(2)))) -> -0.4237949407 | AN10: =N10 -> 22 | AO10: =COUNTIF(L142:L175,AN10) -> 15 | AP10: =AO10/(AQ4-AO8) -> 0.46875 | AQ10: =IF(AP10=0,0,(AP10*((LOG(AP10))/LOG(2)))) -> -0.5123950333 | AS10: =N10 -> 22 | AT10: =COUNTIF(L176:L209,AS10) -> 16 | AU10: =AT10/(AV4-AT8) -> 0.5517241379 | AV10: =IF(AU10=0,0,(AU10*((LOG(AU10))/LOG(2)))) -> -0.4733688249
A11: 22 | B11: 468 | C11: 23 | D11: 475 | K11: 0 | L11: 22 | T11: =N11 -> 0 | U11: =COUNTIF(L7:L40,T11) -> 0 | V11: =U11/(W4-U8) -> 0 | W11: =IF(V11=0,0,(V11*((LOG(V11))/LOG(2)))) -> 0 | Y11: =N11 -> 0 | Z11: =COUNTIF(L41:L74,Y11) -> 0 | AA11: =Z11/(AB4-Z8) -> 0 | AB11: =IF(AA11=0,0,(AA11*((LOG(AA11))/LOG(2)))) -> 0 | AD11: =N11 -> 0 | AE11: =COUNTIF(L75:L107,AD11) -> 0 | AF11: =AE11/(AG4-AE8) -> 0 | AG11: =IF(AF11=0,0,(AF11*((LOG(AF11))/LOG(2)))) -> 0 | AI11: =N11 -> 0 | AJ11: =COUNTIF(L108:L141,AI11) -> 0 | AK11: =AJ11/(AL4-AJ8) -> 0 | AL11: =IF(AK11=0,0,(AK11*((LOG(AK11))/LOG(2)))) -> 0 | AN11: =N11 -> 0 | AO11: =COUNTIF(L142:L175,AN11) -> 0 | AP11: =AO11/(AQ4-AO8) -> 0 | AQ11: =IF(AP11=0,0,(AP11*((LOG(AP11))/LOG(2)))) -> 0 | AS11: =N11 -> 0 | AT11: =COUNTIF(L176:L209,AS11) -> 0 | AU11: =AT11/(AV4-AT8) -> 0 | AV11: =IF(AU11=0,0,(AU11*((LOG(AU11))/LOG(2)))) -> 0
A12: 11 | B12: 590 | C12: 21 | D12: 602 | K12: 0 | L12: 12 | T12: =N12 -> 0 | U12: =COUNTIF(L7:L40,T12) -> 0 | V12: =U12/(W4-U8) -> 0 | W12: =IF(V12=0,0,(V12*((LOG(V12))/LOG(2)))) -> 0 | Y12: =N12 -> 0 | Z12: =COUNTIF(L41:L74,Y12) -> 0 | AA12: =Z12/(AB4-Z8) -> 0 | AB12: =IF(AA12=0,0,(AA12*((LOG(AA12))/LOG(2)))) -> 0 | AD12: =N12 -> 0 | AE12: =COUNTIF(L75:L107,AD12) -> 0 | AF12: =AE12/(AG4-AE8) -> 0 | AG12: =IF(AF12=0,0,(AF12*((LOG(AF12))/LOG(2)))) -> 0 | AI12: =N12 -> 0 | AJ12: =COUNTIF(L108:L141,AI12) -> 0 | AK12: =AJ12/(AL4-AJ8) -> 0 | AL12: =IF(AK12=0,0,(AK12*((LOG(AK12))/LOG(2)))) -> 0 | AN12: =N12 -> 0 | AO12: =COUNTIF(L142:L175,AN12) -> 0 | AP12: =AO12/(AQ4-AO8) -> 0 | AQ12: =IF(AP12=0,0,(AP12*((LOG(AP12))/LOG(2)))) -> 0 | AS12: =N12 -> 0 | AT12: =COUNTIF(L176:L209,AS12) -> 0 | AU12: =AT12/(AV4-AT8) -> 0 | AV12: =IF(AU12=0,0,(AU12*((LOG(AU12))/LOG(2)))) -> 0
A13: 22 | B13: 697 | C13: 14 | D13: 712 | K13: 0 | L13: 21 | T13: =N13 -> 0 | U13: =COUNTIF(L7:L40,T13) -> 0 | V13: =U13/(W4-U8) -> 0 | W13: =IF(V13=0,0,(V13*((LOG(V13))/LOG(2)))) -> 0 | Y13: =N13 -> 0 | Z13: =COUNTIF(L41:L74,Y13) -> 0 | AA13: =Z13/(AB4-Z8) -> 0 | AB13: =IF(AA13=0,0,(AA13*((LOG(AA13))/LOG(2)))) -> 0 | AD13: =N13 -> 0 | AE13: =COUNTIF(L75:L107,AD13) -> 0 | AF13: =AE13/(AG4-AE8) -> 0 | AG13: =IF(AF13=0,0,(AF13*((LOG(AF13))/LOG(2)))) -> 0 | AI13: =N13 -> 0 | AJ13: =COUNTIF(L108:L141,AI13) -> 0 | AK13: =AJ13/(AL4-AJ8) -> 0 | AL13: =IF(AK13=0,0,(AK13*((LOG(AK13))/LOG(2)))) -> 0 | AN13: =N13 -> 0 | AO13: =COUNTIF(L142:L175,AN13) -> 0 | AP13: =AO13/(AQ4-AO8) -> 0 | AQ13: =IF(AP13=0,0,(AP13*((LOG(AP13))/LOG(2)))) -> 0 | AS13: =N13 -> 0 | AT13: =COUNTIF(L176:L209,AS13) -> 0 | AU13: =AT13/(AV4-AT8) -> 0 | AV13: =IF(AU13=0,0,(AU13*((LOG(AU13))/LOG(2)))) -> 0
A14: 22 | B14: 810 | C14: 23 | D14: 830 | K14: 0 | L14: 22 | T14: =N14 -> 0 | U14: =COUNTIF(L7:L40,T14) -> 0 | V14: =U14/(W4-U8) -> 0 | W14: =IF(V14=0,0,(V14*((LOG(V14))/LOG(2)))) -> 0 | Y14: =N14 -> 0 | Z14: =COUNTIF(L41:L74,Y14) -> 0 | AA14: =Z14/(AB4-Z8) -> 0 | AB14: =IF(AA14=0,0,(AA14*((LOG(AA14))/LOG(2)))) -> 0 | AD14: =N14 -> 0 | AE14: =COUNTIF(L75:L107,AD14) -> 0 | AF14: =AE14/(AG4-AE8) -> 0 | AG14: =IF(AF14=0,0,(AF14*((LOG(AF14))/LOG(2)))) -> 0 | AI14: =N14 -> 0 | AJ14: =COUNTIF(L108:L141,AI14) -> 0 | AK14: =AJ14/(AL4-AJ8) -> 0 | AL14: =IF(AK14=0,0,(AK14*((LOG(AK14))/LOG(2)))) -> 0 | AN14: =N14 -> 0 | AO14: =COUNTIF(L142:L175,AN14) -> 0 | AP14: =AO14/(AQ4-AO8) -> 0 | AQ14: =IF(AP14=0,0,(AP14*((LOG(AP14))/LOG(2)))) -> 0 | AS14: =N14 -> 0 | AT14: =COUNTIF(L176:L209,AS14) -> 0 | AU14: =AT14/(AV4-AT8) -> 0 | AV14: =IF(AU14=0,0,(AU14*((LOG(AU14))/LOG(2)))) -> 0
A15: 22 | B15: 930 | C15: 23 | D15: 935 | K15: 0 | L15: 22 | P15: =SUM(P7:P14) -> 1 | Q15: =-SUM(Q7:Q14) -> 1.382196345 | V15: =SUM(V7:V14) -> 1 | W15: =-SUM(W7:W14) -> 0.9932338197 | AA15: =SUM(AA7:AA14) -> 1 | AB15: =-SUM(AB7:AB14) -> 0.9043814577 | AF15: =SUM(AF7:AF14) -> 1 | AG15: =-SUM(AG7:AG14) -> 0.7578784625 | AK15: =SUM(AK7:AK14) -> 1 | AL15: =-SUM(AL7:AL14) -> 0.9544340029 | AP15: =SUM(AP7:AP14) -> 1 | AQ15: =-SUM(AQ7:AQ14) -> 0.9971803989 | AU15: =SUM(AU7:AU14) -> 1 | AV15: =-SUM(AV7:AV14) -> 0.9922666387
A16: 22 | B16: 1037 | C16: 23 | D16: 1046 | K16: 0 | L16: 22 | P16: U= | Q16: =Q15/(LOG(Q4)/LOG(2)) -> 0.1803177786 | V16: U1= | W16: =W15/(LOG(W4)/LOG(2)) -> 0.1952316608 | AA16: U2= | AB16: =AB15/(LOG(AB4)/LOG(2)) -> 0.1777666955 | AF16: U3= | AG16: =AG15/(LOG(AG4)/LOG(2)) -> 0.1502417227 | AK16: U4= | AL16: =AL15/(LOG(AL4)/LOG(2)) -> 0.1876051055 | AP16: U5= | AQ16: =AQ15/(LOG(AQ4)/LOG(2)) -> 0.1960074068 | AU16: U6= | AV16: =AV15/(LOG(AV4)/LOG(2)) -> 0.1950415501
A17: 22 | B17: 1153 | C17: 23 | D17: 1165 | K17: 0 | L17: 22
A18: 22 | B18: 1263 | C18: 23 | D18: 1276 | K18: 0 | L18: 22
A19: 22 | B19: 1381 | C19: 14 | D19: 1400 | K19: 0 | L19: 21 | N19: Total Target Seq
A20: 11 | B20: 1513 | C20: 21 | D20: 1525 | K20: 0 | L20: 12 | N20: =COUNTIF(L7:L209,G3) -> 22 | P20: 34 | Q20: 34 | R20: 33 | S20: 34 | T20: 34 | U20: 34
A21: 22 | B21: 1619 | C21: 14 | D21: 1633 | K21: 0 | L21: 21 | P21: % of reinforcement given in 6 equal intervals based on number of trials
A22: 22 | B22: 1732 | C22: 23 | D22: 1737 | K22: 0 | L22: 22 | P22: %_1 | Q22: %_2 | R22: %_3 | S22: %_4 | T22: %_5 | U22: %_6
A23: 22 | B23: 1843 | C23: 23 | D23: 1859 | K23: 0 | L23: 22 | O23: target sequence | P23: =$G$3 -> 12 | Q23: =$G$3 -> 12 | R23: =$G$3 -> 12 | S23: =$G$3 -> 12 | T23: =$G$3 -> 12 | U23: =$G$3 -> 12
A24: 22 | B24: 1960 | C24: 23 | D24: 1968 | K24: 0 | L24: 22 | O24: total reinforcement | P24: =U8 -> 3 | Q24: =Z8 -> 9 | R24: =AE8 -> 1 | S24: =AJ8 -> 2 | T24: =AO8 -> 2 | U24: =AT8 -> 5
A25: 11 | B25: 2083 | C25: 21 | D25: 2094 | K25: 0 | L25: 12 | O25: % target
A26: 22 | B26: 2189 | C26: 23 | D26: 2202 | K26: 0 | L26: 22 | O26: CCRF
A27: 22 | B27: 2312 | C27: 14 | D27: 2327 | K27: 0 | L27: 21 | O27: % CCRf
A28: 22 | B28: 2427 | C28: 14 | D28: 2446 | K28: 0 | L28: 21 | O28: average response rate | P28: =D40/P20 -> 113.6470588 | Q28: =(D74-D40)/Q20 -> 119.3235294 | R28: =(D107-D74)/R20 -> 117.2727273 | S28: =(D141-D107)/S20 -> 118.8529412 | T28: =(D175-D141)/T20 -> 114.4705882 | U28: =(D209-D175)/U20 -> 123.3235294
A29: 22 | B29: 2563 | C29: 23 | D29: 2574 | K29: 0 | L29: 22
A30: 22 | B30: 2674 | C30: 14 | D30: 2689 | K30: 0 | L30: 21
A31: 22 | B31: 2795 | C31: 23 | D31: 2816 | K31: 0 | L31: 22
A32: 22 | B32: 2913 | C32: 23 | D32: 2918 | K32: 0 | L32: 22
A33: 22 | B33: 3028 | C33: 23 | D33: 3036 | K33: 0 | L33: 22
A34: 22 | B34: 3138 | C34: 14 | D34: 3153 | K34: 0 | L34: 21
A35: 22 | B35: 3257 | C35: 14 | D35: 3270 | K35: 0 | L35: 21
A36: 22 | B36: 3385 | C36: 14 | D36: 3404 | K36: 0 | L36: 21
A37: 22 | B37: 3502 | C37: 23 | D37: 3526 | K37: 0 | L37: 22
A38: 22 | B38: 3623 | C38: 14 | D38: 3636 | K38: 0 | L38: 21
A39: 22 | B39: 3746 | C39: 14 | D39: 3756 | K39: 0 | L39: 21
A40: 22 | B40: 3854 | C40: 23 | D40: 3864 | K40: 0 | L40: 22
A41: 22 | B41: 3971 | C41: 23 | D41: 3983 | K41: 0 | L41: 22
A42: 22 | B42: 4083 | C42: 14 | D42: 4097 | K42: 0 | L42: 21
A43: 11 | B43: 4222 | C43: 21 | D43: 4234 | K43: 0 | L43: 12
A44: 22 | B44: 4326 | C44: 23 | D44: 4332 | K44: 0 | L44: 22
A45: 22 | B45: 4435 | C45: 14 | D45: 4447 | K45: 0 | L45: 21
A46: 22 | B46: 4548 | C46: 23 | D46: 4588 | K46: 0 | L46: 22
A47: 22 | B47: 4698 | C47: 14 | D47: 4706 | K47: 0 | L47: 21
A48: 22 | B48: 4814 | C48: 14 | D48: 4828 | K48: 0 | L48: 21
A49: 22 | B49: 4930 | C49: 23 | D49: 4940 | K49: 0 | L49: 22
A50: 22 | B50: 5043 | C50: 23 | D50: 5061 | K50: 0 | L50: 22
A51: 22 | B51: 5161 | C51: 23 | D51: 5171 | K51: 0 | L51: 22
A52: 22 | B52: 5284 | C52: 14 | D52: 5293 | K52: 0 | L52: 21
A53: 11 | B53: 5411 | C53: 21 | D53: 5424 | K53: 0 | L53: 12
A54: 22 | B54: 5523 | C54: 14 | D54: 5532 | K54: 0 | L54: 21
A55: 11 | B55: 5650 | C55: 21 | D55: 5661 | K55: 0 | L55: 12
A56: 22 | B56: 5756 | C56: 14 | D56: 5768 | K56: 0 | L56: 21
A57: 22 | B57: 5871 | C57: 14 | D57: 5882 | K57: 0 | L57: 21
A58: 11 | B58: 5998 | C58: 21 | D58: 6012 | K58: 0 | L58: 12
A59: 11 | B59: 6124 | C59: 21 | D59: 6137 | K59: 0 | L59: 12
A60: 22 | B60: 6229 | C60: 14 | D60: 6250 | K60: 0 | L60: 21
A61: 22 | B61: 6354 | C61: 14 | D61: 6363 | K61: 0 | L61: 21
A62: 11 | B62: 6473 | C62: 21 | D62: 6492 | K62: 0 | L62: 12
A63: 22 | B63: 6585 | C63: 14 | D63: 6596 | K63: 0 | L63: 21
A64: 22 | B64: 6695 | C64: 14 | D64: 6708 | K64: 0 | L64: 21
A65: 22 | B65: 6833 | C65: 23 | D65: 6848 | K65: 0 | L65: 22
A66: 22 | B66: 6960 | C66: 14 | D66: 6969 | K66: 0 | L66: 21
A67: 22 | B67: 7066 | C67: 23 | D67: 7076 | K67: 0 | L67: 22
A68: 11 | B68: 7191 | C68: 21 | D68: 7221 | K68: 0 | L68: 12
A69: 11 | B69: 7328 | C69: 21 | D69: 7347 | K69: 0 | L69: 12
A70: 22 | B70: 7442 | C70: 14 | D70: 7451 | K70: 0 | L70: 21
A71: 22 | B71: 7549 | C71: 14 | D71: 7561 | K71: 0 | L71: 21
A72: 11 | B72: 7676 | C72: 21 | D72: 7694 | K72: 0 | L72: 12
A73: 22 | B73: 7785 | C73: 14 | D73: 7798 | K73: 0 | L73: 21
A74: 22 | B74: 7910 | C74: 14 | D74: 7921 | K74: 0 | L74: 21
A75: 22 | B75: 8026 | C75: 14 | D75: 8038 | K75: 0 | L75: 21
A76: 22 | B76: 8144 | C76: 14 | D76: 8157 | K76: 0 | L76: 21
A77: 22 | B77: 8261 | C77: 14 | D77: 8282 | K77: 0 | L77: 21
A78: 22 | B78: 8384 | C78: 14 | D78: 8405 | K78: 0 | L78: 21
A79: 22 | B79: 8510 | C79: 14 | D79: 8521 | K79: 0 | L79: 21
A80: 22 | B80: 8645 | C80: 23 | D80: 8656 | K80: 0 | L80: 22
A81: 22 | B81: 8754 | C81: 14 | D81: 8764 | K81: 0 | L81: 21
A82: 22 | B82: 8865 | C82: 14 | D82: 8873 | K82: 0 | L82: 21
A83: 22 | B83: 8981 | C83: 14 | D83: 8990 | K83: 0 | L83: 21
A84: 22 | B84: 9102 | C84: 14 | D84: 9111 | K84: 0 | L84: 21
A85: 22 | B85: 9211 | C85: 14 | D85: 9220 | K85: 0 | L85: 21
A86: 22 | B86: 9320 | C86: 23 | D86: 9351 | K86: 0 | L86: 22
A87: 22 | B87: 9472 | C87: 23 | D87: 9480 | K87: 0 | L87: 22
A88: 22 | B88: 9585 | C88: 14 | D88: 9598 | K88: 0 | L88: 21
A89: 22 | B89: 9701 | C89: 14 | D89: 9711 | K89: 0 | L89: 21
A90: 22 | B90: 9830 | C90: 14 | D90: 9841 | K90: 0 | L90: 21
A91: 11 | B91: 9955 | C91: 21 | D91: 9966 | K91: 0 | L91: 12
A92: 22 | B92: 10068 | C92: 14 | D92: 10076 | K92: 0 | L92: 21
A93: 22 | B93: 10174 | C93: 14 | D93: 10184 | K93: 0 | L93: 21
A94: 22 | B94: 10283 | C94: 14 | D94: 10296 | K94: 0 | L94: 21
A95: 22 | B95: 10397 | C95: 23 | D95: 10405 | K95: 0 | L95: 22
A96: 22 | B96: 10507 | C96: 23 | D96: 10515 | K96: 0 | L96: 22
A97: 22 | B97: 10614 | C97: 14 | D97: 10634 | K97: 0 | L97: 21
A98: 22 | B98: 10733 | C98: 14 | D98: 10743 | K98: 0 | L98: 21
A99: 22 | B99: 10851 | C99: 14 | D99: 10861 | K99: 0 | L99: 21
A100: 22 | B100: 10963 | C100: 14 | D100: 10975 | K100: 0 | L100: 21
A101: 22 | B101: 11084 | C101: 14 | D101: 11093 | K101: 0 | L101: 21
A102: 22 | B102: 11192 | C102: 14 | D102: 11215 | K102: 0 | L102: 21
A103: 22 | B103: 11327 | C103: 14 | D103: 11339 | K103: 0 | L103: 21
A104: 22 | B104: 11440 | C104: 23 | D104: 11449 | K104: 0 | L104: 22
A105: 22 | B105: 11554 | C105: 14 | D105: 11565 | K105: 0 | L105: 21
A106: 22 | B106: 11664 | C106: 23 | D106: 11675 | K106: 0 | L106: 22
A107: 22 | B107: 11781 | C107: 14 | D107: 11791 | K107: 0 | L107: 21
A108: 22 | B108: 11901 | C108: 14 | D108: 11910 | K108: 0 | L108: 21
A109: 22 | B109: 12010 | C109: 14 | D109: 12022 | K109: 0 | L109: 21
A110: 22 | B110: 12146 | C110: 23 | D110: 12172 | K110: 0 | L110: 22
A111: 22 | B111: 12272 | C111: 23 | D111: 12282 | K111: 0 | L111: 22
A112: 22 | B112: 12381 | C112: 23 | D112: 12388 | K112: 0 | L112: 22
A113: 22 | B113: 12486 | C113: 14 | D113: 12500 | K113: 0 | L113: 21
A114: 22 | B114: 12611 | C114: 14 | D114: 12620 | K114: 0 | L114: 21
A115: 22 | B115: 12720 | C115: 23 | D115: 12732 | K115: 0 | L115: 22
A116: 22 | B116: 12833 | C116: 23 | D116: 12853 | K116: 0 | L116: 22
A117: 22 | B117: 12954 | C117: 23 | D117: 12967 | K117: 0 | L117: 22
A118: 22 | B118: 13078 | C118: 23 | D118: 13089 | K118: 0 | L118: 22
A119: 22 | B119: 13189 | C119: 14 | D119: 13198 | K119: 0 | L119: 21
A120: 11 | B120: 13330 | C120: 21 | D120: 13350 | K120: 0 | L120: 12
A121: 22 | B121: 13438 | C121: 23 | D121: 13446 | K121: 0 | L121: 22
A122: 22 | B122: 13556 | C122: 14 | D122: 13580 | K122: 0 | L122: 21
A123: 22 | B123: 13679 | C123: 23 | D123: 13691 | K123: 0 | L123: 22
A124: 22 | B124: 13838 | C124: 14 | D124: 13847 | K124: 0 | L124: 21
A125: 22 | B125: 13947 | C125: 23 | D125: 13960 | K125: 0 | L125: 22
A126: 22 | B126: 14057 | C126: 14 | D126: 14069 | K126: 0 | L126: 21
A127: 22 | B127: 14167 | C127: 23 | D127: 14172 | K127: 0 | L127: 22
A128: 22 | B128: 14270 | C128: 23 | D128: 14277 | K128: 0 | L128: 22
A129: 22 | B129: 14383 | C129: 14 | D129: 14395 | K129: 0 | L129: 21
A130: 22 | B130: 14499 | C130: 23 | D130: 14521 | K130: 0 | L130: 22
A131: 22 | B131: 14623 | C131: 23 | D131: 14635 | K131: 0 | L131: 22
A132: 22 | B132: 14736 | C132: 23 | D132: 14745 | K132: 0 | L132: 22
A133: 22 | B133: 14848 | C133: 23 | D133: 14857 | K133: 0 | L133: 22
A134: 22 | B134: 14959 | C134: 14 | D134: 14972 | K134: 0 | L134: 21
A135: 22 | B135: 15073 | C135: 23 | D135: 15107 | K135: 0 | L135: 22
A136: 22 | B136: 15224 | C136: 14 | D136: 15242 | K136: 0 | L136: 21
A137: 22 | B137: 15366 | C137: 14 | D137: 15376 | K137: 0 | L137: 21
A138: 22 | B138: 15475 | C138: 23 | D138: 15480 | K138: 0 | L138: 22
A139: 22 | B139: 15581 | C139: 23 | D139: 15589 | K139: 0 | L139: 22
A140: 22 | B140: 15690 | C140: 23 | D140: 15697 | K140: 0 | L140: 22
A141: 11 | B141: 15813 | C141: 21 | D141: 15832 | K141: 0 | L141: 12
A142: 22 | B142: 15924 | C142: 23 | D142: 15932 | K142: 0 | L142: 22
A143: 22 | B143: 16031 | C143: 14 | D143: 16043 | K143: 0 | L143: 21
A144: 22 | B144: 16145 | C144: 23 | D144: 16152 | K144: 0 | L144: 22
A145: 22 | B145: 16252 | C145: 14 | D145: 16262 | K145: 0 | L145: 21
A146: 22 | B146: 16364 | C146: 23 | D146: 16376 | K146: 0 | L146: 22
A147: 22 | B147: 16475 | C147: 14 | D147: 16487 | K147: 0 | L147: 21
A148: 22 | B148: 16590 | C148: 14 | D148: 16602 | K148: 0 | L148: 21
A149: 22 | B149: 16717 | C149: 14 | D149: 16726 | K149: 0 | L149: 21
A150: 22 | B150: 16826 | C150: 23 | D150: 16837 | K150: 0 | L150: 22
A151: 22 | B151: 16936 | C151: 23 | D151: 16947 | K151: 0 | L151: 22
A152: 22 | B152: 17047 | C152: 23 | D152: 17053 | K152: 0 | L152: 22
A153: 22 | B153: 17151 | C153: 23 | D153: 17163 | K153: 0 | L153: 22
A154: 22 | B154: 17263 | C154: 14 | D154: 17275 | K154: 0 | L154: 21
A155: 22 | B155: 17374 | C155: 23 | D155: 17382 | K155: 0 | L155: 22
A156: 22 | B156: 17494 | C156: 14 | D156: 17506 | K156: 0 | L156: 21
A157: 22 | B157: 17606 | C157: 14 | D157: 17615 | K157: 0 | L157: 21
A158: 22 | B158: 17713 | C158: 23 | D158: 17722 | K158: 0 | L158: 22
A159: 22 | B159: 17852 | C159: 14 | D159: 17863 | K159: 0 | L159: 21
A160: 22 | B160: 17964 | C160: 23 | D160: 17973 | K160: 0 | L160: 22
A161: 22 | B161: 18076 | C161: 14 | D161: 18085 | K161: 0 | L161: 21
A162: 22 | B162: 18186 | C162: 23 | D162: 18201 | K162: 0 | L162: 22
A163: 22 | B163: 18332 | C163: 14 | D163: 18344 | K163: 0 | L163: 21
A164: 22 | B164: 18442 | C164: 14 | D164: 18459 | K164: 0 | L164: 21
A165: 22 | B165: 18566 | C165: 14 | D165: 18577 | K165: 0 | L165: 21
A166: 22 | B166: 18680 | C166: 14 | D166: 18697 | K166: 0 | L166: 21
A167: 22 | B167: 18835 | C167: 14 | D167: 18844 | K167: 0 | L167: 21
A168: 11 | B168: 18955 | C168: 21 | D168: 18965 | K168: 0 | L168: 12
A169: 22 | B169: 19055 | C169: 14 | D169: 19064 | K169: 0 | L169: 21
A170: 11 | B170: 19177 | C170: 21 | D170: 19194 | K170: 0 | L170: 12
A171: 22 | B171: 19288 | C171: 23 | D171: 19296 | K171: 0 | L171: 22
A172: 22 | B172: 19393 | C172: 23 | D172: 19406 | K172: 0 | L172: 22
A173: 22 | B173: 19503 | C173: 23 | D173: 19508 | K173: 0 | L173: 22
A174: 22 | B174: 19606 | C174: 23 | D174: 19613 | K174: 0 | L174: 22
A175: 22 | B175: 19712 | C175: 14 | D175: 19724 | K175: 0 | L175: 21
A176: 22 | B176: 19832 | C176: 14 | D176: 19841 | K176: 0 | L176: 21
A177: 22 | B177: 19950 | C177: 23 | D177: 19961 | K177: 0 | L177: 22
A178: 22 | B178: 20063 | C178: 23 | D178: 20083 | K178: 0 | L178: 22
A179: 22 | B179: 20183 | C179: 14 | D179: 20195 | K179: 0 | L179: 21
A180: 22 | B180: 20313 | C180: 23 | D180: 20329 | K180: 0 | L180: 22
A181: 22 | B181: 20429 | C181: 23 | D181: 20437 | K181: 0 | L181: 22
A182: 11 | B182: 20546 | C182: 21 | D182: 20564 | K182: 0 | L182: 12
A183: 22 | B183: 20663 | C183: 14 | D183: 20672 | K183: 0 | L183: 21
A184: 22 | B184: 20771 | C184: 14 | D184: 20783 | K184: 0 | L184: 21
A185: 22 | B185: 20890 | C185: 14 | D185: 20903 | K185: 0 | L185: 21
A186: 22 | B186: 21182 | C186: 14 | D186: 21194 | K186: 0 | L186: 21
A187: 22 | B187: 21308 | C187: 23 | D187: 21326 | K187: 0 | L187: 22
A188: 22 | B188: 21506 | C188: 14 | D188: 21520 | K188: 0 | L188: 21
A189: 22 | B189: 21651 | C189: 14 | D189: 21663 | K189: 0 | L189: 21
A190: 22 | B190: 21786 | C190: 14 | D190: 21798 | K190: 0 | L190: 21
A191: 11 | B191: 21914 | C191: 21 | D191: 21926 | K191: 0 | L191: 12
A192: 22 | B192: 22020 | C192: 23 | D192: 22030 | K192: 0 | L192: 22
A193: 22 | B193: 22127 | C193: 23 | D193: 22135 | K193: 0 | L193: 22
A194: 22 | B194: 22233 | C194: 23 | D194: 22245 | K194: 0 | L194: 22
A195: 22 | B195: 22347 | C195: 14 | D195: 22358 | K195: 0 | L195: 21
A196: 11 | B196: 22469 | C196: 21 | D196: 22480 | K196: 0 | L196: 12
A197: 22 | B197: 22568 | C197: 14 | D197: 22584 | K197: 0 | L197: 21
A198: 22 | B198: 22686 | C198: 23 | D198: 22694 | K198: 0 | L198: 22
A199: 22 | B199: 22791 | C199: 23 | D199: 22799 | K199: 0 | L199: 22
A200: 22 | B200: 22898 | C200: 14 | D200: 22909 | K200: 0 | L200: 21
... 9 more rows

Sheet !L809B40.055
A1: Report for:!L809B40.055
A2: Date: | B2: <date>
A3: Hen: | B3: <hen> | F3: Correct Sequence | G3: =Start!J2 -> 12 | P3: Total Sequences in Data | Q3: =4994-COUNTBLANK(L7:L5000) -> 182 | V3: Total Sequences in Block Data | W3: =COUNTA(L7:L36) -> 30 | AA3: Total Sequences in Block Data | AB3: =COUNTA(L37:L67) -> 31 | AF3: Total Sequences in Block Data | AG3: =COUNTA(L68:L97) -> 30 | AK3: Total Sequences in Block Data | AL3: =COUNTA(L98:L127) -> 30 | AP3: Total Sequences in Block Data | AQ3: =COUNTA(L128:L158) -> 31 | AU3: Total Sequences in Block Data | AV3: =COUNTA(L159:L188) -> 30
P4: Total Sequences in Summary | Q4: =SUM(O7:O14) -> 182 | V4: Total Sequences in Block Summary | W4: =SUM(U7:U14) -> 30 | AA4: Total Sequences in Block Summary | AB4: =SUM(Z7:Z14) -> 31 | AF4: Total Sequences in Block Summary | AG4: =SUM(AE7:AE14) -> 30 | AK4: Total Sequences in Block Summary | AL4: =SUM(AJ7:AJ14) -> 30 | AP4: Total Sequences in Block Summary | AQ4: =SUM(AO7:AO14) -> 31 | AU4: Total Sequences in Block Summary | AV4: =SUM(AT7:AT14) -> 30
T5: Block 1 | Y5: Block 2 | AD5: Block 3 | AI5: Block 4 | AN5: Block 5 | AS5: Block 6
A6: Sequence Component 1 | B6: Time 1 | C6: Sequence Component 2 | D6: Time 2 | E6: Sequence Component 3 | F6: Time 3 | G6: Sequence Component 4 | H6: Time 4 | I6: Sequence Component 5 | J6: Time 5 | K6: Correct? 0=No 1=Yes | L6: Sequence | N6: Frequency | P6: Relative Frequency | Q6: Variability | T6: Frequency | V6: Relative Frequency | W6: Variability | Y6: Frequency | AA6: Relative Frequency | AB6: Variability | AD6: Frequency | AF6: Relative Frequency | AG6: Variability | AI6: Frequency | AK6: Relative Frequency | AL6: Variability | AN6: Frequency | AP6: Relative Frequency | AQ6: Variability | AS6: Frequency | AU6: Relative Frequency | AV6: Variability
A7: 22 | B7: 12 | C7: 23 | D7: 37 | K7: 0 | L7: 22 | N7: 11 | O7: =COUNTIF($L$7:$L$500,N7) -> 0 | P7: =O7/$Q$4 -> 0 | Q7: =IF(P7=0,0,(P7*((LOG(P7))/LOG(2)))) -> 0 | T7: =N7 -> 11 | U7: =COUNTIF(L7:L36,T7) -> 0 | V7: =U7/(W4-U8) -> 0 | W7: =IF(V7=0,0,(V7*((LOG(V7))/LOG(2)))) -> 0 | Y7: =N7 -> 11 | Z7: =COUNTIF(L37:L67,Y7) -> 0 | AA7: =Z7/(AB4-Z8) -> 0 | AB7: =IF(AA7=0,0,(AA7*((LOG(AA7))/LOG(2)))) -> 0 | AD7: =N7 -> 11 | AE7: =COUNTIF(L68:L97,AD7) -> 0 | AF7: =AE7/(AG4-AE8) -> 0 | AG7: =IF(AF7=0,0,(AF7*((LOG(AF7))/LOG(2)))) -> 0 | AI7: =N7 -> 11 | AJ7: =COUNTIF(L98:L127,AI7) -> 0 | AK7: =AJ7/(AL4-AJ8) -> 0 | AL7: =IF(AK7=0,0,(AK7*((LOG(AK7))/LOG(2)))) -> 0 | AN7: =N7 -> 11 | AO7: =COUNTIF(L128:L158,AN7) -> 0 | AP7: =AO7/(AQ4-AO8) -> 0 | AQ7: =IF(AP7=0,0,(AP7*((LOG(AP7))/LOG(2)))) -> 0 | AS7: =N7 -> 11 | AT7: =COUNTIF(L159:L188,AS7) -> 0 | AU7: =AT7/(AV4-AT8) -> 0 | AV7: =IF(AU7=0,0,(AU7*((LOG(AU7))/LOG(2)))) -> 0
A8: 22 | B8: 134 | C8: 23 | D8: 165 | K8: 0 | L8: 22 | N8: 12 | O8: =COUNTIF($L$7:$L$500,N8) -> 40 | P8: =O8/$Q$4 -> 0.2197802198 | Q8: =IF(P8=0,0,(P8*((LOG(P8))/LOG(2)))) -> -0.4804102297 | T8: =N8 -> 12 | U8: =COUNTIF(L7:L36,T8) -> 2 | Y8: =N8 -> 12 | Z8: =COUNTIF(L37:L67,Y8) -> 8 | AD8: =N8 -> 12 | AE8: =COUNTIF(L68:L97,AD8) -> 6 | AI8: =N8 -> 12 | AJ8: =COUNTIF(L98:L127,AI8) -> 4 | AN8: =N8 -> 12 | AO8: =COUNTIF(L128:L158,AN8) -> 6 | AS8: =N8 -> 12 | AT8: =COUNTIF(L159:L188,AS8) -> 14
A9: 22 | B9: 281 | C9: 14 | D9: 290 | K9: 0 | L9: 21 | N9: 21 | O9: =COUNTIF($L$7:$L$500,N9) -> 100 | P9: =O9/$Q$4 -> 0.5494505495 | Q9: =IF(P9=0,0,(P9*((LOG(P9))/LOG(2)))) -> -0.4746914563 | T9: =N9 -> 21 | U9: =COUNTIF(L7:L36,T9) -> 17 | V9: =U9/(W4-U8) -> 0.6071428571 | W9: =IF(V9=0,0,(V9*((LOG(V9))/LOG(2)))) -> -0.4370773348 | Y9: =N9 -> 21 | Z9: =COUNTIF(L37:L67,Y9) -> 12 | AA9: =Z9/(AB4-Z8) -> 0.5217391304 | AB9: =IF(AA9=0,0,(AA9*((LOG(AA9))/LOG(2)))) -> -0.4897040637 | AD9: =N9 -> 21 | AE9: =COUNTIF(L68:L97,AD9) -> 18 | AF9: =AE9/(AG4-AE8) -> 0.75 | AG9: =IF(AF9=0,0,(AF9*((LOG(AF9))/LOG(2)))) -> -0.3112781245 | AI9: =N9 -> 21 | AJ9: =COUNTIF(L98:L127,AI9) -> 18 | AK9: =AJ9/(AL4-AJ8) -> 0.6923076923 | AL9: =IF(AK9=0,0,(AK9*((LOG(AK9))/LOG(2)))) -> -0.3672794193 | AN9: =N9 -> 21 | AO9: =COUNTIF(L128:L158,AN9) -> 21 | AP9: =AO9/(AQ4-AO8) -> 0.84 | AQ9: =IF(AP9=0,0,(AP9*((LOG(AP9))/LOG(2)))) -> -0.2112925643 | AS9: =N9 -> 21 | AT9: =COUNTIF(L159:L188,AS9) -> 14 | AU9: =AT9/(AV4-AT8) -> 0.875 | AV9: =IF(AU9=0,0,(AU9*((LOG(AU9))/LOG(2)))) -> -0.1685644432
A10: 22 | B10: 394 | C10: 14 | D10: 404 | K10: 0 | L10: 21 | N10: 22 | O10: =COUNTIF($L$7:$L$500,N10) -> 42 | P10: =O10/$Q$4 -> 0.2307692308 | Q10: =IF(P10=0,0,(P10*((LOG(P10))/LOG(2)))) -> -0.4881870502 | T10: =N10 -> 22 | U10: =COUNTIF(L7:L36,T10) -> 11 | V10: =U10/(W4-U8) -> 0.3928571429 | W10: =IF(V10=0,0,(V10*((LOG(V10))/LOG(2)))) -> -0.5295412978 | Y10: =N10 -> 22 | Z10: =COUNTIF(L37:L67,Y10) -> 11 | AA10: =Z10/(AB4-Z8) -> 0.4782608696 | AB10: =IF(AA10=0,0,(AA10*((LOG(AA10))/LOG(2)))) -> -0.5089319005 | AD10: =N10 -> 22 | AE10: =COUNTIF(L68:L97,AD10) -> 6 | AF10: =AE10/(AG4-AE8) -> 0.25 | AG10: =IF(AF10=0,0,(AF10*((LOG(AF10))/LOG(2)))) -> -0.5 | AI10: =N10 -> 22 | AJ10: =COUNTIF(L98:L127,AI10) -> 8 | AK10: =AJ10/(AL4-AJ8) -> 0.3076923077 | AL10: =IF(AK10=0,0,(AK10*((LOG(AK10))/LOG(2)))) -> -0.523212221 | AN10: =N10 -> 22 | AO10: =COUNTIF(L128:L158,AN10) -> 4 | AP10: =AO10/(AQ4-AO8) -> 0.16 | AQ10: =IF(AP10=0,0,(AP10*((LOG(AP10))/LOG(2)))) -> -0.4230169904 | AS10: =N10 -> 22 | AT10: =COUNTIF(L159:L188,AS10) -> 2 | AU10: =AT10/(AV4-AT8) -> 0.125 | AV10: =IF(AU10=0,0,(AU10*((LOG(AU10))/LOG(2)))) -> -0.375
A11: 11 | B11: 521 | C11: 21 | D11: 540 | K11: 0 | L11: 12 | T11: =N11 -> 0 | U11: =COUNTIF(L7:L36,T11) -> 0 | V11: =U11/(W4-U8) -> 0 | W11: =IF(V11=0,0,(V11*((LOG(V11))/LOG(2)))) -> 0 | Y11: =N11 -> 0 | Z11: =COUNTIF(L37:L67,Y11) -> 0 | AA11: =Z11/(AB4-Z8) -> 0 | AB11: =IF(AA11=0,0,(AA11*((LOG(AA11))/LOG(2)))) -> 0 | AD11: =N11 -> 0 | AE11: =COUNTIF(L68:L97,AD11) -> 0 | AF11: =AE11/(AG4-AE8) -> 0 | AG11: =IF(AF11=0,0,(AF11*((LOG(AF11))/LOG(2)))) -> 0 | AI11: =N11 -> 0 | AJ11: =COUNTIF(L98:L127,AI11) -> 0 | AK11: =AJ11/(AL4-AJ8) -> 0 | AL11: =IF(AK11=0,0,(AK11*((LOG(AK11))/LOG(2)))) -> 0 | AN11: =N11 -> 0 | AO11: =COUNTIF(L128:L158,AN11) -> 0 | AP11: =AO11/(AQ4-AO8) -> 0 | AQ11: =IF(AP11=0,0,(AP11*((LOG(AP11))/LOG(2)))) -> 0 | AS11: =N11 -> 0 | AT11: =COUNTIF(L159:L188,AS11) -> 0 | AU11: =AT11/(AV4-AT8) -> 0 | AV11: =IF(AU11=0,0,(AU11*((LOG(AU11))/LOG(2)))) -> 0
A12: 22 | B12: 637 | C12: 14 | D12: 646 | K12: 0 | L12: 21 | T12: =N12 -> 0 | U12: =COUNTIF(L7:L36,T12) -> 0 | V12: =U12/(W4-U8) -> 0 | W12: =IF(V12=0,0,(V12*((LOG(V12))/LOG(2)))) -> 0 | Y12: =N12 -> 0 | Z12: =COUNTIF(L37:L67,Y12) -> 0 | AA12: =Z12/(AB4-Z8) -> 0 | AB12: =IF(AA12=0,0,(AA12*((LOG(AA12))/LOG(2)))) -> 0 | AD12: =N12 -> 0 | AE12: =COUNTIF(L68:L97,AD12) -> 0 | AF12: =AE12/(AG4-AE8) -> 0 | AG12: =IF(AF12=0,0,(AF12*((LOG(AF12))/LOG(2)))) -> 0 | AI12: =N12 -> 0 | AJ12: =COUNTIF(L98:L127,AI12) -> 0 | AK12: =AJ12/(AL4-AJ8) -> 0 | AL12: =IF(AK12=0,0,(AK12*((LOG(AK12))/LOG(2)))) -> 0 | AN12: =N12 -> 0 | AO12: =COUNTIF(L128:L158,AN12) -> 0 | AP12: =AO12/(AQ4-AO8) -> 0 | AQ12: =IF(AP12=0,0,(AP12*((LOG(AP12))/LOG(2)))) -> 0 | AS12: =N12 -> 0 | AT12: =COUNTIF(L159:L188,AS12) -> 0 | AU12: =AT12/(AV4-AT8) -> 0 | AV12: =IF(AU12=0,0,(AU12*((LOG(AU12))/LOG(2)))) -> 0
A13: 22 | B13: 744 | C13: 23 | D13: 767 | K13: 0 | L13: 22 | T13: =N13 -> 0 | U13: =COUNTIF(L7:L36,T13) -> 0 | V13: =U13/(W4-U8) -> 0 | W13: =IF(V13=0,0,(V13*((LOG(V13))/LOG(2)))) -> 0 | Y13: =N13 -> 0 | Z13: =COUNTIF(L37:L67,Y13) -> 0 | AA13: =Z13/(AB4-Z8) -> 0 | AB13: =IF(AA13=0,0,(AA13*((LOG(AA13))/LOG(2)))) -> 0 | AD13: =N13 -> 0 | AE13: =COUNTIF(L68:L97,AD13) -> 0 | AF13: =AE13/(AG4-AE8) -> 0 | AG13: =IF(AF13=0,0,(AF13*((LOG(AF13))/LOG(2)))) -> 0 | AI13: =N13 -> 0 | AJ13: =COUNTIF(L98:L127,AI13) -> 0 | AK13: =AJ13/(AL4-AJ8) -> 0 | AL13: =IF(AK13=0,0,(AK13*((LOG(AK13))/LOG(2)))) -> 0 | AN13: =N13 -> 0 | AO13: =COUNTIF(L128:L158,AN13) -> 0 | AP13: =AO13/(AQ4-AO8) -> 0 | AQ13: =IF(AP13=0,0,(AP13*((LOG(AP13))/LOG(2)))) -> 0 | AS13: =N13 -> 0 | AT13: =COUNTIF(L159:L188,AS13) -> 0 | AU13: =AT13/(AV4-AT8) -> 0 | AV13: =IF(AU13=0,0,(AU13*((LOG(AU13))/LOG(2)))) -> 0
A14: 22 | B14: 875 | C14: 14 | D14: 884 | K14: 0 | L14: 21 | T14: =N14 -> 0 | U14: =COUNTIF(L7:L36,T14) -> 0 | V14: =U14/(W4-U8) -> 0 | W14: =IF(V14=0,0,(V14*((LOG(V14))/LOG(2)))) -> 0 | Y14: =N14 -> 0 | Z14: =COUNTIF(L37:L67,Y14) -> 0 | AA14: =Z14/(AB4-Z8) -> 0 | AB14: =IF(AA14=0,0,(AA14*((LOG(AA14))/LOG(2)))) -> 0 | AD14: =N14 -> 0 | AE14: =COUNTIF(L68:L97,AD14) -> 0 | AF14: =AE14/(AG4-AE8) -> 0 | AG14: =IF(AF14=0,0,(AF14*((LOG(AF14))/LOG(2)))) -> 0 | AI14: =N14 -> 0 | AJ14: =COUNTIF(L98:L127,AI14) -> 0 | AK14: =AJ14/(AL4-AJ8) -> 0 | AL14: =IF(AK14=0,0,(AK14*((LOG(AK14))/LOG(2)))) -> 0 | AN14: =N14 -> 0 | AO14: =COUNTIF(L128:L158,AN14) -> 0 | AP14: =AO14/(AQ4-AO8) -> 0 | AQ14: =IF(AP14=0,0,(AP14*((LOG(AP14))/LOG(2)))) -> 0 | AS14: =N14 -> 0 | AT14: =COUNTIF(L159:L188,AS14) -> 0 | AU14: =AT14/(AV4-AT8) -> 0 | AV14: =IF(AU14=0,0,(AU14*((LOG(AU14))/LOG(2)))) -> 0
A15: 22 | B15: 986 | C15: 23 | D15: 1003 | K15: 0 | L15: 22 | P15: =SUM(P7:P14) -> 1 | Q15: =-SUM(Q7:Q14) -> 1.443288736 | V15: =SUM(V7:V14) -> 1 | W15: =-SUM(W7:W14) -> 0.9666186325 | AA15: =SUM(AA7:AA14) -> 1 | AB15: =-SUM(AB7:AB14) -> 0.9986359642 | AF15: =SUM(AF7:AF14) -> 1 | AG15: =-SUM(AG7:AG14) -> 0.8112781245 | AK15: =SUM(AK7:AK14) -> 1 | AL15: =-SUM(AL7:AL14) -> 0.8904916402 | AP15: =SUM(AP7:AP14) -> 1 | AQ15: =-SUM(AQ7:AQ14) -> 0.6343095546 | AU15: =SUM(AU7:AU14) -> 1 | AV15: =-SUM(AV7:AV14) -> 0.5435644432
A16: 22 | B16: 1123 | C16: 14 | D16: 1140 | K16: 0 | L16: 21 | P16: U= | Q16: =Q15/(LOG(Q4)/LOG(2)) -> 0.1922387073 | V16: U1= | W16: =W15/(LOG(W4)/LOG(2)) -> 0.1969920897 | AA16: U2= | AB16: =AB15/(LOG(AB4)/LOG(2)) -> 0.2015737572 | AF16: U3= | AG16: =AG15/(LOG(AG4)/LOG(2)) -> 0.1653344636 | AK16: U4= | AL16: =AL15/(LOG(AL4)/LOG(2)) -> 0.1814777858 | AP16: U5= | AQ16: =AQ15/(LOG(AQ4)/LOG(2)) -> 0.1280348042 | AU16: U6= | AV16: =AV15/(LOG(AV4)/LOG(2)) -> 0.1107757413
A17: 22 | B17: 1245 | C17: 14 | D17: 1272 | K17: 0 | L17: 21
A18: 22 | B18: 1370 | C18: 23 | D18: 1385 | K18: 0 | L18: 22
A19: 22 | B19: 1484 | C19: 23 | D19: 1490 | K19: 0 | L19: 22 | N19: Total Target Seq
A20: 22 | B20: 1590 | C20: 14 | D20: 1603 | K20: 0 | L20: 21 | N20: =COUNTIF(L7:L188,G3) -> 40 | P20: 30 | Q20: 31 | R20: 30 | S20: 30 | T20: 31 | U20: 30
A21: 22 | B21: 1706 | C21: 14 | D21: 1718 | K21: 0 | L21: 21 | P21: % of reinforcement given in 6 equal intervals based on number of trials
A22: 22 | B22: 1826 | C22: 14 | D22: 1836 | K22: 0 | L22: 21 | P22: %_1 | Q22: %_2 | R22: %_3 | S22: %_4 | T22: %_5 | U22: %_6
A23: 22 | B23: 1935 | C23: 14 | D23: 1948 | K23: 0 | L23: 21 | O23: target sequence | P23: =$G$3 -> 12 | Q23: =$G$3 -> 12 | R23: =$G$3 -> 12 | S23: =$G$3 -> 12 | T23: =$G$3 -> 12 | U23: =$G$3 -> 12
A24: 11 | B24: 2069 | C24: 21 | D24: 2089 | K24: 0 | L24: 12 | O24: total reinforcement | P24: =U8 -> 2 | Q24: =Z8 -> 8 | R24: =AE8 -> 6 | S24: =AJ8 -> 4 | T24: =AO8 -> 6 | U24: =AT8 -> 14
A25: 22 | B25: 2188 | C25: 23 | D25: 2198 | K25: 0 | L25: 22 | O25: % target
A26: 22 | B26: 2299 | C26: 14 | D26: 2313 | K26: 0 | L26: 21 | O26: CCRF
A27: 22 | B27: 2415 | C27: 14 | D27: 2427 | K27: 0 | L27: 21 | O27: % CCRf
A28: 22 | B28: 2527 | C28: 14 | D28: 2542 | K28: 0 | L28: 21 | O28: average response rate | P28: =D36/P20 -> 117.7 | Q28: =(D67-D36)/Q20 -> 120.6774194 | R28: =(D97-D67)/R20 -> 121.5 | S28: =(D127-D97)/S20 -> 119.2333333 | T28: =(D158-D127)/T20 -> 115.9677419 | U28: =(D188-D158)/U20 -> 117.8
A29: 22 | B29: 2644 | C29: 23 | D29: 2653 | K29: 0 | L29: 22
A30: 22 | B30: 2754 | C30: 23 | D30: 2780 | K30: 0 | L30: 22
A31: 22 | B31: 2899 | C31: 23 | D31: 2915 | K31: 0 | L31: 22
A32: 22 | B32: 3019 | C32: 14 | D32: 3032 | K32: 0 | L32: 21
A33: 22 | B33: 3133 | C33: 14 | D33: 3145 | K33: 0 | L33: 21
A34: 22 | B34: 3283 | C34: 23 | D34: 3295 | K34: 0 | L34: 22
A35: 22 | B35: 3399 | C35: 14 | D35: 3414 | K35: 0 | L35: 21
A36: 22 | B36: 3518 | C36: 14 | D36: 3531 | K36: 0 | L36: 21
A37: 22 | B37: 3634 | C37: 14 | D37: 3646 | K37: 0 | L37: 21
A38: 22 | B38: 3746 | C38: 23 | D38: 3754 | K38: 0 | L38: 22
A39: 22 | B39: 3856 | C39: 14 | D39: 3868 | K39: 0 | L39: 21
A40: 22 | B40: 3974 | C40: 14 | D40: 3987 | K40: 0 | L40: 21
A41: 11 | B41: 4112 | C41: 21 | D41: 4131 | K41: 0 | L41: 12
A42: 22 | B42: 4221 | C42: 14 | D42: 4233 | K42: 0 | L42: 21
A43: 22 | B43: 4333 | C43: 14 | D43: 4347 | K43: 0 | L43: 21
A44: 22 | B44: 4454 | C44: 14 | D44: 4467 | K44: 0 | L44: 21
A45: 22 | B45: 4594 | C45: 23 | D45: 4607 | K45: 0 | L45: 22
A46: 11 | B46: 4726 | C46: 21 | D46: 4740 | K46: 0 | L46: 12
A47: 22 | B47: 4835 | C47: 23 | D47: 4853 | K47: 0 | L47: 22
A48: 22 | B48: 4967 | C48: 23 | D48: 4987 | K48: 0 | L48: 22
A49: 22 | B49: 5088 | C49: 14 | D49: 5102 | K49: 0 | L49: 21
A50: 22 | B50: 5201 | C50: 23 | D50: 5209 | K50: 0 | L50: 22
A51: 22 | B51: 5307 | C51: 23 | D51: 5319 | K51: 0 | L51: 22
A52: 22 | B52: 5418 | C52: 23 | D52: 5427 | K52: 0 | L52: 22
A53: 22 | B53: 5527 | C53: 14 | D53: 5543 | K53: 0 | L53: 21
A54: 11 | B54: 5670 | C54: 21 | D54: 5715 | K54: 0 | L54: 12
A55: 22 | B55: 5807 | C55: 14 | D55: 5829 | K55: 0 | L55: 21
A56: 22 | B56: 5930 | C56: 23 | D56: 5949 | K56: 0 | L56: 22
A57: 22 | B57: 6047 | C57: 23 | D57: 6064 | K57: 0 | L57: 22
A58: 11 | B58: 6181 | C58: 21 | D58: 6194 | K58: 0 | L58: 12
A59: 22 | B59: 6286 | C59: 23 | D59: 6315 | K59: 0 | L59: 22
A60: 11 | B60: 6430 | C60: 21 | D60: 6442 | K60: 0 | L60: 12
A61: 22 | B61: 6535 | C61: 23 | D61: 6543 | K61: 0 | L61: 22
A62: 22 | B62: 6648 | C62: 14 | D62: 6661 | K62: 0 | L62: 21
A63: 11 | B63: 6782 | C63: 21 | D63: 6801 | K63: 0 | L63: 12
A64: 11 | B64: 6905 | C64: 21 | D64: 6917 | K64: 0 | L64: 12
A65: 11 | B65: 7028 | C65: 21 | D65: 7041 | K65: 0 | L65: 12
A66: 22 | B66: 7138 | C66: 14 | D66: 7151 | K66: 0 | L66: 21
A67: 22 | B67: 7260 | C67: 14 | D67: 7272 | K67: 0 | L67: 21
A68: 22 | B68: 7377 | C68: 14 | D68: 7389 | K68: 0 | L68: 21
A69: 22 | B69: 7495 | C69: 14 | D69: 7507 | K69: 0 | L69: 21
A70: 22 | B70: 7612 | C70: 14 | D70: 7627 | K70: 0 | L70: 21
A71: 11 | B71: 7743 | C71: 21 | D71: 7756 | K71: 0 | L71: 12
A72: 22 | B72: 7864 | C72: 14 | D72: 7876 | K72: 0 | L72: 21
A73: 22 | B73: 7988 | C73: 14 | D73: 8001 | K73: 0 | L73: 21
A74: 22 | B74: 8103 | C74: 23 | D74: 8111 | K74: 0 | L74: 22
A75: 22 | B75: 8260 | C75: 23 | D75: 8276 | K75: 0 | L75: 22
A76: 22 | B76: 8381 | C76: 14 | D76: 8397 | K76: 0 | L76: 21
A77: 22 | B77: 8503 | C77: 14 | D77: 8516 | K77: 0 | L77: 21
A78: 22 | B78: 8618 | C78: 14 | D78: 8630 | K78: 0 | L78: 21
A79: 22 | B79: 8734 | C79: 14 | D79: 8746 | K79: 0 | L79: 21
A80: 22 | B80: 8848 | C80: 14 | D80: 8861 | K80: 0 | L80: 21
A81: 22 | B81: 8982 | C81: 23 | D81: 8997 | K81: 0 | L81: 22
A82: 22 | B82: 9108 | C82: 23 | D82: 9139 | K82: 0 | L82: 22
A83: 22 | B83: 9244 | C83: 14 | D83: 9267 | K83: 0 | L83: 21
A84: 22 | B84: 9369 | C84: 23 | D84: 9380 | K84: 0 | L84: 22
A85: 22 | B85: 9483 | C85: 23 | D85: 9493 | K85: 0 | L85: 22
A86: 22 | B86: 9593 | C86: 14 | D86: 9608 | K86: 0 | L86: 21
A87: 11 | B87: 9723 | C87: 21 | D87: 9736 | K87: 0 | L87: 12
A88: 11 | B88: 9848 | C88: 21 | D88: 9860 | K88: 0 | L88: 12
A89: 11 | B89: 9978 | C89: 21 | D89: 9990 | K89: 0 | L89: 12
A90: 22 | B90: 10086 | C90: 14 | D90: 10094 | K90: 0 | L90: 21
A91: 11 | B91: 10211 | C91: 21 | D91: 10224 | K91: 0 | L91: 12
A92: 11 | B92: 10334 | C92: 21 | D92: 10353 | K92: 0 | L92: 12
A93: 22 | B93: 10448 | C93: 14 | D93: 10460 | K93: 0 | L93: 21
A94: 22 | B94: 10560 | C94: 14 | D94: 10572 | K94: 0 | L94: 21
A95: 22 | B95: 10675 | C95: 14 | D95: 10689 | K95: 0 | L95: 21
A96: 22 | B96: 10786 | C96: 14 | D96: 10796 | K96: 0 | L96: 21
A97: 22 | B97: 10904 | C97: 14 | D97: 10917 | K97: 0 | L97: 21
A98: 11 | B98: 11049 | C98: 21 | D98: 11060 | K98: 0 | L98: 12
A99: 22 | B99: 11150 | C99: 14 | D99: 11161 | K99: 0 | L99: 21
A100: 22 | B100: 11258 | C100: 23 | D100: 11282 | K100: 0 | L100: 22
A101: 22 | B101: 11382 | C101: 23 | D101: 11405 | K101: 0 | L101: 22
A102: 22 | B102: 11520 | C102: 23 | D102: 11536 | K102: 0 | L102: 22
A103: 22 | B103: 11638 | C103: 14 | D103: 11651 | K103: 0 | L103: 21
A104: 22 | B104: 11757 | C104: 14 | D104: 11769 | K104: 0 | L104: 21
A105: 22 | B105: 11883 | C105: 14 | D105: 11893 | K105: 0 | L105: 21
A106: 22 | B106: 11996 | C106: 23 | D106: 12005 | K106: 0 | L106: 22
A107: 22 | B107: 12109 | C107: 14 | D107: 12120 | K107: 0 | L107: 21
A108: 22 | B108: 12224 | C108: 23 | D108: 12250 | K108: 0 | L108: 22
A109: 11 | B109: 12364 | C109: 21 | D109: 12375 | K109: 0 | L109: 12
A110: 22 | B110: 12469 | C110: 14 | D110: 12479 | K110: 0 | L110: 21
A111: 11 | B111: 12591 | C111: 21 | D111: 12609 | K111: 0 | L111: 12
A112: 22 | B112: 12704 | C112: 14 | D112: 12713 | K112: 0 | L112: 21
A113: 22 | B113: 12816 | C113: 14 | D113: 12827 | K113: 0 | L113: 21
A114: 22 | B114: 12924 | C114: 14 | D114: 12934 | K114: 0 | L114: 21
A115: 22 | B115: 13034 | C115: 14 | D115: 13047 | K115: 0 | L115: 21
A116: 11 | B116: 13170 | C116: 21 | D116: 13186 | K116: 0 | L116: 12
A117: 22 | B117: 13288 | C117: 14 | D117: 13299 | K117: 0 | L117: 21
A118: 22 | B118: 13406 | C118: 14 | D118: 13420 | K118: 0 | L118: 21
A119: 22 | B119: 13532 | C119: 23 | D119: 13544 | K119: 0 | L119: 22
A120: 22 | B120: 13651 | C120: 14 | D120: 13663 | K120: 0 | L120: 21
A121: 22 | B121: 13767 | C121: 14 | D121: 13778 | K121: 0 | L121: 21
A122: 22 | B122: 13884 | C122: 14 | D122: 13895 | K122: 0 | L122: 21
A123: 22 | B123: 13996 | C123: 14 | D123: 14011 | K123: 0 | L123: 21
A124: 22 | B124: 14117 | C124: 14 | D124: 14127 | K124: 0 | L124: 21
A125: 22 | B125: 14226 | C125: 23 | D125: 14259 | K125: 0 | L125: 22
A126: 22 | B126: 14360 | C126: 23 | D126: 14377 | K126: 0 | L126: 22
A127: 22 | B127: 14483 | C127: 14 | D127: 14494 | K127: 0 | L127: 21
A128: 22 | B128: 14595 | C128: 14 | D128: 14606 | K128: 0 | L128: 21
A129: 22 | B129: 14707 | C129: 14 | D129: 14719 | K129: 0 | L129: 21
A130: 22 | B130: 14823 | C130: 14 | D130: 14836 | K130: 0 | L130: 21
A131: 22 | B131: 14940 | C131: 14 | D131: 14952 | K131: 0 | L131: 21
A132: 22 | B132: 15053 | C132: 14 | D132: 15065 | K132: 0 | L132: 21
A133: 22 | B133: 15167 | C133: 14 | D133: 15179 | K133: 0 | L133: 21
A134: 11 | B134: 15291 | C134: 21 | D134: 15303 | K134: 0 | L134: 12
A135: 22 | B135: 15413 | C135: 14 | D135: 15424 | K135: 0 | L135: 21
A136: 22 | B136: 15532 | C136: 14 | D136: 15544 | K136: 0 | L136: 21
A137: 22 | B137: 15644 | C137: 14 | D137: 15657 | K137: 0 | L137: 21
A138: 22 | B138: 15760 | C138: 14 | D138: 15772 | K138: 0 | L138: 21
A139: 22 | B139: 15871 | C139: 23 | D139: 15879 | K139: 0 | L139: 22
A140: 22 | B140: 15979 | C140: 14 | D140: 15990 | K140: 0 | L140: 21
A141: 11 | B141: 16108 | C141: 21 | D141: 16119 | K141: 0 | L141: 12
A142: 11 | B142: 16225 | C142: 21 | D142: 16237 | K142: 0 | L142: 12
A143: 11 | B143: 16347 | C143: 21 | D143: 16358 | K143: 0 | L143: 12
A144: 22 | B144: 16447 | C144: 14 | D144: 16459 | K144: 0 | L144: 21
A145: 22 | B145: 16557 | C145: 14 | D145: 16566 | K145: 0 | L145: 21
A146: 22 | B146: 16667 | C146: 23 | D146: 16690 | K146: 0 | L146: 22
A147: 22 | B147: 16802 | C147: 14 | D147: 16814 | K147: 0 | L147: 21
A148: 22 | B148: 16919 | C148: 23 | D148: 16932 | K148: 0 | L148: 22
A149: 22 | B149: 17030 | C149: 14 | D149: 17042 | K149: 0 | L149: 21
A150: 22 | B150: 17144 | C150: 14 | D150: 17156 | K150: 0 | L150: 21
A151: 22 | B151: 17259 | C151: 23 | D151: 17273 | K151: 0 | L151: 22
A152: 11 | B152: 17385 | C152: 21 | D152: 17397 | K152: 0 | L152: 12
A153: 22 | B153: 17493 | C153: 14 | D153: 17504 | K153: 0 | L153: 21
A154: 22 | B154: 17610 | C154: 14 | D154: 17619 | K154: 0 | L154: 21
A155: 22 | B155: 17719 | C155: 14 | D155: 17732 | K155: 0 | L155: 21
A156: 22 | B156: 17829 | C156: 14 | D156: 17842 | K156: 0 | L156: 21
A157: 22 | B157: 17941 | C157: 14 | D157: 17956 | K157: 0 | L157: 21
A158: 11 | B158: 18076 | C158: 21 | D158: 18089 | K158: 0 | L158: 12
A159: 22 | B159: 18177 | C159: 14 | D159: 18189 | K159: 0 | L159: 21
A160: 11 | B160: 18305 | C160: 21 | D160: 18316 | K160: 0 | L160: 12
A161: 11 | B161: 18424 | C161: 21 | D161: 18435 | K161: 0 | L161: 12
A162: 11 | B162: 18543 | C162: 21 | D162: 18553 | K162: 0 | L162: 12
A163: 22 | B163: 18650 | C163: 14 | D163: 18658 | K163: 0 | L163: 21
A164: 22 | B164: 18757 | C164: 14 | D164: 18766 | K164: 0 | L164: 21
A165: 11 | B165: 18882 | C165: 21 | D165: 18894 | K165: 0 | L165: 12
A166: 22 | B166: 18986 | C166: 14 | D166: 18995 | K166: 0 | L166: 21
A167: 22 | B167: 19095 | C167: 14 | D167: 19104 | K167: 0 | L167: 21
A168: 11 | B168: 19222 | C168: 21 | D168: 19233 | K168: 0 | L168: 12
A169: 11 | B169: 19343 | C169: 21 | D169: 19354 | K169: 0 | L169: 12
A170: 22 | B170: 19445 | C170: 14 | D170: 19454 | K170: 0 | L170: 21
A171: 22 | B171: 19553 | C171: 14 | D171: 19564 | K171: 0 | L171: 21
A172: 22 | B172: 19663 | C172: 14 | D172: 19673 | K172: 0 | L172: 21
A173: 11 | B173: 19787 | C173: 21 | D173: 19803 | K173: 0 | L173: 12
A174: 22 | B174: 19926 | C174: 23 | D174: 19939 | K174: 0 | L174: 22
A175: 11 | B175: 20054 | C175: 21 | D175: 20065 | K175: 0 | L175: 12
A176: 22 | B176: 20157 | C176: 14 | D176: 20165 | K176: 0 | L176: 21
A177: 11 | B177: 20281 | C177: 21 | D177: 20292 | K177: 0 | L177: 12
A178: 22 | B178: 20381 | C178: 14 | D178: 20389 | K178: 0 | L178: 21
A179: 22 | B179: 20491 | C179: 14 | D179: 20503 | K179: 0 | L179: 21
A180: 22 | B180: 20603 | C180: 23 | D180: 20644 | K180: 0 | L180: 22
A181: 11 | B181: 20772 | C181: 21 | D181: 20784 | K181: 0 | L181: 12
A182: 22 | B182: 20877 | C182: 14 | D182: 20915 | K182: 0 | L182: 21
A183: 11 | B183: 21023 | C183: 21 | D183: 21034 | K183: 0 | L183: 12
A184: 11 | B184: 21145 | C184: 21 | D184: 21156 | K184: 0 | L184: 12
A185: 22 | B185: 21257 | C185: 14 | D185: 21268 | K185: 0 | L185: 21
A186: 22 | B186: 21366 | C186: 14 | D186: 21376 | K186: 0 | L186: 21
A187: 11 | B187: 21489 | C187: 21 | D187: 21500 | K187: 0 | L187: 12
A188: 11 | B188: 21612 | C188: 21 | D188: 21623 | K188: 1 | L188: 12

Sheet !L810C40.055
A1: Report for:!L810C40.055
A2: Date: | B2: <date>
A3: Hen: | B3: <hen> | F3: Correct Sequence | G3: =Start!J2 -> 12 | P3: Total Sequences in Data | Q3: =4994-COUNTBLANK(L7:L5000) -> 79 | V3: Total Sequences in Block Data | W3: =COUNTA(L7:L19) -> 13 | AA3: Total Sequences in Block Data | AB3: =COUNTA(L20:L32) -> 13 | AF3: Total Sequences in Block Data | AG3: =COUNTA(L33:L46) -> 14 | AK3: Total Sequences in Block Data | AL3: =COUNTA(L47:L59) -> 13 | AP3: Total Sequences in Block Data | AQ3: =COUNTA(L60:L72) -> 13 | AU3: Total Sequences in Block Data | AV3: =COUNTA(L73:L85) -> 13
P4: Total Sequences in Summary | Q4: =SUM(O7:O14) -> 79 | V4: Total Sequences in Block Summary | W4: =SUM(U7:U14) -> 13 | AA4: Total Sequences in Block Summary | AB4: =SUM(Z7:Z14) -> 13 | AF4: Total Sequences in Block Summary | AG4: =SUM(AE7:AE14) -> 14 | AK4: Total Sequences in Block Summary | AL4: =SUM(AJ7:AJ14) -> 13 | AP4: Total Sequences in Block Summary | AQ4: =SUM(AO7:AO14) -> 13 | AU4: Total Sequences in Block Summary | AV4: =SUM(AT7:AT14) -> 13
T5: Block 1 | Y5: Block 2 | AD5: Block 3 | AI5: Block 4 | AN5: Block 5 | AS5: Block 6
A6: Sequence Component 1 | B6: Time 1 | C6: Sequence Component 2 | D6: Time 2 | E6: Sequence Component 3 | F6: Time 3 | G6: Sequence Component 4 | H6: Time 4 | I6: Sequence Component 5 | J6: Time 5 | K6: Correct? 0=No 1=Yes | L6: Sequence | N6: Frequency | P6: Relative Frequency | Q6: Variability | T6: Frequency | V6: Relative Frequency | W6: Variability | Y6: Frequency | AA6: Relative Frequency | AB6: Variability | AD6: Frequency | AF6: Relative Frequency | AG6: Variability | AI6: Frequency | AK6: Relative Frequency | AL6: Variability | AN6: Frequency | AP6: Relative Frequency | AQ6: Variability | AS6: Frequency | AU6: Relative Frequency | AV6: Variability
A7: 22 | B7: 19 | C7: 14 | D7: 28 | K7: 0 | L7: 21 | N7: 11 | O7: =COUNTIF($L$7:$L$500,N7) -> 1 | P7: =O7/$Q$4 -> 0.01265822785 | Q7: =IF(P7=0,0,(P7*((LOG(P7))/LOG(2)))) -> -0.07979469301 | T7: =N7 -> 11 | U7: =COUNTIF(L7:L19,T7) -> 0 | V7: =U7/(W4-U8) -> 0 | W7: =IF(V7=0,0,(V7*((LOG(V7))/LOG(2)))) -> 0 | Y7: =N7 -> 11 | Z7: =COUNTIF(L20:L32,Y7) -> 0 | AA7: =Z7/(AB4-Z8) -> 0 | AB7: =IF(AA7=0,0,(AA7*((LOG(AA7))/LOG(2)))) -> 0 | AD7: =N7 -> 11 | AE7: =COUNTIF(L33:L46,AD7) -> 1 | AF7: =AE7/(AG4-AE8) -> 0.1111111111 | AG7: =IF(AF7=0,0,(AF7*((LOG(AF7))/LOG(2)))) -> -0.352213889 | AI7: =N7 -> 11 | AJ7: =COUNTIF(L47:L59,AI7) -> 0 | AK7: =AJ7/(AL4-AJ8) -> 0 | AL7: =IF(AK7=0,0,(AK7*((LOG(AK7))/LOG(2)))) -> 0 | AN7: =N7 -> 11 | AO7: =COUNTIF(L60:L72,AN7) -> 0 | AP7: =AO7/(AQ4-AO8) -> 0 | AQ7: =IF(AP7=0,0,(AP7*((LOG(AP7))/LOG(2)))) -> 0 | AS7: =N7 -> 11 | AT7: =COUNTIF(L73:L85,AS7) -> 0 | AU7: =AT7/(AV4-AT8) -> 0 | AV7: =IF(AU7=0,0,(AU7*((LOG(AU7))/LOG(2)))) -> 0
A8: 22 | B8: 129 | C8: 14 | D8: 144 | K8: 0 | L8: 21 | N8: 12 | O8: =COUNTIF($L$7:$L$500,N8) -> 40 | P8: =O8/$Q$4 -> 0.5063291139 | Q8: =IF(P8=0,0,(P8*((LOG(P8))/LOG(2)))) -> -0.4971405839 | T8: =N8 -> 12 | U8: =COUNTIF(L7:L19,T8) -> 2 | Y8: =N8 -> 12 | Z8: =COUNTIF(L20:L32,Y8) -> 7 | AD8: =N8 -> 12 | AE8: =COUNTIF(L33:L46,AD8) -> 5 | AI8: =N8 -> 12 | AJ8: =COUNTIF(L47:L59,AI8) -> 6 | AN8: =N8 -> 12 | AO8: =COUNTIF(L60:L72,AN8) -> 10 | AS8: =N8 -> 12 | AT8: =COUNTIF(L73:L85,AS8) -> 10
A9: 11 | B9: 255 | C9: 21 | D9: 266 | K9: 0 | L9: 12 | N9: 21 | O9: =COUNTIF($L$7:$L$500,N9) -> 32 | P9: =O9/$Q$4 -> 0.4050632911 | Q9: =IF(P9=0,0,(P9*((LOG(P9))/LOG(2)))) -> -0.5281137208 | T9: =N9 -> 21 | U9: =COUNTIF(L7:L19,T9) -> 9 | V9: =U9/(W4-U8) -> 0.8181818182 | W9: =IF(V9=0,0,(V9*((LOG(V9))/LOG(2)))) -> -0.2368690504 | Y9: =N9 -> 21 | Z9: =COUNTIF(L20:L32,Y9) -> 5 | AA9: =Z9/(AB4-Z8) -> 0.8333333333 | AB9: =IF(AA9=0,0,(AA9*((LOG(AA9))/LOG(2)))) -> -0.2191953382 | AD9: =N9 -> 21 | AE9: =COUNTIF(L33:L46,AD9) -> 7 | AF9: =AE9/(AG4-AE8) -> 0.7777777778 | AG9: =IF(AF9=0,0,(AF9*((LOG(AF9))/LOG(2)))) -> -0.2819989506 | AI9: =N9 -> 21 | AJ9: =COUNTIF(L47:L59,AI9) -> 5 | AK9: =AJ9/(AL4-AJ8) -> 0.7142857143 | AL9: =IF(AK9=0,0,(AK9*((LOG(AK9))/LOG(2)))) -> -0.346733448 | AN9: =N9 -> 21 | AO9: =COUNTIF(L60:L72,AN9) -> 3 | AP9: =AO9/(AQ4-AO8) -> 1 | AQ9: =IF(AP9=0,0,(AP9*((LOG(AP9))/LOG(2)))) -> 0 | AS9: =N9 -> 21 | AT9: =COUNTIF(L73:L85,AS9) -> 3 | AU9: =AT9/(AV4-AT8) -> 1 | AV9: =IF(AU9=0,0,(AU9*((LOG(AU9))/LOG(2)))) -> 0
A10: 22 | B10: 361 | C10: 14 | D10: 370 | K10: 0 | L10: 21 | N10: 22 | O10: =COUNTIF($L$7:$L$500,N10) -> 6 | P10: =O10/$Q$4 -> 0.07594936709 | Q10: =IF(P10=0,0,(P10*((LOG(P10))/LOG(2)))) -> -0.2824418922 | T10: =N10 -> 22 | U10: =COUNTIF(L7:L19,T10) -> 2 | V10: =U10/(W4-U8) -> 0.1818181818 | W10: =IF(V10=0,0,(V10*((LOG(V10))/LOG(2)))) -> -0.4471693852 | Y10: =N10 -> 22 | Z10: =COUNTIF(L20:L32,Y10) -> 1 | AA10: =Z10/(AB4-Z8) -> 0.1666666667 | AB10: =IF(AA10=0,0,(AA10*((LOG(AA10))/LOG(2)))) -> -0.4308270835 | AD10: =N10 -> 22 | AE10: =COUNTIF(L33:L46,AD10) -> 1 | AF10: =AE10/(AG4-AE8) -> 0.1111111111 | AG10: =IF(AF10=0,0,(AF10*((LOG(AF10))/LOG(2)))) -> -0.352213889 | AI10: =N10 -> 22 | AJ10: =COUNTIF(L47:L59,AI10) -> 2 | AK10: =AJ10/(AL4-AJ8) -> 0.2857142857 | AL10: =IF(AK10=0,0,(AK10*((LOG(AK10))/LOG(2)))) -> -0.5163871206 | AN10: =N10 -> 22 | AO10: =COUNTIF(L60:L72,AN10) -> 0 | AP10: =AO10/(AQ4-AO8) -> 0 | AQ10: =IF(AP10=0,0,(AP10*((LOG(AP10))/LOG(2)))) -> 0 | AS10: =N10 -> 22 | AT10: =COUNTIF(L73:L85,AS10) -> 0 | AU10: =AT10/(AV4-AT8) -> 0 | AV10: =IF(AU10=0,0,(AU10*((LOG(AU10))/LOG(2)))) -> 0
A11: 22 | B11: 475 | C11: 23 | D11: 499 | K11: 0 | L11: 22 | T11: =N11 -> 0 | U11: =COUNTIF(L7:L19,T11) -> 0 | V11: =U11/(W4-U8) -> 0 | W11: =IF(V11=0,0,(V11*((LOG(V11))/LOG(2)))) -> 0 | Y11: =N11 -> 0 | Z11: =COUNTIF(L20:L32,Y11) -> 0 | AA11: =Z11/(AB4-Z8) -> 0 | AB11: =IF(AA11=0,0,(AA11*((LOG(AA11))/LOG(2)))) -> 0 | AD11: =N11 -> 0 | AE11: =COUNTIF(L33:L46,AD11) -> 0 | AF11: =AE11/(AG4-AE8) -> 0 | AG11: =IF(AF11=0,0,(AF11*((LOG(AF11))/LOG(2)))) -> 0 | AI11: =N11 -> 0 | AJ11: =COUNTIF(L47:L59,AI11) -> 0 | AK11: =AJ11/(AL4-AJ8) -> 0 | AL11: =IF(AK11=0,0,(AK11*((LOG(AK11))/LOG(2)))) -> 0 | AN11: =N11 -> 0 | AO11: =COUNTIF(L60:L72,AN11) -> 0 | AP11: =AO11/(AQ4-AO8) -> 0 | AQ11: =IF(AP11=0,0,(AP11*((LOG(AP11))/LOG(2)))) -> 0 | AS11: =N11 -> 0 | AT11: =COUNTIF(L73:L85,AS11) -> 0 | AU11: =AT11/(AV4-AT8) -> 0 | AV11: =IF(AU11=0,0,(AU11*((LOG(AU11))/LOG(2)))) -> 0
A12: 22 | B12: 601 | C12: 14 | D12: 611 | K12: 0 | L12: 21 | T12: =N12 -> 0 | U12: =COUNTIF(L7:L19,T12) -> 0 | V12: =U12/(W4-U8) -> 0 | W12: =IF(V12=0,0,(V12*((LOG(V12))/LOG(2)))) -> 0 | Y12: =N12 -> 0 | Z12: =COUNTIF(L20:L32,Y12) -> 0 | AA12: =Z12/(AB4-Z8) -> 0 | AB12: =IF(AA12=0,0,(AA12*((LOG(AA12))/LOG(2)))) -> 0 | AD12: =N12 -> 0 | AE12: =COUNTIF(L33:L46,AD12) -> 0 | AF12: =AE12/(AG4-AE8) -> 0 | AG12: =IF(AF12=0,0,(AF12*((LOG(AF12))/LOG(2)))) -> 0 | AI12: =N12 -> 0 | AJ12: =COUNTIF(L47:L59,AI12) -> 0 | AK12: =AJ12/(AL4-AJ8) -> 0 | AL12: =IF(AK12=0,0,(AK12*((LOG(AK12))/LOG(2)))) -> 0 | AN12: =N12 -> 0 | AO12: =COUNTIF(L60:L72,AN12) -> 0 | AP12: =AO12/(AQ4-AO8) -> 0 | AQ12: =IF(AP12=0,0,(AP12*((LOG(AP12))/LOG(2)))) -> 0 | AS12: =N12 -> 0 | AT12: =COUNTIF(L73:L85,AS12) -> 0 | AU12: =AT12/(AV4-AT8) -> 0 | AV12: =IF(AU12=0,0,(AU12*((LOG(AU12))/LOG(2)))) -> 0
A13: 22 | B13: 712 | C13: 14 | D13: 721 | K13: 0 | L13: 21 | T13: =N13 -> 0 | U13: =COUNTIF(L7:L19,T13) -> 0 | V13: =U13/(W4-U8) -> 0 | W13: =IF(V13=0,0,(V13*((LOG(V13))/LOG(2)))) -> 0 | Y13: =N13 -> 0 | Z13: =COUNTIF(L20:L32,Y13) -> 0 | AA13: =Z13/(AB4-Z8) -> 0 | AB13: =IF(AA13=0,0,(AA13*((LOG(AA13))/LOG(2)))) -> 0 | AD13: =N13 -> 0 | AE13: =COUNTIF(L33:L46,AD13) -> 0 | AF13: =AE13/(AG4-AE8) -> 0 | AG13: =IF(AF13=0,0,(AF13*((LOG(AF13))/LOG(2)))) -> 0 | AI13: =N13 -> 0 | AJ13: =COUNTIF(L47:L59,AI13) -> 0 | AK13: =AJ13/(AL4-AJ8) -> 0 | AL13: =IF(AK13=0,0,(AK13*((LOG(AK13))/LOG(2)))) -> 0 | AN13: =N13 -> 0 | AO13: =COUNTIF(L60:L72,AN13) -> 0 | AP13: =AO13/(AQ4-AO8) -> 0 | AQ13: =IF(AP13=0,0,(AP13*((LOG(AP13))/LOG(2)))) -> 0 | AS13: =N13 -> 0 | AT13: =COUNTIF(L73:L85,AS13) -> 0 | AU13: =AT13/(AV4-AT8) -> 0 | AV13: =IF(AU13=0,0,(AU13*((LOG(AU13))/LOG(2)))) -> 0
A14: 22 | B14: 822 | C14: 14 | D14: 839 | K14: 0 | L14: 21 | T14: =N14 -> 0 | U14: =COUNTIF(L7:L19,T14) -> 0 | V14: =U14/(W4-U8) -> 0 | W14: =IF(V14=0,0,(V14*((LOG(V14))/LOG(2)))) -> 0 | Y14: =N14 -> 0 | Z14: =COUNTIF(L20:L32,Y14) -> 0 | AA14: =Z14/(AB4-Z8) -> 0 | AB14: =IF(AA14=0,0,(AA14*((LOG(AA14))/LOG(2)))) -> 0 | AD14: =N14 -> 0 | AE14: =COUNTIF(L33:L46,AD14) -> 0 | AF14: =AE14/(AG4-AE8) -> 0 | AG14: =IF(AF14=0,0,(AF14*((LOG(AF14))/LOG(2)))) -> 0 | AI14: =N14 -> 0 | AJ14: =COUNTIF(L47:L59,AI14) -> 0 | AK14: =AJ14/(AL4-AJ8) -> 0 | AL14: =IF(AK14=0,0,(AK14*((LOG(AK14))/LOG(2)))) -> 0 | AN14: =N14 -> 0 | AO14: =COUNTIF(L60:L72,AN14) -> 0 | AP14: =AO14/(AQ4-AO8) -> 0 | AQ14: =IF(AP14=0,0,(AP14*((LOG(AP14))/LOG(2)))) -> 0 | AS14: =N14 -> 0 | AT14: =COUNTIF(L73:L85,AS14) -> 0 | AU14: =AT14/(AV4-AT8) -> 0 | AV14: =IF(AU14=0,0,(AU14*((LOG(AU14))/LOG(2)))) -> 0
A15: 22 | B15: 940 | C15: 14 | D15: 953 | K15: 0 | L15: 21 | P15: =SUM(P7:P14) -> 1 | Q15: =-SUM(Q7:Q14) -> 1.38749089 | V15: =SUM(V7:V14) -> 1 | W15: =-SUM(W7:W14) -> 0.6840384356 | AA15: =SUM(AA7:AA14) -> 1 | AB15: =-SUM(AB7:AB14) -> 0.6500224216 | AF15: =SUM(AF7:AF14) -> 1 | AG15: =-SUM(AG7:AG14) -> 0.9864267287 | AK15: =SUM(AK7:AK14) -> 1 | AL15: =-SUM(AL7:AL14) -> 0.8631205686 | AP15: =SUM(AP7:AP14) -> 1 | AQ15: =-SUM(AQ7:AQ14) -> 0 | AU15: =SUM(AU7:AU14) -> 1 | AV15: =-SUM(AV7:AV14) -> 0
A16: 22 | B16: 1059 | C16: 14 | D16: 1069 | K16: 0 | L16: 21 | P16: U= | Q16: =Q15/(LOG(Q4)/LOG(2)) -> 0.2201045603 | V16: U1= | W16: =W15/(LOG(W4)/LOG(2)) -> 0.1848532844 | AA16: U2= | AB16: =AB15/(LOG(AB4)/LOG(2)) -> 0.1756608596 | AF16: U3= | AG16: =AG15/(LOG(AG4)/LOG(2)) -> 0.2590845216 | AK16: U4= | AL16: =AL15/(LOG(AL4)/LOG(2)) -> 0.2332481095 | AP16: U5= | AQ16: =AQ15/(LOG(AQ4)/LOG(2)) -> 0 | AU16: U6= | AV16: =AV15/(LOG(AV4)/LOG(2)) -> 0
A17: 11 | B17: 1188 | C17: 21 | D17: 1199 | K17: 0 | L17: 12
A18: 22 | B18: 1295 | C18: 23 | D18: 1314 | K18: 0 | L18: 22
A19: 22 | B19: 1415 | C19: 14 | D19: 1425 | K19: 0 | L19: 21 | N19: Total Target Seq
A20: 22 | B20: 1524 | C20: 14 | D20: 1538 | K20: 0 | L20: 21 | N20: =COUNTIF(L7:L85,G3) -> 40 | P20: 13 | Q20: 13 | R20: 14 | S20: 13 | T20: 13 | U20: 13
A21: 11 | B21: 1647 | C21: 21 | D21: 1658 | K21: 0 | L21: 12 | P21: % of reinforcement given in 6 equal intervals based on number of trials
A22: 22 | B22: 1752 | C22: 14 | D22: 1761 | K22: 0 | L22: 21 | P22: %_1 | Q22: %_2 | R22: %_3 | S22: %_4 | T22: %_5 | U22: %_6
A23: 11 | B23: 1876 | C23: 21 | D23: 1887 | K23: 0 | L23: 12 | O23: target sequence | P23: =$G$3 -> 12 | Q23: =$G$3 -> 12 | R23: =$G$3 -> 12 | S23: =$G$3 -> 12 | T23: =$G$3 -> 12 | U23: =$G$3 -> 12
A24: 11 | B24: 1996 | C24: 21 | D24: 2007 | K24: 0 | L24: 12 | O24: total reinforcement | P24: =U8 -> 2 | Q24: =Z8 -> 7 | R24: =AE8 -> 5 | S24: =AJ8 -> 6 | T24: =AO8 -> 10 | U24: =AT8 -> 10
A25: 22 | B25: 2097 | C25: 14 | D25: 2111 | K25: 0 | L25: 21 | O25: % target
A26: 22 | B26: 2215 | C26: 14 | D26: 2225 | K26: 0 | L26: 21 | O26: CCRF
A27: 22 | B27: 2325 | C27: 14 | D27: 2337 | K27: 0 | L27: 21 | O27: % CCRf
A28: 11 | B28: 2449 | C28: 21 | D28: 2461 | K28: 0 | L28: 12 | O28: average response rate | P28: =D19/P20 -> 109.6153846 | Q28: =(D32-D19)/Q20 -> 117.5384615 | R28: =(D46-D32)/R20 -> 118 | S28: =(D59-D46)/S20 -> 118.7692308 | T28: =(D72-D59)/T20 -> 115 | U28: =(D85-D72)/U20 -> 115.7692308
A29: 22 | B29: 2550 | C29: 23 | D29: 2602 | K29: 0 | L29: 22
A30: 11 | B30: 2714 | C30: 21 | D30: 2725 | K30: 0 | L30: 12
A31: 11 | B31: 2827 | C31: 21 | D31: 2838 | K31: 0 | L31: 12
A32: 11 | B32: 2942 | C32: 21 | D32: 2953 | K32: 0 | L32: 12
A33: 11 | B33: 3054 | C33: 21 | D33: 3064 | K33: 0 | L33: 12
A34: 11 | B34: 3173 | C34: 21 | D34: 3183 | K34: 0 | L34: 12
A35: 11 | B35: 3297 | C35: 21 | D35: 3308 | K35: 0 | L35: 12
A36: 22 | B36: 3399 | C36: 14 | D36: 3413 | K36: 0 | L36: 21
A37: 22 | B37: 3513 | C37: 14 | D37: 3522 | K37: 0 | L37: 21
A38: 22 | B38: 3625 | C38: 14 | D38: 3635 | K38: 0 | L38: 21
A39: 22 | B39: 3735 | C39: 14 | D39: 3748 | K39: 0 | L39: 21
A40: 22 | B40: 3845 | C40: 14 | D40: 3858 | K40: 0 | L40: 21
A41: 11 | B41: 3980 | C41: 12 | D41: 4005 | K41: 0 | L41: 11
A42: 22 | B42: 4112 | C42: 14 | D42: 4121 | K42: 0 | L42: 21
A43: 11 | B43: 4234 | C43: 21 | D43: 4252 | K43: 0 | L43: 12
A44: 22 | B44: 4345 | C44: 14 | D44: 4359 | K44: 0 | L44: 21
A45: 22 | B45: 4462 | C45: 23 | D45: 4479 | K45: 0 | L45: 22
A46: 11 | B46: 4594 | C46: 21 | D46: 4605 | K46: 0 | L46: 12
A47: 11 | B47: 4706 | C47: 21 | D47: 4721 | K47: 0 | L47: 12
A48: 11 | B48: 4820 | C48: 21 | D48: 4866 | K48: 0 | L48: 12
A49: 22 | B49: 4962 | C49: 14 | D49: 4971 | K49: 0 | L49: 21
A50: 11 | B50: 5086 | C50: 21 | D50: 5103 | K50: 0 | L50: 12
A51: 11 | B51: 5204 | C51: 21 | D51: 5216 | K51: 0 | L51: 12
A52: 22 | B52: 5306 | C52: 14 | D52: 5321 | K52: 0 | L52: 21
A53: 22 | B53: 5418 | C53: 14 | D53: 5428 | K53: 0 | L53: 21
A54: 22 | B54: 5527 | C54: 23 | D54: 5552 | K54: 0 | L54: 22
A55: 11 | B55: 5671 | C55: 21 | D55: 5688 | K55: 0 | L55: 12
A56: 11 | B56: 5795 | C56: 21 | D56: 5813 | K56: 0 | L56: 12
A57: 22 | B57: 5905 | C57: 23 | D57: 5928 | K57: 0 | L57: 22
A58: 22 | B58: 6030 | C58: 14 | D58: 6039 | K58: 0 | L58: 21
A59: 22 | B59: 6139 | C59: 14 | D59: 6149 | K59: 0 | L59: 21
A60: 11 | B60: 6261 | C60: 21 | D60: 6271 | K60: 0 | L60: 12
A61: 22 | B61: 6362 | C61: 14 | D61: 6371 | K61: 0 | L61: 21
A62: 11 | B62: 6482 | C62: 21 | D62: 6493 | K62: 0 | L62: 12
A63: 11 | B63: 6595 | C63: 21 | D63: 6606 | K63: 0 | L63: 12
A64: 11 | B64: 6708 | C64: 21 | D64: 6719 | K64: 0 | L64: 12
A65: 22 | B65: 6812 | C65: 14 | D65: 6828 | K65: 0 | L65: 21
A66: 11 | B66: 6937 | C66: 21 | D66: 6948 | K66: 0 | L66: 12
A67: 11 | B67: 7058 | C67: 21 | D67: 7071 | K67: 0 | L67: 12
A68: 11 | B68: 7175 | C68: 21 | D68: 7186 | K68: 0 | L68: 12
A69: 11 | B69: 7285 | C69: 21 | D69: 7296 | K69: 0 | L69: 12
A70: 11 | B70: 7403 | C70: 21 | D70: 7415 | K70: 0 | L70: 12
A71: 22 | B71: 7505 | C71: 14 | D71: 7525 | K71: 0 | L71: 21
A72: 11 | B72: 7633 | C72: 21 | D72: 7644 | K72: 0 | L72: 12
A73: 11 | B73: 7744 | C73: 21 | D73: 7756 | K73: 0 | L73: 12
A74: 11 | B74: 7871 | C74: 21 | D74: 7880 | K74: 0 | L74: 12
A75: 11 | B75: 7983 | C75: 21 | D75: 7993 | K75: 0 | L75: 12
A76: 22 | B76: 8084 | C76: 14 | D76: 8092 | K76: 0 | L76: 21
A77: 11 | B77: 8202 | C77: 21 | D77: 8220 | K77: 0 | L77: 12
A78: 11 | B78: 8321 | C78: 21 | D78: 8335 | K78: 0 | L78: 12
A79: 11 | B79: 8440 | C79: 21 | D79: 8458 | K79: 0 | L79: 12
A80: 22 | B80: 8548 | C80: 14 | D80: 8557 | K80: 0 | L80: 21
A81: 22 | B81: 8656 | C81: 14 | D81: 8665 | K81: 0 | L81: 21
A82: 11 | B82: 8775 | C82: 21 | D82: 8786 | K82: 0 | L82: 12
A83: 11 | B83: 8889 | C83: 21 | D83: 8899 | K83: 0 | L83: 12
A84: 11 | B84: 9002 | C84: 21 | D84: 9041 | K84: 0 | L84: 12
A85: 11 | B85: 9138 | C85: 21 | D85: 9149 | K85: 1 | L85: 12

Sheet !L811B40.055
A1: Report for:!L811B40.055
A2: Date: | B2: <date>
A3: Hen: | B3: <hen> | F3: Correct Sequence | G3: =Start!J2 -> 12 | P3: Total Sequences in Data | Q3: =4994-COUNTBLANK(L7:L5000) -> 80 | V3: Total Sequences in Block Data | W3: =COUNTA(L7:L19) -> 13 | AA3: Total Sequences in Block Data | AB3: =COUNTA(L20:L33) -> 14 | AF3: Total Sequences in Block Data | AG3: =COUNTA(L34:L46) -> 13 | AK3: Total Sequences in Block Data | AL3: =COUNTA(L47:L59) -> 13 | AP3: Total Sequences in Block Data | AQ3: =COUNTA(L60:L73) -> 14 | AU3: Total Sequences in Block Data | AV3: =COUNTA(L74:L86) -> 13
P4: Total Sequences in Summary | Q4: =SUM(O7:O14) -> 80 | V4: Total Sequences in Block Summary | W4: =SUM(U7:U14) -> 13 | AA4: Total Sequences in Block Summary | AB4: =SUM(Z7:Z14) -> 14 | AF4: Total Sequences in Block Summary | AG4: =SUM(AE7:AE14) -> 13 | AK4: Total Sequences in Block Summary | AL4: =SUM(AJ7:AJ14) -> 13 | AP4: Total Sequences in Block Summary | AQ4: =SUM(AO7:AO14) -> 14 | AU4: Total Sequences in Block Summary | AV4: =SUM(AT7:AT14) -> 13
T5: Block 1 | Y5: Block 2 | AD5: Block 3 | AI5: Block 4 | AN5: Block 5 | AS5: Block 6
A6: Sequence Component 1 | B6: Time 1 | C6: Sequence Component 2 | D6: Time 2 | E6: Sequence Component 3 | F6: Time 3 | G6: Sequence Component 4 | H6: Time 4 | I6: Sequence Component 5 | J6: Time 5 | K6: Correct? 0=No 1=Yes | L6: Sequence | N6: Frequency | P6: Relative Frequency | Q6: Variability | T6: Frequency | V6: Relative Frequency | W6: Variability | Y6: Frequency | AA6: Relative Frequency | AB6: Variability | AD6: Frequency | AF6: Relative Frequency | AG6: Variability | AI6: Frequency | AK6: Relative Frequency | AL6: Variability | AN6: Frequency | AP6: Relative Frequency | AQ6: Variability | AS6: Frequency | AU6: Relative Frequency | AV6: Variability
A7: 22 | B7: 13 | C7: 14 | D7: 25 | K7: 0 | L7: 21 | N7: 11 | O7: =COUNTIF($L$7:$L$500,N7) -> 7 | P7: =O7/$Q$4 -> 0.0875 | Q7: =IF(P7=0,0,(P7*((LOG(P7))/LOG(2)))) -> -0.3075251526 | T7: =N7 -> 11 | U7: =COUNTIF(L7:L19,T7) -> 0 | V7: =U7/(W4-U8) -> 0 | W7: =IF(V7=0,0,(V7*((LOG(V7))/LOG(2)))) -> 0 | Y7: =N7 -> 11 | Z7: =COUNTIF(L20:L33,Y7) -> 2 | AA7: =Z7/(AB4-Z8) -> 0.2 | AB7: =IF(AA7=0,0,(AA7*((LOG(AA7))/LOG(2)))) -> -0.464385619 | AD7: =N7 -> 11 | AE7: =COUNTIF(L34:L46,AD7) -> 0 | AF7: =AE7/(AG4-AE8) -> 0 | AG7: =IF(AF7=0,0,(AF7*((LOG(AF7))/LOG(2)))) -> 0 | AI7: =N7 -> 11 | AJ7: =COUNTIF(L47:L59,AI7) -> 0 | AK7: =AJ7/(AL4-AJ8) -> 0 | AL7: =IF(AK7=0,0,(AK7*((LOG(AK7))/LOG(2)))) -> 0 | AN7: =N7 -> 11 | AO7: =COUNTIF(L60:L73,AN7) -> 2 | AP7: =AO7/(AQ4-AO8) -> 0.3333333333 | AQ7: =IF(AP7=0,0,(AP7*((LOG(AP7))/LOG(2)))) -> -0.5283208336 | AS7: =N7 -> 11 | AT7: =COUNTIF(L74:L86,AS7) -> 3 | AU7: =AT7/(AV4-AT8) -> 0.4285714286 | AV7: =IF(AU7=0,0,(AU7*((LOG(AU7))/LOG(2)))) -> -0.5238824663
A8: 11 | B8: 147 | C8: 21 | D8: 159 | K8: 0 | L8: 12 | N8: 12 | O8: =COUNTIF($L$7:$L$500,N8) -> 40 | P8: =O8/$Q$4 -> 0.5 | Q8: =IF(P8=0,0,(P8*((LOG(P8))/LOG(2)))) -> -0.5 | T8: =N8 -> 12 | U8: =COUNTIF(L7:L19,T8) -> 5 | Y8: =N8 -> 12 | Z8: =COUNTIF(L20:L33,Y8) -> 4 | AD8: =N8 -> 12 | AE8: =COUNTIF(L34:L46,AD8) -> 8 | AI8: =N8 -> 12 | AJ8: =COUNTIF(L47:L59,AI8) -> 9 | AN8: =N8 -> 12 | AO8: =COUNTIF(L60:L73,AN8) -> 8 | AS8: =N8 -> 12 | AT8: =COUNTIF(L74:L86,AS8) -> 6
A9: 22 | B9: 249 | C9: 14 | D9: 259 | K9: 0 | L9: 21 | N9: 21 | O9: =COUNTIF($L$7:$L$500,N9) -> 23 | P9: =O9/$Q$4 -> 0.2875 | Q9: =IF(P9=0,0,(P9*((LOG(P9))/LOG(2)))) -> -0.5170302649 | T9: =N9 -> 21 | U9: =COUNTIF(L7:L19,T9) -> 6 | V9: =U9/(W4-U8) -> 0.75 | W9: =IF(V9=0,0,(V9*((LOG(V9))/LOG(2)))) -> -0.3112781245 | Y9: =N9 -> 21 | Z9: =COUNTIF(L20:L33,Y9) -> 6 | AA9: =Z9/(AB4-Z8) -> 0.6 | AB9: =IF(AA9=0,0,(AA9*((LOG(AA9))/LOG(2)))) -> -0.4421793565 | AD9: =N9 -> 21 | AE9: =COUNTIF(L34:L46,AD9) -> 3 | AF9: =AE9/(AG4-AE8) -> 0.6 | AG9: =IF(AF9=0,0,(AF9*((LOG(AF9))/LOG(2)))) -> -0.4421793565 | AI9: =N9 -> 21 | AJ9: =COUNTIF(L47:L59,AI9) -> 3 | AK9: =AJ9/(AL4-AJ8) -> 0.75 | AL9: =IF(AK9=0,0,(AK9*((LOG(AK9))/LOG(2)))) -> -0.3112781245 | AN9: =N9 -> 21 | AO9: =COUNTIF(L60:L73,AN9) -> 2 | AP9: =AO9/(AQ4-AO8) -> 0.3333333333 | AQ9: =IF(AP9=0,0,(AP9*((LOG(AP9))/LOG(2)))) -> -0.5283208336 | AS9: =N9 -> 21 | AT9: =COUNTIF(L74:L86,AS9) -> 3 | AU9: =AT9/(AV4-AT8) -> 0.4285714286 | AV9: =IF(AU9=0,0,(AU9*((LOG(AU9))/LOG(2)))) -> -0.5238824663
A10: 11 | B10: 368 | C10: 21 | D10: 380 | K10: 0 | L10: 12 | N10: 22 | O10: =COUNTIF($L$7:$L$500,N10) -> 10 | P10: =O10/$Q$4 -> 0.125 | Q10: =IF(P10=0,0,(P10*((LOG(P10))/LOG(2)))) -> -0.375 | T10: =N10 -> 22 | U10: =COUNTIF(L7:L19,T10) -> 2 | V10: =U10/(W4-U8) -> 0.25 | W10: =IF(V10=0,0,(V10*((LOG(V10))/LOG(2)))) -> -0.5 | Y10: =N10 -> 22 | Z10: =COUNTIF(L20:L33,Y10) -> 2 | AA10: =Z10/(AB4-Z8) -> 0.2 | AB10: =IF(AA10=0,0,(AA10*((LOG(AA10))/LOG(2)))) -> -0.464385619 | AD10: =N10 -> 22 | AE10: =COUNTIF(L34:L46,AD10) -> 2 | AF10: =AE10/(AG4-AE8) -> 0.4 | AG10: =IF(AF10=0,0,(AF10*((LOG(AF10))/LOG(2)))) -> -0.528771238 | AI10: =N10 -> 22 | AJ10: =COUNTIF(L47:L59,AI10) -> 1 | AK10: =AJ10/(AL4-AJ8) -> 0.25 | AL10: =IF(AK10=0,0,(AK10*((LOG(AK10))/LOG(2)))) -> -0.5 | AN10: =N10 -> 22 | AO10: =COUNTIF(L60:L73,AN10) -> 2 | AP10: =AO10/(AQ4-AO8) -> 0.3333333333 | AQ10: =IF(AP10=0,0,(AP10*((LOG(AP10))/LOG(2)))) -> -0.5283208336 | AS10: =N10 -> 22 | AT10: =COUNTIF(L74:L86,AS10) -> 1 | AU10: =AT10/(AV4-AT8) -> 0.1428571429 | AV10: =IF(AU10=0,0,(AU10*((LOG(AU10))/LOG(2)))) -> -0.4010507032
A11: 22 | B11: 473 | C11: 14 | D11: 483 | K11: 0 | L11: 21 | T11: =N11 -> 0 | U11: =COUNTIF(L7:L19,T11) -> 0 | V11: =U11/(W4-U8) -> 0 | W11: =IF(V11=0,0,(V11*((LOG(V11))/LOG(2)))) -> 0 | Y11: =N11 -> 0 | Z11: =COUNTIF(L20:L33,Y11) -> 0 | AA11: =Z11/(AB4-Z8) -> 0 | AB11: =IF(AA11=0,0,(AA11*((LOG(AA11))/LOG(2)))) -> 0 | AD11: =N11 -> 0 | AE11: =COUNTIF(L34:L46,AD11) -> 0 | AF11: =AE11/(AG4-AE8) -> 0 | AG11: =IF(AF11=0,0,(AF11*((LOG(AF11))/LOG(2)))) -> 0 | AI11: =N11 -> 0 | AJ11: =COUNTIF(L47:L59,AI11) -> 0 | AK11: =AJ11/(AL4-AJ8) -> 0 | AL11: =IF(AK11=0,0,(AK11*((LOG(AK11))/LOG(2)))) -> 0 | AN11: =N11 -> 0 | AO11: =COUNTIF(L60:L73,AN11) -> 0 | AP11: =AO11/(AQ4-AO8) -> 0 | AQ11: =IF(AP11=0,0,(AP11*((LOG(AP11))/LOG(2)))) -> 0 | AS11: =N11 -> 0 | AT11: =COUNTIF(L74:L86,AS11) -> 0 | AU11: =AT11/(AV4-AT8) -> 0 | AV11: =IF(AU11=0,0,(AU11*((LOG(AU11))/LOG(2)))) -> 0
A12: 11 | B12: 592 | C12: 21 | D12: 604 | K12: 0 | L12: 12 | T12: =N12 -> 0 | U12: =COUNTIF(L7:L19,T12) -> 0 | V12: =U12/(W4-U8) -> 0 | W12: =IF(V12=0,0,(V12*((LOG(V12))/LOG(2)))) -> 0 | Y12: =N12 -> 0 | Z12: =COUNTIF(L20:L33,Y12) -> 0 | AA12: =Z12/(AB4-Z8) -> 0 | AB12: =IF(AA12=0,0,(AA12*((LOG(AA12))/LOG(2)))) -> 0 | AD12: =N12 -> 0 | AE12: =COUNTIF(L34:L46,AD12) -> 0 | AF12: =AE12/(AG4-AE8) -> 0 | AG12: =IF(AF12=0,0,(AF12*((LOG(AF12))/LOG(2)))) -> 0 | AI12: =N12 -> 0 | AJ12: =COUNTIF(L47:L59,AI12) -> 0 | AK12: =AJ12/(AL4-AJ8) -> 0 | AL12: =IF(AK12=0,0,(AK12*((LOG(AK12))/LOG(2)))) -> 0 | AN12: =N12 -> 0 | AO12: =COUNTIF(L60:L73,AN12) -> 0 | AP12: =AO12/(AQ4-AO8) -> 0 | AQ12: =IF(AP12=0,0,(AP12*((LOG(AP12))/LOG(2)))) -> 0 | AS12: =N12 -> 0 | AT12: =COUNTIF(L74:L86,AS12) -> 0 | AU12: =AT12/(AV4-AT8) -> 0 | AV12: =IF(AU12=0,0,(AU12*((LOG(AU12))/LOG(2)))) -> 0
A13: 22 | B13: 694 | C13: 14 | D13: 707 | K13: 0 | L13: 21 | T13: =N13 -> 0 | U13: =COUNTIF(L7:L19,T13) -> 0 | V13: =U13/(W4-U8) -> 0 | W13: =IF(V13=0,0,(V13*((LOG(V13))/LOG(2)))) -> 0 | Y13: =N13 -> 0 | Z13: =COUNTIF(L20:L33,Y13) -> 0 | AA13: =Z13/(AB4-Z8) -> 0 | AB13: =IF(AA13=0,0,(AA13*((LOG(AA13))/LOG(2)))) -> 0 | AD13: =N13 -> 0 | AE13: =COUNTIF(L34:L46,AD13) -> 0 | AF13: =AE13/(AG4-AE8) -> 0 | AG13: =IF(AF13=0,0,(AF13*((LOG(AF13))/LOG(2)))) -> 0 | AI13: =N13 -> 0 | AJ13: =COUNTIF(L47:L59,AI13) -> 0 | AK13: =AJ13/(AL4-AJ8) -> 0 | AL13: =IF(AK13=0,0,(AK13*((LOG(AK13))/LOG(2)))) -> 0 | AN13: =N13 -> 0 | AO13: =COUNTIF(L60:L73,AN13) -> 0 | AP13: =AO13/(AQ4-AO8) -> 0 | AQ13: =IF(AP13=0,0,(AP13*((LOG(AP13))/LOG(2)))) -> 0 | AS13: =N13 -> 0 | AT13: =COUNTIF(L74:L86,AS13) -> 0 | AU13: =AT13/(AV4-AT8) -> 0 | AV13: =IF(AU13=0,0,(AU13*((LOG(AU13))/LOG(2)))) -> 0
A14: 22 | B14: 808 | C14: 14 | D14: 819 | K14: 0 | L14: 21 | T14: =N14 -> 0 | U14: =COUNTIF(L7:L19,T14) -> 0 | V14: =U14/(W4-U8) -> 0 | W14: =IF(V14=0,0,(V14*((LOG(V14))/LOG(2)))) -> 0 | Y14: =N14 -> 0 | Z14: =COUNTIF(L20:L33,Y14) -> 0 | AA14: =Z14/(AB4-Z8) -> 0 | AB14: =IF(AA14=0,0,(AA14*((LOG(AA14))/LOG(2)))) -> 0 | AD14: =N14 -> 0 | AE14: =COUNTIF(L34:L46,AD14) -> 0 | AF14: =AE14/(AG4-AE8) -> 0 | AG14: =IF(AF14=0,0,(AF14*((LOG(AF14))/LOG(2)))) -> 0 | AI14: =N14 -> 0 | AJ14: =COUNTIF(L47:L59,AI14) -> 0 | AK14: =AJ14/(AL4-AJ8) -> 0 | AL14: =IF(AK14=0,0,(AK14*((LOG(AK14))/LOG(2)))) -> 0 | AN14: =N14 -> 0 | AO14: =COUNTIF(L60:L73,AN14) -> 0 | AP14: =AO14/(AQ4-AO8) -> 0 | AQ14: =IF(AP14=0,0,(AP14*((LOG(AP14))/LOG(2)))) -> 0 | AS14: =N14 -> 0 | AT14: =COUNTIF(L74:L86,AS14) -> 0 | AU14: =AT14/(AV4-AT8) -> 0 | AV14: =IF(AU14=0,0,(AU14*((LOG(AU14))/LOG(2)))) -> 0
A15: 22 | B15: 919 | C15: 23 | D15: 939 | K15: 0 | L15: 22 | P15: =SUM(P7:P14) -> 1 | Q15: =-SUM(Q7:Q14) -> 1.699555418 | V15: =SUM(V7:V14) -> 1 | W15: =-SUM(W7:W14) -> 0.8112781245 | AA15: =SUM(AA7:AA14) -> 1 | AB15: =-SUM(AB7:AB14) -> 1.370950594 | AF15: =SUM(AF7:AF14) -> 1 | AG15: =-SUM(AG7:AG14) -> 0.9709505945 | AK15: =SUM(AK7:AK14) -> 1 | AL15: =-SUM(AL7:AL14) -> 0.8112781245 | AP15: =SUM(AP7:AP14) -> 1 | AQ15: =-SUM(AQ7:AQ14) -> 1.584962501 | AU15: =SUM(AU7:AU14) -> 1 | AV15: =-SUM(AV7:AV14) -> 1.448815636
A16: 11 | B16: 1050 | C16: 21 | D16: 1062 | K16: 0 | L16: 12 | P16: U= | Q16: =Q15/(LOG(Q4)/LOG(2)) -> 0.2688349807 | V16: U1= | W16: =W15/(LOG(W4)/LOG(2)) -> 0.2192383031 | AA16: U2= | AB16: =AB15/(LOG(AB4)/LOG(2)) -> 0.3600795362 | AF16: U3= | AG16: =AG15/(LOG(AG4)/LOG(2)) -> 0.2623878967 | AK16: U4= | AL16: =AL15/(LOG(AL4)/LOG(2)) -> 0.2192383031 | AP16: U5= | AQ16: =AQ15/(LOG(AQ4)/LOG(2)) -> 0.4162896639 | AU16: U6= | AV16: =AV15/(LOG(AV4)/LOG(2)) -> 0.3915252635
A17: 22 | B17: 1155 | C17: 14 | D17: 1168 | K17: 0 | L17: 21
A18: 22 | B18: 1266 | C18: 23 | D18: 1290 | K18: 0 | L18: 22
A19: 11 | B19: 1419 | C19: 21 | D19: 1430 | K19: 0 | L19: 12 | N19: Total Target Seq
A20: 22 | B20: 1528 | C20: 14 | D20: 1539 | K20: 0 | L20: 21 | N20: =COUNTIF(L7:L86,G3) -> 40 | P20: 13 | Q20: 14 | R20: 13 | S20: 13 | T20: 14 | U20: 13
A21: 22 | B21: 1641 | C21: 14 | D21: 1651 | K21: 0 | L21: 21 | P21: % of reinforcement given in 6 equal intervals based on number of trials
A22: 22 | B22: 1749 | C22: 14 | D22: 1760 | K22: 0 | L22: 21 | P22: %_1 | Q22: %_2 | R22: %_3 | S22: %_4 | T22: %_5 | U22: %_6
A23: 22 | B23: 1862 | C23: 23 | D23: 1874 | K23: 0 | L23: 22 | O23: target sequence | P23: =$G$3 -> 12 | Q23: =$G$3 -> 12 | R23: =$G$3 -> 12 | S23: =$G$3 -> 12 | T23: =$G$3 -> 12 | U23: =$G$3 -> 12
A24: 22 | B24: 1975 | C24: 14 | D24: 1990 | K24: 0 | L24: 21 | O24: total reinforcement | P24: =U8 -> 5 | Q24: =Z8 -> 4 | R24: =AE8 -> 8 | S24: =AJ8 -> 9 | T24: =AO8 -> 8 | U24: =AT8 -> 6
A25: 11 | B25: 2107 | C25: 21 | D25: 2118 | K25: 0 | L25: 12 | O25: % target
A26: 11 | B26: 2218 | C26: 21 | D26: 2228 | K26: 0 | L26: 12 | O26: CCRF
A27: 11 | B27: 2331 | C27: 12 | D27: 2376 | K27: 0 | L27: 11 | O27: % CCRf
A28: 22 | B28: 2480 | C28: 23 | D28: 2507 | K28: 0 | L28: 22 | O28: average response rate | P28: =D19/P20 -> 110 | Q28: =(D33-D19)/Q20 -> 120.6428571 | R28: =(D46-D33)/R20 -> 123 | S28: =(D59-D46)/S20 -> 116.0769231 | T28: =(D73-D59)/T20 -> 118.7142857 | U28: =(D86-D73)/U20 -> 116.9230769
A29: 11 | B29: 2629 | C29: 21 | D29: 2643 | K29: 0 | L29: 12
A30: 11 | B30: 2753 | C30: 21 | D30: 2766 | K30: 0 | L30: 12
A31: 22 | B31: 2857 | C31: 14 | D31: 2868 | K31: 0 | L31: 21
A32: 11 | B32: 2977 | C32: 12 | D32: 3005 | K32: 0 | L32: 11
A33: 22 | B33: 3110 | C33: 14 | D33: 3119 | K33: 0 | L33: 21
A34: 22 | B34: 3226 | C34: 14 | D34: 3235 | K34: 0 | L34: 21
A35: 11 | B35: 3346 | C35: 21 | D35: 3401 | K35: 0 | L35: 12
A36: 11 | B36: 3504 | C36: 21 | D36: 3515 | K36: 0 | L36: 12
A37: 22 | B37: 3606 | C37: 23 | D37: 3630 | K37: 0 | L37: 22
A38: 11 | B38: 3742 | C38: 21 | D38: 3754 | K38: 0 | L38: 12
A39: 11 | B39: 3859 | C39: 21 | D39: 3870 | K39: 0 | L39: 12
A40: 22 | B40: 3964 | C40: 14 | D40: 3972 | K40: 0 | L40: 21
A41: 11 | B41: 4094 | C41: 21 | D41: 4105 | K41: 0 | L41: 12
A42: 11 | B42: 4209 | C42: 21 | D42: 4240 | K42: 0 | L42: 12
A43: 11 | B43: 4340 | C43: 21 | D43: 4358 | K43: 0 | L43: 12
A44: 22 | B44: 4455 | C44: 14 | D44: 4465 | K44: 0 | L44: 21
A45: 11 | B45: 4576 | C45: 21 | D45: 4588 | K45: 0 | L45: 12
A46: 22 | B46: 4701 | C46: 23 | D46: 4718 | K46: 0 | L46: 22
A47: 22 | B47: 4833 | C47: 14 | D47: 4842 | K47: 0 | L47: 21
A48: 11 | B48: 4955 | C48: 21 | D48: 4966 | K48: 0 | L48: 12
A49: 11 | B49: 5068 | C49: 21 | D49: 5078 | K49: 0 | L49: 12
A50: 22 | B50: 5167 | C50: 14 | D50: 5179 | K50: 0 | L50: 21
A51: 11 | B51: 5288 | C51: 21 | D51: 5300 | K51: 0 | L51: 12
A52: 11 | B52: 5406 | C52: 21 | D52: 5417 | K52: 0 | L52: 12
A53: 11 | B53: 5520 | C53: 21 | D53: 5533 | K53: 0 | L53: 12
A54: 11 | B54: 5639 | C54: 21 | D54: 5650 | K54: 0 | L54: 12
A55: 11 | B55: 5752 | C55: 21 | D55: 5770 | K55: 0 | L55: 12
A56: 11 | B56: 5873 | C56: 21 | D56: 5891 | K56: 0 | L56: 12
A57: 11 | B57: 5989 | C57: 21 | D57: 5998 | K57: 0 | L57: 12
A58: 22 | B58: 6090 | C58: 23 | D58: 6110 | K58: 0 | L58: 22
A59: 22 | B59: 6218 | C59: 14 | D59: 6227 | K59: 0 | L59: 21
A60: 11 | B60: 6335 | C60: 21 | D60: 6347 | K60: 0 | L60: 12
A61: 22 | B61: 6441 | C61: 23 | D61: 6468 | K61: 0 | L61: 22
A62: 11 | B62: 6579 | C62: 21 | D62: 6602 | K62: 0 | L62: 12
A63: 11 | B63: 6709 | C63: 21 | D63: 6720 | K63: 0 | L63: 12
A64: 22 | B64: 6813 | C64: 23 | D64: 6831 | K64: 0 | L64: 22
A65: 11 | B65: 6938 | C65: 21 | D65: 6950 | K65: 0 | L65: 12
A66: 11 | B66: 7064 | C66: 21 | D66: 7082 | K66: 0 | L66: 12
A67: 11 | B67: 7182 | C67: 12 | D67: 7199 | K67: 0 | L67: 11
A68: 11 | B68: 7308 | C68: 12 | D68: 7325 | K68: 0 | L68: 11
A69: 22 | B69: 7426 | C69: 14 | D69: 7435 | K69: 0 | L69: 21
A70: 11 | B70: 7547 | C70: 21 | D70: 7558 | K70: 0 | L70: 12
A71: 11 | B71: 7658 | C71: 21 | D71: 7670 | K71: 0 | L71: 12
A72: 22 | B72: 7761 | C72: 14 | D72: 7769 | K72: 0 | L72: 21
A73: 11 | B73: 7877 | C73: 21 | D73: 7889 | K73: 0 | L73: 12
A74: 11 | B74: 7993 | C74: 12 | D74: 8015 | K74: 0 | L74: 11
A75: 22 | B75: 8115 | C75: 14 | D75: 8132 | K75: 0 | L75: 21
A76: 11 | B76: 8238 | C76: 21 | D76: 8250 | K76: 0 | L76: 12
A77: 22 | B77: 8345 | C77: 23 | D77: 8365 | K77: 0 | L77: 22
A78: 11 | B78: 8478 | C78: 21 | D78: 8488 | K78: 0 | L78: 12
A79: 11 | B79: 8593 | C79: 21 | D79: 8606 | K79: 0 | L79: 12
A80: 22 | B80: 8699 | C80: 14 | D80: 8708 | K80: 0 | L80: 21
A81: 22 | B81: 8805 | C81: 14 | D81: 8814 | K81: 0 | L81: 21
A82: 11 | B82: 8920 | C82: 12 | D82: 8943 | K82: 0 | L82: 11
A83: 11 | B83: 9057 | C83: 21 | D83: 9068 | K83: 0 | L83: 12
A84: 11 | B84: 9168 | C84: 12 | D84: 9181 | K84: 0 | L84: 11
A85: 11 | B85: 9291 | C85: 21 | D85: 9301 | K85: 0 | L85: 12
A86: 11 | B86: 9398 | C86: 21 | D86: 9409 | K86: 1 | L86: 12

Sheet !L812B10.055
A1: Report for:!L812B10.055
A2: Date: | B2: <date>
A3: Hen: | B3: <hen> | F3: Correct Sequence | G3: =Start!J2 -> 12 | P3: Total Sequences in Data | Q3: =4994-COUNTBLANK(L7:L5000) -> 66 | V3: Total Sequences in Block Data | W3: =COUNTA(L7:L17) -> 11 | AA3: Total Sequences in Block Data | AB3: =COUNTA(L18:L28) -> 11 | AF3: Total Sequences in Block Data | AG3: =COUNTA(L29:L39) -> 11 | AK3: Total Sequences in Block Data | AL3: =COUNTA(L40:L50) -> 11 | AP3: Total Sequences in Block Data | AQ3: =COUNTA(L51:L61) -> 11 | AU3: Total Sequences in Block Data | AV3: =COUNTA(L62:L72) -> 11
P4: Total Sequences in Summary | Q4: =SUM(O7:O14) -> 66 | V4: Total Sequences in Block Summary | W4: =SUM(U7:U14) -> 11 | AA4: Total Sequences in Block Summary | AB4: =SUM(Z7:Z14) -> 11 | AF4: Total Sequences in Block Summary | AG4: =SUM(AE7:AE14) -> 11 | AK4: Total Sequences in Block Summary | AL4: =SUM(AJ7:AJ14) -> 11 | AP4: Total Sequences in Block Summary | AQ4: =SUM(AO7:AO14) -> 11 | AU4: Total Sequences in Block Summary | AV4: =SUM(AT7:AT14) -> 11
T5: Block 1 | Y5: Block 2 | AD5: Block 3 | AI5: Block 4 | AN5: Block 5 | AS5: Block 6
A6: Sequence Component 1 | B6: Time 1 | C6: Sequence Component 2 | D6: Time 2 | E6: Sequence Component 3 | F6: Time 3 | G6: Sequence Component 4 | H6: Time 4 | I6: Sequence Component 5 | J6: Time 5 | K6: Correct? 0=No 1=Yes | L6: Sequence | N6: Frequency | P6: Relative Frequency | Q6: Variability | T6: Frequency | V6: Relative Frequency | W6: Variability | Y6: Frequency | AA6: Relative Frequency | AB6: Variability | AD6: Frequency | AF6: Relative Frequency | AG6: Variability | AI6: Frequency | AK6: Relative Frequency | AL6: Variability | AN6: Frequency | AP6: Relative Frequency | AQ6: Variability | AS6: Frequency | AU6: Relative Frequency | AV6: Variability
A7: 11 | B7: 16 | C7: 21 | D7: 27 | K7: 0 | L7: 12 | N7: 11 | O7: =COUNTIF($L$7:$L$500,N7) -> 6 | P7: =O7/$Q$4 -> 0.09090909091 | Q7: =IF(P7=0,0,(P7*((LOG(P7))/LOG(2)))) -> -0.3144937835 | T7: =N7 -> 11 | U7: =COUNTIF(L7:L17,T7) -> 0 | V7: =U7/(W4-U8) -> 0 | W7: =IF(V7=0,0,(V7*((LOG(V7))/LOG(2)))) -> 0 | Y7: =N7 -> 11 | Z7: =COUNTIF(L18:L28,Y7) -> 0 | AA7: =Z7/(AB4-Z8) -> 0 | AB7: =IF(AA7=0,0,(AA7*((LOG(AA7))/LOG(2)))) -> 0 | AD7: =N7 -> 11 | AE7: =COUNTIF(L29:L39,AD7) -> 0 | AF7: =AE7/(AG4-AE8) -> 0 | AG7: =IF(AF7=0,0,(AF7*((LOG(AF7))/LOG(2)))) -> 0 | AI7: =N7 -> 11 | AJ7: =COUNTIF(L40:L50,AI7) -> 0 | AK7: =AJ7/(AL4-AJ8) -> 0 | AL7: =IF(AK7=0,0,(AK7*((LOG(AK7))/LOG(2)))) -> 0 | AN7: =N7 -> 11 | AO7: =COUNTIF(L51:L61,AN7) -> 2 | AP7: =AO7/(AQ4-AO8) -> 1 | AQ7: =IF(AP7=0,0,(AP7*((LOG(AP7))/LOG(2)))) -> 0 | AS7: =N7 -> 11 | AT7: =COUNTIF(L62:L72,AS7) -> 4 | AU7: =AT7/(AV4-AT8) -> 0.8 | AV7: =IF(AU7=0,0,(AU7*((LOG(AU7))/LOG(2)))) -> -0.2575424759
A8: 22 | B8: 121 | C8: 23 | D8: 142 | K8: 0 | L8: 22 | N8: 12 | O8: =COUNTIF($L$7:$L$500,N8) -> 40 | P8: =O8/$Q$4 -> 0.6060606061 | Q8: =IF(P8=0,0,(P8*((LOG(P8))/LOG(2)))) -> -0.4378581966 | T8: =N8 -> 12 | U8: =COUNTIF(L7:L17,T8) -> 5 | Y8: =N8 -> 12 | Z8: =COUNTIF(L18:L28,Y8) -> 7 | AD8: =N8 -> 12 | AE8: =COUNTIF(L29:L39,AD8) -> 6 | AI8: =N8 -> 12 | AJ8: =COUNTIF(L40:L50,AI8) -> 7 | AN8: =N8 -> 12 | AO8: =COUNTIF(L51:L61,AN8) -> 9 | AS8: =N8 -> 12 | AT8: =COUNTIF(L62:L72,AS8) -> 6
A9: 22 | B9: 269 | C9: 23 | D9: 281 | K9: 0 | L9: 22 | N9: 21 | O9: =COUNTIF($L$7:$L$500,N9) -> 17 | P9: =O9/$Q$4 -> 0.2575757576 | Q9: =IF(P9=0,0,(P9*((LOG(P9))/LOG(2)))) -> -0.5040580565 | T9: =N9 -> 21 | U9: =COUNTIF(L7:L17,T9) -> 4 | V9: =U9/(W4-U8) -> 0.6666666667 | W9: =IF(V9=0,0,(V9*((LOG(V9))/LOG(2)))) -> -0.3899750005 | Y9: =N9 -> 21 | Z9: =COUNTIF(L18:L28,Y9) -> 4 | AA9: =Z9/(AB4-Z8) -> 1 | AB9: =IF(AA9=0,0,(AA9*((LOG(AA9))/LOG(2)))) -> 0 | AD9: =N9 -> 21 | AE9: =COUNTIF(L29:L39,AD9) -> 4 | AF9: =AE9/(AG4-AE8) -> 0.8 | AG9: =IF(AF9=0,0,(AF9*((LOG(AF9))/LOG(2)))) -> -0.2575424759 | AI9: =N9 -> 21 | AJ9: =COUNTIF(L40:L50,AI9) -> 4 | AK9: =AJ9/(AL4-AJ8) -> 1 | AL9: =IF(AK9=0,0,(AK9*((LOG(AK9))/LOG(2)))) -> 0 | AN9: =N9 -> 21 | AO9: =COUNTIF(L51:L61,AN9) -> 0 | AP9: =AO9/(AQ4-AO8) -> 0 | AQ9: =IF(AP9=0,0,(AP9*((LOG(AP9))/LOG(2)))) -> 0 | AS9: =N9 -> 21 | AT9: =COUNTIF(L62:L72,AS9) -> 1 | AU9: =AT9/(AV4-AT8) -> 0.2 | AV9: =IF(AU9=0,0,(AU9*((LOG(AU9))/LOG(2)))) -> -0.464385619
A10: 22 | B10: 381 | C10: 14 | D10: 390 | K10: 0 | L10: 21 | N10: 22 | O10: =COUNTIF($L$7:$L$500,N10) -> 3 | P10: =O10/$Q$4 -> 0.04545454545 | Q10: =IF(P10=0,0,(P10*((LOG(P10))/LOG(2)))) -> -0.2027014372 | T10: =N10 -> 22 | U10: =COUNTIF(L7:L17,T10) -> 2 | V10: =U10/(W4-U8) -> 0.3333333333 | W10: =IF(V10=0,0,(V10*((LOG(V10))/LOG(2)))) -> -0.5283208336 | Y10: =N10 -> 22 | Z10: =COUNTIF(L18:L28,Y10) -> 0 | AA10: =Z10/(AB4-Z8) -> 0 | AB10: =IF(AA10=0,0,(AA10*((LOG(AA10))/LOG(2)))) -> 0 | AD10: =N10 -> 22 | AE10: =COUNTIF(L29:L39,AD10) -> 1 | AF10: =AE10/(AG4-AE8) -> 0.2 | AG10: =IF(AF10=0,0,(AF10*((LOG(AF10))/LOG(2)))) -> -0.464385619 | AI10: =N10 -> 22 | AJ10: =COUNTIF(L40:L50,AI10) -> 0 | AK10: =AJ10/(AL4-AJ8) -> 0 | AL10: =IF(AK10=0,0,(AK10*((LOG(AK10))/LOG(2)))) -> 0 | AN10: =N10 -> 22 | AO10: =COUNTIF(L51:L61,AN10) -> 0 | AP10: =AO10/(AQ4-AO8) -> 0 | AQ10: =IF(AP10=0,0,(AP10*((LOG(AP10))/LOG(2)))) -> 0 | AS10: =N10 -> 22 | AT10: =COUNTIF(L62:L72,AS10) -> 0 | AU10: =AT10/(AV4-AT8) -> 0 | AV10: =IF(AU10=0,0,(AU10*((LOG(AU10))/LOG(2)))) -> 0
A11: 11 | B11: 506 | C11: 21 | D11: 517 | K11: 0 | L11: 12 | T11: =N11 -> 0 | U11: =COUNTIF(L7:L17,T11) -> 0 | V11: =U11/(W4-U8) -> 0 | W11: =IF(V11=0,0,(V11*((LOG(V11))/LOG(2)))) -> 0 | Y11: =N11 -> 0 | Z11: =COUNTIF(L18:L28,Y11) -> 0 | AA11: =Z11/(AB4-Z8) -> 0 | AB11: =IF(AA11=0,0,(AA11*((LOG(AA11))/LOG(2)))) -> 0 | AD11: =N11 -> 0 | AE11: =COUNTIF(L29:L39,AD11) -> 0 | AF11: =AE11/(AG4-AE8) -> 0 | AG11: =IF(AF11=0,0,(AF11*((LOG(AF11))/LOG(2)))) -> 0 | AI11: =N11 -> 0 | AJ11: =COUNTIF(L40:L50,AI11) -> 0 | AK11: =AJ11/(AL4-AJ8) -> 0 | AL11: =IF(AK11=0,0,(AK11*((LOG(AK11))/LOG(2)))) -> 0 | AN11: =N11 -> 0 | AO11: =COUNTIF(L51:L61,AN11) -> 0 | AP11: =AO11/(AQ4-AO8) -> 0 | AQ11: =IF(AP11=0,0,(AP11*((LOG(AP11))/LOG(2)))) -> 0 | AS11: =N11 -> 0 | AT11: =COUNTIF(L62:L72,AS11) -> 0 | AU11: =AT11/(AV4-AT8) -> 0 | AV11: =IF(AU11=0,0,(AU11*((LOG(AU11))/LOG(2)))) -> 0
A12: 22 | B12: 611 | C12: 14 | D12: 635 | K12: 0 | L12: 21 | T12: =N12 -> 0 | U12: =COUNTIF(L7:L17,T12) -> 0 | V12: =U12/(W4-U8) -> 0 | W12: =IF(V12=0,0,(V12*((LOG(V12))/LOG(2)))) -> 0 | Y12: =N12 -> 0 | Z12: =COUNTIF(L18:L28,Y12) -> 0 | AA12: =Z12/(AB4-Z8) -> 0 | AB12: =IF(AA12=0,0,(AA12*((LOG(AA12))/LOG(2)))) -> 0 | AD12: =N12 -> 0 | AE12: =COUNTIF(L29:L39,AD12) -> 0 | AF12: =AE12/(AG4-AE8) -> 0 | AG12: =IF(AF12=0,0,(AF12*((LOG(AF12))/LOG(2)))) -> 0 | AI12: =N12 -> 0 | AJ12: =COUNTIF(L40:L50,AI12) -> 0 | AK12: =AJ12/(AL4-AJ8) -> 0 | AL12: =IF(AK12=0,0,(AK12*((LOG(AK12))/LOG(2)))) -> 0 | AN12: =N12 -> 0 | AO12: =COUNTIF(L51:L61,AN12) -> 0 | AP12: =AO12/(AQ4-AO8) -> 0 | AQ12: =IF(AP12=0,0,(AP12*((LOG(AP12))/LOG(2)))) -> 0 | AS12: =N12 -> 0 | AT12: =COUNTIF(L62:L72,AS12) -> 0 | AU12: =AT12/(AV4-AT8) -> 0 | AV12: =IF(AU12=0,0,(AU12*((LOG(AU12))/LOG(2)))) -> 0
A13: 11 | B13: 761 | C13: 21 | D13: 774 | K13: 0 | L13: 12 | T13: =N13 -> 0 | U13: =COUNTIF(L7:L17,T13) -> 0 | V13: =U13/(W4-U8) -> 0 | W13: =IF(V13=0,0,(V13*((LOG(V13))/LOG(2)))) -> 0 | Y13: =N13 -> 0 | Z13: =COUNTIF(L18:L28,Y13) -> 0 | AA13: =Z13/(AB4-Z8) -> 0 | AB13: =IF(AA13=0,0,(AA13*((LOG(AA13))/LOG(2)))) -> 0 | AD13: =N13 -> 0 | AE13: =COUNTIF(L29:L39,AD13) -> 0 | AF13: =AE13/(AG4-AE8) -> 0 | AG13: =IF(AF13=0,0,(AF13*((LOG(AF13))/LOG(2)))) -> 0 | AI13: =N13 -> 0 | AJ13: =COUNTIF(L40:L50,AI13) -> 0 | AK13: =AJ13/(AL4-AJ8) -> 0 | AL13: =IF(AK13=0,0,(AK13*((LOG(AK13))/LOG(2)))) -> 0 | AN13: =N13 -> 0 | AO13: =COUNTIF(L51:L61,AN13) -> 0 | AP13: =AO13/(AQ4-AO8) -> 0 | AQ13: =IF(AP13=0,0,(AP13*((LOG(AP13))/LOG(2)))) -> 0 | AS13: =N13 -> 0 | AT13: =COUNTIF(L62:L72,AS13) -> 0 | AU13: =AT13/(AV4-AT8) -> 0 | AV13: =IF(AU13=0,0,(AU13*((LOG(AU13))/LOG(2)))) -> 0
A14: 22 | B14: 866 | C14: 14 | D14: 878 | K14: 0 | L14: 21 | T14: =N14 -> 0 | U14: =COUNTIF(L7:L17,T14) -> 0 | V14: =U14/(W4-U8) -> 0 | W14: =IF(V14=0,0,(V14*((LOG(V14))/LOG(2)))) -> 0 | Y14: =N14 -> 0 | Z14: =COUNTIF(L18:L28,Y14) -> 0 | AA14: =Z14/(AB4-Z8) -> 0 | AB14: =IF(AA14=0,0,(AA14*((LOG(AA14))/LOG(2)))) -> 0 | AD14: =N14 -> 0 | AE14: =COUNTIF(L29:L39,AD14) -> 0 | AF14: =AE14/(AG4-AE8) -> 0 | AG14: =IF(AF14=0,0,(AF14*((LOG(AF14))/LOG(2)))) -> 0 | AI14: =N14 -> 0 | AJ14: =COUNTIF(L40:L50,AI14) -> 0 | AK14: =AJ14/(AL4-AJ8) -> 0 | AL14: =IF(AK14=0,0,(AK14*((LOG(AK14))/LOG(2)))) -> 0 | AN14: =N14 -> 0 | AO14: =COUNTIF(L51:L61,AN14) -> 0 | AP14: =AO14/(AQ4-AO8) -> 0 | AQ14: =IF(AP14=0,0,(AP14*((LOG(AP14))/LOG(2)))) -> 0 | AS14: =N14 -> 0 | AT14: =COUNTIF(L62:L72,AS14) -> 0 | AU14: =AT14/(AV4-AT8) -> 0 | AV14: =IF(AU14=0,0,(AU14*((LOG(AU14))/LOG(2)))) -> 0
A15: 11 | B15: 994 | C15: 21 | D15: 1005 | K15: 0 | L15: 12 | P15: =SUM(P7:P14) -> 1 | Q15: =-SUM(Q7:Q14) -> 1.459111474 | V15: =SUM(V7:V14) -> 1 | W15: =-SUM(W7:W14) -> 0.9182958341 | AA15: =SUM(AA7:AA14) -> 1 | AB15: =-SUM(AB7:AB14) -> 0 | AF15: =SUM(AF7:AF14) -> 1 | AG15: =-SUM(AG7:AG14) -> 0.7219280949 | AK15: =SUM(AK7:AK14) -> 1 | AL15: =-SUM(AL7:AL14) -> 0 | AP15: =SUM(AP7:AP14) -> 1 | AQ15: =-SUM(AQ7:AQ14) -> 0 | AU15: =SUM(AU7:AU14) -> 1 | AV15: =-SUM(AV7:AV14) -> 0.7219280949
A16: 11 | B16: 1109 | C16: 21 | D16: 1121 | K16: 0 | L16: 12 | P16: U= | Q16: =Q15/(LOG(Q4)/LOG(2)) -> 0.2413991287 | V16: U1= | W16: =W15/(LOG(W4)/LOG(2)) -> 0.2654470258 | AA16: U2= | AB16: =AB15/(LOG(AB4)/LOG(2)) -> 0 | AF16: U3= | AG16: =AG15/(LOG(AG4)/LOG(2)) -> 0.2086840194 | AK16: U4= | AL16: =AL15/(LOG(AL4)/LOG(2)) -> 0 | AP16: U5= | AQ16: =AQ15/(LOG(AQ4)/LOG(2)) -> 0 | AU16: U6= | AV16: =AV15/(LOG(AV4)/LOG(2)) -> 0.2086840194
A17: 22 | B17: 1227 | C17: 14 | D17: 1245 | K17: 0 | L17: 21
A18: 11 | B18: 1356 | C18: 21 | D18: 1368 | K18: 0 | L18: 12
A19: 11 | B19: 1469 | C19: 21 | D19: 1482 | K19: 0 | L19: 12 | N19: Total Target Seq
A20: 11 | B20: 1580 | C20: 21 | D20: 1592 | K20: 0 | L20: 12 | N20: =COUNTIF(L7:L72,G3) -> 40 | P20: 11 | Q20: 11 | R20: 11 | S20: 11 | T20: 11 | U20: 11
A21: 22 | B21: 1688 | C21: 14 | D21: 1698 | K21: 0 | L21: 21 | P21: % of reinforcement given in 6 equal intervals based on number of trials
A22: 11 | B22: 1811 | C22: 21 | D22: 1823 | K22: 0 | L22: 12 | P22: %_1 | Q22: %_2 | R22: %_3 | S22: %_4 | T22: %_5 | U22: %_6
A23: 22 | B23: 1916 | C23: 14 | D23: 1925 | K23: 0 | L23: 21 | O23: target sequence | P23: =$G$3 -> 12 | Q23: =$G$3 -> 12 | R23: =$G$3 -> 12 | S23: =$G$3 -> 12 | T23: =$G$3 -> 12 | U23: =$G$3 -> 12
A24: 22 | B24: 2026 | C24: 14 | D24: 2042 | K24: 0 | L24: 21 | O24: total reinforcement | P24: =U8 -> 5 | Q24: =Z8 -> 7 | R24: =AE8 -> 6 | S24: =AJ8 -> 7 | T24: =AO8 -> 9 | U24: =AT8 -> 6
A25: 11 | B25: 2159 | C25: 21 | D25: 2171 | K25: 0 | L25: 12 | O25: % target
A26: 11 | B26: 2275 | C26: 21 | D26: 2287 | K26: 0 | L26: 12 | O26: CCRF
A27: 11 | B27: 2397 | C27: 21 | D27: 2409 | K27: 0 | L27: 12 | O27: % CCRf
A28: 22 | B28: 2497 | C28: 14 | D28: 2509 | K28: 0 | L28: 21 | O28: average response rate | P28: =D17/P20 -> 113.1818182 | Q28: =(D28-D17)/Q20 -> 114.9090909 | R28: =(D39-D28)/R20 -> 121.0909091 | S28: =(D50-D39)/S20 -> 114.4545455 | T28: =(D61-D50)/T20 -> 116.2727273 | U28: =(D72-D61)/U20 -> 119.4545455
A29: 22 | B29: 2607 | C29: 14 | D29: 2623 | K29: 0 | L29: 21
A30: 11 | B30: 2735 | C30: 21 | D30: 2746 | K30: 0 | L30: 12
A31: 22 | B31: 2840 | C31: 14 | D31: 2854 | K31: 0 | L31: 21
A32: 22 | B32: 2954 | C32: 23 | D32: 2983 | K32: 0 | L32: 22
A33: 22 | B33: 3083 | C33: 14 | D33: 3094 | K33: 0 | L33: 21
A34: 11 | B34: 3226 | C34: 21 | D34: 3238 | K34: 0 | L34: 12
A35: 11 | B35: 3353 | C35: 21 | D35: 3365 | K35: 0 | L35: 12
A36: 11 | B36: 3480 | C36: 21 | D36: 3492 | K36: 0 | L36: 12
A37: 22 | B37: 3581 | C37: 14 | D37: 3597 | K37: 0 | L37: 21
A38: 11 | B38: 3710 | C38: 21 | D38: 3722 | K38: 0 | L38: 12
A39: 11 | B39: 3829 | C39: 21 | D39: 3841 | K39: 0 | L39: 12
A40: 22 | B40: 3929 | C40: 14 | D40: 3939 | K40: 0 | L40: 21
A41: 22 | B41: 4041 | C41: 14 | D41: 4055 | K41: 0 | L41: 21
A42: 11 | B42: 4171 | C42: 21 | D42: 4182 | K42: 0 | L42: 12
A43: 11 | B43: 4293 | C43: 21 | D43: 4305 | K43: 0 | L43: 12
A44: 11 | B44: 4403 | C44: 21 | D44: 4415 | K44: 0 | L44: 12
A45: 11 | B45: 4538 | C45: 21 | D45: 4549 | K45: 0 | L45: 12
A46: 22 | B46: 4639 | C46: 14 | D46: 4647 | K46: 0 | L46: 21
A47: 11 | B47: 4763 | C47: 21 | D47: 4774 | K47: 0 | L47: 12
A48: 22 | B48: 4863 | C48: 14 | D48: 4871 | K48: 0 | L48: 21
A49: 11 | B49: 4979 | C49: 21 | D49: 4990 | K49: 0 | L49: 12
A50: 11 | B50: 5087 | C50: 21 | D50: 5100 | K50: 0 | L50: 12
A51: 11 | B51: 5200 | C51: 21 | D51: 5212 | K51: 0 | L51: 12
A52: 11 | B52: 5317 | C52: 21 | D52: 5328 | K52: 0 | L52: 12
A53: 11 | B53: 5432 | C53: 21 | D53: 5444 | K53: 0 | L53: 12
A54: 11 | B54: 5545 | C54: 21 | D54: 5556 | K54: 0 | L54: 12
A55: 11 | B55: 5652 | C55: 12 | D55: 5669 | K55: 0 | L55: 11
A56: 11 | B56: 5779 | C56: 21 | D56: 5790 | K56: 0 | L56: 12
A57: 11 | B57: 5893 | C57: 21 | D57: 5903 | K57: 0 | L57: 12
A58: 11 | B58: 6002 | C58: 21 | D58: 6013 | K58: 0 | L58: 12
A59: 11 | B59: 6113 | C59: 12 | D59: 6145 | K59: 0 | L59: 11
A60: 11 | B60: 6253 | C60: 21 | D60: 6264 | K60: 0 | L60: 12
A61: 11 | B61: 6368 | C61: 21 | D61: 6379 | K61: 0 | L61: 12
A62: 11 | B62: 6480 | C62: 12 | D62: 6490 | K62: 0 | L62: 11
A63: 11 | B63: 6598 | C63: 21 | D63: 6607 | K63: 0 | L63: 12
A64: 11 | B64: 6707 | C64: 12 | D64: 6738 | K64: 0 | L64: 11
A65: 11 | B65: 6846 | C65: 12 | D65: 6882 | K65: 0 | L65: 11
A66: 11 | B66: 7000 | C66: 21 | D66: 7012 | K66: 0 | L66: 12
A67: 11 | B67: 7110 | C67: 21 | D67: 7121 | K67: 0 | L67: 12
A68: 11 | B68: 7226 | C68: 21 | D68: 7237 | K68: 0 | L68: 12
A69: 11 | B69: 7338 | C69: 21 | D69: 7349 | K69: 0 | L69: 12
A70: 11 | B70: 7446 | C70: 12 | D70: 7456 | K70: 0 | L70: 11
A71: 22 | B71: 7557 | C71: 14 | D71: 7569 | K71: 0 | L71: 21
A72: 11 | B72: 7682 | C72: 21 | D72: 7693 | K72: 1 | L72: 12

Sheet !L813A10.055
A1: Report for:!L813A10.055
A2: Date: | B2: <date>
A3: Hen: | B3: <hen> | F3: Correct Sequence | G3: =Start!J2 -> 12 | P3: Total Sequences in Data | Q3: =4994-COUNTBLANK(L7:L5000) -> 62 | V3: Total Sequences in Block Data | W3: =COUNTA(L7:L16) -> 10 | AA3: Total Sequences in Block Data | AB3: =COUNTA(L17:L27) -> 11 | AF3: Total Sequences in Block Data | AG3: =COUNTA(L28:L37) -> 10 | AK3: Total Sequences in Block Data | AL3: =COUNTA(L38:L47) -> 10 | AP3: Total Sequences in Block Data | AQ3: =COUNTA(L48:L58) -> 11 | AU3: Total Sequences in Block Data | AV3: =COUNTA(L59:L68) -> 10
P4: Total Sequences in Summary | Q4: =SUM(O7:O14) -> 62 | V4: Total Sequences in Block Summary | W4: =SUM(U7:U14) -> 10 | AA4: Total Sequences in Block Summary | AB4: =SUM(Z7:Z14) -> 11 | AF4: Total Sequences in Block Summary | AG4: =SUM(AE7:AE14) -> 10 | AK4: Total Sequences in Block Summary | AL4: =SUM(AJ7:AJ14) -> 10 | AP4: Total Sequences in Block Summary | AQ4: =SUM(AO7:AO14) -> 11 | AU4: Total Sequences in Block Summary | AV4: =SUM(AT7:AT14) -> 10
T5: Block 1 | Y5: Block 2 | AD5: Block 3 | AI5: Block 4 | AN5: Block 5 | AS5: Block 6
A6: Sequence Component 1 | B6: Time 1 | C6: Sequence Component 2 | D6: Time 2 | E6: Sequence Component 3 | F6: Time 3 | G6: Sequence Component 4 | H6: Time 4 | I6: Sequence Component 5 | J6: Time 5 | K6: Correct? 0=No 1=Yes | L6: Sequence | N6: Frequency | P6: Relative Frequency | Q6: Variability | T6: Frequency | V6: Relative Frequency | W6: Variability | Y6: Frequency | AA6: Relative Frequency | AB6: Variability | AD6: Frequency | AF6: Relative Frequency | AG6: Variability | AI6: Frequency | AK6: Relative Frequency | AL6: Variability | AN6: Frequency | AP6: Relative Frequency | AQ6: Variability | AS6: Frequency | AU6: Relative Frequency | AV6: Variability
A7: 11 | B7: 16 | C7: 21 | D7: 26 | K7: 0 | L7: 12 | N7: 11 | O7: =COUNTIF($L$7:$L$500,N7) -> 3 | P7: =O7/$Q$4 -> 0.04838709677 | Q7: =IF(P7=0,0,(P7*((LOG(P7))/LOG(2)))) -> -0.2114145392 | T7: =N7 -> 11 | U7: =COUNTIF(L7:L16,T7) -> 0 | V7: =U7/(W4-U8) -> 0 | W7: =IF(V7=0,0,(V7*((LOG(V7))/LOG(2)))) -> 0 | Y7: =N7 -> 11 | Z7: =COUNTIF(L17:L27,Y7) -> 0 | AA7: =Z7/(AB4-Z8) -> 0 | AB7: =IF(AA7=0,0,(AA7*((LOG(AA7))/LOG(2)))) -> 0 | AD7: =N7 -> 11 | AE7: =COUNTIF(L28:L37,AD7) -> 0 | AF7: =AE7/(AG4-AE8) -> 0 | AG7: =IF(AF7=0,0,(AF7*((LOG(AF7))/LOG(2)))) -> 0 | AI7: =N7 -> 11 | AJ7: =COUNTIF(L38:L47,AI7) -> 0 | AK7: =AJ7/(AL4-AJ8) -> 0 | AL7: =IF(AK7=0,0,(AK7*((LOG(AK7))/LOG(2)))) -> 0 | AN7: =N7 -> 11 | AO7: =COUNTIF(L48:L58,AN7) -> 1 | AP7: =AO7/(AQ4-AO8) -> 0.25 | AQ7: =IF(AP7=0,0,(AP7*((LOG(AP7))/LOG(2)))) -> -0.5 | AS7: =N7 -> 11 | AT7: =COUNTIF(L59:L68,AS7) -> 2 | AU7: =AT7/(AV4-AT8) -> 0.5 | AV7: =IF(AU7=0,0,(AU7*((LOG(AU7))/LOG(2)))) -> -0.5
A8: 22 | B8: 115 | C8: 23 | D8: 136 | K8: 0 | L8: 22 | N8: 12 | O8: =COUNTIF($L$7:$L$500,N8) -> 40 | P8: =O8/$Q$4 -> 0.6451612903 | Q8: =IF(P8=0,0,(P8*((LOG(P8))/LOG(2)))) -> -0.4079149777 | T8: =N8 -> 12 | U8: =COUNTIF(L7:L16,T8) -> 8 | Y8: =N8 -> 12 | Z8: =COUNTIF(L17:L27,Y8) -> 7 | AD8: =N8 -> 12 | AE8: =COUNTIF(L28:L37,AD8) -> 7 | AI8: =N8 -> 12 | AJ8: =COUNTIF(L38:L47,AI8) -> 5 | AN8: =N8 -> 12 | AO8: =COUNTIF(L48:L58,AN8) -> 7 | AS8: =N8 -> 12 | AT8: =COUNTIF(L59:L68,AS8) -> 6
A9: 11 | B9: 246 | C9: 21 | D9: 257 | K9: 0 | L9: 12 | N9: 21 | O9: =COUNTIF($L$7:$L$500,N9) -> 16 | P9: =O9/$Q$4 -> 0.2580645161 | Q9: =IF(P9=0,0,(P9*((LOG(P9))/LOG(2)))) -> -0.5043087253 | T9: =N9 -> 21 | U9: =COUNTIF(L7:L16,T9) -> 1 | V9: =U9/(W4-U8) -> 0.5 | W9: =IF(V9=0,0,(V9*((LOG(V9))/LOG(2)))) -> -0.5 | Y9: =N9 -> 21 | Z9: =COUNTIF(L17:L27,Y9) -> 4 | AA9: =Z9/(AB4-Z8) -> 1 | AB9: =IF(AA9=0,0,(AA9*((LOG(AA9))/LOG(2)))) -> 0 | AD9: =N9 -> 21 | AE9: =COUNTIF(L28:L37,AD9) -> 3 | AF9: =AE9/(AG4-AE8) -> 1 | AG9: =IF(AF9=0,0,(AF9*((LOG(AF9))/LOG(2)))) -> 0 | AI9: =N9 -> 21 | AJ9: =COUNTIF(L38:L47,AI9) -> 4 | AK9: =AJ9/(AL4-AJ8) -> 0.8 | AL9: =IF(AK9=0,0,(AK9*((LOG(AK9))/LOG(2)))) -> -0.2575424759 | AN9: =N9 -> 21 | AO9: =COUNTIF(L48:L58,AN9) -> 2 | AP9: =AO9/(AQ4-AO8) -> 0.5 | AQ9: =IF(AP9=0,0,(AP9*((LOG(AP9))/LOG(2)))) -> -0.5 | AS9: =N9 -> 21 | AT9: =COUNTIF(L59:L68,AS9) -> 2 | AU9: =AT9/(AV4-AT8) -> 0.5 | AV9: =IF(AU9=0,0,(AU9*((LOG(AU9))/LOG(2)))) -> -0.5
A10: 22 | B10: 345 | C10: 14 | D10: 355 | K10: 0 | L10: 21 | N10: 22 | O10: =COUNTIF($L$7:$L$500,N10) -> 3 | P10: =O10/$Q$4 -> 0.04838709677 | Q10: =IF(P10=0,0,(P10*((LOG(P10))/LOG(2)))) -> -0.2114145392 | T10: =N10 -> 22 | U10: =COUNTIF(L7:L16,T10) -> 1 | V10: =U10/(W4-U8) -> 0.5 | W10: =IF(V10=0,0,(V10*((LOG(V10))/LOG(2)))) -> -0.5 | Y10: =N10 -> 22 | Z10: =COUNTIF(L17:L27,Y10) -> 0 | AA10: =Z10/(AB4-Z8) -> 0 | AB10: =IF(AA10=0,0,(AA10*((LOG(AA10))/LOG(2)))) -> 0 | AD10: =N10 -> 22 | AE10: =COUNTIF(L28:L37,AD10) -> 0 | AF10: =AE10/(AG4-AE8) -> 0 | AG10: =IF(AF10=0,0,(AF10*((LOG(AF10))/LOG(2)))) -> 0 | AI10: =N10 -> 22 | AJ10: =COUNTIF(L38:L47,AI10) -> 1 | AK10: =AJ10/(AL4-AJ8) -> 0.2 | AL10: =IF(AK10=0,0,(AK10*((LOG(AK10))/LOG(2)))) -> -0.464385619 | AN10: =N10 -> 22 | AO10: =COUNTIF(L48:L58,AN10) -> 1 | AP10: =AO10/(AQ4-AO8) -> 0.25 | AQ10: =IF(AP10=0,0,(AP10*((LOG(AP10))/LOG(2)))) -> -0.5 | AS10: =N10 -> 22 | AT10: =COUNTIF(L59:L68,AS10) -> 0 | AU10: =AT10/(AV4-AT8) -> 0 | AV10: =IF(AU10=0,0,(AU10*((LOG(AU10))/LOG(2)))) -> 0
A11: 11 | B11: 472 | C11: 21 | D11: 483 | K11: 0 | L11: 12 | T11: =N11 -> 0 | U11: =COUNTIF(L7:L16,T11) -> 0 | V11: =U11/(W4-U8) -> 0 | W11: =IF(V11=0,0,(V11*((LOG(V11))/LOG(2)))) -> 0 | Y11: =N11 -> 0 | Z11: =COUNTIF(L17:L27,Y11) -> 0 | AA11: =Z11/(AB4-Z8) -> 0 | AB11: =IF(AA11=0,0,(AA11*((LOG(AA11))/LOG(2)))) -> 0 | AD11: =N11 -> 0 | AE11: =COUNTIF(L28:L37,AD11) -> 0 | AF11: =AE11/(AG4-AE8) -> 0 | AG11: =IF(AF11=0,0,(AF11*((LOG(AF11))/LOG(2)))) -> 0 | AI11: =N11 -> 0 | AJ11: =COUNTIF(L38:L47,AI11) -> 0 | AK11: =AJ11/(AL4-AJ8) -> 0 | AL11: =IF(AK11=0,0,(AK11*((LOG(AK11))/LOG(2)))) -> 0 | AN11: =N11 -> 0 | AO11: =COUNTIF(L48:L58,AN11) -> 0 | AP11: =AO11/(AQ4-AO8) -> 0 | AQ11: =IF(AP11=0,0,(AP11*((LOG(AP11))/LOG(2)))) -> 0 | AS11: =N11 -> 0 | AT11: =COUNTIF(L59:L68,AS11) -> 0 | AU11: =AT11/(AV4-AT8) -> 0 | AV11: =IF(AU11=0,0,(AU11*((LOG(AU11))/LOG(2)))) -> 0
A12: 11 | B12: 593 | C12: 21 | D12: 604 | K12: 0 | L12: 12 | T12: =N12 -> 0 | U12: =COUNTIF(L7:L16,T12) -> 0 | V12: =U12/(W4-U8) -> 0 | W12: =IF(V12=0,0,(V12*((LOG(V12))/LOG(2)))) -> 0 | Y12: =N12 -> 0 | Z12: =COUNTIF(L17:L27,Y12) -> 0 | AA12: =Z12/(AB4-Z8) -> 0 | AB12: =IF(AA12=0,0,(AA12*((LOG(AA12))/LOG(2)))) -> 0 | AD12: =N12 -> 0 | AE12: =COUNTIF(L28:L37,AD12) -> 0 | AF12: =AE12/(AG4-AE8) -> 0 | AG12: =IF(AF12=0,0,(AF12*((LOG(AF12))/LOG(2)))) -> 0 | AI12: =N12 -> 0 | AJ12: =COUNTIF(L38:L47,AI12) -> 0 | AK12: =AJ12/(AL4-AJ8) -> 0 | AL12: =IF(AK12=0,0,(AK12*((LOG(AK12))/LOG(2)))) -> 0 | AN12: =N12 -> 0 | AO12: =COUNTIF(L48:L58,AN12) -> 0 | AP12: =AO12/(AQ4-AO8) -> 0 | AQ12: =IF(AP12=0,0,(AP12*((LOG(AP12))/LOG(2)))) -> 0 | AS12: =N12 -> 0 | AT12: =COUNTIF(L59:L68,AS12) -> 0 | AU12: =AT12/(AV4-AT8) -> 0 | AV12: =IF(AU12=0,0,(AU12*((LOG(AU12))/LOG(2)))) -> 0
A13: 11 | B13: 701 | C13: 21 | D13: 712 | K13: 0 | L13: 12 | T13: =N13 -> 0 | U13: =COUNTIF(L7:L16,T13) -> 0 | V13: =U13/(W4-U8) -> 0 | W13: =IF(V13=0,0,(V13*((LOG(V13))/LOG(2)))) -> 0 | Y13: =N13 -> 0 | Z13: =COUNTIF(L17:L27,Y13) -> 0 | AA13: =Z13/(AB4-Z8) -> 0 | AB13: =IF(AA13=0,0,(AA13*((LOG(AA13))/LOG(2)))) -> 0 | AD13: =N13 -> 0 | AE13: =COUNTIF(L28:L37,AD13) -> 0 | AF13: =AE13/(AG4-AE8) -> 0 | AG13: =IF(AF13=0,0,(AF13*((LOG(AF13))/LOG(2)))) -> 0 | AI13: =N13 -> 0 | AJ13: =COUNTIF(L38:L47,AI13) -> 0 | AK13: =AJ13/(AL4-AJ8) -> 0 | AL13: =IF(AK13=0,0,(AK13*((LOG(AK13))/LOG(2)))) -> 0 | AN13: =N13 -> 0 | AO13: =COUNTIF(L48:L58,AN13) -> 0 | AP13: =AO13/(AQ4-AO8) -> 0 | AQ13: =IF(AP13=0,0,(AP13*((LOG(AP13))/LOG(2)))) -> 0 | AS13: =N13 -> 0 | AT13: =COUNTIF(L59:L68,AS13) -> 0 | AU13: =AT13/(AV4-AT8) -> 0 | AV13: =IF(AU13=0,0,(AU13*((LOG(AU13))/LOG(2)))) -> 0
A14: 11 | B14: 811 | C14: 21 | D14: 823 | K14: 0 | L14: 12 | T14: =N14 -> 0 | U14: =COUNTIF(L7:L16,T14) -> 0 | V14: =U14/(W4-U8) -> 0 | W14: =IF(V14=0,0,(V14*((LOG(V14))/LOG(2)))) -> 0 | Y14: =N14 -> 0 | Z14: =COUNTIF(L17:L27,Y14) -> 0 | AA14: =Z14/(AB4-Z8) -> 0 | AB14: =IF(AA14=0,0,(AA14*((LOG(AA14))/LOG(2)))) -> 0 | AD14: =N14 -> 0 | AE14: =COUNTIF(L28:L37,AD14) -> 0 | AF14: =AE14/(AG4-AE8) -> 0 | AG14: =IF(AF14=0,0,(AF14*((LOG(AF14))/LOG(2)))) -> 0 | AI14: =N14 -> 0 | AJ14: =COUNTIF(L38:L47,AI14) -> 0 | AK14: =AJ14/(AL4-AJ8) -> 0 | AL14: =IF(AK14=0,0,(AK14*((LOG(AK14))/LOG(2)))) -> 0 | AN14: =N14 -> 0 | AO14: =COUNTIF(L48:L58,AN14) -> 0 | AP14: =AO14/(AQ4-AO8) -> 0 | AQ14: =IF(AP14=0,0,(AP14*((LOG(AP14))/LOG(2)))) -> 0 | AS14: =N14 -> 0 | AT14: =COUNTIF(L59:L68,AS14) -> 0 | AU14: =AT14/(AV4-AT8) -> 0 | AV14: =IF(AU14=0,0,(AU14*((LOG(AU14))/LOG(2)))) -> 0
A15: 11 | B15: 932 | C15: 21 | D15: 943 | K15: 0 | L15: 12 | P15: =SUM(P7:P14) -> 1 | Q15: =-SUM(Q7:Q14) -> 1.335052781 | V15: =SUM(V7:V14) -> 1 | W15: =-SUM(W7:W14) -> 1 | AA15: =SUM(AA7:AA14) -> 1 | AB15: =-SUM(AB7:AB14) -> 0 | AF15: =SUM(AF7:AF14) -> 1 | AG15: =-SUM(AG7:AG14) -> 0 | AK15: =SUM(AK7:AK14) -> 1 | AL15: =-SUM(AL7:AL14) -> 0.7219280949 | AP15: =SUM(AP7:AP14) -> 1 | AQ15: =-SUM(AQ7:AQ14) -> 1.5 | AU15: =SUM(AU7:AU14) -> 1 | AV15: =-SUM(AV7:AV14) -> 1
A16: 11 | B16: 1043 | C16: 21 | D16: 1054 | K16: 0 | L16: 12 | P16: U= | Q16: =Q15/(LOG(Q4)/LOG(2)) -> 0.2242204845 | V16: U1= | W16: =W15/(LOG(W4)/LOG(2)) -> 0.3010299957 | AA16: U2= | AB16: =AB15/(LOG(AB4)/LOG(2)) -> 0 | AF16: U3= | AG16: =AG15/(LOG(AG4)/LOG(2)) -> 0 | AK16: U4= | AL16: =AL15/(LOG(AL4)/LOG(2)) -> 0.2173220113 | AP16: U5= | AQ16: =AQ15/(LOG(AQ4)/LOG(2)) -> 0.4335972395 | AU16: U6= | AV16: =AV15/(LOG(AV4)/LOG(2)) -> 0.3010299957
A17: 22 | B17: 1166 | C17: 14 | D17: 1184 | K17: 0 | L17: 21
A18: 22 | B18: 1285 | C18: 14 | D18: 1305 | K18: 0 | L18: 21
A19: 22 | B19: 1402 | C19: 14 | D19: 1411 | K19: 0 | L19: 21 | N19: Total Target Seq
A20: 11 | B20: 1518 | C20: 21 | D20: 1529 | K20: 0 | L20: 12 | N20: =COUNTIF(L7:L68,G3) -> 40 | P20: 10 | Q20: 11 | R20: 10 | S20: 10 | T20: 11 | U20: 10
A21: 22 | B21: 1623 | C21: 14 | D21: 1629 | K21: 0 | L21: 21 | P21: % of reinforcement given in 6 equal intervals based on number of trials
A22: 11 | B22: 1739 | C22: 21 | D22: 1750 | K22: 0 | L22: 12 | P22: %_1 | Q22: %_2 | R22: %_3 | S22: %_4 | T22: %_5 | U22: %_6
A23: 11 | B23: 1861 | C23: 21 | D23: 1872 | K23: 0 | L23: 12 | O23: target sequence | P23: =$G$3 -> 12 | Q23: =$G$3 -> 12 | R23: =$G$3 -> 12 | S23: =$G$3 -> 12 | T23: =$G$3 -> 12 | U23: =$G$3 -> 12
A24: 11 | B24: 1974 | C24: 21 | D24: 1985 | K24: 0 | L24: 12 | O24: total reinforcement | P24: =U8 -> 8 | Q24: =Z8 -> 7 | R24: =AE8 -> 7 | S24: =AJ8 -> 5 | T24: =AO8 -> 7 | U24: =AT8 -> 6
A25: 11 | B25: 2090 | C25: 21 | D25: 2104 | K25: 0 | L25: 12 | O25: % target
A26: 11 | B26: 2210 | C26: 21 | D26: 2224 | K26: 0 | L26: 12 | O26: CCRF
A27: 11 | B27: 2324 | C27: 21 | D27: 2334 | K27: 0 | L27: 12 | O27: % CCRf
A28: 11 | B28: 2442 | C28: 21 | D28: 2453 | K28: 0 | L28: 12 | O28: average response rate | P28: =D16/P20 -> 105.4 | Q28: =(D27-D16)/Q20 -> 116.3636364 | R28: =(D37-D27)/R20 -> 115 | S28: =(D47-D37)/S20 -> 113.7 | T28: =(D58-D47)/T20 -> 114.4545455 | U28: =(D68-D58)/U20 -> 112.4
A29: 11 | B29: 2553 | C29: 21 | D29: 2562 | K29: 0 | L29: 12
A30: 11 | B30: 2663 | C30: 21 | D30: 2673 | K30: 0 | L30: 12
A31: 22 | B31: 2765 | C31: 14 | D31: 2775 | K31: 0 | L31: 21
A32: 11 | B32: 2895 | C32: 21 | D32: 2907 | K32: 0 | L32: 12
A33: 22 | B33: 2999 | C33: 14 | D33: 3008 | K33: 0 | L33: 21
A34: 22 | B34: 3110 | C34: 14 | D34: 3126 | K34: 0 | L34: 21
A35: 11 | B35: 3244 | C35: 21 | D35: 3255 | K35: 0 | L35: 12
A36: 11 | B36: 3364 | C36: 21 | D36: 3376 | K36: 0 | L36: 12
A37: 11 | B37: 3474 | C37: 21 | D37: 3484 | K37: 0 | L37: 12
A38: 11 | B38: 3586 | C38: 21 | D38: 3598 | K38: 0 | L38: 12
A39: 22 | B39: 3689 | C39: 14 | D39: 3697 | K39: 0 | L39: 21
A40: 22 | B40: 3819 | C40: 23 | D40: 3831 | K40: 0 | L40: 22
A41: 22 | B41: 3930 | C41: 14 | D41: 3940 | K41: 0 | L41: 21
A42: 11 | B42: 4053 | C42: 21 | D42: 4065 | K42: 0 | L42: 12
A43: 11 | B43: 4166 | C43: 21 | D43: 4178 | K43: 0 | L43: 12
A44: 11 | B44: 4277 | C44: 21 | D44: 4289 | K44: 0 | L44: 12
A45: 22 | B45: 4378 | C45: 14 | D45: 4387 | K45: 0 | L45: 21
A46: 22 | B46: 4490 | C46: 14 | D46: 4499 | K46: 0 | L46: 21
A47: 11 | B47: 4610 | C47: 21 | D47: 4621 | K47: 0 | L47: 12
A48: 11 | B48: 4727 | C48: 21 | D48: 4739 | K48: 0 | L48: 12
A49: 11 | B49: 4847 | C49: 21 | D49: 4859 | K49: 0 | L49: 12
A50: 11 | B50: 4956 | C50: 21 | D50: 4966 | K50: 0 | L50: 12
A51: 22 | B51: 5057 | C51: 23 | D51: 5092 | K51: 0 | L51: 22
A52: 11 | B52: 5201 | C52: 21 | D52: 5215 | K52: 0 | L52: 12
A53: 11 | B53: 5317 | C53: 12 | D53: 5329 | K53: 0 | L53: 11
A54: 22 | B54: 5428 | C54: 14 | D54: 5437 | K54: 0 | L54: 21
A55: 11 | B55: 5546 | C55: 21 | D55: 5558 | K55: 0 | L55: 12
A56: 11 | B56: 5654 | C56: 21 | D56: 5665 | K56: 0 | L56: 12
A57: 22 | B57: 5754 | C57: 14 | D57: 5762 | K57: 0 | L57: 21
A58: 11 | B58: 5869 | C58: 21 | D58: 5880 | K58: 0 | L58: 12
A59: 11 | B59: 5979 | C59: 21 | D59: 5988 | K59: 0 | L59: 12
A60: 11 | B60: 6087 | C60: 21 | D60: 6111 | K60: 0 | L60: 12
A61: 11 | B61: 6206 | C61: 21 | D61: 6217 | K61: 0 | L61: 12
A62: 22 | B62: 6308 | C62: 14 | D62: 6315 | K62: 0 | L62: 21
A63: 11 | B63: 6422 | C63: 12 | D63: 6432 | K63: 0 | L63: 11
A64: 11 | B64: 6537 | C64: 12 | D64: 6551 | K64: 0 | L64: 11
A65: 11 | B65: 6665 | C65: 21 | D65: 6677 | K65: 0 | L65: 12
A66: 11 | B66: 6775 | C66: 21 | D66: 6786 | K66: 0 | L66: 12
A67: 22 | B67: 6878 | C67: 14 | D67: 6886 | K67: 0 | L67: 21
A68: 11 | B68: 6992 | C68: 21 | D68: 7004 | K68: 1 | L68: 12

Sheet !L814B20.055
A1: Report for:!L814B20.055
A2: Date: | B2: <date>
A3: Hen: | B3: <hen> | F3: Correct Sequence | G3: =Start!J2 -> 12 | P3: Total Sequences in Data | Q3: =4994-COUNTBLANK(L7:L5000) -> 64 | V3: Total Sequences in Block Data | W3: =COUNTA(L7:L17) -> 11 | AA3: Total Sequences in Block Data | AB3: =COUNTA(L18:L27) -> 10 | AF3: Total Sequences in Block Data | AG3: =COUNTA(L28:L38) -> 11 | AK3: Total Sequences in Block Data | AL3: =COUNTA(L39:L49) -> 11 | AP3: Total Sequences in Block Data | AQ3: =COUNTA(L50:L59) -> 10 | AU3: Total Sequences in Block Data | AV3: =COUNTA(L60:L70) -> 11
P4: Total Sequences in Summary | Q4: =SUM(O7:O14) -> 64 | V4: Total Sequences in Block Summary | W4: =SUM(U7:U14) -> 11 | AA4: Total Sequences in Block Summary | AB4: =SUM(Z7:Z14) -> 10 | AF4: Total Sequences in Block Summary | AG4: =SUM(AE7:AE14) -> 11 | AK4: Total Sequences in Block Summary | AL4: =SUM(AJ7:AJ14) -> 11 | AP4: Total Sequences in Block Summary | AQ4: =SUM(AO7:AO14) -> 10 | AU4: Total Sequences in Block Summary | AV4: =SUM(AT7:AT14) -> 11
T5: Block 1 | Y5: Block 2 | AD5: Block 3 | AI5: Block 4 | AN5: Block 5 | AS5: Block 6
A6: Sequence Component 1 | B6: Time 1 | C6: Sequence Component 2 | D6: Time 2 | E6: Sequence Component 3 | F6: Time 3 | G6: Sequence Component 4 | H6: Time 4 | I6: Sequence Component 5 | J6: Time 5 | K6: Correct? 0=No 1=Yes | L6: Sequence | N6: Frequency | P6: Relative Frequency | Q6: Variability | T6: Frequency | V6: Relative Frequency | W6: Variability | Y6: Frequency | AA6: Relative Frequency | AB6: Variability | AD6: Frequency | AF6: Relative Frequency | AG6: Variability | AI6: Frequency | AK6: Relative Frequency | AL6: Variability | AN6: Frequency | AP6: Relative Frequency | AQ6: Variability | AS6: Frequency | AU6: Relative Frequency | AV6: Variability
A7: 22 | B7: 9 | C7: 14 | D7: 28 | K7: 0 | L7: 21 | N7: 11 | O7: =COUNTIF($L$7:$L$500,N7) -> 6 | P7: =O7/$Q$4 -> 0.09375 | Q7: =IF(P7=0,0,(P7*((LOG(P7))/LOG(2)))) -> -0.3201597656 | T7: =N7 -> 11 | U7: =COUNTIF(L7:L17,T7) -> 1 | V7: =U7/(W4-U8) -> 0.1428571429 | W7: =IF(V7=0,0,(V7*((LOG(V7))/LOG(2)))) -> -0.4010507032 | Y7: =N7 -> 11 | Z7: =COUNTIF(L18:L27,Y7) -> 0 | AA7: =Z7/(AB4-Z8) -> 0 | AB7: =IF(AA7=0,0,(AA7*((LOG(AA7))/LOG(2)))) -> 0 | AD7: =N7 -> 11 | AE7: =COUNTIF(L28:L38,AD7) -> 0 | AF7: =AE7/(AG4-AE8) -> 0 | AG7: =IF(AF7=0,0,(AF7*((LOG(AF7))/LOG(2)))) -> 0 | AI7: =N7 -> 11 | AJ7: =COUNTIF(L39:L49,AI7) -> 2 | AK7: =AJ7/(AL4-AJ8) -> 1 | AL7: =IF(AK7=0,0,(AK7*((LOG(AK7))/LOG(2)))) -> 0 | AN7: =N7 -> 11 | AO7: =COUNTIF(L50:L59,AN7) -> 2 | AP7: =AO7/(AQ4-AO8) -> 0.5 | AQ7: =IF(AP7=0,0,(AP7*((LOG(AP7))/LOG(2)))) -> -0.5 | AS7: =N7 -> 11 | AT7: =COUNTIF(L60:L70,AS7) -> 1 | AU7: =AT7/(AV4-AT8) -> 0.2 | AV7: =IF(AU7=0,0,(AU7*((LOG(AU7))/LOG(2)))) -> -0.464385619
A8: 22 | B8: 126 | C8: 14 | D8: 136 | K8: 0 | L8: 21 | N8: 12 | O8: =COUNTIF($L$7:$L$500,N8) -> 40 | P8: =O8/$Q$4 -> 0.625 | Q8: =IF(P8=0,0,(P8*((LOG(P8))/LOG(2)))) -> -0.4237949407 | T8: =N8 -> 12 | U8: =COUNTIF(L7:L17,T8) -> 4 | Y8: =N8 -> 12 | Z8: =COUNTIF(L18:L27,Y8) -> 5 | AD8: =N8 -> 12 | AE8: =COUNTIF(L28:L38,AD8) -> 10 | AI8: =N8 -> 12 | AJ8: =COUNTIF(L39:L49,AI8) -> 9 | AN8: =N8 -> 12 | AO8: =COUNTIF(L50:L59,AN8) -> 6 | AS8: =N8 -> 12 | AT8: =COUNTIF(L60:L70,AS8) -> 6
A9: 22 | B9: 236 | C9: 23 | D9: 249 | K9: 0 | L9: 22 | N9: 21 | O9: =COUNTIF($L$7:$L$500,N9) -> 15 | P9: =O9/$Q$4 -> 0.234375 | Q9: =IF(P9=0,0,(P9*((LOG(P9))/LOG(2)))) -> -0.4905725167 | T9: =N9 -> 21 | U9: =COUNTIF(L7:L17,T9) -> 4 | V9: =U9/(W4-U8) -> 0.5714285714 | W9: =IF(V9=0,0,(V9*((LOG(V9))/LOG(2)))) -> -0.4613456697 | Y9: =N9 -> 21 | Z9: =COUNTIF(L18:L27,Y9) -> 5 | AA9: =Z9/(AB4-Z8) -> 1 | AB9: =IF(AA9=0,0,(AA9*((LOG(AA9))/LOG(2)))) -> 0 | AD9: =N9 -> 21 | AE9: =COUNTIF(L28:L38,AD9) -> 0 | AF9: =AE9/(AG4-AE8) -> 0 | AG9: =IF(AF9=0,0,(AF9*((LOG(AF9))/LOG(2)))) -> 0 | AI9: =N9 -> 21 | AJ9: =COUNTIF(L39:L49,AI9) -> 0 | AK9: =AJ9/(AL4-AJ8) -> 0 | AL9: =IF(AK9=0,0,(AK9*((LOG(AK9))/LOG(2)))) -> 0 | AN9: =N9 -> 21 | AO9: =COUNTIF(L50:L59,AN9) -> 2 | AP9: =AO9/(AQ4-AO8) -> 0.5 | AQ9: =IF(AP9=0,0,(AP9*((LOG(AP9))/LOG(2)))) -> -0.5 | AS9: =N9 -> 21 | AT9: =COUNTIF(L60:L70,AS9) -> 4 | AU9: =AT9/(AV4-AT8) -> 0.8 | AV9: =IF(AU9=0,0,(AU9*((LOG(AU9))/LOG(2)))) -> -0.2575424759
A10: 11 | B10: 362 | C10: 21 | D10: 373 | K10: 0 | L10: 12 | N10: 22 | O10: =COUNTIF($L$7:$L$500,N10) -> 3 | P10: =O10/$Q$4 -> 0.046875 | Q10: =IF(P10=0,0,(P10*((LOG(P10))/LOG(2)))) -> -0.2069548828 | T10: =N10 -> 22 | U10: =COUNTIF(L7:L17,T10) -> 2 | V10: =U10/(W4-U8) -> 0.2857142857 | W10: =IF(V10=0,0,(V10*((LOG(V10))/LOG(2)))) -> -0.5163871206 | Y10: =N10 -> 22 | Z10: =COUNTIF(L18:L27,Y10) -> 0 | AA10: =Z10/(AB4-Z8) -> 0 | AB10: =IF(AA10=0,0,(AA10*((LOG(AA10))/LOG(2)))) -> 0 | AD10: =N10 -> 22 | AE10: =COUNTIF(L28:L38,AD10) -> 1 | AF10: =AE10/(AG4-AE8) -> 1 | AG10: =IF(AF10=0,0,(AF10*((LOG(AF10))/LOG(2)))) -> 0 | AI10: =N10 -> 22 | AJ10: =COUNTIF(L39:L49,AI10) -> 0 | AK10: =AJ10/(AL4-AJ8) -> 0 | AL10: =IF(AK10=0,0,(AK10*((LOG(AK10))/LOG(2)))) -> 0 | AN10: =N10 -> 22 | AO10: =COUNTIF(L50:L59,AN10) -> 0 | AP10: =AO10/(AQ4-AO8) -> 0 | AQ10: =IF(AP10=0,0,(AP10*((LOG(AP10))/LOG(2)))) -> 0 | AS10: =N10 -> 22 | AT10: =COUNTIF(L60:L70,AS10) -> 0 | AU10: =AT10/(AV4-AT8) -> 0 | AV10: =IF(AU10=0,0,(AU10*((LOG(AU10))/LOG(2)))) -> 0
A11: 22 | B11: 465 | C11: 14 | D11: 475 | K11: 0 | L11: 21 | T11: =N11 -> 0 | U11: =COUNTIF(L7:L17,T11) -> 0 | V11: =U11/(W4-U8) -> 0 | W11: =IF(V11=0,0,(V11*((LOG(V11))/LOG(2)))) -> 0 | Y11: =N11 -> 0 | Z11: =COUNTIF(L18:L27,Y11) -> 0 | AA11: =Z11/(AB4-Z8) -> 0 | AB11: =IF(AA11=0,0,(AA11*((LOG(AA11))/LOG(2)))) -> 0 | AD11: =N11 -> 0 | AE11: =COUNTIF(L28:L38,AD11) -> 0 | AF11: =AE11/(AG4-AE8) -> 0 | AG11: =IF(AF11=0,0,(AF11*((LOG(AF11))/LOG(2)))) -> 0 | AI11: =N11 -> 0 | AJ11: =COUNTIF(L39:L49,AI11) -> 0 | AK11: =AJ11/(AL4-AJ8) -> 0 | AL11: =IF(AK11=0,0,(AK11*((LOG(AK11))/LOG(2)))) -> 0 | AN11: =N11 -> 0 | AO11: =COUNTIF(L50:L59,AN11) -> 0 | AP11: =AO11/(AQ4-AO8) -> 0 | AQ11: =IF(AP11=0,0,(AP11*((LOG(AP11))/LOG(2)))) -> 0 | AS11: =N11 -> 0 | AT11: =COUNTIF(L60:L70,AS11) -> 0 | AU11: =AT11/(AV4-AT8) -> 0 | AV11: =IF(AU11=0,0,(AU11*((LOG(AU11))/LOG(2)))) -> 0
A12: 22 | B12: 593 | C12: 23 | D12: 609 | K12: 0 | L12: 22 | T12: =N12 -> 0 | U12: =COUNTIF(L7:L17,T12) -> 0 | V12: =U12/(W4-U8) -> 0 | W12: =IF(V12=0,0,(V12*((LOG(V12))/LOG(2)))) -> 0 | Y12: =N12 -> 0 | Z12: =COUNTIF(L18:L27,Y12) -> 0 | AA12: =Z12/(AB4-Z8) -> 0 | AB12: =IF(AA12=0,0,(AA12*((LOG(AA12))/LOG(2)))) -> 0 | AD12: =N12 -> 0 | AE12: =COUNTIF(L28:L38,AD12) -> 0 | AF12: =AE12/(AG4-AE8) -> 0 | AG12: =IF(AF12=0,0,(AF12*((LOG(AF12))/LOG(2)))) -> 0 | AI12: =N12 -> 0 | AJ12: =COUNTIF(L39:L49,AI12) -> 0 | AK12: =AJ12/(AL4-AJ8) -> 0 | AL12: =IF(AK12=0,0,(AK12*((LOG(AK12))/LOG(2)))) -> 0 | AN12: =N12 -> 0 | AO12: =COUNTIF(L50:L59,AN12) -> 0 | AP12: =AO12/(AQ4-AO8) -> 0 | AQ12: =IF(AP12=0,0,(AP12*((LOG(AP12))/LOG(2)))) -> 0 | AS12: =N12 -> 0 | AT12: =COUNTIF(L60:L70,AS12) -> 0 | AU12: =AT12/(AV4-AT8) -> 0 | AV12: =IF(AU12=0,0,(AU12*((LOG(AU12))/LOG(2)))) -> 0
A13: 11 | B13: 725 | C13: 21 | D13: 738 | K13: 0 | L13: 12 | T13: =N13 -> 0 | U13: =COUNTIF(L7:L17,T13) -> 0 | V13: =U13/(W4-U8) -> 0 | W13: =IF(V13=0,0,(V13*((LOG(V13))/LOG(2)))) -> 0 | Y13: =N13 -> 0 | Z13: =COUNTIF(L18:L27,Y13) -> 0 | AA13: =Z13/(AB4-Z8) -> 0 | AB13: =IF(AA13=0,0,(AA13*((LOG(AA13))/LOG(2)))) -> 0 | AD13: =N13 -> 0 | AE13: =COUNTIF(L28:L38,AD13) -> 0 | AF13: =AE13/(AG4-AE8) -> 0 | AG13: =IF(AF13=0,0,(AF13*((LOG(AF13))/LOG(2)))) -> 0 | AI13: =N13 -> 0 | AJ13: =COUNTIF(L39:L49,AI13) -> 0 | AK13: =AJ13/(AL4-AJ8) -> 0 | AL13: =IF(AK13=0,0,(AK13*((LOG(AK13))/LOG(2)))) -> 0 | AN13: =N13 -> 0 | AO13: =COUNTIF(L50:L59,AN13) -> 0 | AP13: =AO13/(AQ4-AO8) -> 0 | AQ13: =IF(AP13=0,0,(AP13*((LOG(AP13))/LOG(2)))) -> 0 | AS13: =N13 -> 0 | AT13: =COUNTIF(L60:L70,AS13) -> 0 | AU13: =AT13/(AV4-AT8) -> 0 | AV13: =IF(AU13=0,0,(AU13*((LOG(AU13))/LOG(2)))) -> 0
A14: 22 | B14: 827 | C14: 14 | D14: 841 | K14: 0 | L14: 21 | T14: =N14 -> 0 | U14: =COUNTIF(L7:L17,T14) -> 0 | V14: =U14/(W4-U8) -> 0 | W14: =IF(V14=0,0,(V14*((LOG(V14))/LOG(2)))) -> 0 | Y14: =N14 -> 0 | Z14: =COUNTIF(L18:L27,Y14) -> 0 | AA14: =Z14/(AB4-Z8) -> 0 | AB14: =IF(AA14=0,0,(AA14*((LOG(AA14))/LOG(2)))) -> 0 | AD14: =N14 -> 0 | AE14: =COUNTIF(L28:L38,AD14) -> 0 | AF14: =AE14/(AG4-AE8) -> 0 | AG14: =IF(AF14=0,0,(AF14*((LOG(AF14))/LOG(2)))) -> 0 | AI14: =N14 -> 0 | AJ14: =COUNTIF(L39:L49,AI14) -> 0 | AK14: =AJ14/(AL4-AJ8) -> 0 | AL14: =IF(AK14=0,0,(AK14*((LOG(AK14))/LOG(2)))) -> 0 | AN14: =N14 -> 0 | AO14: =COUNTIF(L50:L59,AN14) -> 0 | AP14: =AO14/(AQ4-AO8) -> 0 | AQ14: =IF(AP14=0,0,(AP14*((LOG(AP14))/LOG(2)))) -> 0 | AS14: =N14 -> 0 | AT14: =COUNTIF(L60:L70,AS14) -> 0 | AU14: =AT14/(AV4-AT8) -> 0 | AV14: =IF(AU14=0,0,(AU14*((LOG(AU14))/LOG(2)))) -> 0
A15: 11 | B15: 948 | C15: 21 | D15: 960 | K15: 0 | L15: 12 | P15: =SUM(P7:P14) -> 1 | Q15: =-SUM(Q7:Q14) -> 1.441482106 | V15: =SUM(V7:V14) -> 1 | W15: =-SUM(W7:W14) -> 1.378783493 | AA15: =SUM(AA7:AA14) -> 1 | AB15: =-SUM(AB7:AB14) -> 0 | AF15: =SUM(AF7:AF14) -> 1 | AG15: =-SUM(AG7:AG14) -> 0 | AK15: =SUM(AK7:AK14) -> 1 | AL15: =-SUM(AL7:AL14) -> 0 | AP15: =SUM(AP7:AP14) -> 1 | AQ15: =-SUM(AQ7:AQ14) -> 1 | AU15: =SUM(AU7:AU14) -> 1 | AV15: =-SUM(AV7:AV14) -> 0.7219280949
A16: 11 | B16: 1064 | C16: 21 | D16: 1076 | K16: 0 | L16: 12 | P16: U= | Q16: =Q15/(LOG(Q4)/LOG(2)) -> 0.2402470176 | V16: U1= | W16: =W15/(LOG(W4)/LOG(2)) -> 0.3985578111 | AA16: U2= | AB16: =AB15/(LOG(AB4)/LOG(2)) -> 0 | AF16: U3= | AG16: =AG15/(LOG(AG4)/LOG(2)) -> 0 | AK16: U4= | AL16: =AL15/(LOG(AL4)/LOG(2)) -> 0 | AP16: U5= | AQ16: =AQ15/(LOG(AQ4)/LOG(2)) -> 0.3010299957 | AU16: U6= | AV16: =AV15/(LOG(AV4)/LOG(2)) -> 0.2086840194
A17: 11 | B17: 1173 | C17: 12 | D17: 1191 | K17: 0 | L17: 11
A18: 11 | B18: 1301 | C18: 21 | D18: 1312 | K18: 0 | L18: 12
A19: 22 | B19: 1406 | C19: 14 | D19: 1415 | K19: 0 | L19: 21 | N19: Total Target Seq
A20: 11 | B20: 1523 | C20: 21 | D20: 1537 | K20: 0 | L20: 12 | N20: =COUNTIF(L7:L70,G3) -> 40 | P20: 11 | Q20: 10 | R20: 11 | S20: 11 | T20: 10 | U20: 11
A21: 11 | B21: 1646 | C21: 21 | D21: 1658 | K21: 0 | L21: 12 | P21: % of reinforcement given in 6 equal intervals based on number of trials
A22: 22 | B22: 1753 | C22: 14 | D22: 1766 | K22: 0 | L22: 21 | P22: %_1 | Q22: %_2 | R22: %_3 | S22: %_4 | T22: %_5 | U22: %_6
A23: 11 | B23: 1878 | C23: 21 | D23: 1889 | K23: 0 | L23: 12 | O23: target sequence | P23: =$G$3 -> 12 | Q23: =$G$3 -> 12 | R23: =$G$3 -> 12 | S23: =$G$3 -> 12 | T23: =$G$3 -> 12 | U23: =$G$3 -> 12
A24: 22 | B24: 1983 | C24: 14 | D24: 1991 | K24: 0 | L24: 21 | O24: total reinforcement | P24: =U8 -> 4 | Q24: =Z8 -> 5 | R24: =AE8 -> 10 | S24: =AJ8 -> 9 | T24: =AO8 -> 6 | U24: =AT8 -> 6
A25: 11 | B25: 2105 | C25: 21 | D25: 2116 | K25: 0 | L25: 12 | O25: % target
A26: 22 | B26: 2213 | C26: 14 | D26: 2227 | K26: 0 | L26: 21 | O26: CCRF
A27: 22 | B27: 2327 | C27: 14 | D27: 2337 | K27: 0 | L27: 21 | O27: % CCRf
A28: 11 | B28: 2468 | C28: 21 | D28: 2494 | K28: 0 | L28: 12 | O28: average response rate | P28: =D17/P20 -> 108.2727273 | Q28: =(D27-D17)/Q20 -> 114.6 | R28: =(D38-D27)/R20 -> 118.8181818 | S28: =(D49-D38)/S20 -> 116.2727273 | T28: =(D59-D49)/T20 -> 120.5 | U28: =(D70-D59)/U20 -> 112.0909091
A29: 11 | B29: 2596 | C29: 21 | D29: 2609 | K29: 0 | L29: 12
A30: 22 | B30: 2719 | C30: 23 | D30: 2733 | K30: 0 | L30: 22
A31: 11 | B31: 2844 | C31: 21 | D31: 2856 | K31: 0 | L31: 12
A32: 11 | B32: 2960 | C32: 21 | D32: 2971 | K32: 0 | L32: 12
A33: 11 | B33: 3070 | C33: 21 | D33: 3081 | K33: 0 | L33: 12
A34: 11 | B34: 3176 | C34: 21 | D34: 3188 | K34: 0 | L34: 12
A35: 11 | B35: 3291 | C35: 21 | D35: 3302 | K35: 0 | L35: 12
A36: 11 | B36: 3404 | C36: 21 | D36: 3417 | K36: 0 | L36: 12
A37: 11 | B37: 3521 | C37: 21 | D37: 3532 | K37: 0 | L37: 12
A38: 11 | B38: 3631 | C38: 21 | D38: 3644 | K38: 0 | L38: 12
A39: 11 | B39: 3739 | C39: 12 | D39: 3757 | K39: 0 | L39: 11
A40: 11 | B40: 3871 | C40: 21 | D40: 3881 | K40: 0 | L40: 12
A41: 11 | B41: 3977 | C41: 21 | D41: 3988 | K41: 0 | L41: 12
A42: 11 | B42: 4088 | C42: 21 | D42: 4100 | K42: 0 | L42: 12
A43: 11 | B43: 4211 | C43: 21 | D43: 4221 | K43: 0 | L43: 12
A44: 11 | B44: 4335 | C44: 21 | D44: 4349 | K44: 0 | L44: 12
A45: 11 | B45: 4449 | C45: 21 | D45: 4460 | K45: 0 | L45: 12
A46: 11 | B46: 4557 | C46: 21 | D46: 4570 | K46: 0 | L46: 12
A47: 11 | B47: 4666 | C47: 12 | D47: 4679 | K47: 0 | L47: 11
A48: 11 | B48: 4799 | C48: 21 | D48: 4810 | K48: 0 | L48: 12
A49: 11 | B49: 4912 | C49: 21 | D49: 4923 | K49: 0 | L49: 12
A50: 11 | B50: 5024 | C50: 21 | D50: 5035 | K50: 0 | L50: 12
A51: 11 | B51: 5137 | C51: 21 | D51: 5149 | K51: 0 | L51: 12
A52: 11 | B52: 5244 | C52: 21 | D52: 5256 | K52: 0 | L52: 12
A53: 11 | B53: 5360 | C53: 12 | D53: 5370 | K53: 0 | L53: 11
A54: 11 | B54: 5481 | C54: 21 | D54: 5493 | K54: 0 | L54: 12
A55: 11 | B55: 5595 | C55: 12 | D55: 5634 | K55: 0 | L55: 11
A56: 11 | B56: 5742 | C56: 21 | D56: 5754 | K56: 0 | L56: 12
A57: 22 | B57: 5856 | C57: 14 | D57: 5877 | K57: 0 | L57: 21
A58: 22 | B58: 5984 | C58: 14 | D58: 6002 | K58: 0 | L58: 21
A59: 11 | B59: 6115 | C59: 21 | D59: 6128 | K59: 0 | L59: 12
A60: 11 | B60: 6226 | C60: 21 | D60: 6238 | K60: 0 | L60: 12
A61: 11 | B61: 6344 | C61: 21 | D61: 6355 | K61: 0 | L61: 12
A62: 11 | B62: 6457 | C62: 21 | D62: 6468 | K62: 0 | L62: 12
A63: 22 | B63: 6558 | C63: 14 | D63: 6570 | K63: 0 | L63: 21
A64: 22 | B64: 6667 | C64: 14 | D64: 6677 | K64: 0 | L64: 21
A65: 22 | B65: 6775 | C65: 14 | D65: 6784 | K65: 0 | L65: 21
A66: 11 | B66: 6887 | C66: 21 | D66: 6898 | K66: 0 | L66: 12
A67: 11 | B67: 7000 | C67: 12 | D67: 7013 | K67: 0 | L67: 11
A68: 22 | B68: 7113 | C68: 14 | D68: 7123 | K68: 0 | L68: 21
A69: 11 | B69: 7237 | C69: 21 | D69: 7249 | K69: 0 | L69: 12
A70: 11 | B70: 7349 | C70: 21 | D70: 7361 | K70: 1 | L70: 12

Sheet !L819A20.055
A1: Report for:!L819A20.055
A2: Date: | B2: <date>
A3: Hen: | B3: <hen> | F3: Correct Sequence | G3: =Start!J2 -> 12 | P3: Total Sequences in Data | Q3: =4994-COUNTBLANK(L7:L5000) -> 76 | V3: Total Sequences in Block Data | W3: =COUNTA(L7:L19) -> 13 | AA3: Total Sequences in Block Data | AB3: =COUNTA(L20:L31) -> 12 | AF3: Total Sequences in Block Data | AG3: =COUNTA(L32:L44) -> 13 | AK3: Total Sequences in Block Data | AL3: =COUNTA(L45:L57) -> 13 | AP3: Total Sequences in Block Data | AQ3: =COUNTA(L58:L69) -> 12 | AU3: Total Sequences in Block Data | AV3: =COUNTA(L70:L82) -> 13
P4: Total Sequences in Summary | Q4: =SUM(O7:O14) -> 76 | V4: Total Sequences in Block Summary | W4: =SUM(U7:U14) -> 13 | AA4: Total Sequences in Block Summary | AB4: =SUM(Z7:Z14) -> 12 | AF4: Total Sequences in Block Summary | AG4: =SUM(AE7:AE14) -> 13 | AK4: Total Sequences in Block Summary | AL4: =SUM(AJ7:AJ14) -> 13 | AP4: Total Sequences in Block Summary | AQ4: =SUM(AO7:AO14) -> 12 | AU4: Total Sequences in Block Summary | AV4: =SUM(AT7:AT14) -> 13
T5: Block 1 | Y5: Block 2 | AD5: Block 3 | AI5: Block 4 | AN5: Block 5 | AS5: Block 6
A6: Sequence Component 1 | B6: Time 1 | C6: Sequence Component 2 | D6: Time 2 | E6: Sequence Component 3 | F6: Time 3 | G6: Sequence Component 4 | H6: Time 4 | I6: Sequence Component 5 | J6: Time 5 | K6: Correct? 0=No 1=Yes | L6: Sequence | N6: Frequency | P6: Relative Frequency | Q6: Variability | T6: Frequency | V6: Relative Frequency | W6: Variability | Y6: Frequency | AA6: Relative Frequency | AB6: Variability | AD6: Frequency | AF6: Relative Frequency | AG6: Variability | AI6: Frequency | AK6: Relative Frequency | AL6: Variability | AN6: Frequency | AP6: Relative Frequency | AQ6: Variability | AS6: Frequency | AU6: Relative Frequency | AV6: Variability
A7: 22 | B7: 6 | C7: 14 | D7: 24 | K7: 0 | L7: 21 | N7: 11 | O7: =COUNTIF($L$7:$L$500,N7) -> 1 | P7: =O7/$Q$4 -> 0.01315789474 | Q7: =IF(P7=0,0,(P7*((LOG(P7))/LOG(2)))) -> -0.08220957255 | T7: =N7 -> 11 | U7: =COUNTIF(L7:L19,T7) -> 0 | V7: =U7/(W4-U8) -> 0 | W7: =IF(V7=0,0,(V7*((LOG(V7))/LOG(2)))) -> 0 | Y7: =N7 -> 11 | Z7: =COUNTIF(L20:L31,Y7) -> 1 | AA7: =Z7/(AB4-Z8) -> 0.25 | AB7: =IF(AA7=0,0,(AA7*((LOG(AA7))/LOG(2)))) -> -0.5 | AD7: =N7 -> 11 | AE7: =COUNTIF(L32:L44,AD7) -> 0 | AF7: =AE7/(AG4-AE8) -> 0 | AG7: =IF(AF7=0,0,(AF7*((LOG(AF7))/LOG(2)))) -> 0 | AI7: =N7 -> 11 | AJ7: =COUNTIF(L45:L57,AI7) -> 0 | AK7: =AJ7/(AL4-AJ8) -> 0 | AL7: =IF(AK7=0,0,(AK7*((LOG(AK7))/LOG(2)))) -> 0 | AN7: =N7 -> 11 | AO7: =COUNTIF(L58:L69,AN7) -> 0 | AP7: =AO7/(AQ4-AO8) -> 0 | AQ7: =IF(AP7=0,0,(AP7*((LOG(AP7))/LOG(2)))) -> 0 | AS7: =N7 -> 11 | AT7: =COUNTIF(L70:L82,AS7) -> 0 | AU7: =AT7/(AV4-AT8) -> 0 | AV7: =IF(AU7=0,0,(AU7*((LOG(AU7))/LOG(2)))) -> 0
A8: 22 | B8: 139 | C8: 14 | D8: 152 | K8: 0 | L8: 21 | N8: 12 | O8: =COUNTIF($L$7:$L$500,N8) -> 40 | P8: =O8/$Q$4 -> 0.5263157895 | Q8: =IF(P8=0,0,(P8*((LOG(P8))/LOG(2)))) -> -0.487368115 | T8: =N8 -> 12 | U8: =COUNTIF(L7:L19,T8) -> 10 | Y8: =N8 -> 12 | Z8: =COUNTIF(L20:L31,Y8) -> 8 | AD8: =N8 -> 12 | AE8: =COUNTIF(L32:L44,AD8) -> 3 | AI8: =N8 -> 12 | AJ8: =COUNTIF(L45:L57,AI8) -> 6 | AN8: =N8 -> 12 | AO8: =COUNTIF(L58:L69,AN8) -> 5 | AS8: =N8 -> 12 | AT8: =COUNTIF(L70:L82,AS8) -> 8
A9: 22 | B9: 249 | C9: 14 | D9: 258 | K9: 0 | L9: 21 | N9: 21 | O9: =COUNTIF($L$7:$L$500,N9) -> 25 | P9: =O9/$Q$4 -> 0.3289473684 | Q9: =IF(P9=0,0,(P9*((LOG(P9))/LOG(2)))) -> -0.5276550407 | T9: =N9 -> 21 | U9: =COUNTIF(L7:L19,T9) -> 3 | V9: =U9/(W4-U8) -> 1 | W9: =IF(V9=0,0,(V9*((LOG(V9))/LOG(2)))) -> 0 | Y9: =N9 -> 21 | Z9: =COUNTIF(L20:L31,Y9) -> 3 | AA9: =Z9/(AB4-Z8) -> 0.75 | AB9: =IF(AA9=0,0,(AA9*((LOG(AA9))/LOG(2)))) -> -0.3112781245 | AD9: =N9 -> 21 | AE9: =COUNTIF(L32:L44,AD9) -> 9 | AF9: =AE9/(AG4-AE8) -> 0.9 | AG9: =IF(AF9=0,0,(AF9*((LOG(AF9))/LOG(2)))) -> -0.1368027841 | AI9: =N9 -> 21 | AJ9: =COUNTIF(L45:L57,AI9) -> 5 | AK9: =AJ9/(AL4-AJ8) -> 0.7142857143 | AL9: =IF(AK9=0,0,(AK9*((LOG(AK9))/LOG(2)))) -> -0.346733448 | AN9: =N9 -> 21 | AO9: =COUNTIF(L58:L69,AN9) -> 3 | AP9: =AO9/(AQ4-AO8) -> 0.4285714286 | AQ9: =IF(AP9=0,0,(AP9*((LOG(AP9))/LOG(2)))) -> -0.5238824663 | AS9: =N9 -> 21 | AT9: =COUNTIF(L70:L82,AS9) -> 2 | AU9: =AT9/(AV4-AT8) -> 0.4 | AV9: =IF(AU9=0,0,(AU9*((LOG(AU9))/LOG(2)))) -> -0.528771238
A10: 11 | B10: 378 | C10: 21 | D10: 390 | K10: 0 | L10: 12 | N10: 22 | O10: =COUNTIF($L$7:$L$500,N10) -> 10 | P10: =O10/$Q$4 -> 0.1315789474 | Q10: =IF(P10=0,0,(P10*((LOG(P10))/LOG(2)))) -> -0.3849999235 | T10: =N10 -> 22 | U10: =COUNTIF(L7:L19,T10) -> 0 | V10: =U10/(W4-U8) -> 0 | W10: =IF(V10=0,0,(V10*((LOG(V10))/LOG(2)))) -> 0 | Y10: =N10 -> 22 | Z10: =COUNTIF(L20:L31,Y10) -> 0 | AA10: =Z10/(AB4-Z8) -> 0 | AB10: =IF(AA10=0,0,(AA10*((LOG(AA10))/LOG(2)))) -> 0 | AD10: =N10 -> 22 | AE10: =COUNTIF(L32:L44,AD10) -> 1 | AF10: =AE10/(AG4-AE8) -> 0.1 | AG10: =IF(AF10=0,0,(AF10*((LOG(AF10))/LOG(2)))) -> -0.3321928095 | AI10: =N10 -> 22 | AJ10: =COUNTIF(L45:L57,AI10) -> 2 | AK10: =AJ10/(AL4-AJ8) -> 0.2857142857 | AL10: =IF(AK10=0,0,(AK10*((LOG(AK10))/LOG(2)))) -> -0.5163871206 | AN10: =N10 -> 22 | AO10: =COUNTIF(L58:L69,AN10) -> 4 | AP10: =AO10/(AQ4-AO8) -> 0.5714285714 | AQ10: =IF(AP10=0,0,(AP10*((LOG(AP10))/LOG(2)))) -> -0.4613456697 | AS10: =N10 -> 22 | AT10: =COUNTIF(L70:L82,AS10) -> 3 | AU10: =AT10/(AV4-AT8) -> 0.6 | AV10: =IF(AU10=0,0,(AU10*((LOG(AU10))/LOG(2)))) -> -0.4421793565
A11: 11 | B11: 490 | C11: 21 | D11: 502 | K11: 0 | L11: 12 | T11: =N11 -> 0 | U11: =COUNTIF(L7:L19,T11) -> 0 | V11: =U11/(W4-U8) -> 0 | W11: =IF(V11=0,0,(V11*((LOG(V11))/LOG(2)))) -> 0 | Y11: =N11 -> 0 | Z11: =COUNTIF(L20:L31,Y11) -> 0 | AA11: =Z11/(AB4-Z8) -> 0 | AB11: =IF(AA11=0,0,(AA11*((LOG(AA11))/LOG(2)))) -> 0 | AD11: =N11 -> 0 | AE11: =COUNTIF(L32:L44,AD11) -> 0 | AF11: =AE11/(AG4-AE8) -> 0 | AG11: =IF(AF11=0,0,(AF11*((LOG(AF11))/LOG(2)))) -> 0 | AI11: =N11 -> 0 | AJ11: =COUNTIF(L45:L57,AI11) -> 0 | AK11: =AJ11/(AL4-AJ8) -> 0 | AL11: =IF(AK11=0,0,(AK11*((LOG(AK11))/LOG(2)))) -> 0 | AN11: =N11 -> 0 | AO11: =COUNTIF(L58:L69,AN11) -> 0 | AP11: =AO11/(AQ4-AO8) -> 0 | AQ11: =IF(AP11=0,0,(AP11*((LOG(AP11))/LOG(2)))) -> 0 | AS11: =N11 -> 0 | AT11: =COUNTIF(L70:L82,AS11) -> 0 | AU11: =AT11/(AV4-AT8) -> 0 | AV11: =IF(AU11=0,0,(AU11*((LOG(AU11))/LOG(2)))) -> 0
A12: 11 | B12: 599 | C12: 21 | D12: 611 | K12: 0 | L12: 12 | T12: =N12 -> 0 | U12: =COUNTIF(L7:L19,T12) -> 0 | V12: =U12/(W4-U8) -> 0 | W12: =IF(V12=0,0,(V12*((LOG(V12))/LOG(2)))) -> 0 | Y12: =N12 -> 0 | Z12: =COUNTIF(L20:L31,Y12) -> 0 | AA12: =Z12/(AB4-Z8) -> 0 | AB12: =IF(AA12=0,0,(AA12*((LOG(AA12))/LOG(2)))) -> 0 | AD12: =N12 -> 0 | AE12: =COUNTIF(L32:L44,AD12) -> 0 | AF12: =AE12/(AG4-AE8) -> 0 | AG12: =IF(AF12=0,0,(AF12*((LOG(AF12))/LOG(2)))) -> 0 | AI12: =N12 -> 0 | AJ12: =COUNTIF(L45:L57,AI12) -> 0 | AK12: =AJ12/(AL4-AJ8) -> 0 | AL12: =IF(AK12=0,0,(AK12*((LOG(AK12))/LOG(2)))) -> 0 | AN12: =N12 -> 0 | AO12: =COUNTIF(L58:L69,AN12) -> 0 | AP12: =AO12/(AQ4-AO8) -> 0 | AQ12: =IF(AP12=0,0,(AP12*((LOG(AP12))/LOG(2)))) -> 0 | AS12: =N12 -> 0 | AT12: =COUNTIF(L70:L82,AS12) -> 0 | AU12: =AT12/(AV4-AT8) -> 0 | AV12: =IF(AU12=0,0,(AU12*((LOG(AU12))/LOG(2)))) -> 0
A13: 11 | B13: 714 | C13: 21 | D13: 726 | K13: 0 | L13: 12 | T13: =N13 -> 0 | U13: =COUNTIF(L7:L19,T13) -> 0 | V13: =U13/(W4-U8) -> 0 | W13: =IF(V13=0,0,(V13*((LOG(V13))/LOG(2)))) -> 0 | Y13: =N13 -> 0 | Z13: =COUNTIF(L20:L31,Y13) -> 0 | AA13: =Z13/(AB4-Z8) -> 0 | AB13: =IF(AA13=0,0,(AA13*((LOG(AA13))/LOG(2)))) -> 0 | AD13: =N13 -> 0 | AE13: =COUNTIF(L32:L44,AD13) -> 0 | AF13: =AE13/(AG4-AE8) -> 0 | AG13: =IF(AF13=0,0,(AF13*((LOG(AF13))/LOG(2)))) -> 0 | AI13: =N13 -> 0 | AJ13: =COUNTIF(L45:L57,AI13) -> 0 | AK13: =AJ13/(AL4-AJ8) -> 0 | AL13: =IF(AK13=0,0,(AK13*((LOG(AK13))/LOG(2)))) -> 0 | AN13: =N13 -> 0 | AO13: =COUNTIF(L58:L69,AN13) -> 0 | AP13: =AO13/(AQ4-AO8) -> 0 | AQ13: =IF(AP13=0,0,(AP13*((LOG(AP13))/LOG(2)))) -> 0 | AS13: =N13 -> 0 | AT13: =COUNTIF(L70:L82,AS13) -> 0 | AU13: =AT13/(AV4-AT8) -> 0 | AV13: =IF(AU13=0,0,(AU13*((LOG(AU13))/LOG(2)))) -> 0
A14: 11 | B14: 824 | C14: 21 | D14: 835 | K14: 0 | L14: 12 | T14: =N14 -> 0 | U14: =COUNTIF(L7:L19,T14) -> 0 | V14: =U14/(W4-U8) -> 0 | W14: =IF(V14=0,0,(V14*((LOG(V14))/LOG(2)))) -> 0 | Y14: =N14 -> 0 | Z14: =COUNTIF(L20:L31,Y14) -> 0 | AA14: =Z14/(AB4-Z8) -> 0 | AB14: =IF(AA14=0,0,(AA14*((LOG(AA14))/LOG(2)))) -> 0 | AD14: =N14 -> 0 | AE14: =COUNTIF(L32:L44,AD14) -> 0 | AF14: =AE14/(AG4-AE8) -> 0 | AG14: =IF(AF14=0,0,(AF14*((LOG(AF14))/LOG(2)))) -> 0 | AI14: =N14 -> 0 | AJ14: =COUNTIF(L45:L57,AI14) -> 0 | AK14: =AJ14/(AL4-AJ8) -> 0 | AL14: =IF(AK14=0,0,(AK14*((LOG(AK14))/LOG(2)))) -> 0 | AN14: =N14 -> 0 | AO14: =COUNTIF(L58:L69,AN14) -> 0 | AP14: =AO14/(AQ4-AO8) -> 0 | AQ14: =IF(AP14=0,0,(AP14*((LOG(AP14))/LOG(2)))) -> 0 | AS14: =N14 -> 0 | AT14: =COUNTIF(L70:L82,AS14) -> 0 | AU14: =AT14/(AV4-AT8) -> 0 | AV14: =IF(AU14=0,0,(AU14*((LOG(AU14))/LOG(2)))) -> 0
A15: 11 | B15: 933 | C15: 21 | D15: 944 | K15: 0 | L15: 12 | P15: =SUM(P7:P14) -> 1 | Q15: =-SUM(Q7:Q14) -> 1.482232652 | V15: =SUM(V7:V14) -> 1 | W15: =-SUM(W7:W14) -> 0 | AA15: =SUM(AA7:AA14) -> 1 | AB15: =-SUM(AB7:AB14) -> 0.8112781245 | AF15: =SUM(AF7:AF14) -> 1 | AG15: =-SUM(AG7:AG14) -> 0.4689955936 | AK15: =SUM(AK7:AK14) -> 1 | AL15: =-SUM(AL7:AL14) -> 0.8631205686 | AP15: =SUM(AP7:AP14) -> 1 | AQ15: =-SUM(AQ7:AQ14) -> 0.985228136 | AU15: =SUM(AU7:AU14) -> 1 | AV15: =-SUM(AV7:AV14) -> 0.9709505945
A16: 11 | B16: 1038 | C16: 21 | D16: 1049 | K16: 0 | L16: 12 | P16: U= | Q16: =Q15/(LOG(Q4)/LOG(2)) -> 0.2372358912 | V16: U1= | W16: =W15/(LOG(W4)/LOG(2)) -> 0 | AA16: U2= | AB16: =AB15/(LOG(AB4)/LOG(2)) -> 0.2263003098 | AF16: U3= | AG16: =AG15/(LOG(AG4)/LOG(2)) -> 0.1267405036 | AK16: U4= | AL16: =AL15/(LOG(AL4)/LOG(2)) -> 0.2332481095 | AP16: U5= | AQ16: =AQ15/(LOG(AQ4)/LOG(2)) -> 0.2748224384 | AU16: U6= | AV16: =AV15/(LOG(AV4)/LOG(2)) -> 0.2623878967
A17: 11 | B17: 1146 | C17: 21 | D17: 1158 | K17: 0 | L17: 12
A18: 11 | B18: 1266 | C18: 21 | D18: 1277 | K18: 0 | L18: 12
A19: 11 | B19: 1373 | C19: 21 | D19: 1385 | K19: 0 | L19: 12 | N19: Total Target Seq
A20: 11 | B20: 1483 | C20: 21 | D20: 1494 | K20: 0 | L20: 12 | N20: =COUNTIF(L7:L82,G3) -> 40 | P20: 13 | Q20: 12 | R20: 13 | S20: 13 | T20: 12 | U20: 13
A21: 11 | B21: 1597 | C21: 21 | D21: 1610 | K21: 0 | L21: 12 | P21: % of reinforcement given in 6 equal intervals based on number of trials
A22: 11 | B22: 1712 | C22: 21 | D22: 1723 | K22: 0 | L22: 12 | P22: %_1 | Q22: %_2 | R22: %_3 | S22: %_4 | T22: %_5 | U22: %_6
A23: 11 | B23: 1822 | C23: 12 | D23: 1836 | K23: 0 | L23: 11 | O23: target sequence | P23: =$G$3 -> 12 | Q23: =$G$3 -> 12 | R23: =$G$3 -> 12 | S23: =$G$3 -> 12 | T23: =$G$3 -> 12 | U23: =$G$3 -> 12
A24: 11 | B24: 1949 | C24: 21 | D24: 1961 | K24: 0 | L24: 12 | O24: total reinforcement | P24: =U8 -> 10 | Q24: =Z8 -> 8 | R24: =AE8 -> 3 | S24: =AJ8 -> 6 | T24: =AO8 -> 5 | U24: =AT8 -> 8
A25: 11 | B25: 2062 | C25: 21 | D25: 2073 | K25: 0 | L25: 12 | O25: % target
A26: 11 | B26: 2177 | C26: 21 | D26: 2189 | K26: 0 | L26: 12 | O26: CCRF
A27: 11 | B27: 2285 | C27: 21 | D27: 2294 | K27: 0 | L27: 12 | O27: % CCRf
A28: 22 | B28: 2388 | C28: 14 | D28: 2397 | K28: 0 | L28: 21 | O28: average response rate | P28: =D19/P20 -> 106.5384615 | Q28: =(D31-D19)/Q20 -> 113.25 | R28: =(D44-D31)/R20 -> 113.0769231 | S28: =(D57-D44)/S20 -> 114.0769231 | T28: =(D69-D57)/T20 -> 120.1666667 | U28: =(D82-D69)/U20 -> 117.3076923
A29: 22 | B29: 2498 | C29: 14 | D29: 2510 | K29: 0 | L29: 21
A30: 11 | B30: 2623 | C30: 21 | D30: 2637 | K30: 0 | L30: 12
A31: 22 | B31: 2729 | C31: 14 | D31: 2744 | K31: 0 | L31: 21
A32: 22 | B32: 2841 | C32: 14 | D32: 2855 | K32: 0 | L32: 21
A33: 22 | B33: 2953 | C33: 14 | D33: 2963 | K33: 0 | L33: 21
A34: 22 | B34: 3063 | C34: 14 | D34: 3078 | K34: 0 | L34: 21
A35: 22 | B35: 3176 | C35: 14 | D35: 3189 | K35: 0 | L35: 21
A36: 11 | B36: 3298 | C36: 21 | D36: 3311 | K36: 0 | L36: 12
A37: 11 | B37: 3417 | C37: 21 | D37: 3429 | K37: 0 | L37: 12
A38: 22 | B38: 3521 | C38: 14 | D38: 3529 | K38: 0 | L38: 21
A39: 22 | B39: 3627 | C39: 14 | D39: 3636 | K39: 0 | L39: 21
A40: 22 | B40: 3737 | C40: 14 | D40: 3748 | K40: 0 | L40: 21
A41: 11 | B41: 3856 | C41: 21 | D41: 3869 | K41: 0 | L41: 12
A42: 22 | B42: 3957 | C42: 14 | D42: 3971 | K42: 0 | L42: 21
A43: 22 | B43: 4070 | C43: 14 | D43: 4080 | K43: 0 | L43: 21
A44: 22 | B44: 4186 | C44: 23 | D44: 4214 | K44: 0 | L44: 22
A45: 22 | B45: 4315 | C45: 14 | D45: 4328 | K45: 0 | L45: 21
A46: 11 | B46: 4440 | C46: 21 | D46: 4453 | K46: 0 | L46: 12
A47: 22 | B47: 4547 | C47: 23 | D47: 4572 | K47: 0 | L47: 22
A48: 22 | B48: 4674 | C48: 14 | D48: 4684 | K48: 0 | L48: 21
A49: 11 | B49: 4795 | C49: 21 | D49: 4806 | K49: 0 | L49: 12
A50: 11 | B50: 4904 | C50: 21 | D50: 4916 | K50: 0 | L50: 12
A51: 22 | B51: 5006 | C51: 14 | D51: 5017 | K51: 0 | L51: 21
A52: 22 | B52: 5115 | C52: 23 | D52: 5129 | K52: 0 | L52: 22
A53: 11 | B53: 5239 | C53: 21 | D53: 5250 | K53: 0 | L53: 12
A54: 11 | B54: 5365 | C54: 21 | D54: 5376 | K54: 0 | L54: 12
A55: 11 | B55: 5473 | C55: 21 | D55: 5485 | K55: 0 | L55: 12
A56: 22 | B56: 5572 | C56: 14 | D56: 5582 | K56: 0 | L56: 21
A57: 22 | B57: 5689 | C57: 14 | D57: 5697 | K57: 0 | L57: 21
A58: 22 | B58: 5797 | C58: 23 | D58: 5830 | K58: 0 | L58: 22
A59: 22 | B59: 5931 | C59: 14 | D59: 5947 | K59: 0 | L59: 21
A60: 22 | B60: 6050 | C60: 14 | D60: 6059 | K60: 0 | L60: 21
A61: 11 | B61: 6166 | C61: 21 | D61: 6178 | K61: 0 | L61: 12
A62: 22 | B62: 6269 | C62: 23 | D62: 6302 | K62: 0 | L62: 22
A63: 22 | B63: 6443 | C63: 23 | D63: 6457 | K63: 0 | L63: 22
A64: 22 | B64: 6569 | C64: 23 | D64: 6580 | K64: 0 | L64: 22
A65: 22 | B65: 6681 | C65: 14 | D65: 6690 | K65: 0 | L65: 21
A66: 11 | B66: 6798 | C66: 21 | D66: 6809 | K66: 0 | L66: 12
A67: 11 | B67: 6902 | C67: 21 | D67: 6916 | K67: 0 | L67: 12
A68: 11 | B68: 7012 | C68: 21 | D68: 7024 | K68: 0 | L68: 12
A69: 11 | B69: 7128 | C69: 21 | D69: 7139 | K69: 0 | L69: 12
A70: 11 | B70: 7236 | C70: 21 | D70: 7248 | K70: 0 | L70: 12
A71: 22 | B71: 7363 | C71: 23 | D71: 7379 | K71: 0 | L71: 22
A72: 11 | B72: 7489 | C72: 21 | D72: 7522 | K72: 0 | L72: 12
A73: 22 | B73: 7629 | C73: 23 | D73: 7644 | K73: 0 | L73: 22
A74: 11 | B74: 7753 | C74: 21 | D74: 7764 | K74: 0 | L74: 12
A75: 11 | B75: 7864 | C75: 21 | D75: 7877 | K75: 0 | L75: 12
A76: 22 | B76: 7967 | C76: 14 | D76: 7974 | K76: 0 | L76: 21
A77: 11 | B77: 8089 | C77: 21 | D77: 8101 | K77: 0 | L77: 12
A78: 11 | B78: 8198 | C78: 21 | D78: 8208 | K78: 0 | L78: 12
A79: 11 | B79: 8313 | C79: 21 | D79: 8326 | K79: 0 | L79: 12
A80: 22 | B80: 8415 | C80: 23 | D80: 8441 | K80: 0 | L80: 22
A81: 22 | B81: 8539 | C81: 14 | D81: 8545 | K81: 0 | L81: 21
A82: 11 | B82: 8652 | C82: 21 | D82: 8664 | K82: 1 | L82: 12

Sheet !L820A30.055
A1: Report for:!L820A30.055
A2: Date: | B2: <date>
A3: Hen: | B3: <hen> | F3: Correct Sequence | G3: =Start!J2 -> 12 | P3: Total Sequences in Data | Q3: =4994-COUNTBLANK(L7:L5000) -> 116 | V3: Total Sequences in Block Data | W3: =COUNTA(L7:L25) -> 19 | AA3: Total Sequences in Block Data | AB3: =COUNTA(L26:L45) -> 20 | AF3: Total Sequences in Block Data | AG3: =COUNTA(L46:L64) -> 19 | AK3: Total Sequences in Block Data | AL3: =COUNTA(L65:L83) -> 19 | AP3: Total Sequences in Block Data | AQ3: =COUNTA(L84:L103) -> 20 | AU3: Total Sequences in Block Data | AV3: =COUNTA(L104:L122) -> 19
P4: Total Sequences in Summary | Q4: =SUM(O7:O14) -> 116 | V4: Total Sequences in Block Summary | W4: =SUM(U7:U14) -> 19 | AA4: Total Sequences in Block Summary | AB4: =SUM(Z7:Z14) -> 20 | AF4: Total Sequences in Block Summary | AG4: =SUM(AE7:AE14) -> 19 | AK4: Total Sequences in Block Summary | AL4: =SUM(AJ7:AJ14) -> 19 | AP4: Total Sequences in Block Summary | AQ4: =SUM(AO7:AO14) -> 20 | AU4: Total Sequences in Block Summary | AV4: =SUM(AT7:AT14) -> 19
T5: Block 1 | Y5: Block 2 | AD5: Block 3 | AI5: Block 4 | AN5: Block 5 | AS5: Block 6
A6: Sequence Component 1 | B6: Time 1 | C6: Sequence Component 2 | D6: Time 2 | E6: Sequence Component 3 | F6: Time 3 | G6: Sequence Component 4 | H6: Time 4 | I6: Sequence Component 5 | J6: Time 5 | K6: Correct? 0=No 1=Yes | L6: Sequence | N6: Frequency | P6: Relative Frequency | Q6: Variability | T6: Frequency | V6: Relative Frequency | W6: Variability | Y6: Frequency | AA6: Relative Frequency | AB6: Variability | AD6: Frequency | AF6: Relative Frequency | AG6: Variability | AI6: Frequency | AK6: Relative Frequency | AL6: Variability | AN6: Frequency | AP6: Relative Frequency | AQ6: Variability | AS6: Frequency | AU6: Relative Frequency | AV6: Variability
A7: 22 | B7: 16 | C7: 14 | D7: 29 | K7: 0 | L7: 21 | N7: 11 | O7: =COUNTIF($L$7:$L$500,N7) -> 2 | P7: =O7/$Q$4 -> 0.01724137931 | Q7: =IF(P7=0,0,(P7*((LOG(P7))/LOG(2)))) -> -0.1009996723 | T7: =N7 -> 11 | U7: =COUNTIF(L7:L25,T7) -> 0 | V7: =U7/(W4-U8) -> 0 | W7: =IF(V7=0,0,(V7*((LOG(V7))/LOG(2)))) -> 0 | Y7: =N7 -> 11 | Z7: =COUNTIF(L26:L45,Y7) -> 0 | AA7: =Z7/(AB4-Z8) -> 0 | AB7: =IF(AA7=0,0,(AA7*((LOG(AA7))/LOG(2)))) -> 0 | AD7: =N7 -> 11 | AE7: =COUNTIF(L46:L64,AD7) -> 1 | AF7: =AE7/(AG4-AE8) -> 0.07692307692 | AG7: =IF(AF7=0,0,(AF7*((LOG(AF7))/LOG(2)))) -> -0.2846492091 | AI7: =N7 -> 11 | AJ7: =COUNTIF(L65:L83,AI7) -> 1 | AK7: =AJ7/(AL4-AJ8) -> 0.07692307692 | AL7: =IF(AK7=0,0,(AK7*((LOG(AK7))/LOG(2)))) -> -0.2846492091 | AN7: =N7 -> 11 | AO7: =COUNTIF(L84:L103,AN7) -> 0 | AP7: =AO7/(AQ4-AO8) -> 0 | AQ7: =IF(AP7=0,0,(AP7*((LOG(AP7))/LOG(2)))) -> 0 | AS7: =N7 -> 11 | AT7: =COUNTIF(L104:L122,AS7) -> 0 | AU7: =AT7/(AV4-AT8) -> 0 | AV7: =IF(AU7=0,0,(AU7*((LOG(AU7))/LOG(2)))) -> 0
A8: 22 | B8: 130 | C8: 14 | D8: 141 | K8: 0 | L8: 21 | N8: 12 | O8: =COUNTIF($L$7:$L$500,N8) -> 40 | P8: =O8/$Q$4 -> 0.3448275862 | Q8: =IF(P8=0,0,(P8*((LOG(P8))/LOG(2)))) -> -0.5296734139 | T8: =N8 -> 12 | U8: =COUNTIF(L7:L25,T8) -> 3 | Y8: =N8 -> 12 | Z8: =COUNTIF(L26:L45,Y8) -> 11 | AD8: =N8 -> 12 | AE8: =COUNTIF(L46:L64,AD8) -> 6 | AI8: =N8 -> 12 | AJ8: =COUNTIF(L65:L83,AI8) -> 6 | AN8: =N8 -> 12 | AO8: =COUNTIF(L84:L103,AN8) -> 8 | AS8: =N8 -> 12 | AT8: =COUNTIF(L104:L122,AS8) -> 6
A9: 22 | B9: 242 | C9: 14 | D9: 256 | K9: 0 | L9: 21 | N9: 21 | O9: =COUNTIF($L$7:$L$500,N9) -> 50 | P9: =O9/$Q$4 -> 0.4310344828 | Q9: =IF(P9=0,0,(P9*((LOG(P9))/LOG(2)))) -> -0.5233296575 | T9: =N9 -> 21 | U9: =COUNTIF(L7:L25,T9) -> 12 | V9: =U9/(W4-U8) -> 0.75 | W9: =IF(V9=0,0,(V9*((LOG(V9))/LOG(2)))) -> -0.3112781245 | Y9: =N9 -> 21 | Z9: =COUNTIF(L26:L45,Y9) -> 5 | AA9: =Z9/(AB4-Z8) -> 0.5555555556 | AB9: =IF(AA9=0,0,(AA9*((LOG(AA9))/LOG(2)))) -> -0.4711093925 | AD9: =N9 -> 21 | AE9: =COUNTIF(L46:L64,AD9) -> 8 | AF9: =AE9/(AG4-AE8) -> 0.6153846154 | AG9: =IF(AF9=0,0,(AF9*((LOG(AF9))/LOG(2)))) -> -0.4310398265 | AI9: =N9 -> 21 | AJ9: =COUNTIF(L65:L83,AI9) -> 9 | AK9: =AJ9/(AL4-AJ8) -> 0.6923076923 | AL9: =IF(AK9=0,0,(AK9*((LOG(AK9))/LOG(2)))) -> -0.3672794193 | AN9: =N9 -> 21 | AO9: =COUNTIF(L84:L103,AN9) -> 7 | AP9: =AO9/(AQ4-AO8) -> 0.5833333333 | AQ9: =IF(AP9=0,0,(AP9*((LOG(AP9))/LOG(2)))) -> -0.4536044209 | AS9: =N9 -> 21 | AT9: =COUNTIF(L104:L122,AS9) -> 9 | AU9: =AT9/(AV4-AT8) -> 0.6923076923 | AV9: =IF(AU9=0,0,(AU9*((LOG(AU9))/LOG(2)))) -> -0.3672794193
A10: 22 | B10: 357 | C10: 23 | D10: 377 | K10: 0 | L10: 22 | N10: 22 | O10: =COUNTIF($L$7:$L$500,N10) -> 24 | P10: =O10/$Q$4 -> 0.2068965517 | Q10: =IF(P10=0,0,(P10*((LOG(P10))/LOG(2)))) -> -0.4702796885 | T10: =N10 -> 22 | U10: =COUNTIF(L7:L25,T10) -> 4 | V10: =U10/(W4-U8) -> 0.25 | W10: =IF(V10=0,0,(V10*((LOG(V10))/LOG(2)))) -> -0.5 | Y10: =N10 -> 22 | Z10: =COUNTIF(L26:L45,Y10) -> 4 | AA10: =Z10/(AB4-Z8) -> 0.4444444444 | AB10: =IF(AA10=0,0,(AA10*((LOG(AA10))/LOG(2)))) -> -0.5199666673 | AD10: =N10 -> 22 | AE10: =COUNTIF(L46:L64,AD10) -> 4 | AF10: =AE10/(AG4-AE8) -> 0.3076923077 | AG10: =IF(AF10=0,0,(AF10*((LOG(AF10))/LOG(2)))) -> -0.523212221 | AI10: =N10 -> 22 | AJ10: =COUNTIF(L65:L83,AI10) -> 3 | AK10: =AJ10/(AL4-AJ8) -> 0.2307692308 | AL10: =IF(AK10=0,0,(AK10*((LOG(AK10))/LOG(2)))) -> -0.4881870502 | AN10: =N10 -> 22 | AO10: =COUNTIF(L84:L103,AN10) -> 5 | AP10: =AO10/(AQ4-AO8) -> 0.4166666667 | AQ10: =IF(AP10=0,0,(AP10*((LOG(AP10))/LOG(2)))) -> -0.5262643358 | AS10: =N10 -> 22 | AT10: =COUNTIF(L104:L122,AS10) -> 4 | AU10: =AT10/(AV4-AT8) -> 0.3076923077 | AV10: =IF(AU10=0,0,(AU10*((LOG(AU10))/LOG(2)))) -> -0.523212221
A11: 22 | B11: 475 | C11: 14 | D11: 502 | K11: 0 | L11: 21 | T11: =N11 -> 0 | U11: =COUNTIF(L7:L25,T11) -> 0 | V11: =U11/(W4-U8) -> 0 | W11: =IF(V11=0,0,(V11*((LOG(V11))/LOG(2)))) -> 0 | Y11: =N11 -> 0 | Z11: =COUNTIF(L26:L45,Y11) -> 0 | AA11: =Z11/(AB4-Z8) -> 0 | AB11: =IF(AA11=0,0,(AA11*((LOG(AA11))/LOG(2)))) -> 0 | AD11: =N11 -> 0 | AE11: =COUNTIF(L46:L64,AD11) -> 0 | AF11: =AE11/(AG4-AE8) -> 0 | AG11: =IF(AF11=0,0,(AF11*((LOG(AF11))/LOG(2)))) -> 0 | AI11: =N11 -> 0 | AJ11: =COUNTIF(L65:L83,AI11) -> 0 | AK11: =AJ11/(AL4-AJ8) -> 0 | AL11: =IF(AK11=0,0,(AK11*((LOG(AK11))/LOG(2)))) -> 0 | AN11: =N11 -> 0 | AO11: =COUNTIF(L84:L103,AN11) -> 0 | AP11: =AO11/(AQ4-AO8) -> 0 | AQ11: =IF(AP11=0,0,(AP11*((LOG(AP11))/LOG(2)))) -> 0 | AS11: =N11 -> 0 | AT11: =COUNTIF(L104:L122,AS11) -> 0 | AU11: =AT11/(AV4-AT8) -> 0 | AV11: =IF(AU11=0,0,(AU11*((LOG(AU11))/LOG(2)))) -> 0
A12: 22 | B12: 602 | C12: 14 | D12: 613 | K12: 0 | L12: 21 | T12: =N12 -> 0 | U12: =COUNTIF(L7:L25,T12) -> 0 | V12: =U12/(W4-U8) -> 0 | W12: =IF(V12=0,0,(V12*((LOG(V12))/LOG(2)))) -> 0 | Y12: =N12 -> 0 | Z12: =COUNTIF(L26:L45,Y12) -> 0 | AA12: =Z12/(AB4-Z8) -> 0 | AB12: =IF(AA12=0,0,(AA12*((LOG(AA12))/LOG(2)))) -> 0 | AD12: =N12 -> 0 | AE12: =COUNTIF(L46:L64,AD12) -> 0 | AF12: =AE12/(AG4-AE8) -> 0 | AG12: =IF(AF12=0,0,(AF12*((LOG(AF12))/LOG(2)))) -> 0 | AI12: =N12 -> 0 | AJ12: =COUNTIF(L65:L83,AI12) -> 0 | AK12: =AJ12/(AL4-AJ8) -> 0 | AL12: =IF(AK12=0,0,(AK12*((LOG(AK12))/LOG(2)))) -> 0 | AN12: =N12 -> 0 | AO12: =COUNTIF(L84:L103,AN12) -> 0 | AP12: =AO12/(AQ4-AO8) -> 0 | AQ12: =IF(AP12=0,0,(AP12*((LOG(AP12))/LOG(2)))) -> 0 | AS12: =N12 -> 0 | AT12: =COUNTIF(L104:L122,AS12) -> 0 | AU12: =AT12/(AV4-AT8) -> 0 | AV12: =IF(AU12=0,0,(AU12*((LOG(AU12))/LOG(2)))) -> 0
A13: 22 | B13: 714 | C13: 23 | D13: 728 | K13: 0 | L13: 22 | T13: =N13 -> 0 | U13: =COUNTIF(L7:L25,T13) -> 0 | V13: =U13/(W4-U8) -> 0 | W13: =IF(V13=0,0,(V13*((LOG(V13))/LOG(2)))) -> 0 | Y13: =N13 -> 0 | Z13: =COUNTIF(L26:L45,Y13) -> 0 | AA13: =Z13/(AB4-Z8) -> 0 | AB13: =IF(AA13=0,0,(AA13*((LOG(AA13))/LOG(2)))) -> 0 | AD13: =N13 -> 0 | AE13: =COUNTIF(L46:L64,AD13) -> 0 | AF13: =AE13/(AG4-AE8) -> 0 | AG13: =IF(AF13=0,0,(AF13*((LOG(AF13))/LOG(2)))) -> 0 | AI13: =N13 -> 0 | AJ13: =COUNTIF(L65:L83,AI13) -> 0 | AK13: =AJ13/(AL4-AJ8) -> 0 | AL13: =IF(AK13=0,0,(AK13*((LOG(AK13))/LOG(2)))) -> 0 | AN13: =N13 -> 0 | AO13: =COUNTIF(L84:L103,AN13) -> 0 | AP13: =AO13/(AQ4-AO8) -> 0 | AQ13: =IF(AP13=0,0,(AP13*((LOG(AP13))/LOG(2)))) -> 0 | AS13: =N13 -> 0 | AT13: =COUNTIF(L104:L122,AS13) -> 0 | AU13: =AT13/(AV4-AT8) -> 0 | AV13: =IF(AU13=0,0,(AU13*((LOG(AU13))/LOG(2)))) -> 0
A14: 11 | B14: 843 | C14: 21 | D14: 854 | K14: 0 | L14: 12 | T14: =N14 -> 0 | U14: =COUNTIF(L7:L25,T14) -> 0 | V14: =U14/(W4-U8) -> 0 | W14: =IF(V14=0,0,(V14*((LOG(V14))/LOG(2)))) -> 0 | Y14: =N14 -> 0 | Z14: =COUNTIF(L26:L45,Y14) -> 0 | AA14: =Z14/(AB4-Z8) -> 0 | AB14: =IF(AA14=0,0,(AA14*((LOG(AA14))/LOG(2)))) -> 0 | AD14: =N14 -> 0 | AE14: =COUNTIF(L46:L64,AD14) -> 0 | AF14: =AE14/(AG4-AE8) -> 0 | AG14: =IF(AF14=0,0,(AF14*((LOG(AF14))/LOG(2)))) -> 0 | AI14: =N14 -> 0 | AJ14: =COUNTIF(L65:L83,AI14) -> 0 | AK14: =AJ14/(AL4-AJ8) -> 0 | AL14: =IF(AK14=0,0,(AK14*((LOG(AK14))/LOG(2)))) -> 0 | AN14: =N14 -> 0 | AO14: =COUNTIF(L84:L103,AN14) -> 0 | AP14: =AO14/(AQ4-AO8) -> 0 | AQ14: =IF(AP14=0,0,(AP14*((LOG(AP14))/LOG(2)))) -> 0 | AS14: =N14 -> 0 | AT14: =COUNTIF(L104:L122,AS14) -> 0 | AU14: =AT14/(AV4-AT8) -> 0 | AV14: =IF(AU14=0,0,(AU14*((LOG(AU14))/LOG(2)))) -> 0
A15: 22 | B15: 948 | C15: 14 | D15: 956 | K15: 0 | L15: 21 | P15: =SUM(P7:P14) -> 1 | Q15: =-SUM(Q7:Q14) -> 1.624282432 | V15: =SUM(V7:V14) -> 1 | W15: =-SUM(W7:W14) -> 0.8112781245 | AA15: =SUM(AA7:AA14) -> 1 | AB15: =-SUM(AB7:AB14) -> 0.9910760598 | AF15: =SUM(AF7:AF14) -> 1 | AG15: =-SUM(AG7:AG14) -> 1.238901257 | AK15: =SUM(AK7:AK14) -> 1 | AL15: =-SUM(AL7:AL14) -> 1.140115679 | AP15: =SUM(AP7:AP14) -> 1 | AQ15: =-SUM(AQ7:AQ14) -> 0.9798687567 | AU15: =SUM(AU7:AU14) -> 1 | AV15: =-SUM(AV7:AV14) -> 0.8904916402
A16: 22 | B16: 1061 | C16: 14 | D16: 1069 | K16: 0 | L16: 21 | P16: U= | Q16: =Q15/(LOG(Q4)/LOG(2)) -> 0.2368455721 | V16: U1= | W16: =W15/(LOG(W4)/LOG(2)) -> 0.1909821017 | AA16: U2= | AB16: =AB15/(LOG(AB4)/LOG(2)) -> 0.2293134078 | AF16: U3= | AG16: =AG15/(LOG(AG4)/LOG(2)) -> 0.2916483986 | AK16: U4= | AL16: =AL15/(LOG(AL4)/LOG(2)) -> 0.268393393 | AP16: U5= | AQ16: =AQ15/(LOG(AQ4)/LOG(2)) -> 0.226720282 | AU16: U6= | AV16: =AV15/(LOG(AV4)/LOG(2)) -> 0.2096296694
A17: 22 | B17: 1169 | C17: 14 | D17: 1183 | K17: 0 | L17: 21
A18: 22 | B18: 1282 | C18: 23 | D18: 1306 | K18: 0 | L18: 22
A19: 22 | B19: 1406 | C19: 14 | D19: 1416 | K19: 0 | L19: 21 | N19: Total Target Seq
A20: 11 | B20: 1531 | C20: 21 | D20: 1542 | K20: 0 | L20: 12 | N20: =COUNTIF(L7:L122,G3) -> 40 | P20: 19 | Q20: 20 | R20: 19 | S20: 19 | T20: 20 | U20: 19
A21: 22 | B21: 1635 | C21: 14 | D21: 1646 | K21: 0 | L21: 21 | P21: % of reinforcement given in 6 equal intervals based on number of trials
A22: 22 | B22: 1743 | C22: 14 | D22: 1753 | K22: 0 | L22: 21 | P22: %_1 | Q22: %_2 | R22: %_3 | S22: %_4 | T22: %_5 | U22: %_6
A23: 22 | B23: 1852 | C23: 14 | D23: 1872 | K23: 0 | L23: 21 | O23: target sequence | P23: =$G$3 -> 12 | Q23: =$G$3 -> 12 | R23: =$G$3 -> 12 | S23: =$G$3 -> 12 | T23: =$G$3 -> 12 | U23: =$G$3 -> 12
A24: 22 | B24: 1985 | C24: 23 | D24: 1997 | K24: 0 | L24: 22 | O24: total reinforcement | P24: =U8 -> 3 | Q24: =Z8 -> 11 | R24: =AE8 -> 6 | S24: =AJ8 -> 6 | T24: =AO8 -> 8 | U24: =AT8 -> 6
A25: 11 | B25: 2116 | C25: 21 | D25: 2128 | K25: 0 | L25: 12 | O25: % target
A26: 22 | B26: 2243 | C26: 23 | D26: 2257 | K26: 0 | L26: 22 | O26: CCRF
A27: 22 | B27: 2356 | C27: 14 | D27: 2366 | K27: 0 | L27: 21 | O27: % CCRf
A28: 22 | B28: 2466 | C28: 14 | D28: 2476 | K28: 0 | L28: 21 | O28: average response rate | P28: =D25/P20 -> 112 | Q28: =(D45-D25)/Q20 -> 116.9 | R28: =(D64-D45)/R20 -> 117.8421053 | S28: =(D83-D64)/S20 -> 115.3157895 | T28: =(D103-D83)/T20 -> 117.3 | U28: =(D122-D103)/U20 -> 115.6842105
A29: 22 | B29: 2581 | C29: 23 | D29: 2594 | K29: 0 | L29: 22
A30: 11 | B30: 2705 | C30: 21 | D30: 2718 | K30: 0 | L30: 12
A31: 11 | B31: 2827 | C31: 21 | D31: 2840 | K31: 0 | L31: 12
A32: 11 | B32: 2941 | C32: 21 | D32: 2952 | K32: 0 | L32: 12
A33: 11 | B33: 3051 | C33: 21 | D33: 3063 | K33: 0 | L33: 12
A34: 22 | B34: 3152 | C34: 14 | D34: 3160 | K34: 0 | L34: 21
A35: 11 | B35: 3277 | C35: 21 | D35: 3289 | K35: 0 | L35: 12
A36: 11 | B36: 3388 | C36: 21 | D36: 3401 | K36: 0 | L36: 12
A37: 11 | B37: 3509 | C37: 21 | D37: 3520 | K37: 0 | L37: 12
A38: 11 | B38: 3612 | C38: 21 | D38: 3623 | K38: 0 | L38: 12
A39: 22 | B39: 3716 | C39: 14 | D39: 3725 | K39: 0 | L39: 21
A40: 22 | B40: 3848 | C40: 23 | D40: 3864 | K40: 0 | L40: 22
A41: 22 | B41: 3961 | C41: 14 | D41: 3980 | K41: 0 | L41: 21
A42: 11 | B42: 4096 | C42: 21 | D42: 4108 | K42: 0 | L42: 12
A43: 11 | B43: 4207 | C43: 21 | D43: 4219 | K43: 0 | L43: 12
A44: 22 | B44: 4329 | C44: 23 | D44: 4343 | K44: 0 | L44: 22
A45: 11 | B45: 4454 | C45: 21 | D45: 4466 | K45: 0 | L45: 12
A46: 11 | B46: 4564 | C46: 21 | D46: 4573 | K46: 0 | L46: 12
A47: 11 | B47: 4666 | C47: 21 | D47: 4699 | K47: 0 | L47: 12
A48: 22 | B48: 4811 | C48: 23 | D48: 4820 | K48: 0 | L48: 22
A49: 11 | B49: 4944 | C49: 21 | D49: 4955 | K49: 0 | L49: 12
A50: 11 | B50: 5054 | C50: 12 | D50: 5066 | K50: 0 | L50: 11
A51: 22 | B51: 5163 | C51: 23 | D51: 5189 | K51: 0 | L51: 22
A52: 11 | B52: 5295 | C52: 21 | D52: 5307 | K52: 0 | L52: 12
A53: 22 | B53: 5398 | C53: 14 | D53: 5412 | K53: 0 | L53: 21
A54: 22 | B54: 5509 | C54: 14 | D54: 5517 | K54: 0 | L54: 21
A55: 22 | B55: 5616 | C55: 14 | D55: 5625 | K55: 0 | L55: 21
A56: 22 | B56: 5722 | C56: 14 | D56: 5731 | K56: 0 | L56: 21
A57: 22 | B57: 5862 | C57: 23 | D57: 5876 | K57: 0 | L57: 22
A58: 22 | B58: 5978 | C58: 14 | D58: 5987 | K58: 0 | L58: 21
A59: 22 | B59: 6085 | C59: 23 | D59: 6111 | K59: 0 | L59: 22
A60: 22 | B60: 6209 | C60: 14 | D60: 6221 | K60: 0 | L60: 21
A61: 22 | B61: 6327 | C61: 14 | D61: 6341 | K61: 0 | L61: 21
A62: 22 | B62: 6442 | C62: 14 | D62: 6458 | K62: 0 | L62: 21
A63: 11 | B63: 6584 | C63: 21 | D63: 6596 | K63: 0 | L63: 12
A64: 11 | B64: 6694 | C64: 21 | D64: 6705 | K64: 0 | L64: 12
A65: 11 | B65: 6802 | C65: 21 | D65: 6814 | K65: 0 | L65: 12
A66: 11 | B66: 6916 | C66: 21 | D66: 6927 | K66: 0 | L66: 12
A67: 11 | B67: 7023 | C67: 12 | D67: 7044 | K67: 0 | L67: 11
A68: 22 | B68: 7141 | C68: 14 | D68: 7150 | K68: 0 | L68: 21
A69: 22 | B69: 7261 | C69: 14 | D69: 7268 | K69: 0 | L69: 21
A70: 11 | B70: 7379 | C70: 21 | D70: 7392 | K70: 0 | L70: 12
A71: 22 | B71: 7482 | C71: 23 | D71: 7504 | K71: 0 | L71: 22
A72: 11 | B72: 7621 | C72: 21 | D72: 7632 | K72: 0 | L72: 12
A73: 22 | B73: 7721 | C73: 14 | D73: 7733 | K73: 0 | L73: 21
A74: 11 | B74: 7844 | C74: 21 | D74: 7856 | K74: 0 | L74: 12
A75: 22 | B75: 7949 | C75: 23 | D75: 7970 | K75: 0 | L75: 22
A76: 22 | B76: 8067 | C76: 14 | D76: 8075 | K76: 0 | L76: 21
A77: 22 | B77: 8174 | C77: 14 | D77: 8182 | K77: 0 | L77: 21
A78: 22 | B78: 8293 | C78: 14 | D78: 8301 | K78: 0 | L78: 21
A79: 22 | B79: 8398 | C79: 14 | D79: 8411 | K79: 0 | L79: 21
A80: 22 | B80: 8511 | C80: 14 | D80: 8536 | K80: 0 | L80: 21
A81: 22 | B81: 8633 | C81: 14 | D81: 8647 | K81: 0 | L81: 21
A82: 11 | B82: 8761 | C82: 21 | D82: 8773 | K82: 0 | L82: 12
A83: 22 | B83: 8864 | C83: 23 | D83: 8896 | K83: 0 | L83: 22
A84: 22 | B84: 9001 | C84: 23 | D84: 9024 | K84: 0 | L84: 22
A85: 22 | B85: 9126 | C85: 14 | D85: 9138 | K85: 0 | L85: 21
A86: 22 | B86: 9237 | C86: 23 | D86: 9256 | K86: 0 | L86: 22
A87: 11 | B87: 9362 | C87: 21 | D87: 9374 | K87: 0 | L87: 12
A88: 22 | B88: 9462 | C88: 14 | D88: 9476 | K88: 0 | L88: 21
A89: 22 | B89: 9573 | C89: 23 | D89: 9595 | K89: 0 | L89: 22
A90: 22 | B90: 9698 | C90: 14 | D90: 9713 | K90: 0 | L90: 21
A91: 22 | B91: 9811 | C91: 23 | D91: 9831 | K91: 0 | L91: 22
A92: 22 | B92: 9928 | C92: 14 | D92: 9941 | K92: 0 | L92: 21
A93: 11 | B93: 10055 | C93: 21 | D93: 10066 | K93: 0 | L93: 12
A94: 11 | B94: 10167 | C94: 21 | D94: 10180 | K94: 0 | L94: 12
A95: 11 | B95: 10279 | C95: 21 | D95: 10290 | K95: 0 | L95: 12
A96: 11 | B96: 10390 | C96: 21 | D96: 10402 | K96: 0 | L96: 12
A97: 11 | B97: 10504 | C97: 21 | D97: 10518 | K97: 0 | L97: 12
A98: 11 | B98: 10619 | C98: 21 | D98: 10632 | K98: 0 | L98: 12
A99: 22 | B99: 10720 | C99: 14 | D99: 10731 | K99: 0 | L99: 21
A100: 22 | B100: 10831 | C100: 14 | D100: 10844 | K100: 0 | L100: 21
A101: 11 | B101: 10961 | C101: 21 | D101: 10972 | K101: 0 | L101: 12
A102: 22 | B102: 11123 | C102: 23 | D102: 11135 | K102: 0 | L102: 22
A103: 22 | B103: 11233 | C103: 14 | D103: 11242 | K103: 0 | L103: 21
A104: 11 | B104: 11348 | C104: 21 | D104: 11358 | K104: 0 | L104: 12
A105: 11 | B105: 11458 | C105: 21 | D105: 11469 | K105: 0 | L105: 12
A106: 22 | B106: 11577 | C106: 23 | D106: 11589 | K106: 0 | L106: 22
A107: 11 | B107: 11706 | C107: 21 | D107: 11718 | K107: 0 | L107: 12
A108: 22 | B108: 11808 | C108: 23 | D108: 11828 | K108: 0 | L108: 22
A109: 22 | B109: 11925 | C109: 14 | D109: 11939 | K109: 0 | L109: 21
A110: 22 | B110: 12039 | C110: 14 | D110: 12057 | K110: 0 | L110: 21
A111: 22 | B111: 12155 | C111: 14 | D111: 12178 | K111: 0 | L111: 21
A112: 22 | B112: 12293 | C112: 14 | D112: 12302 | K112: 0 | L112: 21
A113: 22 | B113: 12398 | C113: 23 | D113: 12412 | K113: 0 | L113: 22
A114: 22 | B114: 12512 | C114: 14 | D114: 12524 | K114: 0 | L114: 21
A115: 22 | B115: 12622 | C115: 14 | D115: 12632 | K115: 0 | L115: 21
A116: 22 | B116: 12728 | C116: 14 | D116: 12744 | K116: 0 | L116: 21
A117: 22 | B117: 12865 | C117: 23 | D117: 12879 | K117: 0 | L117: 22
A118: 11 | B118: 12996 | C118: 21 | D118: 13009 | K118: 0 | L118: 12
A119: 22 | B119: 13102 | C119: 14 | D119: 13110 | K119: 0 | L119: 21
A120: 22 | B120: 13207 | C120: 14 | D120: 13219 | K120: 0 | L120: 21
A121: 11 | B121: 13327 | C121: 21 | D121: 13337 | K121: 0 | L121: 12
A122: 11 | B122: 13431 | C122: 21 | D122: 13440 | K122: 1 | L122: 12

Sheet !L821C20.055
A1: Report for:!L821C20.055
A2: Date: | B2: <date>
A3: Hen: | B3: <hen> | F3: Correct Sequence | G3: =Start!J2 -> 12 | P3: Total Sequences in Data | Q3: =4994-COUNTBLANK(L7:L5000) -> 68 | V3: Total Sequences in Block Data | W3: =COUNTA(L7:L17) -> 11 | AA3: Total Sequences in Block Data | AB3: =COUNTA(L18:L29) -> 12 | AF3: Total Sequences in Block Data | AG3: =COUNTA(L30:L40) -> 11 | AK3: Total Sequences in Block Data | AL3: =COUNTA(L41:L51) -> 11 | AP3: Total Sequences in Block Data | AQ3: =COUNTA(L52:L63) -> 12 | AU3: Total Sequences in Block Data | AV3: =COUNTA(L64:L74) -> 11
P4: Total Sequences in Summary | Q4: =SUM(O7:O14) -> 68 | V4: Total Sequences in Block Summary | W4: =SUM(U7:U14) -> 11 | AA4: Total Sequences in Block Summary | AB4: =SUM(Z7:Z14) -> 12 | AF4: Total Sequences in Block Summary | AG4: =SUM(AE7:AE14) -> 11 | AK4: Total Sequences in Block Summary | AL4: =SUM(AJ7:AJ14) -> 11 | AP4: Total Sequences in Block Summary | AQ4: =SUM(AO7:AO14) -> 12 | AU4: Total Sequences in Block Summary | AV4: =SUM(AT7:AT14) -> 11
T5: Block 1 | Y5: Block 2 | AD5: Block 3 | AI5: Block 4 | AN5: Block 5 | AS5: Block 6
A6: Sequence Component 1 | B6: Time 1 | C6: Sequence Component 2 | D6: Time 2 | E6: Sequence Component 3 | F6: Time 3 | G6: Sequence Component 4 | H6: Time 4 | I6: Sequence Component 5 | J6: Time 5 | K6: Correct? 0=No 1=Yes | L6: Sequence | N6: Frequency | P6: Relative Frequency | Q6: Variability | T6: Frequency | V6: Relative Frequency | W6: Variability | Y6: Frequency | AA6: Relative Frequency | AB6: Variability | AD6: Frequency | AF6: Relative Frequency | AG6: Variability | AI6: Frequency | AK6: Relative Frequency | AL6: Variability | AN6: Frequency | AP6: Relative Frequency | AQ6: Variability | AS6: Frequency | AU6: Relative Frequency | AV6: Variability
A7: 22 | B7: 10 | C7: 23 | D7: 29 | K7: 0 | L7: 22 | N7: 11 | O7: =COUNTIF($L$7:$L$500,N7) -> 3 | P7: =O7/$Q$4 -> 0.04411764706 | Q7: =IF(P7=0,0,(P7*((LOG(P7))/LOG(2)))) -> -0.1986397209 | T7: =N7 -> 11 | U7: =COUNTIF(L7:L17,T7) -> 0 | V7: =U7/(W4-U8) -> 0 | W7: =IF(V7=0,0,(V7*((LOG(V7))/LOG(2)))) -> 0 | Y7: =N7 -> 11 | Z7: =COUNTIF(L18:L29,Y7) -> 1 | AA7: =Z7/(AB4-Z8) -> 0.1428571429 | AB7: =IF(AA7=0,0,(AA7*((LOG(AA7))/LOG(2)))) -> -0.4010507032 | AD7: =N7 -> 11 | AE7: =COUNTIF(L30:L40,AD7) -> 0 | AF7: =AE7/(AG4-AE8) -> 0 | AG7: =IF(AF7=0,0,(AF7*((LOG(AF7))/LOG(2)))) -> 0 | AI7: =N7 -> 11 | AJ7: =COUNTIF(L41:L51,AI7) -> 2 | AK7: =AJ7/(AL4-AJ8) -> 0.6666666667 | AL7: =IF(AK7=0,0,(AK7*((LOG(AK7))/LOG(2)))) -> -0.3899750005 | AN7: =N7 -> 11 | AO7: =COUNTIF(L52:L63,AN7) -> 0 | AP7: =AO7/(AQ4-AO8) -> 0 | AQ7: =IF(AP7=0,0,(AP7*((LOG(AP7))/LOG(2)))) -> 0 | AS7: =N7 -> 11 | AT7: =COUNTIF(L64:L74,AS7) -> 0 | AU7: =AT7/(AV4-AT8) ->  | AV7: =IF(AU7=0,0,(AU7*((LOG(AU7))/LOG(2)))) -> 
A8: 22 | B8: 128 | C8: 23 | D8: 163 | K8: 0 | L8: 22 | N8: 12 | O8: =COUNTIF($L$7:$L$500,N8) -> 40 | P8: =O8/$Q$4 -> 0.5882352941 | Q8: =IF(P8=0,0,(P8*((LOG(P8))/LOG(2)))) -> -0.4503145567 | T8: =N8 -> 12 | U8: =COUNTIF(L7:L17,T8) -> 4 | Y8: =N8 -> 12 | Z8: =COUNTIF(L18:L29,Y8) -> 5 | AD8: =N8 -> 12 | AE8: =COUNTIF(L30:L40,AD8) -> 7 | AI8: =N8 -> 12 | AJ8: =COUNTIF(L41:L51,AI8) -> 8 | AN8: =N8 -> 12 | AO8: =COUNTIF(L52:L63,AN8) -> 5 | AS8: =N8 -> 12 | AT8: =COUNTIF(L64:L74,AS8) -> 11
A9: 11 | B9: 277 | C9: 21 | D9: 290 | K9: 0 | L9: 12 | N9: 21 | O9: =COUNTIF($L$7:$L$500,N9) -> 16 | P9: =O9/$Q$4 -> 0.2352941176 | Q9: =IF(P9=0,0,(P9*((LOG(P9))/LOG(2)))) -> -0.4911677274 | T9: =N9 -> 21 | U9: =COUNTIF(L7:L17,T9) -> 3 | V9: =U9/(W4-U8) -> 0.4285714286 | W9: =IF(V9=0,0,(V9*((LOG(V9))/LOG(2)))) -> -0.5238824663 | Y9: =N9 -> 21 | Z9: =COUNTIF(L18:L29,Y9) -> 5 | AA9: =Z9/(AB4-Z8) -> 0.7142857143 | AB9: =IF(AA9=0,0,(AA9*((LOG(AA9))/LOG(2)))) -> -0.346733448 | AD9: =N9 -> 21 | AE9: =COUNTIF(L30:L40,AD9) -> 2 | AF9: =AE9/(AG4-AE8) -> 0.5 | AG9: =IF(AF9=0,0,(AF9*((LOG(AF9))/LOG(2)))) -> -0.5 | AI9: =N9 -> 21 | AJ9: =COUNTIF(L41:L51,AI9) -> 1 | AK9: =AJ9/(AL4-AJ8) -> 0.3333333333 | AL9: =IF(AK9=0,0,(AK9*((LOG(AK9))/LOG(2)))) -> -0.5283208336 | AN9: =N9 -> 21 | AO9: =COUNTIF(L52:L63,AN9) -> 5 | AP9: =AO9/(AQ4-AO8) -> 0.7142857143 | AQ9: =IF(AP9=0,0,(AP9*((LOG(AP9))/LOG(2)))) -> -0.346733448 | AS9: =N9 -> 21 | AT9: =COUNTIF(L64:L74,AS9) -> 0 | AU9: =AT9/(AV4-AT8) ->  | AV9: =IF(AU9=0,0,(AU9*((LOG(AU9))/LOG(2)))) -> 
A10: 11 | B10: 392 | C10: 21 | D10: 404 | K10: 0 | L10: 12 | N10: 22 | O10: =COUNTIF($L$7:$L$500,N10) -> 9 | P10: =O10/$Q$4 -> 0.1323529412 | Q10: =IF(P10=0,0,(P10*((LOG(P10))/LOG(2)))) -> -0.3861447141 | T10: =N10 -> 22 | U10: =COUNTIF(L7:L17,T10) -> 4 | V10: =U10/(W4-U8) -> 0.5714285714 | W10: =IF(V10=0,0,(V10*((LOG(V10))/LOG(2)))) -> -0.4613456697 | Y10: =N10 -> 22 | Z10: =COUNTIF(L18:L29,Y10) -> 1 | AA10: =Z10/(AB4-Z8) -> 0.1428571429 | AB10: =IF(AA10=0,0,(AA10*((LOG(AA10))/LOG(2)))) -> -0.4010507032 | AD10: =N10 -> 22 | AE10: =COUNTIF(L30:L40,AD10) -> 2 | AF10: =AE10/(AG4-AE8) -> 0.5 | AG10: =IF(AF10=0,0,(AF10*((LOG(AF10))/LOG(2)))) -> -0.5 | AI10: =N10 -> 22 | AJ10: =COUNTIF(L41:L51,AI10) -> 0 | AK10: =AJ10/(AL4-AJ8) -> 0 | AL10: =IF(AK10=0,0,(AK10*((LOG(AK10))/LOG(2)))) -> 0 | AN10: =N10 -> 22 | AO10: =COUNTIF(L52:L63,AN10) -> 2 | AP10: =AO10/(AQ4-AO8) -> 0.2857142857 | AQ10: =IF(AP10=0,0,(AP10*((LOG(AP10))/LOG(2)))) -> -0.5163871206 | AS10: =N10 -> 22 | AT10: =COUNTIF(L64:L74,AS10) -> 0 | AU10: =AT10/(AV4-AT8) ->  | AV10: =IF(AU10=0,0,(AU10*((LOG(AU10))/LOG(2)))) -> 
A11: 22 | B11: 498 | C11: 23 | D11: 526 | K11: 0 | L11: 22 | T11: =N11 -> 0 | U11: =COUNTIF(L7:L17,T11) -> 0 | V11: =U11/(W4-U8) -> 0 | W11: =IF(V11=0,0,(V11*((LOG(V11))/LOG(2)))) -> 0 | Y11: =N11 -> 0 | Z11: =COUNTIF(L18:L29,Y11) -> 0 | AA11: =Z11/(AB4-Z8) -> 0 | AB11: =IF(AA11=0,0,(AA11*((LOG(AA11))/LOG(2)))) -> 0 | AD11: =N11 -> 0 | AE11: =COUNTIF(L30:L40,AD11) -> 0 | AF11: =AE11/(AG4-AE8) -> 0 | AG11: =IF(AF11=0,0,(AF11*((LOG(AF11))/LOG(2)))) -> 0 | AI11: =N11 -> 0 | AJ11: =COUNTIF(L41:L51,AI11) -> 0 | AK11: =AJ11/(AL4-AJ8) -> 0 | AL11: =IF(AK11=0,0,(AK11*((LOG(AK11))/LOG(2)))) -> 0 | AN11: =N11 -> 0 | AO11: =COUNTIF(L52:L63,AN11) -> 0 | AP11: =AO11/(AQ4-AO8) -> 0 | AQ11: =IF(AP11=0,0,(AP11*((LOG(AP11))/LOG(2)))) -> 0 | AS11: =N11 -> 0 | AT11: =COUNTIF(L64:L74,AS11) -> 0 | AU11: =AT11/(AV4-AT8) ->  | AV11: =IF(AU11=0,0,(AU11*((LOG(AU11))/LOG(2)))) -> 
A12: 22 | B12: 625 | C12: 14 | D12: 634 | K12: 0 | L12: 21 | T12: =N12 -> 0 | U12: =COUNTIF(L7:L17,T12) -> 0 | V12: =U12/(W4-U8) -> 0 | W12: =IF(V12=0,0,(V12*((LOG(V12))/LOG(2)))) -> 0 | Y12: =N12 -> 0 | Z12: =COUNTIF(L18:L29,Y12) -> 0 | AA12: =Z12/(AB4-Z8) -> 0 | AB12: =IF(AA12=0,0,(AA12*((LOG(AA12))/LOG(2)))) -> 0 | AD12: =N12 -> 0 | AE12: =COUNTIF(L30:L40,AD12) -> 0 | AF12: =AE12/(AG4-AE8) -> 0 | AG12: =IF(AF12=0,0,(AF12*((LOG(AF12))/LOG(2)))) -> 0 | AI12: =N12 -> 0 | AJ12: =COUNTIF(L41:L51,AI12) -> 0 | AK12: =AJ12/(AL4-AJ8) -> 0 | AL12: =IF(AK12=0,0,(AK12*((LOG(AK12))/LOG(2)))) -> 0 | AN12: =N12 -> 0 | AO12: =COUNTIF(L52:L63,AN12) -> 0 | AP12: =AO12/(AQ4-AO8) -> 0 | AQ12: =IF(AP12=0,0,(AP12*((LOG(AP12))/LOG(2)))) -> 0 | AS12: =N12 -> 0 | AT12: =COUNTIF(L64:L74,AS12) -> 0 | AU12: =AT12/(AV4-AT8) ->  | AV12: =IF(AU12=0,0,(AU12*((LOG(AU12))/LOG(2)))) -> 
A13: 22 | B13: 733 | C13: 14 | D13: 741 | K13: 0 | L13: 21 | T13: =N13 -> 0 | U13: =COUNTIF(L7:L17,T13) -> 0 | V13: =U13/(W4-U8) -> 0 | W13: =IF(V13=0,0,(V13*((LOG(V13))/LOG(2)))) -> 0 | Y13: =N13 -> 0 | Z13: =COUNTIF(L18:L29,Y13) -> 0 | AA13: =Z13/(AB4-Z8) -> 0 | AB13: =IF(AA13=0,0,(AA13*((LOG(AA13))/LOG(2)))) -> 0 | AD13: =N13 -> 0 | AE13: =COUNTIF(L30:L40,AD13) -> 0 | AF13: =AE13/(AG4-AE8) -> 0 | AG13: =IF(AF13=0,0,(AF13*((LOG(AF13))/LOG(2)))) -> 0 | AI13: =N13 -> 0 | AJ13: =COUNTIF(L41:L51,AI13) -> 0 | AK13: =AJ13/(AL4-AJ8) -> 0 | AL13: =IF(AK13=0,0,(AK13*((LOG(AK13))/LOG(2)))) -> 0 | AN13: =N13 -> 0 | AO13: =COUNTIF(L52:L63,AN13) -> 0 | AP13: =AO13/(AQ4-AO8) -> 0 | AQ13: =IF(AP13=0,0,(AP13*((LOG(AP13))/LOG(2)))) -> 0 | AS13: =N13 -> 0 | AT13: =COUNTIF(L64:L74,AS13) -> 0 | AU13: =AT13/(AV4-AT8) ->  | AV13: =IF(AU13=0,0,(AU13*((LOG(AU13))/LOG(2)))) -> 
A14: 11 | B14: 847 | C14: 21 | D14: 856 | K14: 0 | L14: 12 | T14: =N14 -> 0 | U14: =COUNTIF(L7:L17,T14) -> 0 | V14: =U14/(W4-U8) -> 0 | W14: =IF(V14=0,0,(V14*((LOG(V14))/LOG(2)))) -> 0 | Y14: =N14 -> 0 | Z14: =COUNTIF(L18:L29,Y14) -> 0 | AA14: =Z14/(AB4-Z8) -> 0 | AB14: =IF(AA14=0,0,(AA14*((LOG(AA14))/LOG(2)))) -> 0 | AD14: =N14 -> 0 | AE14: =COUNTIF(L30:L40,AD14) -> 0 | AF14: =AE14/(AG4-AE8) -> 0 | AG14: =IF(AF14=0,0,(AF14*((LOG(AF14))/LOG(2)))) -> 0 | AI14: =N14 -> 0 | AJ14: =COUNTIF(L41:L51,AI14) -> 0 | AK14: =AJ14/(AL4-AJ8) -> 0 | AL14: =IF(AK14=0,0,(AK14*((LOG(AK14))/LOG(2)))) -> 0 | AN14: =N14 -> 0 | AO14: =COUNTIF(L52:L63,AN14) -> 0 | AP14: =AO14/(AQ4-AO8) -> 0 | AQ14: =IF(AP14=0,0,(AP14*((LOG(AP14))/LOG(2)))) -> 0 | AS14: =N14 -> 0 | AT14: =COUNTIF(L64:L74,AS14) -> 0 | AU14: =AT14/(AV4-AT8) ->  | AV14: =IF(AU14=0,0,(AU14*((LOG(AU14))/LOG(2)))) -> 
A15: 22 | B15: 948 | C15: 14 | D15: 957 | K15: 0 | L15: 21 | P15: =SUM(P7:P14) -> 1 | Q15: =-SUM(Q7:Q14) -> 1.526266719 | V15: =SUM(V7:V14) -> 1 | W15: =-SUM(W7:W14) -> 0.985228136 | AA15: =SUM(AA7:AA14) -> 1 | AB15: =-SUM(AB7:AB14) -> 1.148834854 | AF15: =SUM(AF7:AF14) -> 1 | AG15: =-SUM(AG7:AG14) -> 1 | AK15: =SUM(AK7:AK14) -> 1 | AL15: =-SUM(AL7:AL14) -> 0.9182958341 | AP15: =SUM(AP7:AP14) -> 1 | AQ15: =-SUM(AQ7:AQ14) -> 0.8631205686 | AU15: =SUM(AU7:AU14) ->  | AV15: =-SUM(AV7:AV14) -> 
A16: 22 | B16: 1066 | C16: 23 | D16: 1077 | K16: 0 | L16: 22 | P16: U= | Q16: =Q15/(LOG(Q4)/LOG(2)) -> 0.2507229627 | V16: U1= | W16: =W15/(LOG(W4)/LOG(2)) -> 0.2847948 | AA16: U2= | AB16: =AB15/(LOG(AB4)/LOG(2)) -> 0.3204593783 | AF16: U3= | AG16: =AG15/(LOG(AG4)/LOG(2)) -> 0.2890648263 | AK16: U4= | AL16: =AL15/(LOG(AL4)/LOG(2)) -> 0.2654470258 | AP16: U5= | AQ16: =AQ15/(LOG(AQ4)/LOG(2)) -> 0.2407613938 | AU16: U6= | AV16: =AV15/(LOG(AV4)/LOG(2)) -> 
A17: 11 | B17: 1203 | C17: 21 | D17: 1215 | K17: 0 | L17: 12
A18: 11 | B18: 1314 | C18: 21 | D18: 1324 | K18: 0 | L18: 12
A19: 11 | B19: 1424 | C19: 21 | D19: 1435 | K19: 0 | L19: 12 | N19: Total Target Seq
A20: 22 | B20: 1526 | C20: 14 | D20: 1538 | K20: 0 | L20: 21 | N20: =COUNTIF(L7:L74,G3) -> 40 | P20: 11 | Q20: 12 | R20: 11 | S20: 11 | T20: 12 | U20: 11
A21: 22 | B21: 1640 | C21: 23 | D21: 1662 | K21: 0 | L21: 22 | P21: % of reinforcement given in 6 equal intervals based on number of trials
A22: 11 | B22: 1784 | C22: 21 | D22: 1794 | K22: 0 | L22: 12 | P22: %_1 | Q22: %_2 | R22: %_3 | S22: %_4 | T22: %_5 | U22: %_6
A23: 11 | B23: 1895 | C23: 21 | D23: 1906 | K23: 0 | L23: 12 | O23: target sequence | P23: =$G$3 -> 12 | Q23: =$G$3 -> 12 | R23: =$G$3 -> 12 | S23: =$G$3 -> 12 | T23: =$G$3 -> 12 | U23: =$G$3 -> 12
A24: 11 | B24: 2004 | C24: 12 | D24: 2011 | K24: 0 | L24: 11 | O24: total reinforcement | P24: =U8 -> 4 | Q24: =Z8 -> 5 | R24: =AE8 -> 7 | S24: =AJ8 -> 8 | T24: =AO8 -> 5 | U24: =AT8 -> 11
A25: 22 | B25: 2113 | C25: 14 | D25: 2122 | K25: 0 | L25: 21 | O25: % target
A26: 11 | B26: 2229 | C26: 21 | D26: 2242 | K26: 0 | L26: 12 | O26: CCRF
A27: 22 | B27: 2329 | C27: 14 | D27: 2340 | K27: 0 | L27: 21 | O27: % CCRf
A28: 22 | B28: 2438 | C28: 14 | D28: 2448 | K28: 0 | L28: 21 | O28: average response rate | P28: =D17/P20 -> 110.4545455 | Q28: =(D29-D17)/Q20 -> 113.0833333 | R28: =(D40-D29)/R20 -> 116.3636364 | S28: =(D51-D40)/S20 -> 118.2727273 | T28: =(D63-D51)/T20 -> 114.8333333 | U28: =(D74-D63)/U20 -> 110.4545455
A29: 22 | B29: 2548 | C29: 14 | D29: 2572 | K29: 0 | L29: 21
A30: 22 | B30: 2677 | C30: 23 | D30: 2691 | K30: 0 | L30: 22
A31: 22 | B31: 2792 | C31: 14 | D31: 2802 | K31: 0 | L31: 21
A32: 22 | B32: 2907 | C32: 23 | D32: 2941 | K32: 0 | L32: 22
A33: 11 | B33: 3051 | C33: 21 | D33: 3063 | K33: 0 | L33: 12
A34: 22 | B34: 3152 | C34: 14 | D34: 3161 | K34: 0 | L34: 21
A35: 11 | B35: 3276 | C35: 21 | D35: 3287 | K35: 0 | L35: 12
A36: 11 | B36: 3387 | C36: 21 | D36: 3399 | K36: 0 | L36: 12
A37: 11 | B37: 3494 | C37: 21 | D37: 3507 | K37: 0 | L37: 12
A38: 11 | B38: 3607 | C38: 21 | D38: 3632 | K38: 0 | L38: 12
A39: 11 | B39: 3728 | C39: 21 | D39: 3740 | K39: 0 | L39: 12
A40: 11 | B40: 3840 | C40: 21 | D40: 3852 | K40: 0 | L40: 12
A41: 11 | B41: 3953 | C41: 12 | D41: 3987 | K41: 0 | L41: 11
A42: 11 | B42: 4098 | C42: 21 | D42: 4109 | K42: 0 | L42: 12
A43: 11 | B43: 4217 | C43: 21 | D43: 4226 | K43: 0 | L43: 12
A44: 11 | B44: 4322 | C44: 21 | D44: 4343 | K44: 0 | L44: 12
A45: 11 | B45: 4437 | C45: 12 | D45: 4456 | K45: 0 | L45: 11
A46: 11 | B46: 4562 | C46: 21 | D46: 4580 | K46: 0 | L46: 12
A47: 11 | B47: 4680 | C47: 21 | D47: 4690 | K47: 0 | L47: 12
A48: 11 | B48: 4790 | C48: 21 | D48: 4802 | K48: 0 | L48: 12
A49: 11 | B49: 4896 | C49: 21 | D49: 4906 | K49: 0 | L49: 12
A50: 22 | B50: 5017 | C50: 14 | D50: 5035 | K50: 0 | L50: 21
A51: 11 | B51: 5143 | C51: 21 | D51: 5153 | K51: 0 | L51: 12
A52: 22 | B52: 5247 | C52: 23 | D52: 5269 | K52: 0 | L52: 22
A53: 22 | B53: 5367 | C53: 14 | D53: 5388 | K53: 0 | L53: 21
A54: 11 | B54: 5500 | C54: 21 | D54: 5512 | K54: 0 | L54: 12
A55: 22 | B55: 5602 | C55: 14 | D55: 5611 | K55: 0 | L55: 21
A56: 11 | B56: 5720 | C56: 21 | D56: 5732 | K56: 0 | L56: 12
A57: 22 | B57: 5822 | C57: 14 | D57: 5830 | K57: 0 | L57: 21
A58: 22 | B58: 5930 | C58: 14 | D58: 5939 | K58: 0 | L58: 21
A59: 22 | B59: 6048 | C59: 14 | D59: 6059 | K59: 0 | L59: 21
A60: 11 | B60: 6168 | C60: 21 | D60: 6178 | K60: 0 | L60: 12
A61: 11 | B61: 6275 | C61: 21 | D61: 6287 | K61: 0 | L61: 12
A62: 22 | B62: 6394 | C62: 23 | D62: 6410 | K62: 0 | L62: 22
A63: 11 | B63: 6521 | C63: 21 | D63: 6531 | K63: 0 | L63: 12
A64: 11 | B64: 6632 | C64: 21 | D64: 6642 | K64: 0 | L64: 12
A65: 11 | B65: 6737 | C65: 21 | D65: 6749 | K65: 0 | L65: 12
A66: 11 | B66: 6862 | C66: 21 | D66: 6874 | K66: 0 | L66: 12
A67: 11 | B67: 6971 | C67: 21 | D67: 6982 | K67: 0 | L67: 12
A68: 11 | B68: 7082 | C68: 21 | D68: 7093 | K68: 0 | L68: 12
A69: 11 | B69: 7190 | C69: 21 | D69: 7200 | K69: 0 | L69: 12
A70: 11 | B70: 7302 | C70: 21 | D70: 7311 | K70: 0 | L70: 12
A71: 11 | B71: 7405 | C71: 21 | D71: 7414 | K71: 0 | L71: 12
A72: 11 | B72: 7518 | C72: 21 | D72: 7530 | K72: 0 | L72: 12
A73: 11 | B73: 7629 | C73: 21 | D73: 7639 | K73: 0 | L73: 12
A74: 11 | B74: 7737 | C74: 21 | D74: 7746 | K74: 1 | L74: 12

Sheet !L822C10.055
A1: Report for:!L822C10.055
A2: Date: | B2: <date>
A3: Hen: | B3: <hen> | F3: Correct Sequence | G3: =Start!J2 -> 12 | P3: Total Sequences in Data | Q3: =4994-COUNTBLANK(L7:L5000) -> 59 | V3: Total Sequences in Block Data | W3: =COUNTA(L7:L16) -> 10 | AA3: Total Sequences in Block Data | AB3: =COUNTA(L17:L26) -> 10 | AF3: Total Sequences in Block Data | AG3: =COUNTA(L27:L35) -> 9 | AK3: Total Sequences in Block Data | AL3: =COUNTA(L36:L45) -> 10 | AP3: Total Sequences in Block Data | AQ3: =COUNTA(L46:L55) -> 10 | AU3: Total Sequences in Block Data | AV3: =COUNTA(L56:L65) -> 10
P4: Total Sequences in Summary | Q4: =SUM(O7:O14) -> 59 | V4: Total Sequences in Block Summary | W4: =SUM(U7:U14) -> 10 | AA4: Total Sequences in Block Summary | AB4: =SUM(Z7:Z14) -> 10 | AF4: Total Sequences in Block Summary | AG4: =SUM(AE7:AE14) -> 9 | AK4: Total Sequences in Block Summary | AL4: =SUM(AJ7:AJ14) -> 10 | AP4: Total Sequences in Block Summary | AQ4: =SUM(AO7:AO14) -> 10 | AU4: Total Sequences in Block Summary | AV4: =SUM(AT7:AT14) -> 10
T5: Block 1 | Y5: Block 2 | AD5: Block 3 | AI5: Block 4 | AN5: Block 5 | AS5: Block 6
A6: Sequence Component 1 | B6: Time 1 | C6: Sequence Component 2 | D6: Time 2 | E6: Sequence Component 3 | F6: Time 3 | G6: Sequence Component 4 | H6: Time 4 | I6: Sequence Component 5 | J6: Time 5 | K6: Correct? 0=No 1=Yes | L6: Sequence | N6: Frequency | P6: Relative Frequency | Q6: Variability | T6: Frequency | V6: Relative Frequency | W6: Variability | Y6: Frequency | AA6: Relative Frequency | AB6: Variability | AD6: Frequency | AF6: Relative Frequency | AG6: Variability | AI6: Frequency | AK6: Relative Frequency | AL6: Variability | AN6: Frequency | AP6: Relative Frequency | AQ6: Variability | AS6: Frequency | AU6: Relative Frequency | AV6: Variability
A7: 22 | B7: 9 | C7: 14 | D7: 35 | K7: 0 | L7: 21 | N7: 11 | O7: =COUNTIF($L$7:$L$500,N7) -> 2 | P7: =O7/$Q$4 -> 0.03389830508 | Q7: =IF(P7=0,0,(P7*((LOG(P7))/LOG(2)))) -> -0.1655133237 | T7: =N7 -> 11 | U7: =COUNTIF(L7:L16,T7) -> 1 | V7: =U7/(W4-U8) -> 0.25 | W7: =IF(V7=0,0,(V7*((LOG(V7))/LOG(2)))) -> -0.5 | Y7: =N7 -> 11 | Z7: =COUNTIF(L17:L26,Y7) -> 0 | AA7: =Z7/(AB4-Z8) -> 0 | AB7: =IF(AA7=0,0,(AA7*((LOG(AA7))/LOG(2)))) -> 0 | AD7: =N7 -> 11 | AE7: =COUNTIF(L27:L35,AD7) -> 1 | AF7: =AE7/(AG4-AE8) -> 0.25 | AG7: =IF(AF7=0,0,(AF7*((LOG(AF7))/LOG(2)))) -> -0.5 | AI7: =N7 -> 11 | AJ7: =COUNTIF(L36:L45,AI7) -> 0 | AK7: =AJ7/(AL4-AJ8) -> 0 | AL7: =IF(AK7=0,0,(AK7*((LOG(AK7))/LOG(2)))) -> 0 | AN7: =N7 -> 11 | AO7: =COUNTIF(L46:L55,AN7) -> 0 | AP7: =AO7/(AQ4-AO8) -> 0 | AQ7: =IF(AP7=0,0,(AP7*((LOG(AP7))/LOG(2)))) -> 0 | AS7: =N7 -> 11 | AT7: =COUNTIF(L56:L65,AS7) -> 0 | AU7: =AT7/(AV4-AT8) -> 0 | AV7: =IF(AU7=0,0,(AU7*((LOG(AU7))/LOG(2)))) -> 0
A8: 22 | B8: 137 | C8: 14 | D8: 162 | K8: 0 | L8: 21 | N8: 12 | O8: =COUNTIF($L$7:$L$500,N8) -> 40 | P8: =O8/$Q$4 -> 0.6779661017 | Q8: =IF(P8=0,0,(P8*((LOG(P8))/LOG(2)))) -> -0.3801457318 | T8: =N8 -> 12 | U8: =COUNTIF(L7:L16,T8) -> 6 | Y8: =N8 -> 12 | Z8: =COUNTIF(L17:L26,Y8) -> 7 | AD8: =N8 -> 12 | AE8: =COUNTIF(L27:L35,AD8) -> 5 | AI8: =N8 -> 12 | AJ8: =COUNTIF(L36:L45,AI8) -> 7 | AN8: =N8 -> 12 | AO8: =COUNTIF(L46:L55,AN8) -> 6 | AS8: =N8 -> 12 | AT8: =COUNTIF(L56:L65,AS8) -> 9
A9: 11 | B9: 280 | C9: 21 | D9: 292 | K9: 0 | L9: 12 | N9: 21 | O9: =COUNTIF($L$7:$L$500,N9) -> 10 | P9: =O9/$Q$4 -> 0.1694915254 | Q9: =IF(P9=0,0,(P9*((LOG(P9))/LOG(2)))) -> -0.4340194838 | T9: =N9 -> 21 | U9: =COUNTIF(L7:L16,T9) -> 3 | V9: =U9/(W4-U8) -> 0.75 | W9: =IF(V9=0,0,(V9*((LOG(V9))/LOG(2)))) -> -0.3112781245 | Y9: =N9 -> 21 | Z9: =COUNTIF(L17:L26,Y9) -> 3 | AA9: =Z9/(AB4-Z8) -> 1 | AB9: =IF(AA9=0,0,(AA9*((LOG(AA9))/LOG(2)))) -> 0 | AD9: =N9 -> 21 | AE9: =COUNTIF(L27:L35,AD9) -> 2 | AF9: =AE9/(AG4-AE8) -> 0.5 | AG9: =IF(AF9=0,0,(AF9*((LOG(AF9))/LOG(2)))) -> -0.5 | AI9: =N9 -> 21 | AJ9: =COUNTIF(L36:L45,AI9) -> 1 | AK9: =AJ9/(AL4-AJ8) -> 0.3333333333 | AL9: =IF(AK9=0,0,(AK9*((LOG(AK9))/LOG(2)))) -> -0.5283208336 | AN9: =N9 -> 21 | AO9: =COUNTIF(L46:L55,AN9) -> 1 | AP9: =AO9/(AQ4-AO8) -> 0.25 | AQ9: =IF(AP9=0,0,(AP9*((LOG(AP9))/LOG(2)))) -> -0.5 | AS9: =N9 -> 21 | AT9: =COUNTIF(L56:L65,AS9) -> 0 | AU9: =AT9/(AV4-AT8) -> 0 | AV9: =IF(AU9=0,0,(AU9*((LOG(AU9))/LOG(2)))) -> 0
A10: 11 | B10: 395 | C10: 21 | D10: 408 | K10: 0 | L10: 12 | N10: 22 | O10: =COUNTIF($L$7:$L$500,N10) -> 7 | P10: =O10/$Q$4 -> 0.1186440678 | Q10: =IF(P10=0,0,(P10*((LOG(P10))/LOG(2)))) -> -0.3648646931 | T10: =N10 -> 22 | U10: =COUNTIF(L7:L16,T10) -> 0 | V10: =U10/(W4-U8) -> 0 | W10: =IF(V10=0,0,(V10*((LOG(V10))/LOG(2)))) -> 0 | Y10: =N10 -> 22 | Z10: =COUNTIF(L17:L26,Y10) -> 0 | AA10: =Z10/(AB4-Z8) -> 0 | AB10: =IF(AA10=0,0,(AA10*((LOG(AA10))/LOG(2)))) -> 0 | AD10: =N10 -> 22 | AE10: =COUNTIF(L27:L35,AD10) -> 1 | AF10: =AE10/(AG4-AE8) -> 0.25 | AG10: =IF(AF10=0,0,(AF10*((LOG(AF10))/LOG(2)))) -> -0.5 | AI10: =N10 -> 22 | AJ10: =COUNTIF(L36:L45,AI10) -> 2 | AK10: =AJ10/(AL4-AJ8) -> 0.6666666667 | AL10: =IF(AK10=0,0,(AK10*((LOG(AK10))/LOG(2)))) -> -0.3899750005 | AN10: =N10 -> 22 | AO10: =COUNTIF(L46:L55,AN10) -> 3 | AP10: =AO10/(AQ4-AO8) -> 0.75 | AQ10: =IF(AP10=0,0,(AP10*((LOG(AP10))/LOG(2)))) -> -0.3112781245 | AS10: =N10 -> 22 | AT10: =COUNTIF(L56:L65,AS10) -> 1 | AU10: =AT10/(AV4-AT8) -> 1 | AV10: =IF(AU10=0,0,(AU10*((LOG(AU10))/LOG(2)))) -> 0
A11: 11 | B11: 505 | C11: 21 | D11: 517 | K11: 0 | L11: 12 | T11: =N11 -> 0 | U11: =COUNTIF(L7:L16,T11) -> 0 | V11: =U11/(W4-U8) -> 0 | W11: =IF(V11=0,0,(V11*((LOG(V11))/LOG(2)))) -> 0 | Y11: =N11 -> 0 | Z11: =COUNTIF(L17:L26,Y11) -> 0 | AA11: =Z11/(AB4-Z8) -> 0 | AB11: =IF(AA11=0,0,(AA11*((LOG(AA11))/LOG(2)))) -> 0 | AD11: =N11 -> 0 | AE11: =COUNTIF(L27:L35,AD11) -> 0 | AF11: =AE11/(AG4-AE8) -> 0 | AG11: =IF(AF11=0,0,(AF11*((LOG(AF11))/LOG(2)))) -> 0 | AI11: =N11 -> 0 | AJ11: =COUNTIF(L36:L45,AI11) -> 0 | AK11: =AJ11/(AL4-AJ8) -> 0 | AL11: =IF(AK11=0,0,(AK11*((LOG(AK11))/LOG(2)))) -> 0 | AN11: =N11 -> 0 | AO11: =COUNTIF(L46:L55,AN11) -> 0 | AP11: =AO11/(AQ4-AO8) -> 0 | AQ11: =IF(AP11=0,0,(AP11*((LOG(AP11))/LOG(2)))) -> 0 | AS11: =N11 -> 0 | AT11: =COUNTIF(L56:L65,AS11) -> 0 | AU11: =AT11/(AV4-AT8) -> 0 | AV11: =IF(AU11=0,0,(AU11*((LOG(AU11))/LOG(2)))) -> 0
A12: 11 | B12: 616 | C12: 12 | D12: 642 | K12: 0 | L12: 11 | T12: =N12 -> 0 | U12: =COUNTIF(L7:L16,T12) -> 0 | V12: =U12/(W4-U8) -> 0 | W12: =IF(V12=0,0,(V12*((LOG(V12))/LOG(2)))) -> 0 | Y12: =N12 -> 0 | Z12: =COUNTIF(L17:L26,Y12) -> 0 | AA12: =Z12/(AB4-Z8) -> 0 | AB12: =IF(AA12=0,0,(AA12*((LOG(AA12))/LOG(2)))) -> 0 | AD12: =N12 -> 0 | AE12: =COUNTIF(L27:L35,AD12) -> 0 | AF12: =AE12/(AG4-AE8) -> 0 | AG12: =IF(AF12=0,0,(AF12*((LOG(AF12))/LOG(2)))) -> 0 | AI12: =N12 -> 0 | AJ12: =COUNTIF(L36:L45,AI12) -> 0 | AK12: =AJ12/(AL4-AJ8) -> 0 | AL12: =IF(AK12=0,0,(AK12*((LOG(AK12))/LOG(2)))) -> 0 | AN12: =N12 -> 0 | AO12: =COUNTIF(L46:L55,AN12) -> 0 | AP12: =AO12/(AQ4-AO8) -> 0 | AQ12: =IF(AP12=0,0,(AP12*((LOG(AP12))/LOG(2)))) -> 0 | AS12: =N12 -> 0 | AT12: =COUNTIF(L56:L65,AS12) -> 0 | AU12: =AT12/(AV4-AT8) -> 0 | AV12: =IF(AU12=0,0,(AU12*((LOG(AU12))/LOG(2)))) -> 0
A13: 11 | B13: 764 | C13: 21 | D13: 776 | K13: 0 | L13: 12 | T13: =N13 -> 0 | U13: =COUNTIF(L7:L16,T13) -> 0 | V13: =U13/(W4-U8) -> 0 | W13: =IF(V13=0,0,(V13*((LOG(V13))/LOG(2)))) -> 0 | Y13: =N13 -> 0 | Z13: =COUNTIF(L17:L26,Y13) -> 0 | AA13: =Z13/(AB4-Z8) -> 0 | AB13: =IF(AA13=0,0,(AA13*((LOG(AA13))/LOG(2)))) -> 0 | AD13: =N13 -> 0 | AE13: =COUNTIF(L27:L35,AD13) -> 0 | AF13: =AE13/(AG4-AE8) -> 0 | AG13: =IF(AF13=0,0,(AF13*((LOG(AF13))/LOG(2)))) -> 0 | AI13: =N13 -> 0 | AJ13: =COUNTIF(L36:L45,AI13) -> 0 | AK13: =AJ13/(AL4-AJ8) -> 0 | AL13: =IF(AK13=0,0,(AK13*((LOG(AK13))/LOG(2)))) -> 0 | AN13: =N13 -> 0 | AO13: =COUNTIF(L46:L55,AN13) -> 0 | AP13: =AO13/(AQ4-AO8) -> 0 | AQ13: =IF(AP13=0,0,(AP13*((LOG(AP13))/LOG(2)))) -> 0 | AS13: =N13 -> 0 | AT13: =COUNTIF(L56:L65,AS13) -> 0 | AU13: =AT13/(AV4-AT8) -> 0 | AV13: =IF(AU13=0,0,(AU13*((LOG(AU13))/LOG(2)))) -> 0
A14: 22 | B14: 865 | C14: 14 | D14: 873 | K14: 0 | L14: 21 | T14: =N14 -> 0 | U14: =COUNTIF(L7:L16,T14) -> 0 | V14: =U14/(W4-U8) -> 0 | W14: =IF(V14=0,0,(V14*((LOG(V14))/LOG(2)))) -> 0 | Y14: =N14 -> 0 | Z14: =COUNTIF(L17:L26,Y14) -> 0 | AA14: =Z14/(AB4-Z8) -> 0 | AB14: =IF(AA14=0,0,(AA14*((LOG(AA14))/LOG(2)))) -> 0 | AD14: =N14 -> 0 | AE14: =COUNTIF(L27:L35,AD14) -> 0 | AF14: =AE14/(AG4-AE8) -> 0 | AG14: =IF(AF14=0,0,(AF14*((LOG(AF14))/LOG(2)))) -> 0 | AI14: =N14 -> 0 | AJ14: =COUNTIF(L36:L45,AI14) -> 0 | AK14: =AJ14/(AL4-AJ8) -> 0 | AL14: =IF(AK14=0,0,(AK14*((LOG(AK14))/LOG(2)))) -> 0 | AN14: =N14 -> 0 | AO14: =COUNTIF(L46:L55,AN14) -> 0 | AP14: =AO14/(AQ4-AO8) -> 0 | AQ14: =IF(AP14=0,0,(AP14*((LOG(AP14))/LOG(2)))) -> 0 | AS14: =N14 -> 0 | AT14: =COUNTIF(L56:L65,AS14) -> 0 | AU14: =AT14/(AV4-AT8) -> 0 | AV14: =IF(AU14=0,0,(AU14*((LOG(AU14))/LOG(2)))) -> 0
A15: 11 | B15: 983 | C15: 21 | D15: 995 | K15: 0 | L15: 12 | P15: =SUM(P7:P14) -> 1 | Q15: =-SUM(Q7:Q14) -> 1.344543232 | V15: =SUM(V7:V14) -> 1 | W15: =-SUM(W7:W14) -> 0.8112781245 | AA15: =SUM(AA7:AA14) -> 1 | AB15: =-SUM(AB7:AB14) -> 0 | AF15: =SUM(AF7:AF14) -> 1 | AG15: =-SUM(AG7:AG14) -> 1.5 | AK15: =SUM(AK7:AK14) -> 1 | AL15: =-SUM(AL7:AL14) -> 0.9182958341 | AP15: =SUM(AP7:AP14) -> 1 | AQ15: =-SUM(AQ7:AQ14) -> 0.8112781245 | AU15: =SUM(AU7:AU14) -> 1 | AV15: =-SUM(AV7:AV14) -> 0
A16: 11 | B16: 1096 | C16: 21 | D16: 1108 | K16: 0 | L16: 12 | P16: U= | Q16: =Q15/(LOG(Q4)/LOG(2)) -> 0.2285610772 | V16: U1= | W16: =W15/(LOG(W4)/LOG(2)) -> 0.2442190503 | AA16: U2= | AB16: =AB15/(LOG(AB4)/LOG(2)) -> 0 | AF16: U3= | AG16: =AG15/(LOG(AG4)/LOG(2)) -> 0.4731973152 | AK16: U4= | AL16: =AL15/(LOG(AL4)/LOG(2)) -> 0.2764345909 | AP16: U5= | AQ16: =AQ15/(LOG(AQ4)/LOG(2)) -> 0.2442190503 | AU16: U6= | AV16: =AV15/(LOG(AV4)/LOG(2)) -> 0
A17: 11 | B17: 1211 | C17: 21 | D17: 1223 | K17: 0 | L17: 12
A18: 11 | B18: 1324 | C18: 21 | D18: 1339 | K18: 0 | L18: 12
A19: 22 | B19: 1433 | C19: 14 | D19: 1442 | K19: 0 | L19: 21 | N19: Total Target Seq
A20: 11 | B20: 1548 | C20: 21 | D20: 1561 | K20: 0 | L20: 12 | N20: =COUNTIF(L7:L65,G3) -> 40 | P20: 10 | Q20: 10 | R20: 9 | S20: 10 | T20: 10 | U20: 10
A21: 22 | B21: 1661 | C21: 14 | D21: 1674 | K21: 0 | L21: 21 | P21: % of reinforcement given in 6 equal intervals based on number of trials
A22: 11 | B22: 1792 | C22: 21 | D22: 1803 | K22: 0 | L22: 12 | P22: %_1 | Q22: %_2 | R22: %_3 | S22: %_4 | T22: %_5 | U22: %_6
A23: 22 | B23: 1895 | C23: 14 | D23: 1905 | K23: 0 | L23: 21 | O23: target sequence | P23: =$G$3 -> 12 | Q23: =$G$3 -> 12 | R23: =$G$3 -> 12 | S23: =$G$3 -> 12 | T23: =$G$3 -> 12 | U23: =$G$3 -> 12
A24: 11 | B24: 2027 | C24: 21 | D24: 2040 | K24: 0 | L24: 12 | O24: total reinforcement | P24: =U8 -> 6 | Q24: =Z8 -> 7 | R24: =AE8 -> 5 | S24: =AJ8 -> 7 | T24: =AO8 -> 6 | U24: =AT8 -> 9
A25: 11 | B25: 2148 | C25: 21 | D25: 2159 | K25: 0 | L25: 12 | O25: % target
A26: 11 | B26: 2266 | C26: 21 | D26: 2278 | K26: 0 | L26: 12 | O26: CCRF
A27: 11 | B27: 2378 | C27: 12 | D27: 2399 | K27: 0 | L27: 11 | O27: % CCRf
A28: 22 | B28: 2514 | C28: 23 | D28: 2528 | K28: 0 | L28: 22 | O28: average response rate | P28: =D16/P20 -> 110.8 | Q28: =(D26-D16)/Q20 -> 117 | R28: =(D35-D26)/R20 -> 125.7777778 | S28: =(D45-D35)/S20 -> 120.7 | T28: =(D55-D45)/T20 -> 128.6 | U28: =(D65-D55)/U20 -> 123
A29: 11 | B29: 2641 | C29: 21 | D29: 2653 | K29: 0 | L29: 12
A30: 11 | B30: 2751 | C30: 21 | D30: 2764 | K30: 0 | L30: 12
A31: 22 | B31: 2879 | C31: 14 | D31: 2899 | K31: 0 | L31: 21
A32: 11 | B32: 3023 | C32: 21 | D32: 3035 | K32: 0 | L32: 12
A33: 11 | B33: 3133 | C33: 21 | D33: 3145 | K33: 0 | L33: 12
A34: 22 | B34: 3267 | C34: 14 | D34: 3289 | K34: 0 | L34: 21
A35: 11 | B35: 3399 | C35: 21 | D35: 3410 | K35: 0 | L35: 12
A36: 11 | B36: 3512 | C36: 21 | D36: 3523 | K36: 0 | L36: 12
A37: 11 | B37: 3623 | C37: 21 | D37: 3635 | K37: 0 | L37: 12
A38: 11 | B38: 3730 | C38: 21 | D38: 3742 | K38: 0 | L38: 12
A39: 22 | B39: 3859 | C39: 23 | D39: 3872 | K39: 0 | L39: 22
A40: 11 | B40: 3978 | C40: 21 | D40: 3990 | K40: 0 | L40: 12
A41: 11 | B41: 4089 | C41: 21 | D41: 4102 | K41: 0 | L41: 12
A42: 11 | B42: 4202 | C42: 21 | D42: 4215 | K42: 0 | L42: 12
A43: 22 | B43: 4344 | C43: 23 | D43: 4356 | K43: 0 | L43: 22
A44: 22 | B44: 4475 | C44: 14 | D44: 4496 | K44: 0 | L44: 21
A45: 11 | B45: 4604 | C45: 21 | D45: 4617 | K45: 0 | L45: 12
A46: 11 | B46: 4711 | C46: 21 | D46: 4724 | K46: 0 | L46: 12
A47: 11 | B47: 4824 | C47: 21 | D47: 4846 | K47: 0 | L47: 12
A48: 22 | B48: 4955 | C48: 14 | D48: 4973 | K48: 0 | L48: 21
A49: 11 | B49: 5082 | C49: 21 | D49: 5092 | K49: 0 | L49: 12
A50: 11 | B50: 5189 | C50: 21 | D50: 5227 | K50: 0 | L50: 12
A51: 11 | B51: 5322 | C51: 21 | D51: 5335 | K51: 0 | L51: 12
A52: 22 | B52: 5472 | C52: 23 | D52: 5485 | K52: 0 | L52: 22
A53: 11 | B53: 5595 | C53: 21 | D53: 5609 | K53: 0 | L53: 12
A54: 22 | B54: 5724 | C54: 23 | D54: 5744 | K54: 0 | L54: 22
A55: 22 | B55: 5890 | C55: 23 | D55: 5903 | K55: 0 | L55: 22
A56: 11 | B56: 6011 | C56: 21 | D56: 6036 | K56: 0 | L56: 12
A57: 11 | B57: 6145 | C57: 21 | D57: 6158 | K57: 0 | L57: 12
A58: 11 | B58: 6255 | C58: 21 | D58: 6267 | K58: 0 | L58: 12
A59: 11 | B59: 6365 | C59: 21 | D59: 6378 | K59: 0 | L59: 12
A60: 11 | B60: 6482 | C60: 21 | D60: 6504 | K60: 0 | L60: 12
A61: 11 | B61: 6603 | C61: 21 | D61: 6615 | K61: 0 | L61: 12
A62: 11 | B62: 6711 | C62: 21 | D62: 6733 | K62: 0 | L62: 12
A63: 11 | B63: 6867 | C63: 21 | D63: 6880 | K63: 0 | L63: 12
A64: 22 | B64: 6990 | C64: 23 | D64: 7007 | K64: 0 | L64: 22
A65: 11 | B65: 7123 | C65: 21 | D65: 7133 | K65: 1 | L65: 12

Sheet !L823B50.055
A1: Report for:!L823B50.055
A2: Date: | B2: <date>
A3: Hen: | B3: <hen> | F3: Correct Sequence | G3: =Start!J2 -> 12 | P3: Total Sequences in Data | Q3: =4994-COUNTBLANK(L7:L5000) -> 59 | V3: Total Sequences in Block Data | W3: =COUNTA(L7:L16) -> 10 | AA3: Total Sequences in Block Data | AB3: =COUNTA(L17:L26) -> 10 | AF3: Total Sequences in Block Data | AG3: =COUNTA(L27:L35) -> 9 | AK3: Total Sequences in Block Data | AL3: =COUNTA(L36:L45) -> 10 | AP3: Total Sequences in Block Data | AQ3: =COUNTA(L46:L55) -> 10 | AU3: Total Sequences in Block Data | AV3: =COUNTA(L56:L65) -> 10
P4: Total Sequences in Summary | Q4: =SUM(O7:O14) -> 59 | V4: Total Sequences in Block Summary | W4: =SUM(U7:U14) -> 10 | AA4: Total Sequences in Block Summary | AB4: =SUM(Z7:Z14) -> 10 | AF4: Total Sequences in Block Summary | AG4: =SUM(AE7:AE14) -> 9 | AK4: Total Sequences in Block Summary | AL4: =SUM(AJ7:AJ14) -> 10 | AP4: Total Sequences in Block Summary | AQ4: =SUM(AO7:AO14) -> 10 | AU4: Total Sequences in Block Summary | AV4: =SUM(AT7:AT14) -> 10
T5: Block 1 | Y5: Block 2 | AD5: Block 3 | AI5: Block 4 | AN5: Block 5 | AS5: Block 6
A6: Sequence Component 1 | B6: Time 1 | C6: Sequence Component 2 | D6: Time 2 | E6: Sequence Component 3 | F6: Time 3 | G6: Sequence Component 4 | H6: Time 4 | I6: Sequence Component 5 | J6: Time 5 | K6: Correct? 0=No 1=Yes | L6: Sequence | N6: Frequency | P6: Relative Frequency | Q6: Variability | T6: Frequency | V6: Relative Frequency | W6: Variability | Y6: Frequency | AA6: Relative Frequency | AB6: Variability | AD6: Frequency | AF6: Relative Frequency | AG6: Variability | AI6: Frequency | AK6: Relative Frequency | AL6: Variability | AN6: Frequency | AP6: Relative Frequency | AQ6: Variability | AS6: Frequency | AU6: Relative Frequency | AV6: Variability
A7: 22 | B7: 21 | C7: 23 | D7: 33 | K7: 0 | L7: 22 | N7: 11 | O7: =COUNTIF($L$7:$L$500,N7) -> 4 | P7: =O7/$Q$4 -> 0.06779661017 | Q7: =IF(P7=0,0,(P7*((LOG(P7))/LOG(2)))) -> -0.2632300372 | T7: =N7 -> 11 | U7: =COUNTIF(L7:L16,T7) -> 0 | V7: =U7/(W4-U8) -> 0 | W7: =IF(V7=0,0,(V7*((LOG(V7))/LOG(2)))) -> 0 | Y7: =N7 -> 11 | Z7: =COUNTIF(L17:L26,Y7) -> 1 | AA7: =Z7/(AB4-Z8) -> 0.5 | AB7: =IF(AA7=0,0,(AA7*((LOG(AA7))/LOG(2)))) -> -0.5 | AD7: =N7 -> 11 | AE7: =COUNTIF(L27:L35,AD7) -> 2 | AF7: =AE7/(AG4-AE8) -> 1 | AG7: =IF(AF7=0,0,(AF7*((LOG(AF7))/LOG(2)))) -> 0 | AI7: =N7 -> 11 | AJ7: =COUNTIF(L36:L45,AI7) -> 0 | AK7: =AJ7/(AL4-AJ8) -> 0 | AL7: =IF(AK7=0,0,(AK7*((LOG(AK7))/LOG(2)))) -> 0 | AN7: =N7 -> 11 | AO7: =COUNTIF(L46:L55,AN7) -> 1 | AP7: =AO7/(AQ4-AO8) -> 0.3333333333 | AQ7: =IF(AP7=0,0,(AP7*((LOG(AP7))/LOG(2)))) -> -0.5283208336 | AS7: =N7 -> 11 | AT7: =COUNTIF(L56:L65,AS7) -> 0 | AU7: =AT7/(AV4-AT8) -> 0 | AV7: =IF(AU7=0,0,(AU7*((LOG(AU7))/LOG(2)))) -> 0
A8: 22 | B8: 152 | C8: 23 | D8: 167 | K8: 0 | L8: 22 | N8: 12 | O8: =COUNTIF($L$7:$L$500,N8) -> 40 | P8: =O8/$Q$4 -> 0.6779661017 | Q8: =IF(P8=0,0,(P8*((LOG(P8))/LOG(2)))) -> -0.3801457318 | T8: =N8 -> 12 | U8: =COUNTIF(L7:L16,T8) -> 6 | Y8: =N8 -> 12 | Z8: =COUNTIF(L17:L26,Y8) -> 8 | AD8: =N8 -> 12 | AE8: =COUNTIF(L27:L35,AD8) -> 7 | AI8: =N8 -> 12 | AJ8: =COUNTIF(L36:L45,AI8) -> 8 | AN8: =N8 -> 12 | AO8: =COUNTIF(L46:L55,AN8) -> 7 | AS8: =N8 -> 12 | AT8: =COUNTIF(L56:L65,AS8) -> 4
A9: 22 | B9: 287 | C9: 23 | D9: 300 | K9: 0 | L9: 22 | N9: 21 | O9: =COUNTIF($L$7:$L$500,N9) -> 6 | P9: =O9/$Q$4 -> 0.1016949153 | Q9: =IF(P9=0,0,(P9*((LOG(P9))/LOG(2)))) -> -0.3353573439 | T9: =N9 -> 21 | U9: =COUNTIF(L7:L16,T9) -> 1 | V9: =U9/(W4-U8) -> 0.25 | W9: =IF(V9=0,0,(V9*((LOG(V9))/LOG(2)))) -> -0.5 | Y9: =N9 -> 21 | Z9: =COUNTIF(L17:L26,Y9) -> 1 | AA9: =Z9/(AB4-Z8) -> 0.5 | AB9: =IF(AA9=0,0,(AA9*((LOG(AA9))/LOG(2)))) -> -0.5 | AD9: =N9 -> 21 | AE9: =COUNTIF(L27:L35,AD9) -> 0 | AF9: =AE9/(AG4-AE8) -> 0 | AG9: =IF(AF9=0,0,(AF9*((LOG(AF9))/LOG(2)))) -> 0 | AI9: =N9 -> 21 | AJ9: =COUNTIF(L36:L45,AI9) -> 2 | AK9: =AJ9/(AL4-AJ8) -> 1 | AL9: =IF(AK9=0,0,(AK9*((LOG(AK9))/LOG(2)))) -> 0 | AN9: =N9 -> 21 | AO9: =COUNTIF(L46:L55,AN9) -> 0 | AP9: =AO9/(AQ4-AO8) -> 0 | AQ9: =IF(AP9=0,0,(AP9*((LOG(AP9))/LOG(2)))) -> 0 | AS9: =N9 -> 21 | AT9: =COUNTIF(L56:L65,AS9) -> 2 | AU9: =AT9/(AV4-AT8) -> 0.3333333333 | AV9: =IF(AU9=0,0,(AU9*((LOG(AU9))/LOG(2)))) -> -0.5283208336
A10: 22 | B10: 400 | C10: 14 | D10: 423 | K10: 0 | L10: 21 | N10: 22 | O10: =COUNTIF($L$7:$L$500,N10) -> 9 | P10: =O10/$Q$4 -> 0.1525423729 | Q10: =IF(P10=0,0,(P10*((LOG(P10))/LOG(2)))) -> -0.413804448 | T10: =N10 -> 22 | U10: =COUNTIF(L7:L16,T10) -> 3 | V10: =U10/(W4-U8) -> 0.75 | W10: =IF(V10=0,0,(V10*((LOG(V10))/LOG(2)))) -> -0.3112781245 | Y10: =N10 -> 22 | Z10: =COUNTIF(L17:L26,Y10) -> 0 | AA10: =Z10/(AB4-Z8) -> 0 | AB10: =IF(AA10=0,0,(AA10*((LOG(AA10))/LOG(2)))) -> 0 | AD10: =N10 -> 22 | AE10: =COUNTIF(L27:L35,AD10) -> 0 | AF10: =AE10/(AG4-AE8) -> 0 | AG10: =IF(AF10=0,0,(AF10*((LOG(AF10))/LOG(2)))) -> 0 | AI10: =N10 -> 22 | AJ10: =COUNTIF(L36:L45,AI10) -> 0 | AK10: =AJ10/(AL4-AJ8) -> 0 | AL10: =IF(AK10=0,0,(AK10*((LOG(AK10))/LOG(2)))) -> 0 | AN10: =N10 -> 22 | AO10: =COUNTIF(L46:L55,AN10) -> 2 | AP10: =AO10/(AQ4-AO8) -> 0.6666666667 | AQ10: =IF(AP10=0,0,(AP10*((LOG(AP10))/LOG(2)))) -> -0.3899750005 | AS10: =N10 -> 22 | AT10: =COUNTIF(L56:L65,AS10) -> 4 | AU10: =AT10/(AV4-AT8) -> 0.6666666667 | AV10: =IF(AU10=0,0,(AU10*((LOG(AU10))/LOG(2)))) -> -0.3899750005
A11: 11 | B11: 536 | C11: 21 | D11: 547 | K11: 0 | L11: 12 | T11: =N11 -> 0 | U11: =COUNTIF(L7:L16,T11) -> 0 | V11: =U11/(W4-U8) -> 0 | W11: =IF(V11=0,0,(V11*((LOG(V11))/LOG(2)))) -> 0 | Y11: =N11 -> 0 | Z11: =COUNTIF(L17:L26,Y11) -> 0 | AA11: =Z11/(AB4-Z8) -> 0 | AB11: =IF(AA11=0,0,(AA11*((LOG(AA11))/LOG(2)))) -> 0 | AD11: =N11 -> 0 | AE11: =COUNTIF(L27:L35,AD11) -> 0 | AF11: =AE11/(AG4-AE8) -> 0 | AG11: =IF(AF11=0,0,(AF11*((LOG(AF11))/LOG(2)))) -> 0 | AI11: =N11 -> 0 | AJ11: =COUNTIF(L36:L45,AI11) -> 0 | AK11: =AJ11/(AL4-AJ8) -> 0 | AL11: =IF(AK11=0,0,(AK11*((LOG(AK11))/LOG(2)))) -> 0 | AN11: =N11 -> 0 | AO11: =COUNTIF(L46:L55,AN11) -> 0 | AP11: =AO11/(AQ4-AO8) -> 0 | AQ11: =IF(AP11=0,0,(AP11*((LOG(AP11))/LOG(2)))) -> 0 | AS11: =N11 -> 0 | AT11: =COUNTIF(L56:L65,AS11) -> 0 | AU11: =AT11/(AV4-AT8) -> 0 | AV11: =IF(AU11=0,0,(AU11*((LOG(AU11))/LOG(2)))) -> 0
A12: 11 | B12: 649 | C12: 21 | D12: 661 | K12: 0 | L12: 12 | T12: =N12 -> 0 | U12: =COUNTIF(L7:L16,T12) -> 0 | V12: =U12/(W4-U8) -> 0 | W12: =IF(V12=0,0,(V12*((LOG(V12))/LOG(2)))) -> 0 | Y12: =N12 -> 0 | Z12: =COUNTIF(L17:L26,Y12) -> 0 | AA12: =Z12/(AB4-Z8) -> 0 | AB12: =IF(AA12=0,0,(AA12*((LOG(AA12))/LOG(2)))) -> 0 | AD12: =N12 -> 0 | AE12: =COUNTIF(L27:L35,AD12) -> 0 | AF12: =AE12/(AG4-AE8) -> 0 | AG12: =IF(AF12=0,0,(AF12*((LOG(AF12))/LOG(2)))) -> 0 | AI12: =N12 -> 0 | AJ12: =COUNTIF(L36:L45,AI12) -> 0 | AK12: =AJ12/(AL4-AJ8) -> 0 | AL12: =IF(AK12=0,0,(AK12*((LOG(AK12))/LOG(2)))) -> 0 | AN12: =N12 -> 0 | AO12: =COUNTIF(L46:L55,AN12) -> 0 | AP12: =AO12/(AQ4-AO8) -> 0 | AQ12: =IF(AP12=0,0,(AP12*((LOG(AP12))/LOG(2)))) -> 0 | AS12: =N12 -> 0 | AT12: =COUNTIF(L56:L65,AS12) -> 0 | AU12: =AT12/(AV4-AT8) -> 0 | AV12: =IF(AU12=0,0,(AU12*((LOG(AU12))/LOG(2)))) -> 0
A13: 11 | B13: 764 | C13: 21 | D13: 772 | K13: 0 | L13: 12 | T13: =N13 -> 0 | U13: =COUNTIF(L7:L16,T13) -> 0 | V13: =U13/(W4-U8) -> 0 | W13: =IF(V13=0,0,(V13*((LOG(V13))/LOG(2)))) -> 0 | Y13: =N13 -> 0 | Z13: =COUNTIF(L17:L26,Y13) -> 0 | AA13: =Z13/(AB4-Z8) -> 0 | AB13: =IF(AA13=0,0,(AA13*((LOG(AA13))/LOG(2)))) -> 0 | AD13: =N13 -> 0 | AE13: =COUNTIF(L27:L35,AD13) -> 0 | AF13: =AE13/(AG4-AE8) -> 0 | AG13: =IF(AF13=0,0,(AF13*((LOG(AF13))/LOG(2)))) -> 0 | AI13: =N13 -> 0 | AJ13: =COUNTIF(L36:L45,AI13) -> 0 | AK13: =AJ13/(AL4-AJ8) -> 0 | AL13: =IF(AK13=0,0,(AK13*((LOG(AK13))/LOG(2)))) -> 0 | AN13: =N13 -> 0 | AO13: =COUNTIF(L46:L55,AN13) -> 0 | AP13: =AO13/(AQ4-AO8) -> 0 | AQ13: =IF(AP13=0,0,(AP13*((LOG(AP13))/LOG(2)))) -> 0 | AS13: =N13 -> 0 | AT13: =COUNTIF(L56:L65,AS13) -> 0 | AU13: =AT13/(AV4-AT8) -> 0 | AV13: =IF(AU13=0,0,(AU13*((LOG(AU13))/LOG(2)))) -> 0
A14: 11 | B14: 869 | C14: 21 | D14: 878 | K14: 0 | L14: 12 | T14: =N14 -> 0 | U14: =COUNTIF(L7:L16,T14) -> 0 | V14: =U14/(W4-U8) -> 0 | W14: =IF(V14=0,0,(V14*((LOG(V14))/LOG(2)))) -> 0 | Y14: =N14 -> 0 | Z14: =COUNTIF(L17:L26,Y14) -> 0 | AA14: =Z14/(AB4-Z8) -> 0 | AB14: =IF(AA14=0,0,(AA14*((LOG(AA14))/LOG(2)))) -> 0 | AD14: =N14 -> 0 | AE14: =COUNTIF(L27:L35,AD14) -> 0 | AF14: =AE14/(AG4-AE8) -> 0 | AG14: =IF(AF14=0,0,(AF14*((LOG(AF14))/LOG(2)))) -> 0 | AI14: =N14 -> 0 | AJ14: =COUNTIF(L36:L45,AI14) -> 0 | AK14: =AJ14/(AL4-AJ8) -> 0 | AL14: =IF(AK14=0,0,(AK14*((LOG(AK14))/LOG(2)))) -> 0 | AN14: =N14 -> 0 | AO14: =COUNTIF(L46:L55,AN14) -> 0 | AP14: =AO14/(AQ4-AO8) -> 0 | AQ14: =IF(AP14=0,0,(AP14*((LOG(AP14))/LOG(2)))) -> 0 | AS14: =N14 -> 0 | AT14: =COUNTIF(L56:L65,AS14) -> 0 | AU14: =AT14/(AV4-AT8) -> 0 | AV14: =IF(AU14=0,0,(AU14*((LOG(AU14))/LOG(2)))) -> 0
A15: 11 | B15: 976 | C15: 21 | D15: 988 | K15: 0 | L15: 12 | P15: =SUM(P7:P14) -> 1 | Q15: =-SUM(Q7:Q14) -> 1.392537561 | V15: =SUM(V7:V14) -> 1 | W15: =-SUM(W7:W14) -> 0.8112781245 | AA15: =SUM(AA7:AA14) -> 1 | AB15: =-SUM(AB7:AB14) -> 1 | AF15: =SUM(AF7:AF14) -> 1 | AG15: =-SUM(AG7:AG14) -> 0 | AK15: =SUM(AK7:AK14) -> 1 | AL15: =-SUM(AL7:AL14) -> 0 | AP15: =SUM(AP7:AP14) -> 1 | AQ15: =-SUM(AQ7:AQ14) -> 0.9182958341 | AU15: =SUM(AU7:AU14) -> 1 | AV15: =-SUM(AV7:AV14) -> 0.9182958341
A16: 11 | B16: 1081 | C16: 21 | D16: 1092 | K16: 0 | L16: 12 | P16: U= | Q16: =Q15/(LOG(Q4)/LOG(2)) -> 0.2367197107 | V16: U1= | W16: =W15/(LOG(W4)/LOG(2)) -> 0.2442190503 | AA16: U2= | AB16: =AB15/(LOG(AB4)/LOG(2)) -> 0.3010299957 | AF16: U3= | AG16: =AG15/(LOG(AG4)/LOG(2)) -> 0 | AK16: U4= | AL16: =AL15/(LOG(AL4)/LOG(2)) -> 0 | AP16: U5= | AQ16: =AQ15/(LOG(AQ4)/LOG(2)) -> 0.2764345909 | AU16: U6= | AV16: =AV15/(LOG(AV4)/LOG(2)) -> 0.2764345909
A17: 11 | B17: 1194 | C17: 21 | D17: 1205 | K17: 0 | L17: 12
A18: 11 | B18: 1299 | C18: 21 | D18: 1310 | K18: 0 | L18: 12
A19: 11 | B19: 1411 | C19: 21 | D19: 1421 | K19: 0 | L19: 12 | N19: Total Target Seq
A20: 22 | B20: 1530 | C20: 14 | D20: 1553 | K20: 0 | L20: 21 | N20: =COUNTIF(L7:L65,G3) -> 40 | P20: 10 | Q20: 10 | R20: 9 | S20: 10 | T20: 10 | U20: 10
A21: 11 | B21: 1660 | C21: 21 | D21: 1670 | K21: 0 | L21: 12 | P21: % of reinforcement given in 6 equal intervals based on number of trials
A22: 11 | B22: 1763 | C22: 21 | D22: 1774 | K22: 0 | L22: 12 | P22: %_1 | Q22: %_2 | R22: %_3 | S22: %_4 | T22: %_5 | U22: %_6
A23: 11 | B23: 1870 | C23: 12 | D23: 1886 | K23: 0 | L23: 11 | O23: target sequence | P23: =$G$3 -> 12 | Q23: =$G$3 -> 12 | R23: =$G$3 -> 12 | S23: =$G$3 -> 12 | T23: =$G$3 -> 12 | U23: =$G$3 -> 12
A24: 11 | B24: 1990 | C24: 21 | D24: 2000 | K24: 0 | L24: 12 | O24: total reinforcement | P24: =U8 -> 6 | Q24: =Z8 -> 8 | R24: =AE8 -> 7 | S24: =AJ8 -> 8 | T24: =AO8 -> 7 | U24: =AT8 -> 4
A25: 11 | B25: 2094 | C25: 21 | D25: 2105 | K25: 0 | L25: 12 | O25: % target
A26: 11 | B26: 2200 | C26: 21 | D26: 2211 | K26: 0 | L26: 12 | O26: CCRF
A27: 11 | B27: 2305 | C27: 21 | D27: 2317 | K27: 0 | L27: 12 | O27: % CCRf
A28: 11 | B28: 2418 | C28: 21 | D28: 2429 | K28: 0 | L28: 12 | O28: average response rate | P28: =D16/P20 -> 109.2 | Q28: =(D26-D16)/Q20 -> 111.9 | R28: =(D35-D26)/R20 -> 111 | S28: =(D45-D35)/S20 -> 113.4 | T28: =(D55-D45)/T20 -> 116.6 | U28: =(D65-D55)/U20 -> 115.1
A29: 11 | B29: 2526 | C29: 12 | D29: 2538 | K29: 0 | L29: 11
A30: 11 | B30: 2646 | C30: 21 | D30: 2656 | K30: 0 | L30: 12
A31: 11 | B31: 2752 | C31: 21 | D31: 2763 | K31: 0 | L31: 12
A32: 11 | B32: 2862 | C32: 21 | D32: 2874 | K32: 0 | L32: 12
A33: 11 | B33: 2967 | C33: 12 | D33: 2984 | K33: 0 | L33: 11
A34: 11 | B34: 3092 | C34: 21 | D34: 3103 | K34: 0 | L34: 12
A35: 11 | B35: 3201 | C35: 21 | D35: 3210 | K35: 0 | L35: 12
A36: 11 | B36: 3305 | C36: 21 | D36: 3316 | K36: 0 | L36: 12
A37: 11 | B37: 3407 | C37: 21 | D37: 3418 | K37: 0 | L37: 12
A38: 11 | B38: 3512 | C38: 21 | D38: 3522 | K38: 0 | L38: 12
A39: 11 | B39: 3615 | C39: 21 | D39: 3628 | K39: 0 | L39: 12
A40: 11 | B40: 3725 | C40: 21 | D40: 3735 | K40: 0 | L40: 12
A41: 11 | B41: 3827 | C41: 21 | D41: 3835 | K41: 0 | L41: 12
A42: 11 | B42: 3929 | C42: 21 | D42: 3942 | K42: 0 | L42: 12
A43: 11 | B43: 4054 | C43: 21 | D43: 4065 | K43: 0 | L43: 12
A44: 22 | B44: 4170 | C44: 14 | D44: 4209 | K44: 0 | L44: 21
A45: 22 | B45: 4325 | C45: 14 | D45: 4344 | K45: 0 | L45: 21
A46: 11 | B46: 4447 | C46: 21 | D46: 4461 | K46: 0 | L46: 12
A47: 11 | B47: 4559 | C47: 21 | D47: 4569 | K47: 0 | L47: 12
A48: 11 | B48: 4666 | C48: 21 | D48: 4678 | K48: 0 | L48: 12
A49: 11 | B49: 4771 | C49: 21 | D49: 4780 | K49: 0 | L49: 12
A50: 11 | B50: 4878 | C50: 21 | D50: 4889 | K50: 0 | L50: 12
A51: 11 | B51: 4983 | C51: 12 | D51: 5013 | K51: 0 | L51: 11
A52: 22 | B52: 5138 | C52: 23 | D52: 5154 | K52: 0 | L52: 22
A53: 11 | B53: 5264 | C53: 21 | D53: 5273 | K53: 0 | L53: 12
A54: 11 | B54: 5374 | C54: 21 | D54: 5382 | K54: 0 | L54: 12
A55: 22 | B55: 5493 | C55: 23 | D55: 5510 | K55: 0 | L55: 22
A56: 22 | B56: 5631 | C56: 23 | D56: 5648 | K56: 0 | L56: 22
A57: 11 | B57: 5757 | C57: 21 | D57: 5767 | K57: 0 | L57: 12
A58: 22 | B58: 5873 | C58: 23 | D58: 5893 | K58: 0 | L58: 22
A59: 22 | B59: 5989 | C59: 14 | D59: 5998 | K59: 0 | L59: 21
A60: 22 | B60: 6096 | C60: 23 | D60: 6108 | K60: 0 | L60: 22
A61: 22 | B61: 6208 | C61: 14 | D61: 6216 | K61: 0 | L61: 21
A62: 22 | B62: 6316 | C62: 23 | D62: 6328 | K62: 0 | L62: 22
A63: 11 | B63: 6432 | C63: 21 | D63: 6443 | K63: 0 | L63: 12
A64: 11 | B64: 6546 | C64: 21 | D64: 6559 | K64: 0 | L64: 12
A65: 11 | B65: 6649 | C65: 21 | D65: 6661 | K65: 1 | L65: 12

Sheet !L824B50.055
A1: Report for:!L824B50.055
A2: Date: | B2: <date>
A3: Hen: | B3: <hen> | F3: Correct Sequence | G3: =Start!J2 -> 12 | P3: Total Sequences in Data | Q3: =4994-COUNTBLANK(L7:L5000) -> 60 | V3: Total Sequences in Block Data | W3: =COUNTA(L7:L16) -> 10 | AA3: Total Sequences in Block Data | AB3: =COUNTA(L17:L26) -> 10 | AF3: Total Sequences in Block Data | AG3: =COUNTA(L27:L36) -> 10 | AK3: Total Sequences in Block Data | AL3: =COUNTA(L37:L46) -> 10 | AP3: Total Sequences in Block Data | AQ3: =COUNTA(L47:L56) -> 10 | AU3: Total Sequences in Block Data | AV3: =COUNTA(L57:L66) -> 10
P4: Total Sequences in Summary | Q4: =SUM(O7:O14) -> 60 | V4: Total Sequences in Block Summary | W4: =SUM(U7:U14) -> 10 | AA4: Total Sequences in Block Summary | AB4: =SUM(Z7:Z14) -> 10 | AF4: Total Sequences in Block Summary | AG4: =SUM(AE7:AE14) -> 10 | AK4: Total Sequences in Block Summary | AL4: =SUM(AJ7:AJ14) -> 10 | AP4: Total Sequences in Block Summary | AQ4: =SUM(AO7:AO14) -> 10 | AU4: Total Sequences in Block Summary | AV4: =SUM(AT7:AT14) -> 10
T5: Block 1 | Y5: Block 2 | AD5: Block 3 | AI5: Block 4 | AN5: Block 5 | AS5: Block 6
A6: Sequence Component 1 | B6: Time 1 | C6: Sequence Component 2 | D6: Time 2 | E6: Sequence Component 3 | F6: Time 3 | G6: Sequence Component 4 | H6: Time 4 | I6: Sequence Component 5 | J6: Time 5 | K6: Correct? 0=No 1=Yes | L6: Sequence | N6: Frequency | P6: Relative Frequency | Q6: Variability | T6: Frequency | V6: Relative Frequency | W6: Variability | Y6: Frequency | AA6: Relative Frequency | AB6: Variability | AD6: Frequency | AF6: Relative Frequency | AG6: Variability | AI6: Frequency | AK6: Relative Frequency | AL6: Variability | AN6: Frequency | AP6: Relative Frequency | AQ6: Variability | AS6: Frequency | AU6: Relative Frequency | AV6: Variability
A7: 22 | B7: 14 | C7: 23 | D7: 34 | K7: 0 | L7: 22 | N7: 11 | O7: =COUNTIF($L$7:$L$500,N7) -> 1 | P7: =O7/$Q$4 -> 0.01666666667 | Q7: =IF(P7=0,0,(P7*((LOG(P7))/LOG(2)))) -> -0.09844817659 | T7: =N7 -> 11 | U7: =COUNTIF(L7:L16,T7) -> 0 | V7: =U7/(W4-U8) -> 0 | W7: =IF(V7=0,0,(V7*((LOG(V7))/LOG(2)))) -> 0 | Y7: =N7 -> 11 | Z7: =COUNTIF(L17:L26,Y7) -> 0 | AA7: =Z7/(AB4-Z8) -> 0 | AB7: =IF(AA7=0,0,(AA7*((LOG(AA7))/LOG(2)))) -> 0 | AD7: =N7 -> 11 | AE7: =COUNTIF(L27:L36,AD7) -> 0 | AF7: =AE7/(AG4-AE8) -> 0 | AG7: =IF(AF7=0,0,(AF7*((LOG(AF7))/LOG(2)))) -> 0 | AI7: =N7 -> 11 | AJ7: =COUNTIF(L37:L46,AI7) -> 1 | AK7: =AJ7/(AL4-AJ8) -> 0.25 | AL7: =IF(AK7=0,0,(AK7*((LOG(AK7))/LOG(2)))) -> -0.5 | AN7: =N7 -> 11 | AO7: =COUNTIF(L47:L56,AN7) -> 0 | AP7: =AO7/(AQ4-AO8) -> 0 | AQ7: =IF(AP7=0,0,(AP7*((LOG(AP7))/LOG(2)))) -> 0 | AS7: =N7 -> 11 | AT7: =COUNTIF(L57:L66,AS7) -> 0 | AU7: =AT7/(AV4-AT8) -> 0 | AV7: =IF(AU7=0,0,(AU7*((LOG(AU7))/LOG(2)))) -> 0
A8: 11 | B8: 144 | C8: 21 | D8: 155 | K8: 0 | L8: 12 | N8: 12 | O8: =COUNTIF($L$7:$L$500,N8) -> 40 | P8: =O8/$Q$4 -> 0.6666666667 | Q8: =IF(P8=0,0,(P8*((LOG(P8))/LOG(2)))) -> -0.3899750005 | T8: =N8 -> 12 | U8: =COUNTIF(L7:L16,T8) -> 5 | Y8: =N8 -> 12 | Z8: =COUNTIF(L17:L26,Y8) -> 8 | AD8: =N8 -> 12 | AE8: =COUNTIF(L27:L36,AD8) -> 8 | AI8: =N8 -> 12 | AJ8: =COUNTIF(L37:L46,AI8) -> 6 | AN8: =N8 -> 12 | AO8: =COUNTIF(L47:L56,AN8) -> 4 | AS8: =N8 -> 12 | AT8: =COUNTIF(L57:L66,AS8) -> 9
A9: 11 | B9: 251 | C9: 21 | D9: 274 | K9: 0 | L9: 12 | N9: 21 | O9: =COUNTIF($L$7:$L$500,N9) -> 8 | P9: =O9/$Q$4 -> 0.1333333333 | Q9: =IF(P9=0,0,(P9*((LOG(P9))/LOG(2)))) -> -0.3875854127 | T9: =N9 -> 21 | U9: =COUNTIF(L7:L16,T9) -> 3 | V9: =U9/(W4-U8) -> 0.6 | W9: =IF(V9=0,0,(V9*((LOG(V9))/LOG(2)))) -> -0.4421793565 | Y9: =N9 -> 21 | Z9: =COUNTIF(L17:L26,Y9) -> 2 | AA9: =Z9/(AB4-Z8) -> 1 | AB9: =IF(AA9=0,0,(AA9*((LOG(AA9))/LOG(2)))) -> 0 | AD9: =N9 -> 21 | AE9: =COUNTIF(L27:L36,AD9) -> 1 | AF9: =AE9/(AG4-AE8) -> 0.5 | AG9: =IF(AF9=0,0,(AF9*((LOG(AF9))/LOG(2)))) -> -0.5 | AI9: =N9 -> 21 | AJ9: =COUNTIF(L37:L46,AI9) -> 1 | AK9: =AJ9/(AL4-AJ8) -> 0.25 | AL9: =IF(AK9=0,0,(AK9*((LOG(AK9))/LOG(2)))) -> -0.5 | AN9: =N9 -> 21 | AO9: =COUNTIF(L47:L56,AN9) -> 0 | AP9: =AO9/(AQ4-AO8) -> 0 | AQ9: =IF(AP9=0,0,(AP9*((LOG(AP9))/LOG(2)))) -> 0 | AS9: =N9 -> 21 | AT9: =COUNTIF(L57:L66,AS9) -> 1 | AU9: =AT9/(AV4-AT8) -> 1 | AV9: =IF(AU9=0,0,(AU9*((LOG(AU9))/LOG(2)))) -> 0
A10: 22 | B10: 377 | C10: 14 | D10: 390 | K10: 0 | L10: 21 | N10: 22 | O10: =COUNTIF($L$7:$L$500,N10) -> 11 | P10: =O10/$Q$4 -> 0.1833333333 | Q10: =IF(P10=0,0,(P10*((LOG(P10))/LOG(2)))) -> -0.4487008124 | T10: =N10 -> 22 | U10: =COUNTIF(L7:L16,T10) -> 2 | V10: =U10/(W4-U8) -> 0.4 | W10: =IF(V10=0,0,(V10*((LOG(V10))/LOG(2)))) -> -0.528771238 | Y10: =N10 -> 22 | Z10: =COUNTIF(L17:L26,Y10) -> 0 | AA10: =Z10/(AB4-Z8) -> 0 | AB10: =IF(AA10=0,0,(AA10*((LOG(AA10))/LOG(2)))) -> 0 | AD10: =N10 -> 22 | AE10: =COUNTIF(L27:L36,AD10) -> 1 | AF10: =AE10/(AG4-AE8) -> 0.5 | AG10: =IF(AF10=0,0,(AF10*((LOG(AF10))/LOG(2)))) -> -0.5 | AI10: =N10 -> 22 | AJ10: =COUNTIF(L37:L46,AI10) -> 2 | AK10: =AJ10/(AL4-AJ8) -> 0.5 | AL10: =IF(AK10=0,0,(AK10*((LOG(AK10))/LOG(2)))) -> -0.5 | AN10: =N10 -> 22 | AO10: =COUNTIF(L47:L56,AN10) -> 6 | AP10: =AO10/(AQ4-AO8) -> 1 | AQ10: =IF(AP10=0,0,(AP10*((LOG(AP10))/LOG(2)))) -> 0 | AS10: =N10 -> 22 | AT10: =COUNTIF(L57:L66,AS10) -> 0 | AU10: =AT10/(AV4-AT8) -> 0 | AV10: =IF(AU10=0,0,(AU10*((LOG(AU10))/LOG(2)))) -> 0
A11: 22 | B11: 509 | C11: 14 | D11: 530 | K11: 0 | L11: 21 | T11: =N11 -> 0 | U11: =COUNTIF(L7:L16,T11) -> 0 | V11: =U11/(W4-U8) -> 0 | W11: =IF(V11=0,0,(V11*((LOG(V11))/LOG(2)))) -> 0 | Y11: =N11 -> 0 | Z11: =COUNTIF(L17:L26,Y11) -> 0 | AA11: =Z11/(AB4-Z8) -> 0 | AB11: =IF(AA11=0,0,(AA11*((LOG(AA11))/LOG(2)))) -> 0 | AD11: =N11 -> 0 | AE11: =COUNTIF(L27:L36,AD11) -> 0 | AF11: =AE11/(AG4-AE8) -> 0 | AG11: =IF(AF11=0,0,(AF11*((LOG(AF11))/LOG(2)))) -> 0 | AI11: =N11 -> 0 | AJ11: =COUNTIF(L37:L46,AI11) -> 0 | AK11: =AJ11/(AL4-AJ8) -> 0 | AL11: =IF(AK11=0,0,(AK11*((LOG(AK11))/LOG(2)))) -> 0 | AN11: =N11 -> 0 | AO11: =COUNTIF(L47:L56,AN11) -> 0 | AP11: =AO11/(AQ4-AO8) -> 0 | AQ11: =IF(AP11=0,0,(AP11*((LOG(AP11))/LOG(2)))) -> 0 | AS11: =N11 -> 0 | AT11: =COUNTIF(L57:L66,AS11) -> 0 | AU11: =AT11/(AV4-AT8) -> 0 | AV11: =IF(AU11=0,0,(AU11*((LOG(AU11))/LOG(2)))) -> 0
A12: 11 | B12: 632 | C12: 21 | D12: 649 | K12: 0 | L12: 12 | T12: =N12 -> 0 | U12: =COUNTIF(L7:L16,T12) -> 0 | V12: =U12/(W4-U8) -> 0 | W12: =IF(V12=0,0,(V12*((LOG(V12))/LOG(2)))) -> 0 | Y12: =N12 -> 0 | Z12: =COUNTIF(L17:L26,Y12) -> 0 | AA12: =Z12/(AB4-Z8) -> 0 | AB12: =IF(AA12=0,0,(AA12*((LOG(AA12))/LOG(2)))) -> 0 | AD12: =N12 -> 0 | AE12: =COUNTIF(L27:L36,AD12) -> 0 | AF12: =AE12/(AG4-AE8) -> 0 | AG12: =IF(AF12=0,0,(AF12*((LOG(AF12))/LOG(2)))) -> 0 | AI12: =N12 -> 0 | AJ12: =COUNTIF(L37:L46,AI12) -> 0 | AK12: =AJ12/(AL4-AJ8) -> 0 | AL12: =IF(AK12=0,0,(AK12*((LOG(AK12))/LOG(2)))) -> 0 | AN12: =N12 -> 0 | AO12: =COUNTIF(L47:L56,AN12) -> 0 | AP12: =AO12/(AQ4-AO8) -> 0 | AQ12: =IF(AP12=0,0,(AP12*((LOG(AP12))/LOG(2)))) -> 0 | AS12: =N12 -> 0 | AT12: =COUNTIF(L57:L66,AS12) -> 0 | AU12: =AT12/(AV4-AT8) -> 0 | AV12: =IF(AU12=0,0,(AU12*((LOG(AU12))/LOG(2)))) -> 0
A13: 11 | B13: 751 | C13: 21 | D13: 762 | K13: 0 | L13: 12 | T13: =N13 -> 0 | U13: =COUNTIF(L7:L16,T13) -> 0 | V13: =U13/(W4-U8) -> 0 | W13: =IF(V13=0,0,(V13*((LOG(V13))/LOG(2)))) -> 0 | Y13: =N13 -> 0 | Z13: =COUNTIF(L17:L26,Y13) -> 0 | AA13: =Z13/(AB4-Z8) -> 0 | AB13: =IF(AA13=0,0,(AA13*((LOG(AA13))/LOG(2)))) -> 0 | AD13: =N13 -> 0 | AE13: =COUNTIF(L27:L36,AD13) -> 0 | AF13: =AE13/(AG4-AE8) -> 0 | AG13: =IF(AF13=0,0,(AF13*((LOG(AF13))/LOG(2)))) -> 0 | AI13: =N13 -> 0 | AJ13: =COUNTIF(L37:L46,AI13) -> 0 | AK13: =AJ13/(AL4-AJ8) -> 0 | AL13: =IF(AK13=0,0,(AK13*((LOG(AK13))/LOG(2)))) -> 0 | AN13: =N13 -> 0 | AO13: =COUNTIF(L47:L56,AN13) -> 0 | AP13: =AO13/(AQ4-AO8) -> 0 | AQ13: =IF(AP13=0,0,(AP13*((LOG(AP13))/LOG(2)))) -> 0 | AS13: =N13 -> 0 | AT13: =COUNTIF(L57:L66,AS13) -> 0 | AU13: =AT13/(AV4-AT8) -> 0 | AV13: =IF(AU13=0,0,(AU13*((LOG(AU13))/LOG(2)))) -> 0
A14: 22 | B14: 870 | C14: 23 | D14: 883 | K14: 0 | L14: 22 | T14: =N14 -> 0 | U14: =COUNTIF(L7:L16,T14) -> 0 | V14: =U14/(W4-U8) -> 0 | W14: =IF(V14=0,0,(V14*((LOG(V14))/LOG(2)))) -> 0 | Y14: =N14 -> 0 | Z14: =COUNTIF(L17:L26,Y14) -> 0 | AA14: =Z14/(AB4-Z8) -> 0 | AB14: =IF(AA14=0,0,(AA14*((LOG(AA14))/LOG(2)))) -> 0 | AD14: =N14 -> 0 | AE14: =COUNTIF(L27:L36,AD14) -> 0 | AF14: =AE14/(AG4-AE8) -> 0 | AG14: =IF(AF14=0,0,(AF14*((LOG(AF14))/LOG(2)))) -> 0 | AI14: =N14 -> 0 | AJ14: =COUNTIF(L37:L46,AI14) -> 0 | AK14: =AJ14/(AL4-AJ8) -> 0 | AL14: =IF(AK14=0,0,(AK14*((LOG(AK14))/LOG(2)))) -> 0 | AN14: =N14 -> 0 | AO14: =COUNTIF(L47:L56,AN14) -> 0 | AP14: =AO14/(AQ4-AO8) -> 0 | AQ14: =IF(AP14=0,0,(AP14*((LOG(AP14))/LOG(2)))) -> 0 | AS14: =N14 -> 0 | AT14: =COUNTIF(L57:L66,AS14) -> 0 | AU14: =AT14/(AV4-AT8) -> 0 | AV14: =IF(AU14=0,0,(AU14*((LOG(AU14))/LOG(2)))) -> 0
A15: 22 | B15: 1005 | C15: 14 | D15: 1022 | K15: 0 | L15: 21 | P15: =SUM(P7:P14) -> 1 | Q15: =-SUM(Q7:Q14) -> 1.324709402 | V15: =SUM(V7:V14) -> 1 | W15: =-SUM(W7:W14) -> 0.9709505945 | AA15: =SUM(AA7:AA14) -> 1 | AB15: =-SUM(AB7:AB14) -> 0 | AF15: =SUM(AF7:AF14) -> 1 | AG15: =-SUM(AG7:AG14) -> 1 | AK15: =SUM(AK7:AK14) -> 1 | AL15: =-SUM(AL7:AL14) -> 1.5 | AP15: =SUM(AP7:AP14) -> 1 | AQ15: =-SUM(AQ7:AQ14) -> 0 | AU15: =SUM(AU7:AU14) -> 1 | AV15: =-SUM(AV7:AV14) -> 0
A16: 11 | B16: 1129 | C16: 21 | D16: 1139 | K16: 0 | L16: 12 | P16: U= | Q16: =Q15/(LOG(Q4)/LOG(2)) -> 0.2242650987 | V16: U1= | W16: =W15/(LOG(W4)/LOG(2)) -> 0.2922852532 | AA16: U2= | AB16: =AB15/(LOG(AB4)/LOG(2)) -> 0 | AF16: U3= | AG16: =AG15/(LOG(AG4)/LOG(2)) -> 0.3010299957 | AK16: U4= | AL16: =AL15/(LOG(AL4)/LOG(2)) -> 0.4515449935 | AP16: U5= | AQ16: =AQ15/(LOG(AQ4)/LOG(2)) -> 0 | AU16: U6= | AV16: =AV15/(LOG(AV4)/LOG(2)) -> 0
A17: 22 | B17: 1252 | C17: 14 | D17: 1268 | K17: 0 | L17: 21
A18: 11 | B18: 1370 | C18: 21 | D18: 1399 | K18: 0 | L18: 12
A19: 22 | B19: 1493 | C19: 14 | D19: 1502 | K19: 0 | L19: 21 | N19: Total Target Seq
A20: 11 | B20: 1605 | C20: 21 | D20: 1617 | K20: 0 | L20: 12 | N20: =COUNTIF(L7:L66,G3) -> 40 | P20: 10 | Q20: 10 | R20: 10 | S20: 10 | T20: 10 | U20: 10
A21: 11 | B21: 1716 | C21: 21 | D21: 1728 | K21: 0 | L21: 12 | P21: % of reinforcement given in 6 equal intervals based on number of trials
A22: 11 | B22: 1820 | C22: 21 | D22: 1834 | K22: 0 | L22: 12 | P22: %_1 | Q22: %_2 | R22: %_3 | S22: %_4 | T22: %_5 | U22: %_6
A23: 11 | B23: 1927 | C23: 21 | D23: 1937 | K23: 0 | L23: 12 | O23: target sequence | P23: =$G$3 -> 12 | Q23: =$G$3 -> 12 | R23: =$G$3 -> 12 | S23: =$G$3 -> 12 | T23: =$G$3 -> 12 | U23: =$G$3 -> 12
A24: 11 | B24: 2032 | C24: 21 | D24: 2044 | K24: 0 | L24: 12 | O24: total reinforcement | P24: =U8 -> 5 | Q24: =Z8 -> 8 | R24: =AE8 -> 8 | S24: =AJ8 -> 6 | T24: =AO8 -> 4 | U24: =AT8 -> 9
A25: 11 | B25: 2140 | C25: 21 | D25: 2152 | K25: 0 | L25: 12 | O25: % target
A26: 11 | B26: 2249 | C26: 21 | D26: 2264 | K26: 0 | L26: 12 | O26: CCRF
A27: 22 | B27: 2371 | C27: 14 | D27: 2388 | K27: 0 | L27: 21 | O27: % CCRf
A28: 11 | B28: 2492 | C28: 21 | D28: 2507 | K28: 0 | L28: 12 | O28: average response rate | P28: =D16/P20 -> 113.9 | Q28: =(D26-D16)/Q20 -> 112.5 | R28: =(D36-D26)/R20 -> 115.9 | S28: =(D46-D36)/S20 -> 117.2 | T28: =(D56-D46)/T20 -> 125 | U28: =(D66-D56)/U20 -> 111.6
A29: 11 | B29: 2605 | C29: 21 | D29: 2621 | K29: 0 | L29: 12
A30: 11 | B30: 2714 | C30: 21 | D30: 2729 | K30: 0 | L30: 12
A31: 11 | B31: 2827 | C31: 21 | D31: 2837 | K31: 0 | L31: 12
A32: 11 | B32: 2933 | C32: 21 | D32: 2945 | K32: 0 | L32: 12
A33: 11 | B33: 3037 | C33: 21 | D33: 3054 | K33: 0 | L33: 12
A34: 11 | B34: 3146 | C34: 21 | D34: 3170 | K34: 0 | L34: 12
A35: 11 | B35: 3264 | C35: 21 | D35: 3288 | K35: 0 | L35: 12
A36: 22 | B36: 3404 | C36: 23 | D36: 3423 | K36: 0 | L36: 22
A37: 11 | B37: 3533 | C37: 21 | D37: 3544 | K37: 0 | L37: 12
A38: 22 | B38: 3664 | C38: 23 | D38: 3677 | K38: 0 | L38: 22
A39: 11 | B39: 3781 | C39: 12 | D39: 3786 | K39: 0 | L39: 11
A40: 11 | B40: 3890 | C40: 21 | D40: 3900 | K40: 0 | L40: 12
A41: 11 | B41: 4005 | C41: 21 | D41: 4018 | K41: 0 | L41: 12
A42: 11 | B42: 4123 | C42: 21 | D42: 4136 | K42: 0 | L42: 12
A43: 22 | B43: 4243 | C43: 23 | D43: 4257 | K43: 0 | L43: 22
A44: 22 | B44: 4360 | C44: 14 | D44: 4370 | K44: 0 | L44: 21
A45: 11 | B45: 4480 | C45: 21 | D45: 4490 | K45: 0 | L45: 12
A46: 11 | B46: 4585 | C46: 21 | D46: 4595 | K46: 0 | L46: 12
A47: 11 | B47: 4691 | C47: 21 | D47: 4703 | K47: 0 | L47: 12
A48: 22 | B48: 4816 | C48: 23 | D48: 4833 | K48: 0 | L48: 22
A49: 11 | B49: 4936 | C49: 21 | D49: 4948 | K49: 0 | L49: 12
A50: 22 | B50: 5057 | C50: 23 | D50: 5079 | K50: 0 | L50: 22
A51: 22 | B51: 5231 | C51: 23 | D51: 5244 | K51: 0 | L51: 22
A52: 11 | B52: 5345 | C52: 21 | D52: 5360 | K52: 0 | L52: 12
A53: 11 | B53: 5455 | C53: 21 | D53: 5468 | K53: 0 | L53: 12
A54: 22 | B54: 5575 | C54: 23 | D54: 5592 | K54: 0 | L54: 22
A55: 22 | B55: 5710 | C55: 23 | D55: 5720 | K55: 0 | L55: 22
A56: 22 | B56: 5833 | C56: 23 | D56: 5845 | K56: 0 | L56: 22
A57: 11 | B57: 5960 | C57: 21 | D57: 5981 | K57: 0 | L57: 12
A58: 11 | B58: 6078 | C58: 21 | D58: 6089 | K58: 0 | L58: 12
A59: 11 | B59: 6184 | C59: 21 | D59: 6194 | K59: 0 | L59: 12
A60: 11 | B60: 6286 | C60: 21 | D60: 6297 | K60: 0 | L60: 12
A61: 11 | B61: 6391 | C61: 21 | D61: 6401 | K61: 0 | L61: 12
A62: 11 | B62: 6495 | C62: 21 | D62: 6508 | K62: 0 | L62: 12
A63: 11 | B63: 6603 | C63: 21 | D63: 6613 | K63: 0 | L63: 12
A64: 11 | B64: 6705 | C64: 21 | D64: 6717 | K64: 0 | L64: 12
A65: 22 | B65: 6829 | C65: 14 | D65: 6845 | K65: 0 | L65: 21
A66: 11 | B66: 6951 | C66: 21 | D66: 6961 | K66: 1 | L66: 12

Sheet !L825C20.055
A1: Report for:!L825C20.055
A2: Date: | B2: <date>
A3: Hen: | B3: <hen> | F3: Correct Sequence | G3: =Start!J2 -> 12 | P3: Total Sequences in Data | Q3: =4994-COUNTBLANK(L7:L5000) -> 58 | V3: Total Sequences in Block Data | W3: =COUNTA(L7:L16) -> 10 | AA3: Total Sequences in Block Data | AB3: =COUNTA(L17:L25) -> 9 | AF3: Total Sequences in Block Data | AG3: =COUNTA(L26:L35) -> 10 | AK3: Total Sequences in Block Data | AL3: =COUNTA(L36:L45) -> 10 | AP3: Total Sequences in Block Data | AQ3: =COUNTA(L46:L54) -> 9 | AU3: Total Sequences in Block Data | AV3: =COUNTA(L55:L64) -> 10
P4: Total Sequences in Summary | Q4: =SUM(O7:O14) -> 58 | V4: Total Sequences in Block Summary | W4: =SUM(U7:U14) -> 10 | AA4: Total Sequences in Block Summary | AB4: =SUM(Z7:Z14) -> 9 | AF4: Total Sequences in Block Summary | AG4: =SUM(AE7:AE14) -> 10 | AK4: Total Sequences in Block Summary | AL4: =SUM(AJ7:AJ14) -> 10 | AP4: Total Sequences in Block Summary | AQ4: =SUM(AO7:AO14) -> 9 | AU4: Total Sequences in Block Summary | AV4: =SUM(AT7:AT14) -> 10
T5: Block 1 | Y5: Block 2 | AD5: Block 3 | AI5: Block 4 | AN5: Block 5 | AS5: Block 6
A6: Sequence Component 1 | B6: Time 1 | C6: Sequence Component 2 | D6: Time 2 | E6: Sequence Component 3 | F6: Time 3 | G6: Sequence Component 4 | H6: Time 4 | I6: Sequence Component 5 | J6: Time 5 | K6: Correct? 0=No 1=Yes | L6: Sequence | N6: Frequency | P6: Relative Frequency | Q6: Variability | T6: Frequency | V6: Relative Frequency | W6: Variability | Y6: Frequency | AA6: Relative Frequency | AB6: Variability | AD6: Frequency | AF6: Relative Frequency | AG6: Variability | AI6: Frequency | AK6: Relative Frequency | AL6: Variability | AN6: Frequency | AP6: Relative Frequency | AQ6: Variability | AS6: Frequency | AU6: Relative Frequency | AV6: Variability
A7: 22 | B7: 23 | C7: 23 | D7: 40 | K7: 0 | L7: 22 | N7: 11 | O7: =COUNTIF($L$7:$L$500,N7) -> 5 | P7: =O7/$Q$4 -> 0.08620689655 | Q7: =IF(P7=0,0,(P7*((LOG(P7))/LOG(2)))) -> -0.3048321466 | T7: =N7 -> 11 | U7: =COUNTIF(L7:L16,T7) -> 1 | V7: =U7/(W4-U8) -> 0.2 | W7: =IF(V7=0,0,(V7*((LOG(V7))/LOG(2)))) -> -0.464385619 | Y7: =N7 -> 11 | Z7: =COUNTIF(L17:L25,Y7) -> 1 | AA7: =Z7/(AB4-Z8) -> 1 | AB7: =IF(AA7=0,0,(AA7*((LOG(AA7))/LOG(2)))) -> 0 | AD7: =N7 -> 11 | AE7: =COUNTIF(L26:L35,AD7) -> 0 | AF7: =AE7/(AG4-AE8) -> 0 | AG7: =IF(AF7=0,0,(AF7*((LOG(AF7))/LOG(2)))) -> 0 | AI7: =N7 -> 11 | AJ7: =COUNTIF(L36:L45,AI7) -> 1 | AK7: =AJ7/(AL4-AJ8) -> 0.5 | AL7: =IF(AK7=0,0,(AK7*((LOG(AK7))/LOG(2)))) -> -0.5 | AN7: =N7 -> 11 | AO7: =COUNTIF(L46:L54,AN7) -> 1 | AP7: =AO7/(AQ4-AO8) -> 0.2 | AQ7: =IF(AP7=0,0,(AP7*((LOG(AP7))/LOG(2)))) -> -0.464385619 | AS7: =N7 -> 11 | AT7: =COUNTIF(L55:L64,AS7) -> 1 | AU7: =AT7/(AV4-AT8) -> 0.25 | AV7: =IF(AU7=0,0,(AU7*((LOG(AU7))/LOG(2)))) -> -0.5
A8: 11 | B8: 158 | C8: 21 | D8: 170 | K8: 0 | L8: 12 | N8: 12 | O8: =COUNTIF($L$7:$L$500,N8) -> 40 | P8: =O8/$Q$4 -> 0.6896551724 | Q8: =IF(P8=0,0,(P8*((LOG(P8))/LOG(2)))) -> -0.3696916553 | T8: =N8 -> 12 | U8: =COUNTIF(L7:L16,T8) -> 5 | Y8: =N8 -> 12 | Z8: =COUNTIF(L17:L25,Y8) -> 8 | AD8: =N8 -> 12 | AE8: =COUNTIF(L26:L35,AD8) -> 9 | AI8: =N8 -> 12 | AJ8: =COUNTIF(L36:L45,AI8) -> 8 | AN8: =N8 -> 12 | AO8: =COUNTIF(L46:L54,AN8) -> 4 | AS8: =N8 -> 12 | AT8: =COUNTIF(L55:L64,AS8) -> 6
A9: 11 | B9: 290 | C9: 21 | D9: 299 | K9: 0 | L9: 12 | N9: 21 | O9: =COUNTIF($L$7:$L$500,N9) -> 7 | P9: =O9/$Q$4 -> 0.1206896552 | Q9: =IF(P9=0,0,(P9*((LOG(P9))/LOG(2)))) -> -0.3681790088 | T9: =N9 -> 21 | U9: =COUNTIF(L7:L16,T9) -> 1 | V9: =U9/(W4-U8) -> 0.2 | W9: =IF(V9=0,0,(V9*((LOG(V9))/LOG(2)))) -> -0.464385619 | Y9: =N9 -> 21 | Z9: =COUNTIF(L17:L25,Y9) -> 0 | AA9: =Z9/(AB4-Z8) -> 0 | AB9: =IF(AA9=0,0,(AA9*((LOG(AA9))/LOG(2)))) -> 0 | AD9: =N9 -> 21 | AE9: =COUNTIF(L26:L35,AD9) -> 1 | AF9: =AE9/(AG4-AE8) -> 1 | AG9: =IF(AF9=0,0,(AF9*((LOG(AF9))/LOG(2)))) -> 0 | AI9: =N9 -> 21 | AJ9: =COUNTIF(L36:L45,AI9) -> 0 | AK9: =AJ9/(AL4-AJ8) -> 0 | AL9: =IF(AK9=0,0,(AK9*((LOG(AK9))/LOG(2)))) -> 0 | AN9: =N9 -> 21 | AO9: =COUNTIF(L46:L54,AN9) -> 2 | AP9: =AO9/(AQ4-AO8) -> 0.4 | AQ9: =IF(AP9=0,0,(AP9*((LOG(AP9))/LOG(2)))) -> -0.528771238 | AS9: =N9 -> 21 | AT9: =COUNTIF(L55:L64,AS9) -> 3 | AU9: =AT9/(AV4-AT8) -> 0.75 | AV9: =IF(AU9=0,0,(AU9*((LOG(AU9))/LOG(2)))) -> -0.3112781245
A10: 22 | B10: 404 | C10: 23 | D10: 418 | K10: 0 | L10: 22 | N10: 22 | O10: =COUNTIF($L$7:$L$500,N10) -> 6 | P10: =O10/$Q$4 -> 0.1034482759 | Q10: =IF(P10=0,0,(P10*((LOG(P10))/LOG(2)))) -> -0.3385881201 | T10: =N10 -> 22 | U10: =COUNTIF(L7:L16,T10) -> 3 | V10: =U10/(W4-U8) -> 0.6 | W10: =IF(V10=0,0,(V10*((LOG(V10))/LOG(2)))) -> -0.4421793565 | Y10: =N10 -> 22 | Z10: =COUNTIF(L17:L25,Y10) -> 0 | AA10: =Z10/(AB4-Z8) -> 0 | AB10: =IF(AA10=0,0,(AA10*((LOG(AA10))/LOG(2)))) -> 0 | AD10: =N10 -> 22 | AE10: =COUNTIF(L26:L35,AD10) -> 0 | AF10: =AE10/(AG4-AE8) -> 0 | AG10: =IF(AF10=0,0,(AF10*((LOG(AF10))/LOG(2)))) -> 0 | AI10: =N10 -> 22 | AJ10: =COUNTIF(L36:L45,AI10) -> 1 | AK10: =AJ10/(AL4-AJ8) -> 0.5 | AL10: =IF(AK10=0,0,(AK10*((LOG(AK10))/LOG(2)))) -> -0.5 | AN10: =N10 -> 22 | AO10: =COUNTIF(L46:L54,AN10) -> 2 | AP10: =AO10/(AQ4-AO8) -> 0.4 | AQ10: =IF(AP10=0,0,(AP10*((LOG(AP10))/LOG(2)))) -> -0.528771238 | AS10: =N10 -> 22 | AT10: =COUNTIF(L55:L64,AS10) -> 0 | AU10: =AT10/(AV4-AT8) -> 0 | AV10: =IF(AU10=0,0,(AU10*((LOG(AU10))/LOG(2)))) -> 0
A11: 22 | B11: 520 | C11: 14 | D11: 536 | K11: 0 | L11: 21 | T11: =N11 -> 0 | U11: =COUNTIF(L7:L16,T11) -> 0 | V11: =U11/(W4-U8) -> 0 | W11: =IF(V11=0,0,(V11*((LOG(V11))/LOG(2)))) -> 0 | Y11: =N11 -> 0 | Z11: =COUNTIF(L17:L25,Y11) -> 0 | AA11: =Z11/(AB4-Z8) -> 0 | AB11: =IF(AA11=0,0,(AA11*((LOG(AA11))/LOG(2)))) -> 0 | AD11: =N11 -> 0 | AE11: =COUNTIF(L26:L35,AD11) -> 0 | AF11: =AE11/(AG4-AE8) -> 0 | AG11: =IF(AF11=0,0,(AF11*((LOG(AF11))/LOG(2)))) -> 0 | AI11: =N11 -> 0 | AJ11: =COUNTIF(L36:L45,AI11) -> 0 | AK11: =AJ11/(AL4-AJ8) -> 0 | AL11: =IF(AK11=0,0,(AK11*((LOG(AK11))/LOG(2)))) -> 0 | AN11: =N11 -> 0 | AO11: =COUNTIF(L46:L54,AN11) -> 0 | AP11: =AO11/(AQ4-AO8) -> 0 | AQ11: =IF(AP11=0,0,(AP11*((LOG(AP11))/LOG(2)))) -> 0 | AS11: =N11 -> 0 | AT11: =COUNTIF(L55:L64,AS11) -> 0 | AU11: =AT11/(AV4-AT8) -> 0 | AV11: =IF(AU11=0,0,(AU11*((LOG(AU11))/LOG(2)))) -> 0
A12: 22 | B12: 651 | C12: 23 | D12: 665 | K12: 0 | L12: 22 | T12: =N12 -> 0 | U12: =COUNTIF(L7:L16,T12) -> 0 | V12: =U12/(W4-U8) -> 0 | W12: =IF(V12=0,0,(V12*((LOG(V12))/LOG(2)))) -> 0 | Y12: =N12 -> 0 | Z12: =COUNTIF(L17:L25,Y12) -> 0 | AA12: =Z12/(AB4-Z8) -> 0 | AB12: =IF(AA12=0,0,(AA12*((LOG(AA12))/LOG(2)))) -> 0 | AD12: =N12 -> 0 | AE12: =COUNTIF(L26:L35,AD12) -> 0 | AF12: =AE12/(AG4-AE8) -> 0 | AG12: =IF(AF12=0,0,(AF12*((LOG(AF12))/LOG(2)))) -> 0 | AI12: =N12 -> 0 | AJ12: =COUNTIF(L36:L45,AI12) -> 0 | AK12: =AJ12/(AL4-AJ8) -> 0 | AL12: =IF(AK12=0,0,(AK12*((LOG(AK12))/LOG(2)))) -> 0 | AN12: =N12 -> 0 | AO12: =COUNTIF(L46:L54,AN12) -> 0 | AP12: =AO12/(AQ4-AO8) -> 0 | AQ12: =IF(AP12=0,0,(AP12*((LOG(AP12))/LOG(2)))) -> 0 | AS12: =N12 -> 0 | AT12: =COUNTIF(L55:L64,AS12) -> 0 | AU12: =AT12/(AV4-AT8) -> 0 | AV12: =IF(AU12=0,0,(AU12*((LOG(AU12))/LOG(2)))) -> 0
A13: 11 | B13: 767 | C13: 21 | D13: 778 | K13: 0 | L13: 12 | T13: =N13 -> 0 | U13: =COUNTIF(L7:L16,T13) -> 0 | V13: =U13/(W4-U8) -> 0 | W13: =IF(V13=0,0,(V13*((LOG(V13))/LOG(2)))) -> 0 | Y13: =N13 -> 0 | Z13: =COUNTIF(L17:L25,Y13) -> 0 | AA13: =Z13/(AB4-Z8) -> 0 | AB13: =IF(AA13=0,0,(AA13*((LOG(AA13))/LOG(2)))) -> 0 | AD13: =N13 -> 0 | AE13: =COUNTIF(L26:L35,AD13) -> 0 | AF13: =AE13/(AG4-AE8) -> 0 | AG13: =IF(AF13=0,0,(AF13*((LOG(AF13))/LOG(2)))) -> 0 | AI13: =N13 -> 0 | AJ13: =COUNTIF(L36:L45,AI13) -> 0 | AK13: =AJ13/(AL4-AJ8) -> 0 | AL13: =IF(AK13=0,0,(AK13*((LOG(AK13))/LOG(2)))) -> 0 | AN13: =N13 -> 0 | AO13: =COUNTIF(L46:L54,AN13) -> 0 | AP13: =AO13/(AQ4-AO8) -> 0 | AQ13: =IF(AP13=0,0,(AP13*((LOG(AP13))/LOG(2)))) -> 0 | AS13: =N13 -> 0 | AT13: =COUNTIF(L55:L64,AS13) -> 0 | AU13: =AT13/(AV4-AT8) -> 0 | AV13: =IF(AU13=0,0,(AU13*((LOG(AU13))/LOG(2)))) -> 0
A14: 11 | B14: 874 | C14: 21 | D14: 885 | K14: 0 | L14: 12 | T14: =N14 -> 0 | U14: =COUNTIF(L7:L16,T14) -> 0 | V14: =U14/(W4-U8) -> 0 | W14: =IF(V14=0,0,(V14*((LOG(V14))/LOG(2)))) -> 0 | Y14: =N14 -> 0 | Z14: =COUNTIF(L17:L25,Y14) -> 0 | AA14: =Z14/(AB4-Z8) -> 0 | AB14: =IF(AA14=0,0,(AA14*((LOG(AA14))/LOG(2)))) -> 0 | AD14: =N14 -> 0 | AE14: =COUNTIF(L26:L35,AD14) -> 0 | AF14: =AE14/(AG4-AE8) -> 0 | AG14: =IF(AF14=0,0,(AF14*((LOG(AF14))/LOG(2)))) -> 0 | AI14: =N14 -> 0 | AJ14: =COUNTIF(L36:L45,AI14) -> 0 | AK14: =AJ14/(AL4-AJ8) -> 0 | AL14: =IF(AK14=0,0,(AK14*((LOG(AK14))/LOG(2)))) -> 0 | AN14: =N14 -> 0 | AO14: =COUNTIF(L46:L54,AN14) -> 0 | AP14: =AO14/(AQ4-AO8) -> 0 | AQ14: =IF(AP14=0,0,(AP14*((LOG(AP14))/LOG(2)))) -> 0 | AS14: =N14 -> 0 | AT14: =COUNTIF(L55:L64,AS14) -> 0 | AU14: =AT14/(AV4-AT8) -> 0 | AV14: =IF(AU14=0,0,(AU14*((LOG(AU14))/LOG(2)))) -> 0
A15: 11 | B15: 977 | C15: 12 | D15: 985 | K15: 0 | L15: 11 | P15: =SUM(P7:P14) -> 1 | Q15: =-SUM(Q7:Q14) -> 1.381290931 | V15: =SUM(V7:V14) -> 1 | W15: =-SUM(W7:W14) -> 1.370950594 | AA15: =SUM(AA7:AA14) -> 1 | AB15: =-SUM(AB7:AB14) -> 0 | AF15: =SUM(AF7:AF14) -> 1 | AG15: =-SUM(AG7:AG14) -> 0 | AK15: =SUM(AK7:AK14) -> 1 | AL15: =-SUM(AL7:AL14) -> 1 | AP15: =SUM(AP7:AP14) -> 1 | AQ15: =-SUM(AQ7:AQ14) -> 1.521928095 | AU15: =SUM(AU7:AU14) -> 1 | AV15: =-SUM(AV7:AV14) -> 0.8112781245
A16: 11 | B16: 1098 | C16: 21 | D16: 1106 | K16: 0 | L16: 12 | P16: U= | Q16: =Q15/(LOG(Q4)/LOG(2)) -> 0.2357964172 | V16: U1= | W16: =W15/(LOG(W4)/LOG(2)) -> 0.4126972515 | AA16: U2= | AB16: =AB15/(LOG(AB4)/LOG(2)) -> 0 | AF16: U3= | AG16: =AG15/(LOG(AG4)/LOG(2)) -> 0 | AK16: U4= | AL16: =AL15/(LOG(AL4)/LOG(2)) -> 0.3010299957 | AP16: U5= | AQ16: =AQ15/(LOG(AQ4)/LOG(2)) -> 0.4801148589 | AU16: U6= | AV16: =AV15/(LOG(AV4)/LOG(2)) -> 0.2442190503
A17: 11 | B17: 1204 | C17: 21 | D17: 1213 | K17: 0 | L17: 12
A18: 11 | B18: 1312 | C18: 21 | D18: 1324 | K18: 0 | L18: 12
A19: 11 | B19: 1418 | C19: 21 | D19: 1428 | K19: 0 | L19: 12 | N19: Total Target Seq
A20: 11 | B20: 1526 | C20: 21 | D20: 1535 | K20: 0 | L20: 12 | N20: =COUNTIF(L7:L64,G3) -> 40 | P20: 10 | Q20: 9 | R20: 10 | S20: 10 | T20: 9 | U20: 10
A21: 11 | B21: 1629 | C21: 21 | D21: 1641 | K21: 0 | L21: 12 | P21: % of reinforcement given in 6 equal intervals based on number of trials
A22: 11 | B22: 1734 | C22: 21 | D22: 1744 | K22: 0 | L22: 12 | P22: %_1 | Q22: %_2 | R22: %_3 | S22: %_4 | T22: %_5 | U22: %_6
A23: 11 | B23: 1841 | C23: 21 | D23: 1853 | K23: 0 | L23: 12 | O23: target sequence | P23: =$G$3 -> 12 | Q23: =$G$3 -> 12 | R23: =$G$3 -> 12 | S23: =$G$3 -> 12 | T23: =$G$3 -> 12 | U23: =$G$3 -> 12
A24: 11 | B24: 1946 | C24: 21 | D24: 1959 | K24: 0 | L24: 12 | O24: total reinforcement | P24: =U8 -> 5 | Q24: =Z8 -> 8 | R24: =AE8 -> 9 | S24: =AJ8 -> 8 | T24: =AO8 -> 4 | U24: =AT8 -> 6
A25: 11 | B25: 2055 | C25: 12 | D25: 2064 | K25: 0 | L25: 11 | O25: % target
A26: 22 | B26: 2178 | C26: 14 | D26: 2200 | K26: 0 | L26: 21 | O26: CCRF
A27: 11 | B27: 2308 | C27: 21 | D27: 2318 | K27: 0 | L27: 12 | O27: % CCRf
A28: 11 | B28: 2410 | C28: 21 | D28: 2420 | K28: 0 | L28: 12 | O28: average response rate | P28: =D16/P20 -> 110.6 | Q28: =(D25-D16)/Q20 -> 106.4444444 | R28: =(D35-D25)/R20 -> 110.2 | S28: =(D45-D35)/S20 -> 110.2 | T28: =(D54-D45)/T20 -> 116.5555556 | U28: =(D64-D54)/U20 -> 107.6
A29: 11 | B29: 2512 | C29: 21 | D29: 2523 | K29: 0 | L29: 12
A30: 11 | B30: 2627 | C30: 21 | D30: 2639 | K30: 0 | L30: 12
A31: 11 | B31: 2727 | C31: 21 | D31: 2740 | K31: 0 | L31: 12
A32: 11 | B32: 2840 | C32: 21 | D32: 2849 | K32: 0 | L32: 12
A33: 11 | B33: 2944 | C33: 21 | D33: 2956 | K33: 0 | L33: 12
A34: 11 | B34: 3050 | C34: 21 | D34: 3060 | K34: 0 | L34: 12
A35: 11 | B35: 3155 | C35: 21 | D35: 3166 | K35: 0 | L35: 12
A36: 11 | B36: 3259 | C36: 21 | D36: 3268 | K36: 0 | L36: 12
A37: 11 | B37: 3359 | C37: 21 | D37: 3370 | K37: 0 | L37: 12
A38: 11 | B38: 3462 | C38: 21 | D38: 3481 | K38: 0 | L38: 12
A39: 11 | B39: 3572 | C39: 12 | D39: 3584 | K39: 0 | L39: 11
A40: 11 | B40: 3695 | C40: 21 | D40: 3706 | K40: 0 | L40: 12
A41: 11 | B41: 3798 | C41: 21 | D41: 3809 | K41: 0 | L41: 12
A42: 22 | B42: 3913 | C42: 23 | D42: 3938 | K42: 0 | L42: 22
A43: 11 | B43: 4043 | C43: 21 | D43: 4052 | K43: 0 | L43: 12
A44: 11 | B44: 4143 | C44: 21 | D44: 4167 | K44: 0 | L44: 12
A45: 11 | B45: 4258 | C45: 21 | D45: 4268 | K45: 0 | L45: 12
A46: 22 | B46: 4379 | C46: 14 | D46: 4403 | K46: 0 | L46: 21
A47: 22 | B47: 4514 | C47: 23 | D47: 4534 | K47: 0 | L47: 22
A48: 22 | B48: 4631 | C48: 14 | D48: 4644 | K48: 0 | L48: 21
A49: 22 | B49: 4745 | C49: 23 | D49: 4763 | K49: 0 | L49: 22
A50: 11 | B50: 4872 | C50: 21 | D50: 4882 | K50: 0 | L50: 12
A51: 11 | B51: 4976 | C51: 21 | D51: 4985 | K51: 0 | L51: 12
A52: 11 | B52: 5079 | C52: 12 | D52: 5093 | K52: 0 | L52: 11
A53: 11 | B53: 5206 | C53: 21 | D53: 5214 | K53: 0 | L53: 12
A54: 11 | B54: 5306 | C54: 21 | D54: 5317 | K54: 0 | L54: 12
A55: 11 | B55: 5411 | C55: 21 | D55: 5421 | K55: 0 | L55: 12
A56: 11 | B56: 5514 | C56: 21 | D56: 5523 | K56: 0 | L56: 12
A57: 11 | B57: 5628 | C57: 21 | D57: 5639 | K57: 0 | L57: 12
A58: 11 | B58: 5731 | C58: 21 | D58: 5740 | K58: 0 | L58: 12
A59: 11 | B59: 5830 | C59: 12 | D59: 5837 | K59: 0 | L59: 11
A60: 22 | B60: 5934 | C60: 14 | D60: 5943 | K60: 0 | L60: 21
A61: 22 | B61: 6035 | C61: 14 | D61: 6047 | K61: 0 | L61: 21
A62: 22 | B62: 6158 | C62: 14 | D62: 6175 | K62: 0 | L62: 21
A63: 11 | B63: 6280 | C63: 21 | D63: 6290 | K63: 0 | L63: 12
A64: 11 | B64: 6383 | C64: 21 | D64: 6393 | K64: 1 | L64: 12

Sheet !L826940.055
A1: Report for:!L826940.055
A2: Date: | B2: <date>
A3: Hen: | B3: <hen> | F3: Correct Sequence | G3: =Start!J2 -> 12 | P3: Total Sequences in Data | Q3: =4994-COUNTBLANK(L7:L5000) -> 55 | V3: Total Sequences in Block Data | W3: =COUNTA(L7:L15) -> 9 | AA3: Total Sequences in Block Data | AB3: =COUNTA(L16:L24) -> 9 | AF3: Total Sequences in Block Data | AG3: =COUNTA(L25:L34) -> 10 | AK3: Total Sequences in Block Data | AL3: =COUNTA(L35:L43) -> 9 | AP3: Total Sequences in Block Data | AQ3: =COUNTA(L44:L52) -> 9 | AU3: Total Sequences in Block Data | AV3: =COUNTA(L53:L61) -> 9
P4: Total Sequences in Summary | Q4: =SUM(O7:O14) -> 55 | V4: Total Sequences in Block Summary | W4: =SUM(U7:U14) -> 9 | AA4: Total Sequences in Block Summary | AB4: =SUM(Z7:Z14) -> 9 | AF4: Total Sequences in Block Summary | AG4: =SUM(AE7:AE14) -> 10 | AK4: Total Sequences in Block Summary | AL4: =SUM(AJ7:AJ14) -> 9 | AP4: Total Sequences in Block Summary | AQ4: =SUM(AO7:AO14) -> 9 | AU4: Total Sequences in Block Summary | AV4: =SUM(AT7:AT14) -> 9
T5: Block 1 | Y5: Block 2 | AD5: Block 3 | AI5: Block 4 | AN5: Block 5 | AS5: Block 6
A6: Sequence Component 1 | B6: Time 1 | C6: Sequence Component 2 | D6: Time 2 | E6: Sequence Component 3 | F6: Time 3 | G6: Sequence Component 4 | H6: Time 4 | I6: Sequence Component 5 | J6: Time 5 | K6: Correct? 0=No 1=Yes | L6: Sequence | N6: Frequency | P6: Relative Frequency | Q6: Variability | T6: Frequency | V6: Relative Frequency | W6: Variability | Y6: Frequency | AA6: Relative Frequency | AB6: Variability | AD6: Frequency | AF6: Relative Frequency | AG6: Variability | AI6: Frequency | AK6: Relative Frequency | AL6: Variability | AN6: Frequency | AP6: Relative Frequency | AQ6: Variability | AS6: Frequency | AU6: Relative Frequency | AV6: Variability
A7: 22 | B7: 10 | C7: 14 | D7: 23 | K7: 0 | L7: 21 | N7: 11 | O7: =COUNTIF($L$7:$L$500,N7) -> 4 | P7: =O7/$Q$4 -> 0.07272727273 | Q7: =IF(P7=0,0,(P7*((LOG(P7))/LOG(2)))) -> -0.2750079792 | T7: =N7 -> 11 | U7: =COUNTIF(L7:L15,T7) -> 0 | V7: =U7/(W4-U8) -> 0 | W7: =IF(V7=0,0,(V7*((LOG(V7))/LOG(2)))) -> 0 | Y7: =N7 -> 11 | Z7: =COUNTIF(L16:L24,Y7) -> 1 | AA7: =Z7/(AB4-Z8) -> 1 | AB7: =IF(AA7=0,0,(AA7*((LOG(AA7))/LOG(2)))) -> 0 | AD7: =N7 -> 11 | AE7: =COUNTIF(L25:L34,AD7) -> 2 | AF7: =AE7/(AG4-AE8) -> 1 | AG7: =IF(AF7=0,0,(AF7*((LOG(AF7))/LOG(2)))) -> 0 | AI7: =N7 -> 11 | AJ7: =COUNTIF(L35:L43,AI7) -> 0 | AK7: =AJ7/(AL4-AJ8) -> 0 | AL7: =IF(AK7=0,0,(AK7*((LOG(AK7))/LOG(2)))) -> 0 | AN7: =N7 -> 11 | AO7: =COUNTIF(L44:L52,AN7) -> 1 | AP7: =AO7/(AQ4-AO8) -> 0.25 | AQ7: =IF(AP7=0,0,(AP7*((LOG(AP7))/LOG(2)))) -> -0.5 | AS7: =N7 -> 11 | AT7: =COUNTIF(L53:L61,AS7) -> 0 | AU7: =AT7/(AV4-AT8) -> 0 | AV7: =IF(AU7=0,0,(AU7*((LOG(AU7))/LOG(2)))) -> 0
A8: 22 | B8: 140 | C8: 23 | D8: 153 | K8: 0 | L8: 22 | N8: 12 | O8: =COUNTIF($L$7:$L$500,N8) -> 40 | P8: =O8/$Q$4 -> 0.7272727273 | Q8: =IF(P8=0,0,(P8*((LOG(P8))/LOG(2)))) -> -0.3341320863 | T8: =N8 -> 12 | U8: =COUNTIF(L7:L15,T8) -> 4 | Y8: =N8 -> 12 | Z8: =COUNTIF(L16:L24,Y8) -> 8 | AD8: =N8 -> 12 | AE8: =COUNTIF(L25:L34,AD8) -> 8 | AI8: =N8 -> 12 | AJ8: =COUNTIF(L35:L43,AI8) -> 8 | AN8: =N8 -> 12 | AO8: =COUNTIF(L44:L52,AN8) -> 5 | AS8: =N8 -> 12 | AT8: =COUNTIF(L53:L61,AS8) -> 7
A9: 11 | B9: 260 | C9: 21 | D9: 292 | K9: 0 | L9: 12 | N9: 21 | O9: =COUNTIF($L$7:$L$500,N9) -> 6 | P9: =O9/$Q$4 -> 0.1090909091 | Q9: =IF(P9=0,0,(P9*((LOG(P9))/LOG(2)))) -> -0.3486978778 | T9: =N9 -> 21 | U9: =COUNTIF(L7:L15,T9) -> 2 | V9: =U9/(W4-U8) -> 0.4 | W9: =IF(V9=0,0,(V9*((LOG(V9))/LOG(2)))) -> -0.528771238 | Y9: =N9 -> 21 | Z9: =COUNTIF(L16:L24,Y9) -> 0 | AA9: =Z9/(AB4-Z8) -> 0 | AB9: =IF(AA9=0,0,(AA9*((LOG(AA9))/LOG(2)))) -> 0 | AD9: =N9 -> 21 | AE9: =COUNTIF(L25:L34,AD9) -> 0 | AF9: =AE9/(AG4-AE8) -> 0 | AG9: =IF(AF9=0,0,(AF9*((LOG(AF9))/LOG(2)))) -> 0 | AI9: =N9 -> 21 | AJ9: =COUNTIF(L35:L43,AI9) -> 1 | AK9: =AJ9/(AL4-AJ8) -> 1 | AL9: =IF(AK9=0,0,(AK9*((LOG(AK9))/LOG(2)))) -> 0 | AN9: =N9 -> 21 | AO9: =COUNTIF(L44:L52,AN9) -> 1 | AP9: =AO9/(AQ4-AO8) -> 0.25 | AQ9: =IF(AP9=0,0,(AP9*((LOG(AP9))/LOG(2)))) -> -0.5 | AS9: =N9 -> 21 | AT9: =COUNTIF(L53:L61,AS9) -> 2 | AU9: =AT9/(AV4-AT8) -> 1 | AV9: =IF(AU9=0,0,(AU9*((LOG(AU9))/LOG(2)))) -> 0
A10: 11 | B10: 391 | C10: 21 | D10: 403 | K10: 0 | L10: 12 | N10: 22 | O10: =COUNTIF($L$7:$L$500,N10) -> 5 | P10: =O10/$Q$4 -> 0.09090909091 | Q10: =IF(P10=0,0,(P10*((LOG(P10))/LOG(2)))) -> -0.3144937835 | T10: =N10 -> 22 | U10: =COUNTIF(L7:L15,T10) -> 3 | V10: =U10/(W4-U8) -> 0.6 | W10: =IF(V10=0,0,(V10*((LOG(V10))/LOG(2)))) -> -0.4421793565 | Y10: =N10 -> 22 | Z10: =COUNTIF(L16:L24,Y10) -> 0 | AA10: =Z10/(AB4-Z8) -> 0 | AB10: =IF(AA10=0,0,(AA10*((LOG(AA10))/LOG(2)))) -> 0 | AD10: =N10 -> 22 | AE10: =COUNTIF(L25:L34,AD10) -> 0 | AF10: =AE10/(AG4-AE8) -> 0 | AG10: =IF(AF10=0,0,(AF10*((LOG(AF10))/LOG(2)))) -> 0 | AI10: =N10 -> 22 | AJ10: =COUNTIF(L35:L43,AI10) -> 0 | AK10: =AJ10/(AL4-AJ8) -> 0 | AL10: =IF(AK10=0,0,(AK10*((LOG(AK10))/LOG(2)))) -> 0 | AN10: =N10 -> 22 | AO10: =COUNTIF(L44:L52,AN10) -> 2 | AP10: =AO10/(AQ4-AO8) -> 0.5 | AQ10: =IF(AP10=0,0,(AP10*((LOG(AP10))/LOG(2)))) -> -0.5 | AS10: =N10 -> 22 | AT10: =COUNTIF(L53:L61,AS10) -> 0 | AU10: =AT10/(AV4-AT8) -> 0 | AV10: =IF(AU10=0,0,(AU10*((LOG(AU10))/LOG(2)))) -> 0
A11: 11 | B11: 499 | C11: 21 | D11: 526 | K11: 0 | L11: 12 | T11: =N11 -> 0 | U11: =COUNTIF(L7:L15,T11) -> 0 | V11: =U11/(W4-U8) -> 0 | W11: =IF(V11=0,0,(V11*((LOG(V11))/LOG(2)))) -> 0 | Y11: =N11 -> 0 | Z11: =COUNTIF(L16:L24,Y11) -> 0 | AA11: =Z11/(AB4-Z8) -> 0 | AB11: =IF(AA11=0,0,(AA11*((LOG(AA11))/LOG(2)))) -> 0 | AD11: =N11 -> 0 | AE11: =COUNTIF(L25:L34,AD11) -> 0 | AF11: =AE11/(AG4-AE8) -> 0 | AG11: =IF(AF11=0,0,(AF11*((LOG(AF11))/LOG(2)))) -> 0 | AI11: =N11 -> 0 | AJ11: =COUNTIF(L35:L43,AI11) -> 0 | AK11: =AJ11/(AL4-AJ8) -> 0 | AL11: =IF(AK11=0,0,(AK11*((LOG(AK11))/LOG(2)))) -> 0 | AN11: =N11 -> 0 | AO11: =COUNTIF(L44:L52,AN11) -> 0 | AP11: =AO11/(AQ4-AO8) -> 0 | AQ11: =IF(AP11=0,0,(AP11*((LOG(AP11))/LOG(2)))) -> 0 | AS11: =N11 -> 0 | AT11: =COUNTIF(L53:L61,AS11) -> 0 | AU11: =AT11/(AV4-AT8) -> 0 | AV11: =IF(AU11=0,0,(AU11*((LOG(AU11))/LOG(2)))) -> 0
A12: 11 | B12: 621 | C12: 21 | D12: 636 | K12: 0 | L12: 12 | T12: =N12 -> 0 | U12: =COUNTIF(L7:L15,T12) -> 0 | V12: =U12/(W4-U8) -> 0 | W12: =IF(V12=0,0,(V12*((LOG(V12))/LOG(2)))) -> 0 | Y12: =N12 -> 0 | Z12: =COUNTIF(L16:L24,Y12) -> 0 | AA12: =Z12/(AB4-Z8) -> 0 | AB12: =IF(AA12=0,0,(AA12*((LOG(AA12))/LOG(2)))) -> 0 | AD12: =N12 -> 0 | AE12: =COUNTIF(L25:L34,AD12) -> 0 | AF12: =AE12/(AG4-AE8) -> 0 | AG12: =IF(AF12=0,0,(AF12*((LOG(AF12))/LOG(2)))) -> 0 | AI12: =N12 -> 0 | AJ12: =COUNTIF(L35:L43,AI12) -> 0 | AK12: =AJ12/(AL4-AJ8) -> 0 | AL12: =IF(AK12=0,0,(AK12*((LOG(AK12))/LOG(2)))) -> 0 | AN12: =N12 -> 0 | AO12: =COUNTIF(L44:L52,AN12) -> 0 | AP12: =AO12/(AQ4-AO8) -> 0 | AQ12: =IF(AP12=0,0,(AP12*((LOG(AP12))/LOG(2)))) -> 0 | AS12: =N12 -> 0 | AT12: =COUNTIF(L53:L61,AS12) -> 0 | AU12: =AT12/(AV4-AT8) -> 0 | AV12: =IF(AU12=0,0,(AU12*((LOG(AU12))/LOG(2)))) -> 0
A13: 22 | B13: 746 | C13: 23 | D13: 762 | K13: 0 | L13: 22 | T13: =N13 -> 0 | U13: =COUNTIF(L7:L15,T13) -> 0 | V13: =U13/(W4-U8) -> 0 | W13: =IF(V13=0,0,(V13*((LOG(V13))/LOG(2)))) -> 0 | Y13: =N13 -> 0 | Z13: =COUNTIF(L16:L24,Y13) -> 0 | AA13: =Z13/(AB4-Z8) -> 0 | AB13: =IF(AA13=0,0,(AA13*((LOG(AA13))/LOG(2)))) -> 0 | AD13: =N13 -> 0 | AE13: =COUNTIF(L25:L34,AD13) -> 0 | AF13: =AE13/(AG4-AE8) -> 0 | AG13: =IF(AF13=0,0,(AF13*((LOG(AF13))/LOG(2)))) -> 0 | AI13: =N13 -> 0 | AJ13: =COUNTIF(L35:L43,AI13) -> 0 | AK13: =AJ13/(AL4-AJ8) -> 0 | AL13: =IF(AK13=0,0,(AK13*((LOG(AK13))/LOG(2)))) -> 0 | AN13: =N13 -> 0 | AO13: =COUNTIF(L44:L52,AN13) -> 0 | AP13: =AO13/(AQ4-AO8) -> 0 | AQ13: =IF(AP13=0,0,(AP13*((LOG(AP13))/LOG(2)))) -> 0 | AS13: =N13 -> 0 | AT13: =COUNTIF(L53:L61,AS13) -> 0 | AU13: =AT13/(AV4-AT8) -> 0 | AV13: =IF(AU13=0,0,(AU13*((LOG(AU13))/LOG(2)))) -> 0
A14: 22 | B14: 867 | C14: 23 | D14: 884 | K14: 0 | L14: 22 | T14: =N14 -> 0 | U14: =COUNTIF(L7:L15,T14) -> 0 | V14: =U14/(W4-U8) -> 0 | W14: =IF(V14=0,0,(V14*((LOG(V14))/LOG(2)))) -> 0 | Y14: =N14 -> 0 | Z14: =COUNTIF(L16:L24,Y14) -> 0 | AA14: =Z14/(AB4-Z8) -> 0 | AB14: =IF(AA14=0,0,(AA14*((LOG(AA14))/LOG(2)))) -> 0 | AD14: =N14 -> 0 | AE14: =COUNTIF(L25:L34,AD14) -> 0 | AF14: =AE14/(AG4-AE8) -> 0 | AG14: =IF(AF14=0,0,(AF14*((LOG(AF14))/LOG(2)))) -> 0 | AI14: =N14 -> 0 | AJ14: =COUNTIF(L35:L43,AI14) -> 0 | AK14: =AJ14/(AL4-AJ8) -> 0 | AL14: =IF(AK14=0,0,(AK14*((LOG(AK14))/LOG(2)))) -> 0 | AN14: =N14 -> 0 | AO14: =COUNTIF(L44:L52,AN14) -> 0 | AP14: =AO14/(AQ4-AO8) -> 0 | AQ14: =IF(AP14=0,0,(AP14*((LOG(AP14))/LOG(2)))) -> 0 | AS14: =N14 -> 0 | AT14: =COUNTIF(L53:L61,AS14) -> 0 | AU14: =AT14/(AV4-AT8) -> 0 | AV14: =IF(AU14=0,0,(AU14*((LOG(AU14))/LOG(2)))) -> 0
A15: 22 | B15: 1002 | C15: 14 | D15: 1027 | K15: 0 | L15: 21 | P15: =SUM(P7:P14) -> 1 | Q15: =-SUM(Q7:Q14) -> 1.272331727 | V15: =SUM(V7:V14) -> 1 | W15: =-SUM(W7:W14) -> 0.9709505945 | AA15: =SUM(AA7:AA14) -> 1 | AB15: =-SUM(AB7:AB14) -> 0 | AF15: =SUM(AF7:AF14) -> 1 | AG15: =-SUM(AG7:AG14) -> 0 | AK15: =SUM(AK7:AK14) -> 1 | AL15: =-SUM(AL7:AL14) -> 0 | AP15: =SUM(AP7:AP14) -> 1 | AQ15: =-SUM(AQ7:AQ14) -> 1.5 | AU15: =SUM(AU7:AU14) -> 1 | AV15: =-SUM(AV7:AV14) -> 0
A16: 11 | B16: 1130 | C16: 21 | D16: 1143 | K16: 0 | L16: 12 | P16: U= | Q16: =Q15/(LOG(Q4)/LOG(2)) -> 0.2200748249 | V16: U1= | W16: =W15/(LOG(W4)/LOG(2)) -> 0.3063008096 | AA16: U2= | AB16: =AB15/(LOG(AB4)/LOG(2)) -> 0 | AF16: U3= | AG16: =AG15/(LOG(AG4)/LOG(2)) -> 0 | AK16: U4= | AL16: =AL15/(LOG(AL4)/LOG(2)) -> 0 | AP16: U5= | AQ16: =AQ15/(LOG(AQ4)/LOG(2)) -> 0.4731973152 | AU16: U6= | AV16: =AV15/(LOG(AV4)/LOG(2)) -> 0
A17: 11 | B17: 1239 | C17: 21 | D17: 1250 | K17: 0 | L17: 12
A18: 11 | B18: 1346 | C18: 21 | D18: 1358 | K18: 0 | L18: 12
A19: 11 | B19: 1452 | C19: 21 | D19: 1464 | K19: 0 | L19: 12 | N19: Total Target Seq
A20: 11 | B20: 1556 | C20: 21 | D20: 1567 | K20: 0 | L20: 12 | N20: =COUNTIF(L7:L61,G3) -> 40 | P20: 9 | Q20: 9 | R20: 10 | S20: 9 | T20: 9 | U20: 9
A21: 11 | B21: 1661 | C21: 12 | D21: 1673 | K21: 0 | L21: 11 | P21: % of reinforcement given in 6 equal intervals based on number of trials
A22: 11 | B22: 1778 | C22: 21 | D22: 1789 | K22: 0 | L22: 12 | P22: %_1 | Q22: %_2 | R22: %_3 | S22: %_4 | T22: %_5 | U22: %_6
A23: 11 | B23: 1887 | C23: 21 | D23: 1899 | K23: 0 | L23: 12 | O23: target sequence | P23: =$G$3 -> 12 | Q23: =$G$3 -> 12 | R23: =$G$3 -> 12 | S23: =$G$3 -> 12 | T23: =$G$3 -> 12 | U23: =$G$3 -> 12
A24: 11 | B24: 1999 | C24: 21 | D24: 2012 | K24: 0 | L24: 12 | O24: total reinforcement | P24: =U8 -> 4 | Q24: =Z8 -> 8 | R24: =AE8 -> 8 | S24: =AJ8 -> 8 | T24: =AO8 -> 5 | U24: =AT8 -> 7
A25: 11 | B25: 2103 | C25: 12 | D25: 2115 | K25: 0 | L25: 11 | O25: % target
A26: 11 | B26: 2218 | C26: 21 | D26: 2232 | K26: 0 | L26: 12 | O26: CCRF
A27: 11 | B27: 2335 | C27: 21 | D27: 2349 | K27: 0 | L27: 12 | O27: % CCRf
A28: 11 | B28: 2447 | C28: 21 | D28: 2459 | K28: 0 | L28: 12 | O28: average response rate | P28: =D15/P20 -> 114.1111111 | Q28: =(D24-D15)/Q20 -> 109.4444444 | R28: =(D34-D24)/R20 -> 108.7 | S28: =(D43-D34)/S20 -> 108 | T28: =(D52-D43)/T20 -> 116 | U28: =(D61-D52)/U20 -> 115.7777778
A29: 11 | B29: 2554 | C29: 21 | D29: 2565 | K29: 0 | L29: 12
A30: 11 | B30: 2664 | C30: 21 | D30: 2675 | K30: 0 | L30: 12
A31: 11 | B31: 2769 | C31: 21 | D31: 2782 | K31: 0 | L31: 12
A32: 11 | B32: 2878 | C32: 21 | D32: 2890 | K32: 0 | L32: 12
A33: 11 | B33: 2981 | C33: 12 | D33: 2986 | K33: 0 | L33: 11
A34: 11 | B34: 3086 | C34: 21 | D34: 3099 | K34: 0 | L34: 12
A35: 11 | B35: 3191 | C35: 21 | D35: 3205 | K35: 0 | L35: 12
A36: 11 | B36: 3298 | C36: 21 | D36: 3308 | K36: 0 | L36: 12
A37: 11 | B37: 3400 | C37: 21 | D37: 3413 | K37: 0 | L37: 12
A38: 22 | B38: 3514 | C38: 14 | D38: 3527 | K38: 0 | L38: 21
A39: 11 | B39: 3637 | C39: 21 | D39: 3648 | K39: 0 | L39: 12
A40: 11 | B40: 3740 | C40: 21 | D40: 3753 | K40: 0 | L40: 12
A41: 11 | B41: 3851 | C41: 21 | D41: 3860 | K41: 0 | L41: 12
A42: 11 | B42: 3957 | C42: 21 | D42: 3968 | K42: 0 | L42: 12
A43: 11 | B43: 4061 | C43: 21 | D43: 4071 | K43: 0 | L43: 12
A44: 22 | B44: 4181 | C44: 23 | D44: 4211 | K44: 0 | L44: 22
A45: 11 | B45: 4313 | C45: 21 | D45: 4323 | K45: 0 | L45: 12
A46: 11 | B46: 4415 | C46: 21 | D46: 4428 | K46: 0 | L46: 12
A47: 11 | B47: 4521 | C47: 21 | D47: 4534 | K47: 0 | L47: 12
A48: 11 | B48: 4629 | C48: 21 | D48: 4640 | K48: 0 | L48: 12
A49: 11 | B49: 4731 | C49: 21 | D49: 4741 | K49: 0 | L49: 12
A50: 11 | B50: 4832 | C50: 12 | D50: 4840 | K50: 0 | L50: 11
A51: 22 | B51: 4960 | C51: 14 | D51: 4977 | K51: 0 | L51: 21
A52: 22 | B52: 5102 | C52: 23 | D52: 5115 | K52: 0 | L52: 22
A53: 11 | B53: 5231 | C53: 21 | D53: 5243 | K53: 0 | L53: 12
A54: 11 | B54: 5336 | C54: 21 | D54: 5350 | K54: 0 | L54: 12
A55: 11 | B55: 5448 | C55: 21 | D55: 5459 | K55: 0 | L55: 12
A56: 11 | B56: 5551 | C56: 21 | D56: 5563 | K56: 0 | L56: 12
A57: 11 | B57: 5655 | C57: 21 | D57: 5664 | K57: 0 | L57: 12
A58: 11 | B58: 5756 | C58: 21 | D58: 5767 | K58: 0 | L58: 12
A59: 22 | B59: 5875 | C59: 14 | D59: 5903 | K59: 0 | L59: 21
A60: 22 | B60: 6021 | C60: 14 | D60: 6037 | K60: 0 | L60: 21
A61: 11 | B61: 6147 | C61: 21 | D61: 6157 | K61: 1 | L61: 12

Sheet !L829C20.055
A1: Report for:!L829C20.055
A2: Date: | B2: <date>
A3: Hen: | B3: <hen> | F3: Correct Sequence | G3: =Start!J2 -> 12 | P3: Total Sequences in Data | Q3: =4994-COUNTBLANK(L7:L5000) -> 47 | V3: Total Sequences in Block Data | W3: =COUNTA(L7:L14) -> 8 | AA3: Total Sequences in Block Data | AB3: =COUNTA(L15:L22) -> 8 | AF3: Total Sequences in Block Data | AG3: =COUNTA(L23:L29) -> 7 | AK3: Total Sequences in Block Data | AL3: =COUNTA(L30:L37) -> 8 | AP3: Total Sequences in Block Data | AQ3: =COUNTA(L38:L45) -> 8 | AU3: Total Sequences in Block Data | AV3: =COUNTA(L46:L53) -> 8
P4: Total Sequences in Summary | Q4: =SUM(O7:O14) -> 47 | V4: Total Sequences in Block Summary | W4: =SUM(U7:U14) -> 8 | AA4: Total Sequences in Block Summary | AB4: =SUM(Z7:Z14) -> 8 | AF4: Total Sequences in Block Summary | AG4: =SUM(AE7:AE14) -> 7 | AK4: Total Sequences in Block Summary | AL4: =SUM(AJ7:AJ14) -> 8 | AP4: Total Sequences in Block Summary | AQ4: =SUM(AO7:AO14) -> 8 | AU4: Total Sequences in Block Summary | AV4: =SUM(AT7:AT14) -> 8
T5: Block 1 | Y5: Block 2 | AD5: Block 3 | AI5: Block 4 | AN5: Block 5 | AS5: Block 6
A6: Sequence Component 1 | B6: Time 1 | C6: Sequence Component 2 | D6: Time 2 | E6: Sequence Component 3 | F6: Time 3 | G6: Sequence Component 4 | H6: Time 4 | I6: Sequence Component 5 | J6: Time 5 | K6: Correct? 0=No 1=Yes | L6: Sequence | N6: Frequency | P6: Relative Frequency | Q6: Variability | T6: Frequency | V6: Relative Frequency | W6: Variability | Y6: Frequency | AA6: Relative Frequency | AB6: Variability | AD6: Frequency | AF6: Relative Frequency | AG6: Variability | AI6: Frequency | AK6: Relative Frequency | AL6: Variability | AN6: Frequency | AP6: Relative Frequency | AQ6: Variability | AS6: Frequency | AU6: Relative Frequency | AV6: Variability
A7: 11 | B7: 19 | C7: 21 | D7: 31 | K7: 0 | L7: 12 | N7: 11 | O7: =COUNTIF($L$7:$L$500,N7) -> 4 | P7: =O7/$Q$4 -> 0.08510638298 | Q7: =IF(P7=0,0,(P7*((LOG(P7))/LOG(2)))) -> -0.3025182001 | T7: =N7 -> 11 | U7: =COUNTIF(L7:L14,T7) -> 0 | V7: =U7/(W4-U8) ->  | W7: =IF(V7=0,0,(V7*((LOG(V7))/LOG(2)))) ->  | Y7: =N7 -> 11 | Z7: =COUNTIF(L15:L22,Y7) -> 1 | AA7: =Z7/(AB4-Z8) -> 0.5 | AB7: =IF(AA7=0,0,(AA7*((LOG(AA7))/LOG(2)))) -> -0.5 | AD7: =N7 -> 11 | AE7: =COUNTIF(L23:L29,AD7) -> 1 | AF7: =AE7/(AG4-AE8) -> 1 | AG7: =IF(AF7=0,0,(AF7*((LOG(AF7))/LOG(2)))) -> 0 | AI7: =N7 -> 11 | AJ7: =COUNTIF(L30:L37,AI7) -> 1 | AK7: =AJ7/(AL4-AJ8) -> 0.5 | AL7: =IF(AK7=0,0,(AK7*((LOG(AK7))/LOG(2)))) -> -0.5 | AN7: =N7 -> 11 | AO7: =COUNTIF(L38:L45,AN7) -> 1 | AP7: =AO7/(AQ4-AO8) -> 0.5 | AQ7: =IF(AP7=0,0,(AP7*((LOG(AP7))/LOG(2)))) -> -0.5 | AS7: =N7 -> 11 | AT7: =COUNTIF(L46:L53,AS7) -> 0 | AU7: =AT7/(AV4-AT8) ->  | AV7: =IF(AU7=0,0,(AU7*((LOG(AU7))/LOG(2)))) -> 
A8: 11 | B8: 132 | C8: 21 | D8: 144 | K8: 0 | L8: 12 | N8: 12 | O8: =COUNTIF($L$7:$L$500,N8) -> 40 | P8: =O8/$Q$4 -> 0.8510638298 | Q8: =IF(P8=0,0,(P8*((LOG(P8))/LOG(2)))) -> -0.1980091547 | T8: =N8 -> 12 | U8: =COUNTIF(L7:L14,T8) -> 8 | Y8: =N8 -> 12 | Z8: =COUNTIF(L15:L22,Y8) -> 6 | AD8: =N8 -> 12 | AE8: =COUNTIF(L23:L29,AD8) -> 6 | AI8: =N8 -> 12 | AJ8: =COUNTIF(L30:L37,AI8) -> 6 | AN8: =N8 -> 12 | AO8: =COUNTIF(L38:L45,AN8) -> 6 | AS8: =N8 -> 12 | AT8: =COUNTIF(L46:L53,AS8) -> 8
A9: 11 | B9: 234 | C9: 21 | D9: 251 | K9: 0 | L9: 12 | N9: 21 | O9: =COUNTIF($L$7:$L$500,N9) -> 1 | P9: =O9/$Q$4 -> 0.02127659574 | Q9: =IF(P9=0,0,(P9*((LOG(P9))/LOG(2)))) -> -0.1181827415 | T9: =N9 -> 21 | U9: =COUNTIF(L7:L14,T9) -> 0 | V9: =U9/(W4-U8) ->  | W9: =IF(V9=0,0,(V9*((LOG(V9))/LOG(2)))) ->  | Y9: =N9 -> 21 | Z9: =COUNTIF(L15:L22,Y9) -> 0 | AA9: =Z9/(AB4-Z8) -> 0 | AB9: =IF(AA9=0,0,(AA9*((LOG(AA9))/LOG(2)))) -> 0 | AD9: =N9 -> 21 | AE9: =COUNTIF(L23:L29,AD9) -> 0 | AF9: =AE9/(AG4-AE8) -> 0 | AG9: =IF(AF9=0,0,(AF9*((LOG(AF9))/LOG(2)))) -> 0 | AI9: =N9 -> 21 | AJ9: =COUNTIF(L30:L37,AI9) -> 1 | AK9: =AJ9/(AL4-AJ8) -> 0.5 | AL9: =IF(AK9=0,0,(AK9*((LOG(AK9))/LOG(2)))) -> -0.5 | AN9: =N9 -> 21 | AO9: =COUNTIF(L38:L45,AN9) -> 0 | AP9: =AO9/(AQ4-AO8) -> 0 | AQ9: =IF(AP9=0,0,(AP9*((LOG(AP9))/LOG(2)))) -> 0 | AS9: =N9 -> 21 | AT9: =COUNTIF(L46:L53,AS9) -> 0 | AU9: =AT9/(AV4-AT8) ->  | AV9: =IF(AU9=0,0,(AU9*((LOG(AU9))/LOG(2)))) -> 
A10: 11 | B10: 344 | C10: 21 | D10: 356 | K10: 0 | L10: 12 | N10: 22 | O10: =COUNTIF($L$7:$L$500,N10) -> 2 | P10: =O10/$Q$4 -> 0.04255319149 | Q10: =IF(P10=0,0,(P10*((LOG(P10))/LOG(2)))) -> -0.1938122916 | T10: =N10 -> 22 | U10: =COUNTIF(L7:L14,T10) -> 0 | V10: =U10/(W4-U8) ->  | W10: =IF(V10=0,0,(V10*((LOG(V10))/LOG(2)))) ->  | Y10: =N10 -> 22 | Z10: =COUNTIF(L15:L22,Y10) -> 1 | AA10: =Z10/(AB4-Z8) -> 0.5 | AB10: =IF(AA10=0,0,(AA10*((LOG(AA10))/LOG(2)))) -> -0.5 | AD10: =N10 -> 22 | AE10: =COUNTIF(L23:L29,AD10) -> 0 | AF10: =AE10/(AG4-AE8) -> 0 | AG10: =IF(AF10=0,0,(AF10*((LOG(AF10))/LOG(2)))) -> 0 | AI10: =N10 -> 22 | AJ10: =COUNTIF(L30:L37,AI10) -> 0 | AK10: =AJ10/(AL4-AJ8) -> 0 | AL10: =IF(AK10=0,0,(AK10*((LOG(AK10))/LOG(2)))) -> 0 | AN10: =N10 -> 22 | AO10: =COUNTIF(L38:L45,AN10) -> 1 | AP10: =AO10/(AQ4-AO8) -> 0.5 | AQ10: =IF(AP10=0,0,(AP10*((LOG(AP10))/LOG(2)))) -> -0.5 | AS10: =N10 -> 22 | AT10: =COUNTIF(L46:L53,AS10) -> 0 | AU10: =AT10/(AV4-AT8) ->  | AV10: =IF(AU10=0,0,(AU10*((LOG(AU10))/LOG(2)))) -> 
A11: 11 | B11: 449 | C11: 21 | D11: 459 | K11: 0 | L11: 12 | T11: =N11 -> 0 | U11: =COUNTIF(L7:L14,T11) -> 0 | V11: =U11/(W4-U8) ->  | W11: =IF(V11=0,0,(V11*((LOG(V11))/LOG(2)))) ->  | Y11: =N11 -> 0 | Z11: =COUNTIF(L15:L22,Y11) -> 0 | AA11: =Z11/(AB4-Z8) -> 0 | AB11: =IF(AA11=0,0,(AA11*((LOG(AA11))/LOG(2)))) -> 0 | AD11: =N11 -> 0 | AE11: =COUNTIF(L23:L29,AD11) -> 0 | AF11: =AE11/(AG4-AE8) -> 0 | AG11: =IF(AF11=0,0,(AF11*((LOG(AF11))/LOG(2)))) -> 0 | AI11: =N11 -> 0 | AJ11: =COUNTIF(L30:L37,AI11) -> 0 | AK11: =AJ11/(AL4-AJ8) -> 0 | AL11: =IF(AK11=0,0,(AK11*((LOG(AK11))/LOG(2)))) -> 0 | AN11: =N11 -> 0 | AO11: =COUNTIF(L38:L45,AN11) -> 0 | AP11: =AO11/(AQ4-AO8) -> 0 | AQ11: =IF(AP11=0,0,(AP11*((LOG(AP11))/LOG(2)))) -> 0 | AS11: =N11 -> 0 | AT11: =COUNTIF(L46:L53,AS11) -> 0 | AU11: =AT11/(AV4-AT8) ->  | AV11: =IF(AU11=0,0,(AU11*((LOG(AU11))/LOG(2)))) -> 
A12: 11 | B12: 561 | C12: 21 | D12: 573 | K12: 0 | L12: 12 | T12: =N12 -> 0 | U12: =COUNTIF(L7:L14,T12) -> 0 | V12: =U12/(W4-U8) ->  | W12: =IF(V12=0,0,(V12*((LOG(V12))/LOG(2)))) ->  | Y12: =N12 -> 0 | Z12: =COUNTIF(L15:L22,Y12) -> 0 | AA12: =Z12/(AB4-Z8) -> 0 | AB12: =IF(AA12=0,0,(AA12*((LOG(AA12))/LOG(2)))) -> 0 | AD12: =N12 -> 0 | AE12: =COUNTIF(L23:L29,AD12) -> 0 | AF12: =AE12/(AG4-AE8) -> 0 | AG12: =IF(AF12=0,0,(AF12*((LOG(AF12))/LOG(2)))) -> 0 | AI12: =N12 -> 0 | AJ12: =COUNTIF(L30:L37,AI12) -> 0 | AK12: =AJ12/(AL4-AJ8) -> 0 | AL12: =IF(AK12=0,0,(AK12*((LOG(AK12))/LOG(2)))) -> 0 | AN12: =N12 -> 0 | AO12: =COUNTIF(L38:L45,AN12) -> 0 | AP12: =AO12/(AQ4-AO8) -> 0 | AQ12: =IF(AP12=0,0,(AP12*((LOG(AP12))/LOG(2)))) -> 0 | AS12: =N12 -> 0 | AT12: =COUNTIF(L46:L53,AS12) -> 0 | AU12: =AT12/(AV4-AT8) ->  | AV12: =IF(AU12=0,0,(AU12*((LOG(AU12))/LOG(2)))) -> 
A13: 11 | B13: 665 | C13: 21 | D13: 676 | K13: 0 | L13: 12 | T13: =N13 -> 0 | U13: =COUNTIF(L7:L14,T13) -> 0 | V13: =U13/(W4-U8) ->  | W13: =IF(V13=0,0,(V13*((LOG(V13))/LOG(2)))) ->  | Y13: =N13 -> 0 | Z13: =COUNTIF(L15:L22,Y13) -> 0 | AA13: =Z13/(AB4-Z8) -> 0 | AB13: =IF(AA13=0,0,(AA13*((LOG(AA13))/LOG(2)))) -> 0 | AD13: =N13 -> 0 | AE13: =COUNTIF(L23:L29,AD13) -> 0 | AF13: =AE13/(AG4-AE8) -> 0 | AG13: =IF(AF13=0,0,(AF13*((LOG(AF13))/LOG(2)))) -> 0 | AI13: =N13 -> 0 | AJ13: =COUNTIF(L30:L37,AI13) -> 0 | AK13: =AJ13/(AL4-AJ8) -> 0 | AL13: =IF(AK13=0,0,(AK13*((LOG(AK13))/LOG(2)))) -> 0 | AN13: =N13 -> 0 | AO13: =COUNTIF(L38:L45,AN13) -> 0 | AP13: =AO13/(AQ4-AO8) -> 0 | AQ13: =IF(AP13=0,0,(AP13*((LOG(AP13))/LOG(2)))) -> 0 | AS13: =N13 -> 0 | AT13: =COUNTIF(L46:L53,AS13) -> 0 | AU13: =AT13/(AV4-AT8) ->  | AV13: =IF(AU13=0,0,(AU13*((LOG(AU13))/LOG(2)))) -> 
A14: 11 | B14: 767 | C14: 21 | D14: 779 | K14: 0 | L14: 12 | T14: =N14 -> 0 | U14: =COUNTIF(L7:L14,T14) -> 0 | V14: =U14/(W4-U8) ->  | W14: =IF(V14=0,0,(V14*((LOG(V14))/LOG(2)))) ->  | Y14: =N14 -> 0 | Z14: =COUNTIF(L15:L22,Y14) -> 0 | AA14: =Z14/(AB4-Z8) -> 0 | AB14: =IF(AA14=0,0,(AA14*((LOG(AA14))/LOG(2)))) -> 0 | AD14: =N14 -> 0 | AE14: =COUNTIF(L23:L29,AD14) -> 0 | AF14: =AE14/(AG4-AE8) -> 0 | AG14: =IF(AF14=0,0,(AF14*((LOG(AF14))/LOG(2)))) -> 0 | AI14: =N14 -> 0 | AJ14: =COUNTIF(L30:L37,AI14) -> 0 | AK14: =AJ14/(AL4-AJ8) -> 0 | AL14: =IF(AK14=0,0,(AK14*((LOG(AK14))/LOG(2)))) -> 0 | AN14: =N14 -> 0 | AO14: =COUNTIF(L38:L45,AN14) -> 0 | AP14: =AO14/(AQ4-AO8) -> 0 | AQ14: =IF(AP14=0,0,(AP14*((LOG(AP14))/LOG(2)))) -> 0 | AS14: =N14 -> 0 | AT14: =COUNTIF(L46:L53,AS14) -> 0 | AU14: =AT14/(AV4-AT8) ->  | AV14: =IF(AU14=0,0,(AU14*((LOG(AU14))/LOG(2)))) -> 
A15: 11 | B15: 869 | C15: 12 | D15: 879 | K15: 0 | L15: 11 | P15: =SUM(P7:P14) -> 1 | Q15: =-SUM(Q7:Q14) -> 0.8125223879 | V15: =SUM(V7:V14) ->  | W15: =-SUM(W7:W14) ->  | AA15: =SUM(AA7:AA14) -> 1 | AB15: =-SUM(AB7:AB14) -> 1 | AF15: =SUM(AF7:AF14) -> 1 | AG15: =-SUM(AG7:AG14) -> 0 | AK15: =SUM(AK7:AK14) -> 1 | AL15: =-SUM(AL7:AL14) -> 1 | AP15: =SUM(AP7:AP14) -> 1 | AQ15: =-SUM(AQ7:AQ14) -> 1 | AU15: =SUM(AU7:AU14) ->  | AV15: =-SUM(AV7:AV14) -> 
A16: 22 | B16: 983 | C16: 23 | D16: 995 | K16: 0 | L16: 22 | P16: U= | Q16: =Q15/(LOG(Q4)/LOG(2)) -> 0.1462794834 | V16: U1= | W16: =W15/(LOG(W4)/LOG(2)) ->  | AA16: U2= | AB16: =AB15/(LOG(AB4)/LOG(2)) -> 0.3333333333 | AF16: U3= | AG16: =AG15/(LOG(AG4)/LOG(2)) -> 0 | AK16: U4= | AL16: =AL15/(LOG(AL4)/LOG(2)) -> 0.3333333333 | AP16: U5= | AQ16: =AQ15/(LOG(AQ4)/LOG(2)) -> 0.3333333333 | AU16: U6= | AV16: =AV15/(LOG(AV4)/LOG(2)) -> 
A17: 11 | B17: 1106 | C17: 21 | D17: 1118 | K17: 0 | L17: 12
A18: 11 | B18: 1213 | C18: 21 | D18: 1223 | K18: 0 | L18: 12
A19: 11 | B19: 1318 | C19: 21 | D19: 1327 | K19: 0 | L19: 12 | N19: Total Target Seq
A20: 11 | B20: 1421 | C20: 21 | D20: 1431 | K20: 0 | L20: 12 | N20: =COUNTIF(L7:L53,G3) -> 40 | P20: 8 | Q20: 8 | R20: 7 | S20: 8 | T20: 8 | U20: 8
A21: 11 | B21: 1527 | C21: 21 | D21: 1539 | K21: 0 | L21: 12 | P21: % of reinforcement given in 6 equal intervals based on number of trials
A22: 11 | B22: 1631 | C22: 21 | D22: 1643 | K22: 0 | L22: 12 | P22: %_1 | Q22: %_2 | R22: %_3 | S22: %_4 | T22: %_5 | U22: %_6
A23: 11 | B23: 1736 | C23: 21 | D23: 1747 | K23: 0 | L23: 12 | O23: target sequence | P23: =$G$3 -> 12 | Q23: =$G$3 -> 12 | R23: =$G$3 -> 12 | S23: =$G$3 -> 12 | T23: =$G$3 -> 12 | U23: =$G$3 -> 12
A24: 11 | B24: 1850 | C24: 21 | D24: 1861 | K24: 0 | L24: 12 | O24: total reinforcement | P24: =U8 -> 8 | Q24: =Z8 -> 6 | R24: =AE8 -> 6 | S24: =AJ8 -> 6 | T24: =AO8 -> 6 | U24: =AT8 -> 8
A25: 11 | B25: 1958 | C25: 21 | D25: 1973 | K25: 0 | L25: 12 | O25: % target
A26: 11 | B26: 2074 | C26: 21 | D26: 2085 | K26: 0 | L26: 12 | O26: CCRF
A27: 11 | B27: 2180 | C27: 12 | D27: 2183 | K27: 0 | L27: 11 | O27: % CCRf
A28: 11 | B28: 2292 | C28: 21 | D28: 2304 | K28: 0 | L28: 12 | O28: average response rate | P28: =D14/P20 -> 97.375 | Q28: =(D22-D14)/Q20 -> 108 | R28: =(D29-D22)/R20 -> 109.4285714 | S28: =(D37-D29)/S20 -> 114 | T28: =(D45-D37)/T20 -> 111.5 | U28: =(D53-D45)/U20 -> 104
A29: 11 | B29: 2397 | C29: 21 | D29: 2409 | K29: 0 | L29: 12
A30: 11 | B30: 2501 | C30: 21 | D30: 2512 | K30: 0 | L30: 12
A31: 22 | B31: 2620 | C31: 14 | D31: 2661 | K31: 0 | L31: 21
A32: 11 | B32: 2764 | C32: 21 | D32: 2773 | K32: 0 | L32: 12
A33: 11 | B33: 2871 | C33: 21 | D33: 2883 | K33: 0 | L33: 12
A34: 11 | B34: 2975 | C34: 12 | D34: 2986 | K34: 0 | L34: 11
A35: 11 | B35: 3091 | C35: 21 | D35: 3102 | K35: 0 | L35: 12
A36: 11 | B36: 3193 | C36: 21 | D36: 3219 | K36: 0 | L36: 12
A37: 11 | B37: 3311 | C37: 21 | D37: 3321 | K37: 0 | L37: 12
A38: 11 | B38: 3415 | C38: 21 | D38: 3427 | K38: 0 | L38: 12
A39: 11 | B39: 3521 | C39: 21 | D39: 3531 | K39: 0 | L39: 12
A40: 11 | B40: 3621 | C40: 21 | D40: 3634 | K40: 0 | L40: 12
A41: 22 | B41: 3738 | C41: 23 | D41: 3758 | K41: 0 | L41: 22
A42: 11 | B42: 3876 | C42: 21 | D42: 3886 | K42: 0 | L42: 12
A43: 11 | B43: 3977 | C43: 12 | D43: 3986 | K43: 0 | L43: 11
A44: 11 | B44: 4089 | C44: 21 | D44: 4099 | K44: 0 | L44: 12
A45: 11 | B45: 4203 | C45: 21 | D45: 4213 | K45: 0 | L45: 12
A46: 11 | B46: 4309 | C46: 21 | D46: 4320 | K46: 0 | L46: 12
A47: 11 | B47: 4412 | C47: 21 | D47: 4423 | K47: 0 | L47: 12
A48: 11 | B48: 4513 | C48: 21 | D48: 4526 | K48: 0 | L48: 12
A49: 11 | B49: 4623 | C49: 21 | D49: 4633 | K49: 0 | L49: 12
A50: 11 | B50: 4722 | C50: 21 | D50: 4735 | K50: 0 | L50: 12
A51: 11 | B51: 4828 | C51: 21 | D51: 4841 | K51: 0 | L51: 12
A52: 11 | B52: 4936 | C52: 21 | D52: 4946 | K52: 0 | L52: 12
A53: 11 | B53: 5036 | C53: 21 | D53: 5045 | K53: 1 | L53: 12

Sheet !L830B50.055
A1: Report for:!L830B50.055
A2: Date: | B2: <date>
A3: Hen: | B3: <hen> | F3: Correct Sequence | G3: =Start!J2 -> 12 | P3: Total Sequences in Data | Q3: =4994-COUNTBLANK(L7:L5000) -> 62 | V3: Total Sequences in Block Data | W3: =COUNTA(L7:L16) -> 10 | AA3: Total Sequences in Block Data | AB3: =COUNTA(L17:L27) -> 11 | AF3: Total Sequences in Block Data | AG3: =COUNTA(L28:L37) -> 10 | AK3: Total Sequences in Block Data | AL3: =COUNTA(L38:L47) -> 10 | AP3: Total Sequences in Block Data | AQ3: =COUNTA(L48:L58) -> 11 | AU3: Total Sequences in Block Data | AV3: =COUNTA(L59:L68) -> 10
P4: Total Sequences in Summary | Q4: =SUM(O7:O14) -> 62 | V4: Total Sequences in Block Summary | W4: =SUM(U7:U14) -> 10 | AA4: Total Sequences in Block Summary | AB4: =SUM(Z7:Z14) -> 11 | AF4: Total Sequences in Block Summary | AG4: =SUM(AE7:AE14) -> 10 | AK4: Total Sequences in Block Summary | AL4: =SUM(AJ7:AJ14) -> 10 | AP4: Total Sequences in Block Summary | AQ4: =SUM(AO7:AO14) -> 11 | AU4: Total Sequences in Block Summary | AV4: =SUM(AT7:AT14) -> 10
T5: Block 1 | Y5: Block 2 | AD5: Block 3 | AI5: Block 4 | AN5: Block 5 | AS5: Block 6
A6: Sequence Component 1 | B6: Time 1 | C6: Sequence Component 2 | D6: Time 2 | E6: Sequence Component 3 | F6: Time 3 | G6: Sequence Component 4 | H6: Time 4 | I6: Sequence Component 5 | J6: Time 5 | K6: Correct? 0=No 1=Yes | L6: Sequence | N6: Frequency | P6: Relative Frequency | Q6: Variability | T6: Frequency | V6: Relative Frequency | W6: Variability | Y6: Frequency | AA6: Relative Frequency | AB6: Variability | AD6: Frequency | AF6: Relative Frequency | AG6: Variability | AI6: Frequency | AK6: Relative Frequency | AL6: Variability | AN6: Frequency | AP6: Relative Frequency | AQ6: Variability | AS6: Frequency | AU6: Relative Frequency | AV6: Variability
A7: 11 | B7: 11 | C7: 21 | D7: 20 | K7: 0 | L7: 12 | N7: 11 | O7: =COUNTIF($L$7:$L$500,N7) -> 6 | P7: =O7/$Q$4 -> 0.09677419355 | Q7: =IF(P7=0,0,(P7*((LOG(P7))/LOG(2)))) -> -0.3260548848 | T7: =N7 -> 11 | U7: =COUNTIF(L7:L16,T7) -> 3 | V7: =U7/(W4-U8) -> 1 | W7: =IF(V7=0,0,(V7*((LOG(V7))/LOG(2)))) -> 0 | Y7: =N7 -> 11 | Z7: =COUNTIF(L17:L27,Y7) -> 1 | AA7: =Z7/(AB4-Z8) -> 1 | AB7: =IF(AA7=0,0,(AA7*((LOG(AA7))/LOG(2)))) -> 0 | AD7: =N7 -> 11 | AE7: =COUNTIF(L28:L37,AD7) -> 0 | AF7: =AE7/(AG4-AE8) -> 0 | AG7: =IF(AF7=0,0,(AF7*((LOG(AF7))/LOG(2)))) -> 0 | AI7: =N7 -> 11 | AJ7: =COUNTIF(L38:L47,AI7) -> 1 | AK7: =AJ7/(AL4-AJ8) -> 0.5 | AL7: =IF(AK7=0,0,(AK7*((LOG(AK7))/LOG(2)))) -> -0.5 | AN7: =N7 -> 11 | AO7: =COUNTIF(L48:L58,AN7) -> 1 | AP7: =AO7/(AQ4-AO8) -> 0.1111111111 | AQ7: =IF(AP7=0,0,(AP7*((LOG(AP7))/LOG(2)))) -> -0.352213889 | AS7: =N7 -> 11 | AT7: =COUNTIF(L59:L68,AS7) -> 0 | AU7: =AT7/(AV4-AT8) -> 0 | AV7: =IF(AU7=0,0,(AU7*((LOG(AU7))/LOG(2)))) -> 0
A8: 11 | B8: 121 | C8: 21 | D8: 132 | K8: 0 | L8: 12 | N8: 12 | O8: =COUNTIF($L$7:$L$500,N8) -> 40 | P8: =O8/$Q$4 -> 0.6451612903 | Q8: =IF(P8=0,0,(P8*((LOG(P8))/LOG(2)))) -> -0.4079149777 | T8: =N8 -> 12 | U8: =COUNTIF(L7:L16,T8) -> 7 | Y8: =N8 -> 12 | Z8: =COUNTIF(L17:L27,Y8) -> 10 | AD8: =N8 -> 12 | AE8: =COUNTIF(L28:L37,AD8) -> 8 | AI8: =N8 -> 12 | AJ8: =COUNTIF(L38:L47,AI8) -> 8 | AN8: =N8 -> 12 | AO8: =COUNTIF(L48:L58,AN8) -> 2 | AS8: =N8 -> 12 | AT8: =COUNTIF(L59:L68,AS8) -> 5
A9: 11 | B9: 223 | C9: 21 | D9: 236 | K9: 0 | L9: 12 | N9: 21 | O9: =COUNTIF($L$7:$L$500,N9) -> 6 | P9: =O9/$Q$4 -> 0.09677419355 | Q9: =IF(P9=0,0,(P9*((LOG(P9))/LOG(2)))) -> -0.3260548848 | T9: =N9 -> 21 | U9: =COUNTIF(L7:L16,T9) -> 0 | V9: =U9/(W4-U8) -> 0 | W9: =IF(V9=0,0,(V9*((LOG(V9))/LOG(2)))) -> 0 | Y9: =N9 -> 21 | Z9: =COUNTIF(L17:L27,Y9) -> 0 | AA9: =Z9/(AB4-Z8) -> 0 | AB9: =IF(AA9=0,0,(AA9*((LOG(AA9))/LOG(2)))) -> 0 | AD9: =N9 -> 21 | AE9: =COUNTIF(L28:L37,AD9) -> 0 | AF9: =AE9/(AG4-AE8) -> 0 | AG9: =IF(AF9=0,0,(AF9*((LOG(AF9))/LOG(2)))) -> 0 | AI9: =N9 -> 21 | AJ9: =COUNTIF(L38:L47,AI9) -> 1 | AK9: =AJ9/(AL4-AJ8) -> 0.5 | AL9: =IF(AK9=0,0,(AK9*((LOG(AK9))/LOG(2)))) -> -0.5 | AN9: =N9 -> 21 | AO9: =COUNTIF(L48:L58,AN9) -> 2 | AP9: =AO9/(AQ4-AO8) -> 0.2222222222 | AQ9: =IF(AP9=0,0,(AP9*((LOG(AP9))/LOG(2)))) -> -0.4822055559 | AS9: =N9 -> 21 | AT9: =COUNTIF(L59:L68,AS9) -> 3 | AU9: =AT9/(AV4-AT8) -> 0.6 | AV9: =IF(AU9=0,0,(AU9*((LOG(AU9))/LOG(2)))) -> -0.4421793565
A10: 11 | B10: 338 | C10: 21 | D10: 346 | K10: 0 | L10: 12 | N10: 22 | O10: =COUNTIF($L$7:$L$500,N10) -> 10 | P10: =O10/$Q$4 -> 0.1612903226 | Q10: =IF(P10=0,0,(P10*((LOG(P10))/LOG(2)))) -> -0.4245593896 | T10: =N10 -> 22 | U10: =COUNTIF(L7:L16,T10) -> 0 | V10: =U10/(W4-U8) -> 0 | W10: =IF(V10=0,0,(V10*((LOG(V10))/LOG(2)))) -> 0 | Y10: =N10 -> 22 | Z10: =COUNTIF(L17:L27,Y10) -> 0 | AA10: =Z10/(AB4-Z8) -> 0 | AB10: =IF(AA10=0,0,(AA10*((LOG(AA10))/LOG(2)))) -> 0 | AD10: =N10 -> 22 | AE10: =COUNTIF(L28:L37,AD10) -> 2 | AF10: =AE10/(AG4-AE8) -> 1 | AG10: =IF(AF10=0,0,(AF10*((LOG(AF10))/LOG(2)))) -> 0 | AI10: =N10 -> 22 | AJ10: =COUNTIF(L38:L47,AI10) -> 0 | AK10: =AJ10/(AL4-AJ8) -> 0 | AL10: =IF(AK10=0,0,(AK10*((LOG(AK10))/LOG(2)))) -> 0 | AN10: =N10 -> 22 | AO10: =COUNTIF(L48:L58,AN10) -> 6 | AP10: =AO10/(AQ4-AO8) -> 0.6666666667 | AQ10: =IF(AP10=0,0,(AP10*((LOG(AP10))/LOG(2)))) -> -0.3899750005 | AS10: =N10 -> 22 | AT10: =COUNTIF(L59:L68,AS10) -> 2 | AU10: =AT10/(AV4-AT8) -> 0.4 | AV10: =IF(AU10=0,0,(AU10*((LOG(AU10))/LOG(2)))) -> -0.528771238
A11: 11 | B11: 437 | C11: 12 | D11: 442 | K11: 0 | L11: 11 | T11: =N11 -> 0 | U11: =COUNTIF(L7:L16,T11) -> 0 | V11: =U11/(W4-U8) -> 0 | W11: =IF(V11=0,0,(V11*((LOG(V11))/LOG(2)))) -> 0 | Y11: =N11 -> 0 | Z11: =COUNTIF(L17:L27,Y11) -> 0 | AA11: =Z11/(AB4-Z8) -> 0 | AB11: =IF(AA11=0,0,(AA11*((LOG(AA11))/LOG(2)))) -> 0 | AD11: =N11 -> 0 | AE11: =COUNTIF(L28:L37,AD11) -> 0 | AF11: =AE11/(AG4-AE8) -> 0 | AG11: =IF(AF11=0,0,(AF11*((LOG(AF11))/LOG(2)))) -> 0 | AI11: =N11 -> 0 | AJ11: =COUNTIF(L38:L47,AI11) -> 0 | AK11: =AJ11/(AL4-AJ8) -> 0 | AL11: =IF(AK11=0,0,(AK11*((LOG(AK11))/LOG(2)))) -> 0 | AN11: =N11 -> 0 | AO11: =COUNTIF(L48:L58,AN11) -> 0 | AP11: =AO11/(AQ4-AO8) -> 0 | AQ11: =IF(AP11=0,0,(AP11*((LOG(AP11))/LOG(2)))) -> 0 | AS11: =N11 -> 0 | AT11: =COUNTIF(L59:L68,AS11) -> 0 | AU11: =AT11/(AV4-AT8) -> 0 | AV11: =IF(AU11=0,0,(AU11*((LOG(AU11))/LOG(2)))) -> 0
A12: 11 | B12: 547 | C12: 21 | D12: 557 | K12: 0 | L12: 12 | T12: =N12 -> 0 | U12: =COUNTIF(L7:L16,T12) -> 0 | V12: =U12/(W4-U8) -> 0 | W12: =IF(V12=0,0,(V12*((LOG(V12))/LOG(2)))) -> 0 | Y12: =N12 -> 0 | Z12: =COUNTIF(L17:L27,Y12) -> 0 | AA12: =Z12/(AB4-Z8) -> 0 | AB12: =IF(AA12=0,0,(AA12*((LOG(AA12))/LOG(2)))) -> 0 | AD12: =N12 -> 0 | AE12: =COUNTIF(L28:L37,AD12) -> 0 | AF12: =AE12/(AG4-AE8) -> 0 | AG12: =IF(AF12=0,0,(AF12*((LOG(AF12))/LOG(2)))) -> 0 | AI12: =N12 -> 0 | AJ12: =COUNTIF(L38:L47,AI12) -> 0 | AK12: =AJ12/(AL4-AJ8) -> 0 | AL12: =IF(AK12=0,0,(AK12*((LOG(AK12))/LOG(2)))) -> 0 | AN12: =N12 -> 0 | AO12: =COUNTIF(L48:L58,AN12) -> 0 | AP12: =AO12/(AQ4-AO8) -> 0 | AQ12: =IF(AP12=0,0,(AP12*((LOG(AP12))/LOG(2)))) -> 0 | AS12: =N12 -> 0 | AT12: =COUNTIF(L59:L68,AS12) -> 0 | AU12: =AT12/(AV4-AT8) -> 0 | AV12: =IF(AU12=0,0,(AU12*((LOG(AU12))/LOG(2)))) -> 0
A13: 11 | B13: 654 | C13: 21 | D13: 665 | K13: 0 | L13: 12 | T13: =N13 -> 0 | U13: =COUNTIF(L7:L16,T13) -> 0 | V13: =U13/(W4-U8) -> 0 | W13: =IF(V13=0,0,(V13*((LOG(V13))/LOG(2)))) -> 0 | Y13: =N13 -> 0 | Z13: =COUNTIF(L17:L27,Y13) -> 0 | AA13: =Z13/(AB4-Z8) -> 0 | AB13: =IF(AA13=0,0,(AA13*((LOG(AA13))/LOG(2)))) -> 0 | AD13: =N13 -> 0 | AE13: =COUNTIF(L28:L37,AD13) -> 0 | AF13: =AE13/(AG4-AE8) -> 0 | AG13: =IF(AF13=0,0,(AF13*((LOG(AF13))/LOG(2)))) -> 0 | AI13: =N13 -> 0 | AJ13: =COUNTIF(L38:L47,AI13) -> 0 | AK13: =AJ13/(AL4-AJ8) -> 0 | AL13: =IF(AK13=0,0,(AK13*((LOG(AK13))/LOG(2)))) -> 0 | AN13: =N13 -> 0 | AO13: =COUNTIF(L48:L58,AN13) -> 0 | AP13: =AO13/(AQ4-AO8) -> 0 | AQ13: =IF(AP13=0,0,(AP13*((LOG(AP13))/LOG(2)))) -> 0 | AS13: =N13 -> 0 | AT13: =COUNTIF(L59:L68,AS13) -> 0 | AU13: =AT13/(AV4-AT8) -> 0 | AV13: =IF(AU13=0,0,(AU13*((LOG(AU13))/LOG(2)))) -> 0
A14: 11 | B14: 755 | C14: 12 | D14: 765 | K14: 0 | L14: 11 | T14: =N14 -> 0 | U14: =COUNTIF(L7:L16,T14) -> 0 | V14: =U14/(W4-U8) -> 0 | W14: =IF(V14=0,0,(V14*((LOG(V14))/LOG(2)))) -> 0 | Y14: =N14 -> 0 | Z14: =COUNTIF(L17:L27,Y14) -> 0 | AA14: =Z14/(AB4-Z8) -> 0 | AB14: =IF(AA14=0,0,(AA14*((LOG(AA14))/LOG(2)))) -> 0 | AD14: =N14 -> 0 | AE14: =COUNTIF(L28:L37,AD14) -> 0 | AF14: =AE14/(AG4-AE8) -> 0 | AG14: =IF(AF14=0,0,(AF14*((LOG(AF14))/LOG(2)))) -> 0 | AI14: =N14 -> 0 | AJ14: =COUNTIF(L38:L47,AI14) -> 0 | AK14: =AJ14/(AL4-AJ8) -> 0 | AL14: =IF(AK14=0,0,(AK14*((LOG(AK14))/LOG(2)))) -> 0 | AN14: =N14 -> 0 | AO14: =COUNTIF(L48:L58,AN14) -> 0 | AP14: =AO14/(AQ4-AO8) -> 0 | AQ14: =IF(AP14=0,0,(AP14*((LOG(AP14))/LOG(2)))) -> 0 | AS14: =N14 -> 0 | AT14: =COUNTIF(L59:L68,AS14) -> 0 | AU14: =AT14/(AV4-AT8) -> 0 | AV14: =IF(AU14=0,0,(AU14*((LOG(AU14))/LOG(2)))) -> 0
A15: 11 | B15: 864 | C15: 21 | D15: 876 | K15: 0 | L15: 12 | P15: =SUM(P7:P14) -> 1 | Q15: =-SUM(Q7:Q14) -> 1.484584137 | V15: =SUM(V7:V14) -> 1 | W15: =-SUM(W7:W14) -> 0 | AA15: =SUM(AA7:AA14) -> 1 | AB15: =-SUM(AB7:AB14) -> 0 | AF15: =SUM(AF7:AF14) -> 1 | AG15: =-SUM(AG7:AG14) -> 0 | AK15: =SUM(AK7:AK14) -> 1 | AL15: =-SUM(AL7:AL14) -> 1 | AP15: =SUM(AP7:AP14) -> 1 | AQ15: =-SUM(AQ7:AQ14) -> 1.224394445 | AU15: =SUM(AU7:AU14) -> 1 | AV15: =-SUM(AV7:AV14) -> 0.9709505945
A16: 11 | B16: 970 | C16: 12 | D16: 984 | K16: 0 | L16: 11 | P16: U= | Q16: =Q15/(LOG(Q4)/LOG(2)) -> 0.2493340931 | V16: U1= | W16: =W15/(LOG(W4)/LOG(2)) -> 0 | AA16: U2= | AB16: =AB15/(LOG(AB4)/LOG(2)) -> 0 | AF16: U3= | AG16: =AG15/(LOG(AG4)/LOG(2)) -> 0 | AK16: U4= | AL16: =AL15/(LOG(AL4)/LOG(2)) -> 0.3010299957 | AP16: U5= | AQ16: =AQ15/(LOG(AQ4)/LOG(2)) -> 0.3539293677 | AU16: U6= | AV16: =AV15/(LOG(AV4)/LOG(2)) -> 0.2922852532
A17: 11 | B17: 1087 | C17: 21 | D17: 1100 | K17: 0 | L17: 12
A18: 11 | B18: 1189 | C18: 21 | D18: 1205 | K18: 0 | L18: 12
A19: 11 | B19: 1297 | C19: 21 | D19: 1311 | K19: 0 | L19: 12 | N19: Total Target Seq
A20: 11 | B20: 1408 | C20: 21 | D20: 1419 | K20: 0 | L20: 12 | N20: =COUNTIF(L7:L68,G3) -> 40 | P20: 10 | Q20: 11 | R20: 10 | S20: 10 | T20: 11 | U20: 10
A21: 11 | B21: 1509 | C21: 21 | D21: 1522 | K21: 0 | L21: 12 | P21: % of reinforcement given in 6 equal intervals based on number of trials
A22: 11 | B22: 1612 | C22: 21 | D22: 1629 | K22: 0 | L22: 12 | P22: %_1 | Q22: %_2 | R22: %_3 | S22: %_4 | T22: %_5 | U22: %_6
A23: 11 | B23: 1723 | C23: 21 | D23: 1736 | K23: 0 | L23: 12 | O23: target sequence | P23: =$G$3 -> 12 | Q23: =$G$3 -> 12 | R23: =$G$3 -> 12 | S23: =$G$3 -> 12 | T23: =$G$3 -> 12 | U23: =$G$3 -> 12
A24: 11 | B24: 1830 | C24: 21 | D24: 1851 | K24: 0 | L24: 12 | O24: total reinforcement | P24: =U8 -> 7 | Q24: =Z8 -> 10 | R24: =AE8 -> 8 | S24: =AJ8 -> 8 | T24: =AO8 -> 2 | U24: =AT8 -> 5
A25: 11 | B25: 1952 | C25: 21 | D25: 1965 | K25: 0 | L25: 12 | O25: % target
A26: 11 | B26: 2068 | C26: 21 | D26: 2081 | K26: 0 | L26: 12 | O26: CCRF
A27: 11 | B27: 2175 | C27: 12 | D27: 2191 | K27: 0 | L27: 11 | O27: % CCRf
A28: 22 | B28: 2296 | C28: 23 | D28: 2311 | K28: 0 | L28: 22 | O28: average response rate | P28: =D16/P20 -> 98.4 | Q28: =(D27-D16)/Q20 -> 109.7272727 | R28: =(D37-D27)/R20 -> 115.3 | S28: =(D47-D37)/S20 -> 113.8 | T28: =(D58-D47)/T20 -> 115.1818182 | U28: =(D68-D58)/U20 -> 113.5
A29: 11 | B29: 2417 | C29: 21 | D29: 2428 | K29: 0 | L29: 12
A30: 11 | B30: 2518 | C30: 21 | D30: 2532 | K30: 0 | L30: 12
A31: 11 | B31: 2622 | C31: 21 | D31: 2636 | K31: 0 | L31: 12
A32: 11 | B32: 2736 | C32: 21 | D32: 2752 | K32: 0 | L32: 12
A33: 11 | B33: 2846 | C33: 21 | D33: 2859 | K33: 0 | L33: 12
A34: 11 | B34: 2957 | C34: 21 | D34: 2971 | K34: 0 | L34: 12
A35: 22 | B35: 3078 | C35: 23 | D35: 3112 | K35: 0 | L35: 22
A36: 11 | B36: 3211 | C36: 21 | D36: 3234 | K36: 0 | L36: 12
A37: 11 | B37: 3330 | C37: 21 | D37: 3344 | K37: 0 | L37: 12
A38: 11 | B38: 3441 | C38: 21 | D38: 3451 | K38: 0 | L38: 12
A39: 11 | B39: 3549 | C39: 12 | D39: 3558 | K39: 0 | L39: 11
A40: 11 | B40: 3658 | C40: 21 | D40: 3668 | K40: 0 | L40: 12
A41: 11 | B41: 3761 | C41: 21 | D41: 3775 | K41: 0 | L41: 12
A42: 11 | B42: 3871 | C42: 21 | D42: 3890 | K42: 0 | L42: 12
A43: 11 | B43: 3992 | C43: 21 | D43: 4001 | K43: 0 | L43: 12
A44: 11 | B44: 4094 | C44: 21 | D44: 4107 | K44: 0 | L44: 12
A45: 11 | B45: 4196 | C45: 21 | D45: 4208 | K45: 0 | L45: 12
A46: 22 | B46: 4317 | C46: 14 | D46: 4356 | K46: 0 | L46: 21
A47: 11 | B47: 4470 | C47: 21 | D47: 4482 | K47: 0 | L47: 12
A48: 11 | B48: 4574 | C48: 12 | D48: 4586 | K48: 0 | L48: 11
A49: 22 | B49: 4701 | C49: 14 | D49: 4732 | K49: 0 | L49: 21
A50: 22 | B50: 4837 | C50: 23 | D50: 4849 | K50: 0 | L50: 22
A51: 22 | B51: 4947 | C51: 23 | D51: 4959 | K51: 0 | L51: 22
A52: 22 | B52: 5063 | C52: 23 | D52: 5080 | K52: 0 | L52: 22
A53: 22 | B53: 5181 | C53: 23 | D53: 5194 | K53: 0 | L53: 22
A54: 11 | B54: 5302 | C54: 21 | D54: 5312 | K54: 0 | L54: 12
A55: 11 | B55: 5407 | C55: 21 | D55: 5420 | K55: 0 | L55: 12
A56: 22 | B56: 5512 | C56: 23 | D56: 5528 | K56: 0 | L56: 22
A57: 22 | B57: 5627 | C57: 23 | D57: 5638 | K57: 0 | L57: 22
A58: 22 | B58: 5738 | C58: 14 | D58: 5749 | K58: 0 | L58: 21
A59: 22 | B59: 5847 | C59: 14 | D59: 5861 | K59: 0 | L59: 21
A60: 22 | B60: 5962 | C60: 23 | D60: 5975 | K60: 0 | L60: 22
A61: 22 | B61: 6075 | C61: 23 | D61: 6086 | K61: 0 | L61: 22
A62: 11 | B62: 6184 | C62: 21 | D62: 6197 | K62: 0 | L62: 12
A63: 22 | B63: 6302 | C63: 14 | D63: 6319 | K63: 0 | L63: 21
A64: 22 | B64: 6418 | C64: 14 | D64: 6447 | K64: 0 | L64: 21
A65: 11 | B65: 6552 | C65: 21 | D65: 6562 | K65: 0 | L65: 12
A66: 11 | B66: 6661 | C66: 21 | D66: 6674 | K66: 0 | L66: 12
A67: 11 | B67: 6768 | C67: 21 | D67: 6780 | K67: 0 | L67: 12
A68: 11 | B68: 6869 | C68: 21 | D68: 6884 | K68: 1 | L68: 12

Sheet !L831C40.055
A1: Report for:!L831C40.055
A2: Date: | B2: <date>
A3: Hen: | B3: <hen> | F3: Correct Sequence | G3: =Start!J2 -> 12 | P3: Total Sequences in Data | Q3: =4994-COUNTBLANK(L7:L5000) -> 45 | V3: Total Sequences in Block Data | W3: =COUNTA(L7:L14) -> 8 | AA3: Total Sequences in Block Data | AB3: =COUNTA(L15:L21) -> 7 | AF3: Total Sequences in Block Data | AG3: =COUNTA(L22:L29) -> 8 | AK3: Total Sequences in Block Data | AL3: =COUNTA(L30:L36) -> 7 | AP3: Total Sequences in Block Data | AQ3: =COUNTA(L37:L44) -> 8 | AU3: Total Sequences in Block Data | AV3: =COUNTA(L45:L51) -> 7
P4: Total Sequences in Summary | Q4: =SUM(O7:O14) -> 45 | V4: Total Sequences in Block Summary | W4: =SUM(U7:U14) -> 8 | AA4: Total Sequences in Block Summary | AB4: =SUM(Z7:Z14) -> 7 | AF4: Total Sequences in Block Summary | AG4: =SUM(AE7:AE14) -> 8 | AK4: Total Sequences in Block Summary | AL4: =SUM(AJ7:AJ14) -> 7 | AP4: Total Sequences in Block Summary | AQ4: =SUM(AO7:AO14) -> 8 | AU4: Total Sequences in Block Summary | AV4: =SUM(AT7:AT14) -> 7
T5: Block 1 | Y5: Block 2 | AD5: Block 3 | AI5: Block 4 | AN5: Block 5 | AS5: Block 6
A6: Sequence Component 1 | B6: Time 1 | C6: Sequence Component 2 | D6: Time 2 | E6: Sequence Component 3 | F6: Time 3 | G6: Sequence Component 4 | H6: Time 4 | I6: Sequence Component 5 | J6: Time 5 | K6: Correct? 0=No 1=Yes | L6: Sequence | N6: Frequency | P6: Relative Frequency | Q6: Variability | T6: Frequency | V6: Relative Frequency | W6: Variability | Y6: Frequency | AA6: Relative Frequency | AB6: Variability | AD6: Frequency | AF6: Relative Frequency | AG6: Variability | AI6: Frequency | AK6: Relative Frequency | AL6: Variability | AN6: Frequency | AP6: Relative Frequency | AQ6: Variability | AS6: Frequency | AU6: Relative Frequency | AV6: Variability
A7: 11 | B7: 22 | C7: 21 | D7: 34 | K7: 0 | L7: 12 | N7: 11 | O7: =COUNTIF($L$7:$L$500,N7) -> 3 | P7: =O7/$Q$4 -> 0.06666666667 | Q7: =IF(P7=0,0,(P7*((LOG(P7))/LOG(2)))) -> -0.260459373 | T7: =N7 -> 11 | U7: =COUNTIF(L7:L14,T7) -> 0 | V7: =U7/(W4-U8) ->  | W7: =IF(V7=0,0,(V7*((LOG(V7))/LOG(2)))) ->  | Y7: =N7 -> 11 | Z7: =COUNTIF(L15:L21,Y7) -> 2 | AA7: =Z7/(AB4-Z8) -> 1 | AB7: =IF(AA7=0,0,(AA7*((LOG(AA7))/LOG(2)))) -> 0 | AD7: =N7 -> 11 | AE7: =COUNTIF(L22:L29,AD7) -> 0 | AF7: =AE7/(AG4-AE8) ->  | AG7: =IF(AF7=0,0,(AF7*((LOG(AF7))/LOG(2)))) ->  | AI7: =N7 -> 11 | AJ7: =COUNTIF(L30:L36,AI7) -> 0 | AK7: =AJ7/(AL4-AJ8) ->  | AL7: =IF(AK7=0,0,(AK7*((LOG(AK7))/LOG(2)))) ->  | AN7: =N7 -> 11 | AO7: =COUNTIF(L37:L44,AN7) -> 1 | AP7: =AO7/(AQ4-AO8) -> 1 | AQ7: =IF(AP7=0,0,(AP7*((LOG(AP7))/LOG(2)))) -> 0 | AS7: =N7 -> 11 | AT7: =COUNTIF(L45:L51,AS7) -> 0 | AU7: =AT7/(AV4-AT8) -> 0 | AV7: =IF(AU7=0,0,(AU7*((LOG(AU7))/LOG(2)))) -> 0
A8: 11 | B8: 127 | C8: 21 | D8: 141 | K8: 0 | L8: 12 | N8: 12 | O8: =COUNTIF($L$7:$L$500,N8) -> 40 | P8: =O8/$Q$4 -> 0.8888888889 | Q8: =IF(P8=0,0,(P8*((LOG(P8))/LOG(2)))) -> -0.1510444457 | T8: =N8 -> 12 | U8: =COUNTIF(L7:L14,T8) -> 8 | Y8: =N8 -> 12 | Z8: =COUNTIF(L15:L21,Y8) -> 5 | AD8: =N8 -> 12 | AE8: =COUNTIF(L22:L29,AD8) -> 8 | AI8: =N8 -> 12 | AJ8: =COUNTIF(L30:L36,AI8) -> 7 | AN8: =N8 -> 12 | AO8: =COUNTIF(L37:L44,AN8) -> 7 | AS8: =N8 -> 12 | AT8: =COUNTIF(L45:L51,AS8) -> 5
A9: 11 | B9: 243 | C9: 21 | D9: 252 | K9: 0 | L9: 12 | N9: 21 | O9: =COUNTIF($L$7:$L$500,N9) -> 1 | P9: =O9/$Q$4 -> 0.02222222222 | Q9: =IF(P9=0,0,(P9*((LOG(P9))/LOG(2)))) -> -0.1220411799 | T9: =N9 -> 21 | U9: =COUNTIF(L7:L14,T9) -> 0 | V9: =U9/(W4-U8) ->  | W9: =IF(V9=0,0,(V9*((LOG(V9))/LOG(2)))) ->  | Y9: =N9 -> 21 | Z9: =COUNTIF(L15:L21,Y9) -> 0 | AA9: =Z9/(AB4-Z8) -> 0 | AB9: =IF(AA9=0,0,(AA9*((LOG(AA9))/LOG(2)))) -> 0 | AD9: =N9 -> 21 | AE9: =COUNTIF(L22:L29,AD9) -> 0 | AF9: =AE9/(AG4-AE8) ->  | AG9: =IF(AF9=0,0,(AF9*((LOG(AF9))/LOG(2)))) ->  | AI9: =N9 -> 21 | AJ9: =COUNTIF(L30:L36,AI9) -> 0 | AK9: =AJ9/(AL4-AJ8) ->  | AL9: =IF(AK9=0,0,(AK9*((LOG(AK9))/LOG(2)))) ->  | AN9: =N9 -> 21 | AO9: =COUNTIF(L37:L44,AN9) -> 0 | AP9: =AO9/(AQ4-AO8) -> 0 | AQ9: =IF(AP9=0,0,(AP9*((LOG(AP9))/LOG(2)))) -> 0 | AS9: =N9 -> 21 | AT9: =COUNTIF(L45:L51,AS9) -> 1 | AU9: =AT9/(AV4-AT8) -> 0.5 | AV9: =IF(AU9=0,0,(AU9*((LOG(AU9))/LOG(2)))) -> -0.5
A10: 11 | B10: 347 | C10: 21 | D10: 356 | K10: 0 | L10: 12 | N10: 22 | O10: =COUNTIF($L$7:$L$500,N10) -> 1 | P10: =O10/$Q$4 -> 0.02222222222 | Q10: =IF(P10=0,0,(P10*((LOG(P10))/LOG(2)))) -> -0.1220411799 | T10: =N10 -> 22 | U10: =COUNTIF(L7:L14,T10) -> 0 | V10: =U10/(W4-U8) ->  | W10: =IF(V10=0,0,(V10*((LOG(V10))/LOG(2)))) ->  | Y10: =N10 -> 22 | Z10: =COUNTIF(L15:L21,Y10) -> 0 | AA10: =Z10/(AB4-Z8) -> 0 | AB10: =IF(AA10=0,0,(AA10*((LOG(AA10))/LOG(2)))) -> 0 | AD10: =N10 -> 22 | AE10: =COUNTIF(L22:L29,AD10) -> 0 | AF10: =AE10/(AG4-AE8) ->  | AG10: =IF(AF10=0,0,(AF10*((LOG(AF10))/LOG(2)))) ->  | AI10: =N10 -> 22 | AJ10: =COUNTIF(L30:L36,AI10) -> 0 | AK10: =AJ10/(AL4-AJ8) ->  | AL10: =IF(AK10=0,0,(AK10*((LOG(AK10))/LOG(2)))) ->  | AN10: =N10 -> 22 | AO10: =COUNTIF(L37:L44,AN10) -> 0 | AP10: =AO10/(AQ4-AO8) -> 0 | AQ10: =IF(AP10=0,0,(AP10*((LOG(AP10))/LOG(2)))) -> 0 | AS10: =N10 -> 22 | AT10: =COUNTIF(L45:L51,AS10) -> 1 | AU10: =AT10/(AV4-AT8) -> 0.5 | AV10: =IF(AU10=0,0,(AU10*((LOG(AU10))/LOG(2)))) -> -0.5
A11: 11 | B11: 450 | C11: 21 | D11: 463 | K11: 0 | L11: 12 | T11: =N11 -> 0 | U11: =COUNTIF(L7:L14,T11) -> 0 | V11: =U11/(W4-U8) ->  | W11: =IF(V11=0,0,(V11*((LOG(V11))/LOG(2)))) ->  | Y11: =N11 -> 0 | Z11: =COUNTIF(L15:L21,Y11) -> 0 | AA11: =Z11/(AB4-Z8) -> 0 | AB11: =IF(AA11=0,0,(AA11*((LOG(AA11))/LOG(2)))) -> 0 | AD11: =N11 -> 0 | AE11: =COUNTIF(L22:L29,AD11) -> 0 | AF11: =AE11/(AG4-AE8) ->  | AG11: =IF(AF11=0,0,(AF11*((LOG(AF11))/LOG(2)))) ->  | AI11: =N11 -> 0 | AJ11: =COUNTIF(L30:L36,AI11) -> 0 | AK11: =AJ11/(AL4-AJ8) ->  | AL11: =IF(AK11=0,0,(AK11*((LOG(AK11))/LOG(2)))) ->  | AN11: =N11 -> 0 | AO11: =COUNTIF(L37:L44,AN11) -> 0 | AP11: =AO11/(AQ4-AO8) -> 0 | AQ11: =IF(AP11=0,0,(AP11*((LOG(AP11))/LOG(2)))) -> 0 | AS11: =N11 -> 0 | AT11: =COUNTIF(L45:L51,AS11) -> 0 | AU11: =AT11/(AV4-AT8) -> 0 | AV11: =IF(AU11=0,0,(AU11*((LOG(AU11))/LOG(2)))) -> 0
A12: 11 | B12: 563 | C12: 21 | D12: 574 | K12: 0 | L12: 12 | T12: =N12 -> 0 | U12: =COUNTIF(L7:L14,T12) -> 0 | V12: =U12/(W4-U8) ->  | W12: =IF(V12=0,0,(V12*((LOG(V12))/LOG(2)))) ->  | Y12: =N12 -> 0 | Z12: =COUNTIF(L15:L21,Y12) -> 0 | AA12: =Z12/(AB4-Z8) -> 0 | AB12: =IF(AA12=0,0,(AA12*((LOG(AA12))/LOG(2)))) -> 0 | AD12: =N12 -> 0 | AE12: =COUNTIF(L22:L29,AD12) -> 0 | AF12: =AE12/(AG4-AE8) ->  | AG12: =IF(AF12=0,0,(AF12*((LOG(AF12))/LOG(2)))) ->  | AI12: =N12 -> 0 | AJ12: =COUNTIF(L30:L36,AI12) -> 0 | AK12: =AJ12/(AL4-AJ8) ->  | AL12: =IF(AK12=0,0,(AK12*((LOG(AK12))/LOG(2)))) ->  | AN12: =N12 -> 0 | AO12: =COUNTIF(L37:L44,AN12) -> 0 | AP12: =AO12/(AQ4-AO8) -> 0 | AQ12: =IF(AP12=0,0,(AP12*((LOG(AP12))/LOG(2)))) -> 0 | AS12: =N12 -> 0 | AT12: =COUNTIF(L45:L51,AS12) -> 0 | AU12: =AT12/(AV4-AT8) -> 0 | AV12: =IF(AU12=0,0,(AU12*((LOG(AU12))/LOG(2)))) -> 0
A13: 11 | B13: 667 | C13: 21 | D13: 678 | K13: 0 | L13: 12 | T13: =N13 -> 0 | U13: =COUNTIF(L7:L14,T13) -> 0 | V13: =U13/(W4-U8) ->  | W13: =IF(V13=0,0,(V13*((LOG(V13))/LOG(2)))) ->  | Y13: =N13 -> 0 | Z13: =COUNTIF(L15:L21,Y13) -> 0 | AA13: =Z13/(AB4-Z8) -> 0 | AB13: =IF(AA13=0,0,(AA13*((LOG(AA13))/LOG(2)))) -> 0 | AD13: =N13 -> 0 | AE13: =COUNTIF(L22:L29,AD13) -> 0 | AF13: =AE13/(AG4-AE8) ->  | AG13: =IF(AF13=0,0,(AF13*((LOG(AF13))/LOG(2)))) ->  | AI13: =N13 -> 0 | AJ13: =COUNTIF(L30:L36,AI13) -> 0 | AK13: =AJ13/(AL4-AJ8) ->  | AL13: =IF(AK13=0,0,(AK13*((LOG(AK13))/LOG(2)))) ->  | AN13: =N13 -> 0 | AO13: =COUNTIF(L37:L44,AN13) -> 0 | AP13: =AO13/(AQ4-AO8) -> 0 | AQ13: =IF(AP13=0,0,(AP13*((LOG(AP13))/LOG(2)))) -> 0 | AS13: =N13 -> 0 | AT13: =COUNTIF(L45:L51,AS13) -> 0 | AU13: =AT13/(AV4-AT8) -> 0 | AV13: =IF(AU13=0,0,(AU13*((LOG(AU13))/LOG(2)))) -> 0
A14: 11 | B14: 774 | C14: 21 | D14: 785 | K14: 0 | L14: 12 | T14: =N14 -> 0 | U14: =COUNTIF(L7:L14,T14) -> 0 | V14: =U14/(W4-U8) ->  | W14: =IF(V14=0,0,(V14*((LOG(V14))/LOG(2)))) ->  | Y14: =N14 -> 0 | Z14: =COUNTIF(L15:L21,Y14) -> 0 | AA14: =Z14/(AB4-Z8) -> 0 | AB14: =IF(AA14=0,0,(AA14*((LOG(AA14))/LOG(2)))) -> 0 | AD14: =N14 -> 0 | AE14: =COUNTIF(L22:L29,AD14) -> 0 | AF14: =AE14/(AG4-AE8) ->  | AG14: =IF(AF14=0,0,(AF14*((LOG(AF14))/LOG(2)))) ->  | AI14: =N14 -> 0 | AJ14: =COUNTIF(L30:L36,AI14) -> 0 | AK14: =AJ14/(AL4-AJ8) ->  | AL14: =IF(AK14=0,0,(AK14*((LOG(AK14))/LOG(2)))) ->  | AN14: =N14 -> 0 | AO14: =COUNTIF(L37:L44,AN14) -> 0 | AP14: =AO14/(AQ4-AO8) -> 0 | AQ14: =IF(AP14=0,0,(AP14*((LOG(AP14))/LOG(2)))) -> 0 | AS14: =N14 -> 0 | AT14: =COUNTIF(L45:L51,AS14) -> 0 | AU14: =AT14/(AV4-AT8) -> 0 | AV14: =IF(AU14=0,0,(AU14*((LOG(AU14))/LOG(2)))) -> 0
A15: 11 | B15: 880 | C15: 21 | D15: 889 | K15: 0 | L15: 12 | P15: =SUM(P7:P14) -> 1 | Q15: =-SUM(Q7:Q14) -> 0.6555861786 | V15: =SUM(V7:V14) ->  | W15: =-SUM(W7:W14) ->  | AA15: =SUM(AA7:AA14) -> 1 | AB15: =-SUM(AB7:AB14) -> 0 | AF15: =SUM(AF7:AF14) ->  | AG15: =-SUM(AG7:AG14) ->  | AK15: =SUM(AK7:AK14) ->  | AL15: =-SUM(AL7:AL14) ->  | AP15: =SUM(AP7:AP14) -> 1 | AQ15: =-SUM(AQ7:AQ14) -> 0 | AU15: =SUM(AU7:AU14) -> 1 | AV15: =-SUM(AV7:AV14) -> 1
A16: 11 | B16: 979 | C16: 12 | D16: 989 | K16: 0 | L16: 11 | P16: U= | Q16: =Q15/(LOG(Q4)/LOG(2)) -> 0.1193743108 | V16: U1= | W16: =W15/(LOG(W4)/LOG(2)) ->  | AA16: U2= | AB16: =AB15/(LOG(AB4)/LOG(2)) -> 0 | AF16: U3= | AG16: =AG15/(LOG(AG4)/LOG(2)) ->  | AK16: U4= | AL16: =AL15/(LOG(AL4)/LOG(2)) ->  | AP16: U5= | AQ16: =AQ15/(LOG(AQ4)/LOG(2)) -> 0 | AU16: U6= | AV16: =AV15/(LOG(AV4)/LOG(2)) -> 0.3562071871
A17: 11 | B17: 1091 | C17: 21 | D17: 1102 | K17: 0 | L17: 12
A18: 11 | B18: 1201 | C18: 21 | D18: 1214 | K18: 0 | L18: 12
A19: 11 | B19: 1305 | C19: 12 | D19: 1309 | K19: 0 | L19: 11 | N19: Total Target Seq
A20: 11 | B20: 1412 | C20: 21 | D20: 1421 | K20: 0 | L20: 12 | N20: =COUNTIF(L7:L51,G3) -> 40 | P20: 8 | Q20: 7 | R20: 8 | S20: 7 | T20: 8 | U20: 7
A21: 11 | B21: 1515 | C21: 21 | D21: 1524 | K21: 0 | L21: 12 | P21: % of reinforcement given in 6 equal intervals based on number of trials
A22: 11 | B22: 1619 | C22: 21 | D22: 1629 | K22: 0 | L22: 12 | P22: %_1 | Q22: %_2 | R22: %_3 | S22: %_4 | T22: %_5 | U22: %_6
A23: 11 | B23: 1721 | C23: 21 | D23: 1734 | K23: 0 | L23: 12 | O23: target sequence | P23: =$G$3 -> 12 | Q23: =$G$3 -> 12 | R23: =$G$3 -> 12 | S23: =$G$3 -> 12 | T23: =$G$3 -> 12 | U23: =$G$3 -> 12
A24: 11 | B24: 1824 | C24: 21 | D24: 1837 | K24: 0 | L24: 12 | O24: total reinforcement | P24: =U8 -> 8 | Q24: =Z8 -> 5 | R24: =AE8 -> 8 | S24: =AJ8 -> 7 | T24: =AO8 -> 7 | U24: =AT8 -> 5
A25: 11 | B25: 1932 | C25: 21 | D25: 1944 | K25: 0 | L25: 12 | O25: % target
A26: 11 | B26: 2039 | C26: 21 | D26: 2048 | K26: 0 | L26: 12 | O26: CCRF
A27: 11 | B27: 2140 | C27: 21 | D27: 2149 | K27: 0 | L27: 12 | O27: % CCRf
A28: 11 | B28: 2239 | C28: 21 | D28: 2252 | K28: 0 | L28: 12 | O28: average response rate | P28: =D14/P20 -> 98.125 | Q28: =(D21-D14)/Q20 -> 105.5714286 | R28: =(D29-D21)/R20 -> 104 | S28: =(D36-D29)/S20 -> 102.8571429 | T28: =(D44-D36)/T20 -> 108.125 | U28: =(D51-D44)/U20 -> 110.5714286
A29: 11 | B29: 2342 | C29: 21 | D29: 2356 | K29: 0 | L29: 12
A30: 11 | B30: 2445 | C30: 21 | D30: 2454 | K30: 0 | L30: 12
A31: 11 | B31: 2544 | C31: 21 | D31: 2556 | K31: 0 | L31: 12
A32: 11 | B32: 2646 | C32: 21 | D32: 2657 | K32: 0 | L32: 12
A33: 11 | B33: 2764 | C33: 21 | D33: 2773 | K33: 0 | L33: 12
A34: 11 | B34: 2863 | C34: 21 | D34: 2874 | K34: 0 | L34: 12
A35: 11 | B35: 2966 | C35: 21 | D35: 2977 | K35: 0 | L35: 12
A36: 11 | B36: 3067 | C36: 21 | D36: 3076 | K36: 0 | L36: 12
A37: 11 | B37: 3174 | C37: 21 | D37: 3185 | K37: 0 | L37: 12
A38: 11 | B38: 3279 | C38: 21 | D38: 3289 | K38: 0 | L38: 12
A39: 11 | B39: 3385 | C39: 21 | D39: 3396 | K39: 0 | L39: 12
A40: 11 | B40: 3487 | C40: 21 | D40: 3500 | K40: 0 | L40: 12
A41: 11 | B41: 3589 | C41: 12 | D41: 3619 | K41: 0 | L41: 11
A42: 11 | B42: 3728 | C42: 21 | D42: 3741 | K42: 0 | L42: 12
A43: 11 | B43: 3830 | C43: 21 | D43: 3842 | K43: 0 | L43: 12
A44: 11 | B44: 3931 | C44: 21 | D44: 3941 | K44: 0 | L44: 12
A45: 11 | B45: 4032 | C45: 21 | D45: 4046 | K45: 0 | L45: 12
A46: 11 | B46: 4138 | C46: 21 | D46: 4148 | K46: 0 | L46: 12
A47: 11 | B47: 4243 | C47: 21 | D47: 4252 | K47: 0 | L47: 12
A48: 11 | B48: 4343 | C48: 21 | D48: 4352 | K48: 0 | L48: 12
A49: 22 | B49: 4456 | C49: 14 | D49: 4466 | K49: 0 | L49: 21
A50: 22 | B50: 4577 | C50: 23 | D50: 4603 | K50: 0 | L50: 22
A51: 11 | B51: 4705 | C51: 21 | D51: 4715 | K51: 1 | L51: 12

Sheet !L901B30.055
A1: Report for:!L901B30.055
A2: Date: | B2: <date>
A3: Hen: | B3: <hen> | F3: Correct Sequence | G3: =Start!J2 -> 12 | P3: Total Sequences in Data | Q3: =4994-COUNTBLANK(L7:L5000) -> 48 | V3: Total Sequences in Block Data | W3: =COUNTA(L7:L14) -> 8 | AA3: Total Sequences in Block Data | AB3: =COUNTA(L15:L22) -> 8 | AF3: Total Sequences in Block Data | AG3: =COUNTA(L23:L30) -> 8 | AK3: Total Sequences in Block Data | AL3: =COUNTA(L31:L38) -> 8 | AP3: Total Sequences in Block Data | AQ3: =COUNTA(L39:L46) -> 8 | AU3: Total Sequences in Block Data | AV3: =COUNTA(L47:L54) -> 8
P4: Total Sequences in Summary | Q4: =SUM(O7:O14) -> 48 | V4: Total Sequences in Block Summary | W4: =SUM(U7:U14) -> 8 | AA4: Total Sequences in Block Summary | AB4: =SUM(Z7:Z14) -> 8 | AF4: Total Sequences in Block Summary | AG4: =SUM(AE7:AE14) -> 8 | AK4: Total Sequences in Block Summary | AL4: =SUM(AJ7:AJ14) -> 8 | AP4: Total Sequences in Block Summary | AQ4: =SUM(AO7:AO14) -> 8 | AU4: Total Sequences in Block Summary | AV4: =SUM(AT7:AT14) -> 8
T5: Block 1 | Y5: Block 2 | AD5: Block 3 | AI5: Block 4 | AN5: Block 5 | AS5: Block 6
A6: Sequence Component 1 | B6: Time 1 | C6: Sequence Component 2 | D6: Time 2 | E6: Sequence Component 3 | F6: Time 3 | G6: Sequence Component 4 | H6: Time 4 | I6: Sequence Component 5 | J6: Time 5 | K6: Correct? 0=No 1=Yes | L6: Sequence | N6: Frequency | P6: Relative Frequency | Q6: Variability | T6: Frequency | V6: Relative Frequency | W6: Variability | Y6: Frequency | AA6: Relative Frequency | AB6: Variability | AD6: Frequency | AF6: Relative Frequency | AG6: Variability | AI6: Frequency | AK6: Relative Frequency | AL6: Variability | AN6: Frequency | AP6: Relative Frequency | AQ6: Variability | AS6: Frequency | AU6: Relative Frequency | AV6: Variability
A7: 11 | B7: 15 | C7: 21 | D7: 23 | K7: 0 | L7: 12 | N7: 11 | O7: =COUNTIF($L$7:$L$500,N7) -> 6 | P7: =O7/$Q$4 -> 0.125 | Q7: =IF(P7=0,0,(P7*((LOG(P7))/LOG(2)))) -> -0.375 | T7: =N7 -> 11 | U7: =COUNTIF(L7:L14,T7) -> 2 | V7: =U7/(W4-U8) -> 0.6666666667 | W7: =IF(V7=0,0,(V7*((LOG(V7))/LOG(2)))) -> -0.3899750005 | Y7: =N7 -> 11 | Z7: =COUNTIF(L15:L22,Y7) -> 1 | AA7: =Z7/(AB4-Z8) -> 1 | AB7: =IF(AA7=0,0,(AA7*((LOG(AA7))/LOG(2)))) -> 0 | AD7: =N7 -> 11 | AE7: =COUNTIF(L23:L30,AD7) -> 0 | AF7: =AE7/(AG4-AE8) ->  | AG7: =IF(AF7=0,0,(AF7*((LOG(AF7))/LOG(2)))) ->  | AI7: =N7 -> 11 | AJ7: =COUNTIF(L31:L38,AI7) -> 1 | AK7: =AJ7/(AL4-AJ8) -> 0.5 | AL7: =IF(AK7=0,0,(AK7*((LOG(AK7))/LOG(2)))) -> -0.5 | AN7: =N7 -> 11 | AO7: =COUNTIF(L39:L46,AN7) -> 0 | AP7: =AO7/(AQ4-AO8) ->  | AQ7: =IF(AP7=0,0,(AP7*((LOG(AP7))/LOG(2)))) ->  | AS7: =N7 -> 11 | AT7: =COUNTIF(L47:L54,AS7) -> 2 | AU7: =AT7/(AV4-AT8) -> 1 | AV7: =IF(AU7=0,0,(AU7*((LOG(AU7))/LOG(2)))) -> 0
A8: 11 | B8: 122 | C8: 21 | D8: 135 | K8: 0 | L8: 12 | N8: 12 | O8: =COUNTIF($L$7:$L$500,N8) -> 40 | P8: =O8/$Q$4 -> 0.8333333333 | Q8: =IF(P8=0,0,(P8*((LOG(P8))/LOG(2)))) -> -0.2191953382 | T8: =N8 -> 12 | U8: =COUNTIF(L7:L14,T8) -> 5 | Y8: =N8 -> 12 | Z8: =COUNTIF(L15:L22,Y8) -> 7 | AD8: =N8 -> 12 | AE8: =COUNTIF(L23:L30,AD8) -> 8 | AI8: =N8 -> 12 | AJ8: =COUNTIF(L31:L38,AI8) -> 6 | AN8: =N8 -> 12 | AO8: =COUNTIF(L39:L46,AN8) -> 8 | AS8: =N8 -> 12 | AT8: =COUNTIF(L47:L54,AS8) -> 6
A9: 11 | B9: 228 | C9: 12 | D9: 240 | K9: 0 | L9: 11 | N9: 21 | O9: =COUNTIF($L$7:$L$500,N9) -> 2 | P9: =O9/$Q$4 -> 0.04166666667 | Q9: =IF(P9=0,0,(P9*((LOG(P9))/LOG(2)))) -> -0.1910401042 | T9: =N9 -> 21 | U9: =COUNTIF(L7:L14,T9) -> 1 | V9: =U9/(W4-U8) -> 0.3333333333 | W9: =IF(V9=0,0,(V9*((LOG(V9))/LOG(2)))) -> -0.5283208336 | Y9: =N9 -> 21 | Z9: =COUNTIF(L15:L22,Y9) -> 0 | AA9: =Z9/(AB4-Z8) -> 0 | AB9: =IF(AA9=0,0,(AA9*((LOG(AA9))/LOG(2)))) -> 0 | AD9: =N9 -> 21 | AE9: =COUNTIF(L23:L30,AD9) -> 0 | AF9: =AE9/(AG4-AE8) ->  | AG9: =IF(AF9=0,0,(AF9*((LOG(AF9))/LOG(2)))) ->  | AI9: =N9 -> 21 | AJ9: =COUNTIF(L31:L38,AI9) -> 1 | AK9: =AJ9/(AL4-AJ8) -> 0.5 | AL9: =IF(AK9=0,0,(AK9*((LOG(AK9))/LOG(2)))) -> -0.5 | AN9: =N9 -> 21 | AO9: =COUNTIF(L39:L46,AN9) -> 0 | AP9: =AO9/(AQ4-AO8) ->  | AQ9: =IF(AP9=0,0,(AP9*((LOG(AP9))/LOG(2)))) ->  | AS9: =N9 -> 21 | AT9: =COUNTIF(L47:L54,AS9) -> 0 | AU9: =AT9/(AV4-AT8) -> 0 | AV9: =IF(AU9=0,0,(AU9*((LOG(AU9))/LOG(2)))) -> 0
A10: 11 | B10: 342 | C10: 21 | D10: 355 | K10: 0 | L10: 12 | N10: 22 | O10: =COUNTIF($L$7:$L$500,N10) -> 0 | P10: =O10/$Q$4 -> 0 | Q10: =IF(P10=0,0,(P10*((LOG(P10))/LOG(2)))) -> 0 | T10: =N10 -> 22 | U10: =COUNTIF(L7:L14,T10) -> 0 | V10: =U10/(W4-U8) -> 0 | W10: =IF(V10=0,0,(V10*((LOG(V10))/LOG(2)))) -> 0 | Y10: =N10 -> 22 | Z10: =COUNTIF(L15:L22,Y10) -> 0 | AA10: =Z10/(AB4-Z8) -> 0 | AB10: =IF(AA10=0,0,(AA10*((LOG(AA10))/LOG(2)))) -> 0 | AD10: =N10 -> 22 | AE10: =COUNTIF(L23:L30,AD10) -> 0 | AF10: =AE10/(AG4-AE8) ->  | AG10: =IF(AF10=0,0,(AF10*((LOG(AF10))/LOG(2)))) ->  | AI10: =N10 -> 22 | AJ10: =COUNTIF(L31:L38,AI10) -> 0 | AK10: =AJ10/(AL4-AJ8) -> 0 | AL10: =IF(AK10=0,0,(AK10*((LOG(AK10))/LOG(2)))) -> 0 | AN10: =N10 -> 22 | AO10: =COUNTIF(L39:L46,AN10) -> 0 | AP10: =AO10/(AQ4-AO8) ->  | AQ10: =IF(AP10=0,0,(AP10*((LOG(AP10))/LOG(2)))) ->  | AS10: =N10 -> 22 | AT10: =COUNTIF(L47:L54,AS10) -> 0 | AU10: =AT10/(AV4-AT8) -> 0 | AV10: =IF(AU10=0,0,(AU10*((LOG(AU10))/LOG(2)))) -> 0
A11: 11 | B11: 445 | C11: 12 | D11: 449 | K11: 0 | L11: 11 | T11: =N11 -> 0 | U11: =COUNTIF(L7:L14,T11) -> 0 | V11: =U11/(W4-U8) -> 0 | W11: =IF(V11=0,0,(V11*((LOG(V11))/LOG(2)))) -> 0 | Y11: =N11 -> 0 | Z11: =COUNTIF(L15:L22,Y11) -> 0 | AA11: =Z11/(AB4-Z8) -> 0 | AB11: =IF(AA11=0,0,(AA11*((LOG(AA11))/LOG(2)))) -> 0 | AD11: =N11 -> 0 | AE11: =COUNTIF(L23:L30,AD11) -> 0 | AF11: =AE11/(AG4-AE8) ->  | AG11: =IF(AF11=0,0,(AF11*((LOG(AF11))/LOG(2)))) ->  | AI11: =N11 -> 0 | AJ11: =COUNTIF(L31:L38,AI11) -> 0 | AK11: =AJ11/(AL4-AJ8) -> 0 | AL11: =IF(AK11=0,0,(AK11*((LOG(AK11))/LOG(2)))) -> 0 | AN11: =N11 -> 0 | AO11: =COUNTIF(L39:L46,AN11) -> 0 | AP11: =AO11/(AQ4-AO8) ->  | AQ11: =IF(AP11=0,0,(AP11*((LOG(AP11))/LOG(2)))) ->  | AS11: =N11 -> 0 | AT11: =COUNTIF(L47:L54,AS11) -> 0 | AU11: =AT11/(AV4-AT8) -> 0 | AV11: =IF(AU11=0,0,(AU11*((LOG(AU11))/LOG(2)))) -> 0
A12: 22 | B12: 562 | C12: 14 | D12: 586 | K12: 0 | L12: 21 | T12: =N12 -> 0 | U12: =COUNTIF(L7:L14,T12) -> 0 | V12: =U12/(W4-U8) -> 0 | W12: =IF(V12=0,0,(V12*((LOG(V12))/LOG(2)))) -> 0 | Y12: =N12 -> 0 | Z12: =COUNTIF(L15:L22,Y12) -> 0 | AA12: =Z12/(AB4-Z8) -> 0 | AB12: =IF(AA12=0,0,(AA12*((LOG(AA12))/LOG(2)))) -> 0 | AD12: =N12 -> 0 | AE12: =COUNTIF(L23:L30,AD12) -> 0 | AF12: =AE12/(AG4-AE8) ->  | AG12: =IF(AF12=0,0,(AF12*((LOG(AF12))/LOG(2)))) ->  | AI12: =N12 -> 0 | AJ12: =COUNTIF(L31:L38,AI12) -> 0 | AK12: =AJ12/(AL4-AJ8) -> 0 | AL12: =IF(AK12=0,0,(AK12*((LOG(AK12))/LOG(2)))) -> 0 | AN12: =N12 -> 0 | AO12: =COUNTIF(L39:L46,AN12) -> 0 | AP12: =AO12/(AQ4-AO8) ->  | AQ12: =IF(AP12=0,0,(AP12*((LOG(AP12))/LOG(2)))) ->  | AS12: =N12 -> 0 | AT12: =COUNTIF(L47:L54,AS12) -> 0 | AU12: =AT12/(AV4-AT8) -> 0 | AV12: =IF(AU12=0,0,(AU12*((LOG(AU12))/LOG(2)))) -> 0
A13: 11 | B13: 698 | C13: 21 | D13: 709 | K13: 0 | L13: 12 | T13: =N13 -> 0 | U13: =COUNTIF(L7:L14,T13) -> 0 | V13: =U13/(W4-U8) -> 0 | W13: =IF(V13=0,0,(V13*((LOG(V13))/LOG(2)))) -> 0 | Y13: =N13 -> 0 | Z13: =COUNTIF(L15:L22,Y13) -> 0 | AA13: =Z13/(AB4-Z8) -> 0 | AB13: =IF(AA13=0,0,(AA13*((LOG(AA13))/LOG(2)))) -> 0 | AD13: =N13 -> 0 | AE13: =COUNTIF(L23:L30,AD13) -> 0 | AF13: =AE13/(AG4-AE8) ->  | AG13: =IF(AF13=0,0,(AF13*((LOG(AF13))/LOG(2)))) ->  | AI13: =N13 -> 0 | AJ13: =COUNTIF(L31:L38,AI13) -> 0 | AK13: =AJ13/(AL4-AJ8) -> 0 | AL13: =IF(AK13=0,0,(AK13*((LOG(AK13))/LOG(2)))) -> 0 | AN13: =N13 -> 0 | AO13: =COUNTIF(L39:L46,AN13) -> 0 | AP13: =AO13/(AQ4-AO8) ->  | AQ13: =IF(AP13=0,0,(AP13*((LOG(AP13))/LOG(2)))) ->  | AS13: =N13 -> 0 | AT13: =COUNTIF(L47:L54,AS13) -> 0 | AU13: =AT13/(AV4-AT8) -> 0 | AV13: =IF(AU13=0,0,(AU13*((LOG(AU13))/LOG(2)))) -> 0
A14: 11 | B14: 801 | C14: 21 | D14: 814 | K14: 0 | L14: 12 | T14: =N14 -> 0 | U14: =COUNTIF(L7:L14,T14) -> 0 | V14: =U14/(W4-U8) -> 0 | W14: =IF(V14=0,0,(V14*((LOG(V14))/LOG(2)))) -> 0 | Y14: =N14 -> 0 | Z14: =COUNTIF(L15:L22,Y14) -> 0 | AA14: =Z14/(AB4-Z8) -> 0 | AB14: =IF(AA14=0,0,(AA14*((LOG(AA14))/LOG(2)))) -> 0 | AD14: =N14 -> 0 | AE14: =COUNTIF(L23:L30,AD14) -> 0 | AF14: =AE14/(AG4-AE8) ->  | AG14: =IF(AF14=0,0,(AF14*((LOG(AF14))/LOG(2)))) ->  | AI14: =N14 -> 0 | AJ14: =COUNTIF(L31:L38,AI14) -> 0 | AK14: =AJ14/(AL4-AJ8) -> 0 | AL14: =IF(AK14=0,0,(AK14*((LOG(AK14))/LOG(2)))) -> 0 | AN14: =N14 -> 0 | AO14: =COUNTIF(L39:L46,AN14) -> 0 | AP14: =AO14/(AQ4-AO8) ->  | AQ14: =IF(AP14=0,0,(AP14*((LOG(AP14))/LOG(2)))) ->  | AS14: =N14 -> 0 | AT14: =COUNTIF(L47:L54,AS14) -> 0 | AU14: =AT14/(AV4-AT8) -> 0 | AV14: =IF(AU14=0,0,(AU14*((LOG(AU14))/LOG(2)))) -> 0
A15: 11 | B15: 912 | C15: 21 | D15: 922 | K15: 0 | L15: 12 | P15: =SUM(P7:P14) -> 1 | Q15: =-SUM(Q7:Q14) -> 0.7852354424 | V15: =SUM(V7:V14) -> 1 | W15: =-SUM(W7:W14) -> 0.9182958341 | AA15: =SUM(AA7:AA14) -> 1 | AB15: =-SUM(AB7:AB14) -> 0 | AF15: =SUM(AF7:AF14) ->  | AG15: =-SUM(AG7:AG14) ->  | AK15: =SUM(AK7:AK14) -> 1 | AL15: =-SUM(AL7:AL14) -> 1 | AP15: =SUM(AP7:AP14) ->  | AQ15: =-SUM(AQ7:AQ14) ->  | AU15: =SUM(AU7:AU14) -> 1 | AV15: =-SUM(AV7:AV14) -> 0
A16: 11 | B16: 1014 | C16: 21 | D16: 1027 | K16: 0 | L16: 12 | P16: U= | Q16: =Q15/(LOG(Q4)/LOG(2)) -> 0.1405981584 | V16: U1= | W16: =W15/(LOG(W4)/LOG(2)) -> 0.3060986114 | AA16: U2= | AB16: =AB15/(LOG(AB4)/LOG(2)) -> 0 | AF16: U3= | AG16: =AG15/(LOG(AG4)/LOG(2)) ->  | AK16: U4= | AL16: =AL15/(LOG(AL4)/LOG(2)) -> 0.3333333333 | AP16: U5= | AQ16: =AQ15/(LOG(AQ4)/LOG(2)) ->  | AU16: U6= | AV16: =AV15/(LOG(AV4)/LOG(2)) -> 0
A17: 11 | B17: 1118 | C17: 21 | D17: 1131 | K17: 0 | L17: 12
A18: 11 | B18: 1221 | C18: 21 | D18: 1235 | K18: 0 | L18: 12
A19: 11 | B19: 1329 | C19: 21 | D19: 1341 | K19: 0 | L19: 12 | N19: Total Target Seq
A20: 11 | B20: 1437 | C20: 21 | D20: 1449 | K20: 0 | L20: 12 | N20: =COUNTIF(L7:L54,G3) -> 40 | P20: 8 | Q20: 8 | R20: 8 | S20: 8 | T20: 8 | U20: 8
A21: 11 | B21: 1541 | C21: 21 | D21: 1553 | K21: 0 | L21: 12 | P21: % of reinforcement given in 6 equal intervals based on number of trials
A22: 11 | B22: 1644 | C22: 12 | D22: 1651 | K22: 0 | L22: 11 | P22: %_1 | Q22: %_2 | R22: %_3 | S22: %_4 | T22: %_5 | U22: %_6
A23: 11 | B23: 1759 | C23: 21 | D23: 1771 | K23: 0 | L23: 12 | O23: target sequence | P23: =$G$3 -> 12 | Q23: =$G$3 -> 12 | R23: =$G$3 -> 12 | S23: =$G$3 -> 12 | T23: =$G$3 -> 12 | U23: =$G$3 -> 12
A24: 11 | B24: 1861 | C24: 21 | D24: 1872 | K24: 0 | L24: 12 | O24: total reinforcement | P24: =U8 -> 5 | Q24: =Z8 -> 7 | R24: =AE8 -> 8 | S24: =AJ8 -> 6 | T24: =AO8 -> 8 | U24: =AT8 -> 6
A25: 11 | B25: 1962 | C25: 21 | D25: 1974 | K25: 0 | L25: 12 | O25: % target
A26: 11 | B26: 2064 | C26: 21 | D26: 2076 | K26: 0 | L26: 12 | O26: CCRF
A27: 11 | B27: 2169 | C27: 21 | D27: 2181 | K27: 0 | L27: 12 | O27: % CCRf
A28: 11 | B28: 2273 | C28: 21 | D28: 2284 | K28: 0 | L28: 12 | O28: average response rate | P28: =D14/P20 -> 101.75 | Q28: =(D22-D14)/Q20 -> 104.625 | R28: =(D30-D22)/R20 -> 105.5 | S28: =(D38-D30)/S20 -> 111.125 | T28: =(D46-D38)/T20 -> 105.875 | U28: =(D54-D46)/U20 -> 105.25
A29: 11 | B29: 2377 | C29: 21 | D29: 2390 | K29: 0 | L29: 12
A30: 11 | B30: 2481 | C30: 21 | D30: 2495 | K30: 0 | L30: 12
A31: 11 | B31: 2589 | C31: 21 | D31: 2601 | K31: 0 | L31: 12
A32: 11 | B32: 2693 | C32: 21 | D32: 2706 | K32: 0 | L32: 12
A33: 11 | B33: 2796 | C33: 12 | D33: 2809 | K33: 0 | L33: 11
A34: 22 | B34: 2912 | C34: 14 | D34: 2923 | K34: 0 | L34: 21
A35: 11 | B35: 3035 | C35: 21 | D35: 3048 | K35: 0 | L35: 12
A36: 11 | B36: 3141 | C36: 21 | D36: 3152 | K36: 0 | L36: 12
A37: 11 | B37: 3255 | C37: 21 | D37: 3266 | K37: 0 | L37: 12
A38: 11 | B38: 3374 | C38: 21 | D38: 3384 | K38: 0 | L38: 12
A39: 11 | B39: 3486 | C39: 21 | D39: 3498 | K39: 0 | L39: 12
A40: 11 | B40: 3593 | C40: 21 | D40: 3606 | K40: 0 | L40: 12
A41: 11 | B41: 3698 | C41: 21 | D41: 3711 | K41: 0 | L41: 12
A42: 11 | B42: 3802 | C42: 21 | D42: 3815 | K42: 0 | L42: 12
A43: 11 | B43: 3906 | C43: 21 | D43: 3920 | K43: 0 | L43: 12
A44: 11 | B44: 4015 | C44: 21 | D44: 4024 | K44: 0 | L44: 12
A45: 11 | B45: 4119 | C45: 21 | D45: 4131 | K45: 0 | L45: 12
A46: 11 | B46: 4221 | C46: 21 | D46: 4231 | K46: 0 | L46: 12
A47: 11 | B47: 4323 | C47: 21 | D47: 4333 | K47: 0 | L47: 12
A48: 11 | B48: 4426 | C48: 21 | D48: 4435 | K48: 0 | L48: 12
A49: 11 | B49: 4529 | C49: 21 | D49: 4539 | K49: 0 | L49: 12
A50: 11 | B50: 4631 | C50: 12 | D50: 4640 | K50: 0 | L50: 11
A51: 11 | B51: 4743 | C51: 21 | D51: 4753 | K51: 0 | L51: 12
A52: 11 | B52: 4843 | C52: 12 | D52: 4855 | K52: 0 | L52: 11
A53: 11 | B53: 4956 | C53: 21 | D53: 4969 | K53: 0 | L53: 12
A54: 11 | B54: 5061 | C54: 21 | D54: 5073 | K54: 1 | L54: 12

Sheet !L902D00.055
A1: Report for:!L902D00.055
A2: Date: | B2: <date>
A3: Hen: | B3: <hen> | F3: Correct Sequence | G3: =Start!J2 -> 12 | P3: Total Sequences in Data | Q3: =4994-COUNTBLANK(L7:L5000) -> 51 | V3: Total Sequences in Block Data | W3: =COUNTA(L7:L15) -> 9 | AA3: Total Sequences in Block Data | AB3: =COUNTA(L16:L23) -> 8 | AF3: Total Sequences in Block Data | AG3: =COUNTA(L24:L32) -> 9 | AK3: Total Sequences in Block Data | AL3: =COUNTA(L33:L40) -> 8 | AP3: Total Sequences in Block Data | AQ3: =COUNTA(L41:L49) -> 9 | AU3: Total Sequences in Block Data | AV3: =COUNTA(L50:L57) -> 8
P4: Total Sequences in Summary | Q4: =SUM(O7:O14) -> 51 | V4: Total Sequences in Block Summary | W4: =SUM(U7:U14) -> 9 | AA4: Total Sequences in Block Summary | AB4: =SUM(Z7:Z14) -> 8 | AF4: Total Sequences in Block Summary | AG4: =SUM(AE7:AE14) -> 9 | AK4: Total Sequences in Block Summary | AL4: =SUM(AJ7:AJ14) -> 8 | AP4: Total Sequences in Block Summary | AQ4: =SUM(AO7:AO14) -> 9 | AU4: Total Sequences in Block Summary | AV4: =SUM(AT7:AT14) -> 8
T5: Block 1 | Y5: Block 2 | AD5: Block 3 | AI5: Block 4 | AN5: Block 5 | AS5: Block 6
A6: Sequence Component 1 | B6: Time 1 | C6: Sequence Component 2 | D6: Time 2 | E6: Sequence Component 3 | F6: Time 3 | G6: Sequence Component 4 | H6: Time 4 | I6: Sequence Component 5 | J6: Time 5 | K6: Correct? 0=No 1=Yes | L6: Sequence | N6: Frequency | P6: Relative Frequency | Q6: Variability | T6: Frequency | V6: Relative Frequency | W6: Variability | Y6: Frequency | AA6: Relative Frequency | AB6: Variability | AD6: Frequency | AF6: Relative Frequency | AG6: Variability | AI6: Frequency | AK6: Relative Frequency | AL6: Variability | AN6: Frequency | AP6: Relative Frequency | AQ6: Variability | AS6: Frequency | AU6: Relative Frequency | AV6: Variability
A7: 11 | B7: 11 | C7: 21 | D7: 19 | K7: 0 | L7: 12 | N7: 11 | O7: =COUNTIF($L$7:$L$500,N7) -> 4 | P7: =O7/$Q$4 -> 0.07843137255 | Q7: =IF(P7=0,0,(P7*((LOG(P7))/LOG(2)))) -> -0.2880333602 | T7: =N7 -> 11 | U7: =COUNTIF(L7:L15,T7) -> 0 | V7: =U7/(W4-U8) -> 0 | W7: =IF(V7=0,0,(V7*((LOG(V7))/LOG(2)))) -> 0 | Y7: =N7 -> 11 | Z7: =COUNTIF(L16:L23,Y7) -> 0 | AA7: =Z7/(AB4-Z8) -> 0 | AB7: =IF(AA7=0,0,(AA7*((LOG(AA7))/LOG(2)))) -> 0 | AD7: =N7 -> 11 | AE7: =COUNTIF(L24:L32,AD7) -> 0 | AF7: =AE7/(AG4-AE8) -> 0 | AG7: =IF(AF7=0,0,(AF7*((LOG(AF7))/LOG(2)))) -> 0 | AI7: =N7 -> 11 | AJ7: =COUNTIF(L33:L40,AI7) -> 3 | AK7: =AJ7/(AL4-AJ8) -> 1 | AL7: =IF(AK7=0,0,(AK7*((LOG(AK7))/LOG(2)))) -> 0 | AN7: =N7 -> 11 | AO7: =COUNTIF(L41:L49,AN7) -> 1 | AP7: =AO7/(AQ4-AO8) -> 1 | AQ7: =IF(AP7=0,0,(AP7*((LOG(AP7))/LOG(2)))) -> 0 | AS7: =N7 -> 11 | AT7: =COUNTIF(L50:L57,AS7) -> 0 | AU7: =AT7/(AV4-AT8) ->  | AV7: =IF(AU7=0,0,(AU7*((LOG(AU7))/LOG(2)))) -> 
A8: 11 | B8: 113 | C8: 21 | D8: 124 | K8: 0 | L8: 12 | N8: 12 | O8: =COUNTIF($L$7:$L$500,N8) -> 40 | P8: =O8/$Q$4 -> 0.7843137255 | Q8: =IF(P8=0,0,(P8*((LOG(P8))/LOG(2)))) -> -0.2748998016 | T8: =N8 -> 12 | U8: =COUNTIF(L7:L15,T8) -> 7 | Y8: =N8 -> 12 | Z8: =COUNTIF(L16:L23,Y8) -> 5 | AD8: =N8 -> 12 | AE8: =COUNTIF(L24:L32,AD8) -> 7 | AI8: =N8 -> 12 | AJ8: =COUNTIF(L33:L40,AI8) -> 5 | AN8: =N8 -> 12 | AO8: =COUNTIF(L41:L49,AN8) -> 8 | AS8: =N8 -> 12 | AT8: =COUNTIF(L50:L57,AS8) -> 8
A9: 11 | B9: 214 | C9: 21 | D9: 225 | K9: 0 | L9: 12 | N9: 21 | O9: =COUNTIF($L$7:$L$500,N9) -> 3 | P9: =O9/$Q$4 -> 0.05882352941 | Q9: =IF(P9=0,0,(P9*((LOG(P9))/LOG(2)))) -> -0.2404389907 | T9: =N9 -> 21 | U9: =COUNTIF(L7:L15,T9) -> 1 | V9: =U9/(W4-U8) -> 0.5 | W9: =IF(V9=0,0,(V9*((LOG(V9))/LOG(2)))) -> -0.5 | Y9: =N9 -> 21 | Z9: =COUNTIF(L16:L23,Y9) -> 1 | AA9: =Z9/(AB4-Z8) -> 0.3333333333 | AB9: =IF(AA9=0,0,(AA9*((LOG(AA9))/LOG(2)))) -> -0.5283208336 | AD9: =N9 -> 21 | AE9: =COUNTIF(L24:L32,AD9) -> 1 | AF9: =AE9/(AG4-AE8) -> 0.5 | AG9: =IF(AF9=0,0,(AF9*((LOG(AF9))/LOG(2)))) -> -0.5 | AI9: =N9 -> 21 | AJ9: =COUNTIF(L33:L40,AI9) -> 0 | AK9: =AJ9/(AL4-AJ8) -> 0 | AL9: =IF(AK9=0,0,(AK9*((LOG(AK9))/LOG(2)))) -> 0 | AN9: =N9 -> 21 | AO9: =COUNTIF(L41:L49,AN9) -> 0 | AP9: =AO9/(AQ4-AO8) -> 0 | AQ9: =IF(AP9=0,0,(AP9*((LOG(AP9))/LOG(2)))) -> 0 | AS9: =N9 -> 21 | AT9: =COUNTIF(L50:L57,AS9) -> 0 | AU9: =AT9/(AV4-AT8) ->  | AV9: =IF(AU9=0,0,(AU9*((LOG(AU9))/LOG(2)))) -> 
A10: 11 | B10: 318 | C10: 21 | D10: 328 | K10: 0 | L10: 12 | N10: 22 | O10: =COUNTIF($L$7:$L$500,N10) -> 4 | P10: =O10/$Q$4 -> 0.07843137255 | Q10: =IF(P10=0,0,(P10*((LOG(P10))/LOG(2)))) -> -0.2880333602 | T10: =N10 -> 22 | U10: =COUNTIF(L7:L15,T10) -> 1 | V10: =U10/(W4-U8) -> 0.5 | W10: =IF(V10=0,0,(V10*((LOG(V10))/LOG(2)))) -> -0.5 | Y10: =N10 -> 22 | Z10: =COUNTIF(L16:L23,Y10) -> 2 | AA10: =Z10/(AB4-Z8) -> 0.6666666667 | AB10: =IF(AA10=0,0,(AA10*((LOG(AA10))/LOG(2)))) -> -0.3899750005 | AD10: =N10 -> 22 | AE10: =COUNTIF(L24:L32,AD10) -> 1 | AF10: =AE10/(AG4-AE8) -> 0.5 | AG10: =IF(AF10=0,0,(AF10*((LOG(AF10))/LOG(2)))) -> -0.5 | AI10: =N10 -> 22 | AJ10: =COUNTIF(L33:L40,AI10) -> 0 | AK10: =AJ10/(AL4-AJ8) -> 0 | AL10: =IF(AK10=0,0,(AK10*((LOG(AK10))/LOG(2)))) -> 0 | AN10: =N10 -> 22 | AO10: =COUNTIF(L41:L49,AN10) -> 0 | AP10: =AO10/(AQ4-AO8) -> 0 | AQ10: =IF(AP10=0,0,(AP10*((LOG(AP10))/LOG(2)))) -> 0 | AS10: =N10 -> 22 | AT10: =COUNTIF(L50:L57,AS10) -> 0 | AU10: =AT10/(AV4-AT8) ->  | AV10: =IF(AU10=0,0,(AU10*((LOG(AU10))/LOG(2)))) -> 
A11: 11 | B11: 419 | C11: 21 | D11: 430 | K11: 0 | L11: 12 | T11: =N11 -> 0 | U11: =COUNTIF(L7:L15,T11) -> 0 | V11: =U11/(W4-U8) -> 0 | W11: =IF(V11=0,0,(V11*((LOG(V11))/LOG(2)))) -> 0 | Y11: =N11 -> 0 | Z11: =COUNTIF(L16:L23,Y11) -> 0 | AA11: =Z11/(AB4-Z8) -> 0 | AB11: =IF(AA11=0,0,(AA11*((LOG(AA11))/LOG(2)))) -> 0 | AD11: =N11 -> 0 | AE11: =COUNTIF(L24:L32,AD11) -> 0 | AF11: =AE11/(AG4-AE8) -> 0 | AG11: =IF(AF11=0,0,(AF11*((LOG(AF11))/LOG(2)))) -> 0 | AI11: =N11 -> 0 | AJ11: =COUNTIF(L33:L40,AI11) -> 0 | AK11: =AJ11/(AL4-AJ8) -> 0 | AL11: =IF(AK11=0,0,(AK11*((LOG(AK11))/LOG(2)))) -> 0 | AN11: =N11 -> 0 | AO11: =COUNTIF(L41:L49,AN11) -> 0 | AP11: =AO11/(AQ4-AO8) -> 0 | AQ11: =IF(AP11=0,0,(AP11*((LOG(AP11))/LOG(2)))) -> 0 | AS11: =N11 -> 0 | AT11: =COUNTIF(L50:L57,AS11) -> 0 | AU11: =AT11/(AV4-AT8) ->  | AV11: =IF(AU11=0,0,(AU11*((LOG(AU11))/LOG(2)))) -> 
A12: 11 | B12: 521 | C12: 21 | D12: 531 | K12: 0 | L12: 12 | T12: =N12 -> 0 | U12: =COUNTIF(L7:L15,T12) -> 0 | V12: =U12/(W4-U8) -> 0 | W12: =IF(V12=0,0,(V12*((LOG(V12))/LOG(2)))) -> 0 | Y12: =N12 -> 0 | Z12: =COUNTIF(L16:L23,Y12) -> 0 | AA12: =Z12/(AB4-Z8) -> 0 | AB12: =IF(AA12=0,0,(AA12*((LOG(AA12))/LOG(2)))) -> 0 | AD12: =N12 -> 0 | AE12: =COUNTIF(L24:L32,AD12) -> 0 | AF12: =AE12/(AG4-AE8) -> 0 | AG12: =IF(AF12=0,0,(AF12*((LOG(AF12))/LOG(2)))) -> 0 | AI12: =N12 -> 0 | AJ12: =COUNTIF(L33:L40,AI12) -> 0 | AK12: =AJ12/(AL4-AJ8) -> 0 | AL12: =IF(AK12=0,0,(AK12*((LOG(AK12))/LOG(2)))) -> 0 | AN12: =N12 -> 0 | AO12: =COUNTIF(L41:L49,AN12) -> 0 | AP12: =AO12/(AQ4-AO8) -> 0 | AQ12: =IF(AP12=0,0,(AP12*((LOG(AP12))/LOG(2)))) -> 0 | AS12: =N12 -> 0 | AT12: =COUNTIF(L50:L57,AS12) -> 0 | AU12: =AT12/(AV4-AT8) ->  | AV12: =IF(AU12=0,0,(AU12*((LOG(AU12))/LOG(2)))) -> 
A13: 22 | B13: 632 | C13: 14 | D13: 654 | K13: 0 | L13: 21 | T13: =N13 -> 0 | U13: =COUNTIF(L7:L15,T13) -> 0 | V13: =U13/(W4-U8) -> 0 | W13: =IF(V13=0,0,(V13*((LOG(V13))/LOG(2)))) -> 0 | Y13: =N13 -> 0 | Z13: =COUNTIF(L16:L23,Y13) -> 0 | AA13: =Z13/(AB4-Z8) -> 0 | AB13: =IF(AA13=0,0,(AA13*((LOG(AA13))/LOG(2)))) -> 0 | AD13: =N13 -> 0 | AE13: =COUNTIF(L24:L32,AD13) -> 0 | AF13: =AE13/(AG4-AE8) -> 0 | AG13: =IF(AF13=0,0,(AF13*((LOG(AF13))/LOG(2)))) -> 0 | AI13: =N13 -> 0 | AJ13: =COUNTIF(L33:L40,AI13) -> 0 | AK13: =AJ13/(AL4-AJ8) -> 0 | AL13: =IF(AK13=0,0,(AK13*((LOG(AK13))/LOG(2)))) -> 0 | AN13: =N13 -> 0 | AO13: =COUNTIF(L41:L49,AN13) -> 0 | AP13: =AO13/(AQ4-AO8) -> 0 | AQ13: =IF(AP13=0,0,(AP13*((LOG(AP13))/LOG(2)))) -> 0 | AS13: =N13 -> 0 | AT13: =COUNTIF(L50:L57,AS13) -> 0 | AU13: =AT13/(AV4-AT8) ->  | AV13: =IF(AU13=0,0,(AU13*((LOG(AU13))/LOG(2)))) -> 
